Workbook

Sheet ПЛАН
B1: Примечание
B2: !! Группировать ALT+Shift+стрелка вправо
A5: Отм. | B5: Наименование изделия | C5: Обозначения изделия | D5: Наименование детали | E5: Обозначение детали | F5: Количество | G5: Время обработки | H5: Станок | I5: Примечания
B6: Амортизатор | C6: 103Т-2905006 | F6: =800 -> 800
D7: Корпус | E7: 103Т-2905312-10 | F7: =F6 -> 800 | G7: 2.11 | H7: FC-TF(корп)
D8: Шток | E8: 103Т-2905482 | F8: =F6 -> 800 | G8: 4.774 | H8: FC-TF(шток) | I8: Время сверено с ТП
B9: Амортизатор | C9: 205068-2905006 | F9: 0
D10: Корпус | E10: 205-2905312-10 | F10: =F9 -> 0 | G10: 2.11 | H10: FC-TF(корп)
D11: Шток | E11: 205-2905482 | F11: =F9 -> 0 | G11: 4.774 | H11: FC-TF(шток) | I11: Время сверено с ТП
B12: Амортизатор | C12: 26Т.081.02.000 | F12: 0
D13: Корпус ам. | E13: 26Т.081.02.312-10 | F13: =F12 -> 0 | G13: 2.72 | H13: FC-TF(корп)
D14: Шток | E14: 26Т.081.02.482 | F14: =F12 -> 0 | G14: 6.664 | H14: FC-TF(шток) | I14: Приравнял к 26Т.081.02.482-01
B15: Амортизатор | C15: 40.УЛИГ.300/480.2905006 | F15: 200
D16: Корпус ам. | E16: УЛИГ.40.А1.452995.312-027 | F16: =F15+F20 -> 1076 | G16: 1.61 | H16: FC-TF(корп)
D17: Шток | E17: УЛИГ.40.452995.356-027 | F17: =F15+F20 -> 1076 | G17: 2.922 | H17: FC-TF(шток) | I17: Время сверено с ТП
D18: Цилиндр ам. | E18: УЛИГ.40.А1.452995.318-027 | F18: =F15+F20 -> 1076 | G18: 0.474 | H18: FC-TF(корп)
D19: Головка | E19: А1-300/480.443
B20: Амортизатор | C20: УЛИГ.40.А1.452995.027 | F20: =756+120 -> 876
D21: Корпус ам. | E21: УЛИГ.40.А1.452995.312-027
D22: Шток | E22: 40.УЛИГ.452995.356-027
D23: Цилиндр ам. | E23: УЛИГ.40.А1.452995.318-027
B24: Амортизатор | C24: 40.УЛИГ.275/455.2915006 | F24: 250
D25: Корпус | E25: 40.А1-275/460.312 | F25: =F24+F38 -> 350 | G25: 1.61 | H25: FC-TF(корп)
D26: Шток | E26: 40.УЛИГ.452995.356-021 | F26: =F24+F38 -> 350 | G26: 2.922 | H26: FC-TF(шток)
D27: Цилиндр | E27: 40.А1-275/460.318 | F27: =F24+F38 -> 350 | G27: 0.474 | H27: FC-TF(корп)
D28: Головка | E28: А1-300/480.443 | F28: =F24*2+F104+F15*2 -> 900 | G28: 3 | H28: FC-TF(один)
B29: Амортизатор | C29: 101-2905006 | F29: 0
D30: Корпус | E30: УЛИГ.50.А1.452995.312-070 | F30: =F29+F32+F87+F90+F93+F132+F149 -> 2934 | G30: 1.73 | H30: FC-TF(корп)
D31: Шток | E31: 101-2905482-20 | F31: =F29+F32 -> 150 | G31: 4.88 | H31: FC-TF(шток)
B32: Амортизатор | C32: 101-2905006-01 | F32: =150 -> 150
D33: Корпус | E33: УЛИГ.50.А1.452995.312-070
D34: Шток | E34: 101-2905482-20
B35: Амортизатор | C35: ТЕ1-10А-2905006 | F35: 300
D36: Корпус | E36: ТЕ1-10А-2905312-12 | F36: =F35 -> 300 | G36: 2.72 | H36: FC-TF(корп)
D37: Шток | E37: ТЕ1-10А-2905356-10 | F37: =F35 -> 300 | G37: 3.378 | H37: FC-TF(шток) | I37: Время сверено с ТП
B38: Амортизатор | C38: 40.УЛИГ.452995.021 | F38: 100
D39: Корпус | E39: 40.А1-275/460.312
D40: Шток | E40: 40.УЛИГ.452995.356-021
D41: Цилиндр | E41: 40.А1-275/460.318
B42: Амортизатор | C42: 54327-2915006-20 | F42: =50+400 -> 450
D43: Корпус | E43: 54327-2915312-25 | F43: =F42+F59+F71+F79+F121+F135 -> 5228 | G43: 1.73 | H43: FC-TF(корп)
D44: Шток | E44: 54327-2915356-71 | F44: =F42+F79+F135 -> 738 | G44: 2.72 | H44: FC-TF(шток)
D45: Цилиндр | E45: 15.2905318-21 | F45: =F42+F59+F71+F79+F121+F135+F145 -> 5228 | G45: 0.474 | H45: FC-TF(корп)
B46: Амортизатор | C46: 54327-2915006-30 | F46: 50
D47: Корпус | E47: 54327-2915312-35 | F47: =F46+F117+F205 -> 80 | G47: 1.73 | H47: FC-TF(корп)
D48: Шток | E48: 54327-2915356-81 | F48: =F46 -> 50 | G48: 2.72 | H48: FC-TF(шток)
D49: Цилиндр | E49: 15.2905318-31 | F49: =F46+F117 -> 80 | G49: 0.474 | H49: FC-TF(корп)
B50: Амортизатор | C50: 54327-2915006-50 | F50: =60+400 -> 460
D51: Корпус | E51: 54327-2915312-55 | F51: =F50+F53+F56+F202+F208 -> 954 | G51: 1.73 | H51: FC-TF(корп)
D52: Шток | E52: 54327-2915356-91 | F52: =F50 -> 460 | G52: 2.72 | H52: FC-TF(шток)
B53: Амортизатор | C53: 54327-2915006-60 | F53: =38+350 -> 388
D54: Корпус | E54: 54327-2915312-55
D55: Шток | E55: 54327-2915356-60 | F55: =F53+F56+F202 -> 488 | G55: 2.72 | H55: FC-TF(шток)
B56: Амортизатор | C56: А1-237/412.2905006-01 | F56: 100
D57: Корпус | E57: 54327-2915312-55
D58: Шток | E58: 54327-2915356-60
B59: Амортизатор | C59: А1-255/475.2905006 | F59: 768
D60: Корпус | E60: 54327-2915312-25
D61: Шток | E61: А1-255/475.356 | F61: =F59+F145 -> 768 | G61: 2.25 | H61: FC-TF(шток)
D62: Цилиндр | E62: 15.2905318-21
B63: Амортизатор | C63: А1-350/525.2905006 | F63: 192
D64: Корпус | E64: 54327-2915312-05 | F64: =F63+F83+F162+F211 -> 242 | G64: 1.73 | H64: FC-TF(корп)
D65: Шток | E65: A1-350/525.356-10 | F65: =F63+F162+F211 -> 242 | G65: 2.823 | H65: FC-TF(шток)
D66: Цилиндр | E66: 15.2905318-01 | F66: =F63+F83+F162 -> 242 | G66: 0.474 | H66: FC-TF(корп)
B67: Амортизатор | C67: А1-325/500.2905006 | F67: 177
D68: Корпус | E68: 54327-2915312-15 | F68: =F67+F125+F155+F208 -> 2814 | G68: 1.73 | H68: FC-TF(корп)
D69: Шток | E69: A1-325/500.356-10 | F69: =F67+F125 -> 2808 | G69: 2.823 | H69: FC-TF(шток) | I69: Время сверено с ТП
D70: Цилиндр | E70: 15.2905318-11 | F70: =F67+F125+F155 -> 2808 | G70: 0.474 | H70: FC-TF(корп)
B71: Амортизатор | C71: А1-300/475.2905006 | F71: =3168+100 -> 3268
D72: Корпус | E72: 54327-2915312-25
D73: Шток | E73: А1-300/475.356-10 | F73: =F71+F121 -> 3722 | G73: 2.69 | H73: FC-TF(шток) | I73: Приравнял к А1-300/475.356-11
D74: Цилиндр | E74: 15.2905318-21
B75: Амортизатор | C75: А1-275/460.2905006-01 | F75: 0
D76: Корпус | E76: 22.2905312-05 | F76: =F75+F102 -> 0 | G76: 1.73 | H76: FC-TF(корп)
D77: Шток | E77: А1-275/450.356-10 | F77: =F75+F117+F205 -> 30 | G77: 2.823 | H77: FC-TF(шток) | I77: Время сверено с ТП
D78: Цилиндр | E78: 22.2905318 | F78: =F75+F102 -> 0 | G78: 0.474 | H78: FC-TF(корп)
B79: Амортизатор | C79: УЛИГ.50.А1.452995.038 | F79: 288
D80: Корпус | E80: 54327-2915312-25
D81: Шток | E81: 54327-2915356-71
D82: Цилиндр | E82: 15.2905318-21
B83: Амортизатор | C83: 54327-2915006 | F83: 0
D84: Корпус | E84: 54327-2915312-05
D85: Шток | E85: 54327-2915356-51 | F85: =F83 -> 0 | G85: 2.25 | H85: FC-TF(шток)
D86: Цилиндр | E86: 15.2905318-01
B87: Амортизатор | C87: А2-245/450.2905006 | F87: 0
D88: Корпус | E88: УЛИГ.50.А1.452995.312-070
D89: Шток | E89: А2-245/450.482-21 | F89: =F87+F149 -> 0 | G89: 4.88 | H89: FC-TF(шток) | I89: Время сверено с ТП. ТП актуальный 26.07.21
B90: Амортизатор | C90: А2-230/450.2905006 | F90: 0
D91: Корпус | E91: УЛИГ.50.А1.452995.312-070
D92: Шток | E92: А2-230/450.482-21 | F92: =F90 -> 0 | G92: 4.88 | H92: FC-TF(шток) | I92: Время сверено с ТП. ТП актуальный 26.07.21
B93: Амортизатор | C93: УЛИГ.452995.004 | F93: 384
D94: Корпус | E94: УЛИГ.50.А1.452995.312-070
D95: Шток | E95: УЛИГ.452995.482-004-03 | F95: =F93 -> 384 | G95: 3.43 | H95: FC-TF(шток)
B96: Амортизатор | C96: УЛИГ.452995.020 | F96: 480
D97: Корпус | E97: УЛИГ.452995.312-020 | F97: =F96 -> 480
D98: Шток | E98: УЛИГ.452995.482-020 | F98: =F96 -> 480 | G98: 4.35 | H98: FC-TF(шток) | I98: Время сверено с ТП
B99: Амортизатор | C99: УЛИГ.50.А2.452995.044 | F99: 0
D100: Корпус | E100: УЛИГ.50.А2.452995.312-044 | F100: =F99 -> 0 | G100: 2.02 | H100: FC-TF(корп)
D101: Шток | E101: УЛИГ.50.А2.452995.482-044 | F101: =F99 -> 0 | G101: 4.35 | H101: FC-TF(шток)
B102: Амортизатор | C102: УЛИГ.50.А3.452995.080 | F102: 0
D103: Корпус | E103: 22.2905312-05
D104: Шток | E104: УЛИГ.50.А3.452995.482-080-01 | F104: =F102 -> 0 | G104: 4.35 | H104: FC-TF(шток)
D105: Цилиндр | E105: 22.2905318
D106: Головка | E106: А1-300/480.443
B107: Амортизатор | C107: А2-235/420.000 | F107: 0
D108: Корпус | E108: 15.2905312-45 | F108: =F107 -> 0 | G108: 2.02 | H108: FC-TF(корп)
D109: Шток | E109: А2-245/450.482 | F109: =F107 -> 0 | G109: 4.35 | H109: FC-TF(шток)
B110: Амортизатор | C110: УЛИГ.40.А2.452915.053 | F110: 378
D111: Корпус | E111: УЛИГ.40.А2.452915.312-053 | F111: =F110 -> 378 | G111: 1.942 | H111: FC-TF(корп)
D112: Шток | E112: УЛИГ.40.А2.452915.482-053 | F112: =F110 -> 378 | G112: 3.32 | H112: FC-TF(шток) | I112: Время сверено с ТП
B113: Амортизатор | C113: УЛИГ.40.А1.452995.100 | F113: 0
D114: Корпус | E114: УЛИГ.40.А1.452915.312-063 | F114: =F113 -> 0 | G114: 1.61 | H114: FC-TF(корп)
D115: Шток | E115: УЛИГ.40.А1.452995.356-100 | F115: =F113 -> 0 | G115: 3.32 | H115: FC-TF(шток)
D116: Цилиндр | E116: УЛИГ.40.А1.452915.318-063 | F116: =F113 -> 0 | G116: 0.474 | H116: FC-TF(корп)
B117: Амортизатор | C117: А1-275/450.2905006 | F117: 30
D118: Корпус | E118: 54327-2915312-35
D119: Шток | E119: А1-275/450.356-10
D120: Цилиндр | E120: 15.2905318-31
B121: Амортизатор | C121: А1-300/475.2905006-01 | F121: =154+300 -> 454
D122: Корпус | E122: 54327-2915312-25
D123: Шток | E123: А1-300/475.356-10
D124: Цилиндр | E124: 15.2905318-21
B125: Амортизатор | C125: А1-325/500.2905006-01 | F125: =231+2400 -> 2631
D126: Корпус | E126: 54327-2915312-15
D127: Шток | E127: A1-325/500.356-10
D128: Цилиндр | E128: 15.2905318-11
B129: Амортизатор | C129: УЛИГ.50.А1.452995.032 | F129: 30
D130: Корпус | E130: А1-180/350.312-20 | F130: =F129 -> 30 | G130: 2.02 | H130: FC-TF(корп)
D131: Шток | E131: А1-180/350.356 | F131: =F129 -> 30 | G131: 2.69 | H131: FC-TF(шток) | I131: Приравнял к А1-180/350.356-01
B132: Амортизатор | C132: УЛИГ.50.А1.452995.070 | F132: 2400
D133: Корпус | E133: УЛИГ.50.А1.452995.312-070
D134: Шток | E134: УЛИГ.50.А1.452995.356-070 | F134: =F132 -> 2400 | G134: 3.513 | H134: FC-TF(шток) | I134: Время сверено с ТП
B135: Амортизатор | C135: 54327-2915006-21 | F135: 0
D136: Корпус | E136: 54327-2915312-25
D137: Шток | E137: 54327-2915356-71
D138: Цилиндр | E138: 15.2905318-21
B139: Амортизатор | C139: А1-175/375.000 | F139: 50
D140: Корпус | E140: А1-175/375.312-20 | F140: =F139+F142 -> 50 | G140: 2.02 | H140: FC-TF(корп)
D141: Шток | E141: А1-175/375.356 | F141: =F139 -> 50 | G141: 2.69 | H141: FC-TF(шток) | I141: Приравнял к А1-175/375.356-01
B142: Амортизатор | C142: А1-200/375.000 | F142: 0
D143: Корпус | E143: А1-175/375.312-20
D144: Шток | E144: А1-200/375.356 | F144: =F142 -> 0 | G144: 2.69 | H144: FC-TF(шток)
B145: Амортизатор | C145: А1-260/437.2905006-01 | F145: 0
D146: Корпус | E146: 15.2905312-55 | F146: =F145 -> 0 | G146: 1.73 | H146: FC-TF(корп)
D147: Шток | E147: А1-255/475.356
D148: Цилиндр | E148: 15.2905318-21
B149: Амортизатор | C149: А2-245/450.2905006-01 | F149: 0
D150: Корпус | E150: УЛИГ.50.А1.452995.312-070
D151: Шток | E151: А2-245/450.482-21
B152: Амортизатор | C152: 103Т-2905006-10 | F152: 0
D153: Корпус | E153: 103Т-2905312-12 | F153: =F152 -> 0 | G153: 2.11 | H153: FC-TF(корп)
D154: Шток | E154: 103Т-2905482-10 | F154: =F152 -> 0 | G154: 4.774 | H154: FC-TF(шток) | I154: Время сверено с ТП
B155: Амортизатор | C155: 54327-2915006-10 | F155: 0
D156: Корпус | E156: 54327-2915312-15
D157: Шток | E157: 54327-2915356-61 | F157: =F155 -> 0 | G157: 2.72 | H157: FC-TF(шток)
D158: Цилиндр | E158: 15.2905318-11
B159: Амортизатор | C159: А1-200/385.000 | F159: 0
D160: Корпус | E160: А1-200/385.312-20 | F160: =F159 -> 0 | G160: 2.02 | H160: FC-TF(корп)
D161: Шток | E161: А1-200/385.356 | F161: =F159 -> 0 | G161: 2.69 | H161: FC-TF(шток)
B162: Амортизатор | C162: А1-350/525.2905006-01 | F162: 50
D163: Корпус | E163: 54327-2915312-05
D164: Шток | E164: A1-350/525.356-10
D165: Цилиндр | E165: 15.2905318-01
B166: Амортизатор | C166: А3.40-245/379.000 | F166: 0
D167: Корпус | E167: А3.40-245/379.312 | F167: =F166 -> 0 | G167: 1.94 | H167: FC-TF(корп)
D168: Шток | E168: А3.40-245/379.482 | F168: =F166 -> 0 | G168: 3.32 | H168: FC-TF(шток)
B169: Амортизатор | C169: УЛИГ.40.А2.452915.107 | F169: 200
D170: Корпус | E170: УЛИГ.40.А2.452915.312-107 | F170: =F169 -> 200 | G170: 1.61 | H170: FC-TF(корп)
D171: Шток | E171: УЛИГ.40.А2.452915.482-107 | F171: =F169 -> 200 | G171: 4.35 | H171: FC-TF(шток)
B172: Амортизатор | C172: УЛИГ.50.А1.452995.031 | F172: 0
D173: Корпус | E173: УЛИГ.50.А1.452995.312-031 | F173: =F172 -> 0 | G173: 2.02 | H173: FC-TF(корп)
D174: Шток | E174: А1-150/325.356 | F174: =F172 -> 0 | G174: 2.69 | H174: FC-TF(шток) | I174: Приравнял к А1-150/325.356-01
B175: Амортизатор | C175: УЛИГ.667183.075 | F175: 0
D176: Корпус | E176: УЛИГ.667183.312-075 | F176: =F175 -> 0 | G176: 2.11 | H176: FC-TF(корп) | I176: Приравнял к 103Т-2905312-10
D177: Шток | E177: УЛИГ.667183.356-075-10 | F177: =F175 -> 0 | G177: 3.596 | H177: FC-TF(шток) | I177: Приравнял к УЛИГ.667183.356-075-11
B178: Гайка | C178: 93865-3104038 | F178: 14250
D179: Гайка | E179: 93865-3104040 | F179: =F178 -> 14250 | G179: 1.92 | H179: FC-TF(один)
B180: Механизм промежуточный | C180: 551639-1703325-001 | F180: 0
D181: Удлинитель | E181: 5551-1703356 | F181: =F180 -> 0 | G181: 1.99 | H181: FC-TF(один)
D182: Тяга | E182: 551639-1703354 | F182: =F180 -> 0 | G182: 2.33 | H182: FC-TF(один)
D183: Втулка | E183: 5336-1703366 | F183: =F180+F184 -> 400 | G183: 5.47 | H183: FC-TF(один)
B184: Механизм промежуточный | C184: 533742-1703325 | F184: 400
D185: Удлинитель | E185: 544008-1703356 | F185: =F184+F188 -> 405 | G185: 1.99 | H185: FC-TF(один)
D187: Втулка | E187: 5336-1703366
B188: Механизм промежуточный | C188: 544008-1703325 | F188: 5
D189: Удлинитель | E189: 544008-1703356
B190: Демпфер | C190: 331.00.000-02 | F190: 0
D191: Шток | E191: УЛИГ.331.373 | F191: =F190+F243 -> 25 | G191: 2.962 | H191: FC-TF(шток) | I191: Время сверено с ТП
B192: Демпфер | C192: 335.00.000-02 | F192: 0
D193: Шток | E193: УЛИГ.335.373 | F193: =F192+F196+F245 -> 0 | G193: 2.54 | H193: FC-TF(шток) | I193: Время сверено с ТП
B194: Демпфер | C194: 336.00.000-01 | F194: 0
D195: Шток | E195: УЛИГ.336.373 | F195: =F194 -> 0 | G195: 4.832 | H195: FC-TF(шток) | I195: Время сверено с ТП
B196: Демпфер | C196: УЛИГ.335.000-02 | F196: 0
D197: Шток | E197: УЛИГ.335.373
B198: Ремкомплект буксовый | C198: 348.00.000 | F198: 0
D199: Шток | E199: 348.00.482 | F199: =F198 -> 0 | G199: 4.83 | H199: FC-TF(шток) | I199: Время сверено с ТП
B200: Ремкомплект центральный | C200: 347.00.000 | F200: 0
D201: Шток | E201: 347.00.356 | F201: =F200 -> 0 | G201: 4.83 | H201: FC-TF(шток) | I201: Время сверено с ТП
B202: Амортизатор | C202: 54327-2915006-06 | F202: 0
D203: Корпус | E203: 54327-2915312-55
... 38 more rows

Sheet FC-TF(корп)
C2: Трудоемкость изготовления деталей по действующим нормам цех №3 станки FC-TF 10 | J2: На октябрь 2021 г.
A3: Оборудование (группа) | C3: Деталь | E3: Трудоемк. на 100 дет. в нормо-час. | F3: Количество деталей на программу (в шт.) | G3: Трудоемк. на программу в нормо-час. | H3: Загрузка оборудован. по действую-щим нормам в нормо-час. | I3: Фонд времени работы одного станка | J3: Тшт, мин. | K3: Количество деталей в смену (в шт.)
A4: Инв. номер | B4: Наименование | C4: Наименование | D4: Обозначение
A5: 1 | B5: 2 | C5: 3 | D5: 4 | E5: 5 | F5: 6 | G5: 7 | H5: 8 | I5: 9 | J5: 10 | K5: 11
A6: 40201 | B6: FC-TF 10 | H6: В 3 смены | I6: =176*3 -> 528
C8: =IFERROR(INDEX(ПЛАН!$D$6:$D$504,MATCH(SMALL((ПЛАН!$H$6:$H$504="FC-TF(корп)")*COUNTIF(ПЛАН!$D$6:$D$504,"<="&ПЛАН!$D$6:$D$504),COUNTIF(ПЛАН!$H$6:$H$504,"<>FC-TF(корп)")+ROW(D1)),COUNTIF(ПЛАН!$D$6:$D$504,"<="&ПЛАН!$D$6:$D$504),0)),"0") -> Корпус | D8: =IFERROR(INDEX(ПЛАН!$E$6:$E$504,MATCH(SMALL((ПЛАН!$H$6:$H$504="FC-TF(корп)")*COUNTIF(ПЛАН!$D$6:$D$504,"<="&ПЛАН!$D$6:$D$504)+ROW(ПЛАН!$E$6:$E$504)%,COUNTIF(ПЛАН!$H$6:$H$504,"<>FC-TF(корп)")+ROW(E1)),COUNTIF(ПЛАН!$D$6:$D$504,"<="&ПЛАН!$D$6:$D$504)+ROW(ПЛАН!$E$6:$E$504)%,0)),"0") -> 103Т-2905312-10 | E8: =J8/60*100 -> 3.516666667 | F8: =IF(ISNA(VLOOKUP(D8,ПЛАН!$E$6:$G$504,2,0)),0,VLOOKUP(D8,ПЛАН!$E$6:$G$504,2,0)) -> 800 | G8: =E8*F8/100 -> 28.13333333 | J8: =IF(ISNA(VLOOKUP(D8,ПЛАН!$E$6:$G$504,3,0)),0,VLOOKUP(D8,ПЛАН!$E$6:$G$504,3,0)) -> 2.11 | K8: =8*60/J8 -> 227.4881517
C9: =IFERROR(INDEX(ПЛАН!$D$6:$D$504,MATCH(SMALL((ПЛАН!$H$6:$H$504="FC-TF(корп)")*COUNTIF(ПЛАН!$D$6:$D$504,"<="&ПЛАН!$D$6:$D$504),COUNTIF(ПЛАН!$H$6:$H$504,"<>FC-TF(корп)")+ROW(D2)),COUNTIF(ПЛАН!$D$6:$D$504,"<="&ПЛАН!$D$6:$D$504),0)),"0") -> Корпус | D9: =IFERROR(INDEX(ПЛАН!$E$6:$E$504,MATCH(SMALL((ПЛАН!$H$6:$H$504="FC-TF(корп)")*COUNTIF(ПЛАН!$D$6:$D$504,"<="&ПЛАН!$D$6:$D$504)+ROW(ПЛАН!$E$6:$E$504)%,COUNTIF(ПЛАН!$H$6:$H$504,"<>FC-TF(корп)")+ROW(E2)),COUNTIF(ПЛАН!$D$6:$D$504,"<="&ПЛАН!$D$6:$D$504)+ROW(ПЛАН!$E$6:$E$504)%,0)),"0") -> 205-2905312-10 | E9: =J9/60*100 -> 3.516666667 | F9: =IF(ISNA(VLOOKUP(D9,ПЛАН!$E$6:$G$504,2,0)),0,VLOOKUP(D9,ПЛАН!$E$6:$G$504,2,0)) -> 0 | G9: =E9*F9/100 -> 0 | J9: =IF(ISNA(VLOOKUP(D9,ПЛАН!$E$6:$G$504,3,0)),0,VLOOKUP(D9,ПЛАН!$E$6:$G$504,3,0)) -> 2.11 | K9: =8*60/J9 -> 227.4881517
C10: =IFERROR(INDEX(ПЛАН!$D$6:$D$504,MATCH(SMALL((ПЛАН!$H$6:$H$504="FC-TF(корп)")*COUNTIF(ПЛАН!$D$6:$D$504,"<="&ПЛАН!$D$6:$D$504),COUNTIF(ПЛАН!$H$6:$H$504,"<>FC-TF(корп)")+ROW(D3)),COUNTIF(ПЛАН!$D$6:$D$504,"<="&ПЛАН!$D$6:$D$504),0)),"0") -> Корпус | D10: =IFERROR(INDEX(ПЛАН!$E$6:$E$504,MATCH(SMALL((ПЛАН!$H$6:$H$504="FC-TF(корп)")*COUNTIF(ПЛАН!$D$6:$D$504,"<="&ПЛАН!$D$6:$D$504)+ROW(ПЛАН!$E$6:$E$504)%,COUNTIF(ПЛАН!$H$6:$H$504,"<>FC-TF(корп)")+ROW(E3)),COUNTIF(ПЛАН!$D$6:$D$504,"<="&ПЛАН!$D$6:$D$504)+ROW(ПЛАН!$E$6:$E$504)%,0)),"0") -> 40.А1-275/460.312 | E10: 2.683333333 | F10: =IF(ISNA(VLOOKUP(D10,ПЛАН!$E$6:$G$504,2,0)),0,VLOOKUP(D10,ПЛАН!$E$6:$G$504,2,0)) -> 350 | G10: 9.391666667 | J10: =IF(ISNA(VLOOKUP(D10,ПЛАН!$E$6:$G$504,3,0)),0,VLOOKUP(D10,ПЛАН!$E$6:$G$504,3,0)) -> 1.61 | K10: 298.136646
C11: =IFERROR(INDEX(ПЛАН!$D$6:$D$504,MATCH(SMALL((ПЛАН!$H$6:$H$504="FC-TF(корп)")*COUNTIF(ПЛАН!$D$6:$D$504,"<="&ПЛАН!$D$6:$D$504),COUNTIF(ПЛАН!$H$6:$H$504,"<>FC-TF(корп)")+ROW(D4)),COUNTIF(ПЛАН!$D$6:$D$504,"<="&ПЛАН!$D$6:$D$504),0)),"0") -> Корпус | D11: =IFERROR(INDEX(ПЛАН!$E$6:$E$504,MATCH(SMALL((ПЛАН!$H$6:$H$504="FC-TF(корп)")*COUNTIF(ПЛАН!$D$6:$D$504,"<="&ПЛАН!$D$6:$D$504)+ROW(ПЛАН!$E$6:$E$504)%,COUNTIF(ПЛАН!$H$6:$H$504,"<>FC-TF(корп)")+ROW(E4)),COUNTIF(ПЛАН!$D$6:$D$504,"<="&ПЛАН!$D$6:$D$504)+ROW(ПЛАН!$E$6:$E$504)%,0)),"0") -> УЛИГ.50.А1.452995.312-070 | E11: 2.883333333 | F11: =IF(ISNA(VLOOKUP(D11,ПЛАН!$E$6:$G$504,2,0)),0,VLOOKUP(D11,ПЛАН!$E$6:$G$504,2,0)) -> 2934 | G11: 84.597 | J11: =IF(ISNA(VLOOKUP(D11,ПЛАН!$E$6:$G$504,3,0)),0,VLOOKUP(D11,ПЛАН!$E$6:$G$504,3,0)) -> 1.73 | K11: 277.4566474
C12: =IFERROR(INDEX(ПЛАН!$D$6:$D$504,MATCH(SMALL((ПЛАН!$H$6:$H$504="FC-TF(корп)")*COUNTIF(ПЛАН!$D$6:$D$504,"<="&ПЛАН!$D$6:$D$504),COUNTIF(ПЛАН!$H$6:$H$504,"<>FC-TF(корп)")+ROW(D5)),COUNTIF(ПЛАН!$D$6:$D$504,"<="&ПЛАН!$D$6:$D$504),0)),"0") -> Корпус | D12: =IFERROR(INDEX(ПЛАН!$E$6:$E$504,MATCH(SMALL((ПЛАН!$H$6:$H$504="FC-TF(корп)")*COUNTIF(ПЛАН!$D$6:$D$504,"<="&ПЛАН!$D$6:$D$504)+ROW(ПЛАН!$E$6:$E$504)%,COUNTIF(ПЛАН!$H$6:$H$504,"<>FC-TF(корп)")+ROW(E5)),COUNTIF(ПЛАН!$D$6:$D$504,"<="&ПЛАН!$D$6:$D$504)+ROW(ПЛАН!$E$6:$E$504)%,0)),"0") -> ТЕ1-10А-2905312-12 | E12: 4.533333333 | F12: =IF(ISNA(VLOOKUP(D12,ПЛАН!$E$6:$G$504,2,0)),0,VLOOKUP(D12,ПЛАН!$E$6:$G$504,2,0)) -> 300 | G12: 13.6 | J12: =IF(ISNA(VLOOKUP(D12,ПЛАН!$E$6:$G$504,3,0)),0,VLOOKUP(D12,ПЛАН!$E$6:$G$504,3,0)) -> 2.72 | K12: 176.4705882
C13: =IFERROR(INDEX(ПЛАН!$D$6:$D$504,MATCH(SMALL((ПЛАН!$H$6:$H$504="FC-TF(корп)")*COUNTIF(ПЛАН!$D$6:$D$504,"<="&ПЛАН!$D$6:$D$504),COUNTIF(ПЛАН!$H$6:$H$504,"<>FC-TF(корп)")+ROW(D6)),COUNTIF(ПЛАН!$D$6:$D$504,"<="&ПЛАН!$D$6:$D$504),0)),"0") -> Корпус | D13: =IFERROR(INDEX(ПЛАН!$E$6:$E$504,MATCH(SMALL((ПЛАН!$H$6:$H$504="FC-TF(корп)")*COUNTIF(ПЛАН!$D$6:$D$504,"<="&ПЛАН!$D$6:$D$504)+ROW(ПЛАН!$E$6:$E$504)%,COUNTIF(ПЛАН!$H$6:$H$504,"<>FC-TF(корп)")+ROW(E6)),COUNTIF(ПЛАН!$D$6:$D$504,"<="&ПЛАН!$D$6:$D$504)+ROW(ПЛАН!$E$6:$E$504)%,0)),"0") -> 54327-2915312-25 | E13: 2.883333333 | F13: =IF(ISNA(VLOOKUP(D13,ПЛАН!$E$6:$G$504,2,0)),0,VLOOKUP(D13,ПЛАН!$E$6:$G$504,2,0)) -> 5228 | G13: 150.7406667 | J13: =IF(ISNA(VLOOKUP(D13,ПЛАН!$E$6:$G$504,3,0)),0,VLOOKUP(D13,ПЛАН!$E$6:$G$504,3,0)) -> 1.73 | K13: 277.4566474
C14: =IFERROR(INDEX(ПЛАН!$D$6:$D$504,MATCH(SMALL((ПЛАН!$H$6:$H$504="FC-TF(корп)")*COUNTIF(ПЛАН!$D$6:$D$504,"<="&ПЛАН!$D$6:$D$504),COUNTIF(ПЛАН!$H$6:$H$504,"<>FC-TF(корп)")+ROW(D7)),COUNTIF(ПЛАН!$D$6:$D$504,"<="&ПЛАН!$D$6:$D$504),0)),"0") -> Корпус | D14: =IFERROR(INDEX(ПЛАН!$E$6:$E$504,MATCH(SMALL((ПЛАН!$H$6:$H$504="FC-TF(корп)")*COUNTIF(ПЛАН!$D$6:$D$504,"<="&ПЛАН!$D$6:$D$504)+ROW(ПЛАН!$E$6:$E$504)%,COUNTIF(ПЛАН!$H$6:$H$504,"<>FC-TF(корп)")+ROW(E7)),COUNTIF(ПЛАН!$D$6:$D$504,"<="&ПЛАН!$D$6:$D$504)+ROW(ПЛАН!$E$6:$E$504)%,0)),"0") -> 54327-2915312-35 | E14: 2.883333333 | F14: =IF(ISNA(VLOOKUP(D14,ПЛАН!$E$6:$G$504,2,0)),0,VLOOKUP(D14,ПЛАН!$E$6:$G$504,2,0)) -> 80 | G14: 2.306666667 | J14: =IF(ISNA(VLOOKUP(D14,ПЛАН!$E$6:$G$504,3,0)),0,VLOOKUP(D14,ПЛАН!$E$6:$G$504,3,0)) -> 1.73 | K14: 277.4566474
C15: =IFERROR(INDEX(ПЛАН!$D$6:$D$504,MATCH(SMALL((ПЛАН!$H$6:$H$504="FC-TF(корп)")*COUNTIF(ПЛАН!$D$6:$D$504,"<="&ПЛАН!$D$6:$D$504),COUNTIF(ПЛАН!$H$6:$H$504,"<>FC-TF(корп)")+ROW(D8)),COUNTIF(ПЛАН!$D$6:$D$504,"<="&ПЛАН!$D$6:$D$504),0)),"0") -> Корпус | D15: =IFERROR(INDEX(ПЛАН!$E$6:$E$504,MATCH(SMALL((ПЛАН!$H$6:$H$504="FC-TF(корп)")*COUNTIF(ПЛАН!$D$6:$D$504,"<="&ПЛАН!$D$6:$D$504)+ROW(ПЛАН!$E$6:$E$504)%,COUNTIF(ПЛАН!$H$6:$H$504,"<>FC-TF(корп)")+ROW(E8)),COUNTIF(ПЛАН!$D$6:$D$504,"<="&ПЛАН!$D$6:$D$504)+ROW(ПЛАН!$E$6:$E$504)%,0)),"0") -> 54327-2915312-55 | E15: 2.883333333 | F15: =IF(ISNA(VLOOKUP(D15,ПЛАН!$E$6:$G$504,2,0)),0,VLOOKUP(D15,ПЛАН!$E$6:$G$504,2,0)) -> 954 | G15: 27.507 | J15: =IF(ISNA(VLOOKUP(D15,ПЛАН!$E$6:$G$504,3,0)),0,VLOOKUP(D15,ПЛАН!$E$6:$G$504,3,0)) -> 1.73 | K15: 277.4566474
C16: =IFERROR(INDEX(ПЛАН!$D$6:$D$504,MATCH(SMALL((ПЛАН!$H$6:$H$504="FC-TF(корп)")*COUNTIF(ПЛАН!$D$6:$D$504,"<="&ПЛАН!$D$6:$D$504),COUNTIF(ПЛАН!$H$6:$H$504,"<>FC-TF(корп)")+ROW(D9)),COUNTIF(ПЛАН!$D$6:$D$504,"<="&ПЛАН!$D$6:$D$504),0)),"0") -> Корпус | D16: =IFERROR(INDEX(ПЛАН!$E$6:$E$504,MATCH(SMALL((ПЛАН!$H$6:$H$504="FC-TF(корп)")*COUNTIF(ПЛАН!$D$6:$D$504,"<="&ПЛАН!$D$6:$D$504)+ROW(ПЛАН!$E$6:$E$504)%,COUNTIF(ПЛАН!$H$6:$H$504,"<>FC-TF(корп)")+ROW(E9)),COUNTIF(ПЛАН!$D$6:$D$504,"<="&ПЛАН!$D$6:$D$504)+ROW(ПЛАН!$E$6:$E$504)%,0)),"0") -> 54327-2915312-05 | E16: 2.883333333 | F16: =IF(ISNA(VLOOKUP(D16,ПЛАН!$E$6:$G$504,2,0)),0,VLOOKUP(D16,ПЛАН!$E$6:$G$504,2,0)) -> 242 | G16: 6.977666667 | J16: =IF(ISNA(VLOOKUP(D16,ПЛАН!$E$6:$G$504,3,0)),0,VLOOKUP(D16,ПЛАН!$E$6:$G$504,3,0)) -> 1.73 | K16: 277.4566474
C17: =IFERROR(INDEX(ПЛАН!$D$6:$D$504,MATCH(SMALL((ПЛАН!$H$6:$H$504="FC-TF(корп)")*COUNTIF(ПЛАН!$D$6:$D$504,"<="&ПЛАН!$D$6:$D$504),COUNTIF(ПЛАН!$H$6:$H$504,"<>FC-TF(корп)")+ROW(D10)),COUNTIF(ПЛАН!$D$6:$D$504,"<="&ПЛАН!$D$6:$D$504),0)),"0") -> Корпус | D17: =IFERROR(INDEX(ПЛАН!$E$6:$E$504,MATCH(SMALL((ПЛАН!$H$6:$H$504="FC-TF(корп)")*COUNTIF(ПЛАН!$D$6:$D$504,"<="&ПЛАН!$D$6:$D$504)+ROW(ПЛАН!$E$6:$E$504)%,COUNTIF(ПЛАН!$H$6:$H$504,"<>FC-TF(корп)")+ROW(E10)),COUNTIF(ПЛАН!$D$6:$D$504,"<="&ПЛАН!$D$6:$D$504)+ROW(ПЛАН!$E$6:$E$504)%,0)),"0") -> 54327-2915312-15 | E17: 2.883333333 | F17: =IF(ISNA(VLOOKUP(D17,ПЛАН!$E$6:$G$504,2,0)),0,VLOOKUP(D17,ПЛАН!$E$6:$G$504,2,0)) -> 2814 | G17: 81.137 | J17: =IF(ISNA(VLOOKUP(D17,ПЛАН!$E$6:$G$504,3,0)),0,VLOOKUP(D17,ПЛАН!$E$6:$G$504,3,0)) -> 1.73 | K17: 277.4566474
C18: =IFERROR(INDEX(ПЛАН!$D$6:$D$504,MATCH(SMALL((ПЛАН!$H$6:$H$504="FC-TF(корп)")*COUNTIF(ПЛАН!$D$6:$D$504,"<="&ПЛАН!$D$6:$D$504),COUNTIF(ПЛАН!$H$6:$H$504,"<>FC-TF(корп)")+ROW(D11)),COUNTIF(ПЛАН!$D$6:$D$504,"<="&ПЛАН!$D$6:$D$504),0)),"0") -> Корпус | D18: =IFERROR(INDEX(ПЛАН!$E$6:$E$504,MATCH(SMALL((ПЛАН!$H$6:$H$504="FC-TF(корп)")*COUNTIF(ПЛАН!$D$6:$D$504,"<="&ПЛАН!$D$6:$D$504)+ROW(ПЛАН!$E$6:$E$504)%,COUNTIF(ПЛАН!$H$6:$H$504,"<>FC-TF(корп)")+ROW(E11)),COUNTIF(ПЛАН!$D$6:$D$504,"<="&ПЛАН!$D$6:$D$504)+ROW(ПЛАН!$E$6:$E$504)%,0)),"0") -> 22.2905312-05 | E18: 2.883333333 | F18: =IF(ISNA(VLOOKUP(D18,ПЛАН!$E$6:$G$504,2,0)),0,VLOOKUP(D18,ПЛАН!$E$6:$G$504,2,0)) -> 0 | G18: 0 | J18: =IF(ISNA(VLOOKUP(D18,ПЛАН!$E$6:$G$504,3,0)),0,VLOOKUP(D18,ПЛАН!$E$6:$G$504,3,0)) -> 1.73 | K18: 277.4566474
C19: =IFERROR(INDEX(ПЛАН!$D$6:$D$504,MATCH(SMALL((ПЛАН!$H$6:$H$504="FC-TF(корп)")*COUNTIF(ПЛАН!$D$6:$D$504,"<="&ПЛАН!$D$6:$D$504),COUNTIF(ПЛАН!$H$6:$H$504,"<>FC-TF(корп)")+ROW(D12)),COUNTIF(ПЛАН!$D$6:$D$504,"<="&ПЛАН!$D$6:$D$504),0)),"0") -> Корпус | D19: =IFERROR(INDEX(ПЛАН!$E$6:$E$504,MATCH(SMALL((ПЛАН!$H$6:$H$504="FC-TF(корп)")*COUNTIF(ПЛАН!$D$6:$D$504,"<="&ПЛАН!$D$6:$D$504)+ROW(ПЛАН!$E$6:$E$504)%,COUNTIF(ПЛАН!$H$6:$H$504,"<>FC-TF(корп)")+ROW(E12)),COUNTIF(ПЛАН!$D$6:$D$504,"<="&ПЛАН!$D$6:$D$504)+ROW(ПЛАН!$E$6:$E$504)%,0)),"0") -> УЛИГ.50.А2.452995.312-044 | E19: 3.366666667 | F19: =IF(ISNA(VLOOKUP(D19,ПЛАН!$E$6:$G$504,2,0)),0,VLOOKUP(D19,ПЛАН!$E$6:$G$504,2,0)) -> 0 | G19: 0 | J19: =IF(ISNA(VLOOKUP(D19,ПЛАН!$E$6:$G$504,3,0)),0,VLOOKUP(D19,ПЛАН!$E$6:$G$504,3,0)) -> 2.02 | K19: 237.6237624
C20: =IFERROR(INDEX(ПЛАН!$D$6:$D$504,MATCH(SMALL((ПЛАН!$H$6:$H$504="FC-TF(корп)")*COUNTIF(ПЛАН!$D$6:$D$504,"<="&ПЛАН!$D$6:$D$504),COUNTIF(ПЛАН!$H$6:$H$504,"<>FC-TF(корп)")+ROW(D13)),COUNTIF(ПЛАН!$D$6:$D$504,"<="&ПЛАН!$D$6:$D$504),0)),"0") -> Корпус | D20: =IFERROR(INDEX(ПЛАН!$E$6:$E$504,MATCH(SMALL((ПЛАН!$H$6:$H$504="FC-TF(корп)")*COUNTIF(ПЛАН!$D$6:$D$504,"<="&ПЛАН!$D$6:$D$504)+ROW(ПЛАН!$E$6:$E$504)%,COUNTIF(ПЛАН!$H$6:$H$504,"<>FC-TF(корп)")+ROW(E13)),COUNTIF(ПЛАН!$D$6:$D$504,"<="&ПЛАН!$D$6:$D$504)+ROW(ПЛАН!$E$6:$E$504)%,0)),"0") -> 15.2905312-45 | E20: 3.366666667 | F20: =IF(ISNA(VLOOKUP(D20,ПЛАН!$E$6:$G$504,2,0)),0,VLOOKUP(D20,ПЛАН!$E$6:$G$504,2,0)) -> 0 | G20: 0 | J20: =IF(ISNA(VLOOKUP(D20,ПЛАН!$E$6:$G$504,3,0)),0,VLOOKUP(D20,ПЛАН!$E$6:$G$504,3,0)) -> 2.02 | K20: 237.6237624
C21: =IFERROR(INDEX(ПЛАН!$D$6:$D$504,MATCH(SMALL((ПЛАН!$H$6:$H$504="FC-TF(корп)")*COUNTIF(ПЛАН!$D$6:$D$504,"<="&ПЛАН!$D$6:$D$504),COUNTIF(ПЛАН!$H$6:$H$504,"<>FC-TF(корп)")+ROW(D14)),COUNTIF(ПЛАН!$D$6:$D$504,"<="&ПЛАН!$D$6:$D$504),0)),"0") -> Корпус | D21: =IFERROR(INDEX(ПЛАН!$E$6:$E$504,MATCH(SMALL((ПЛАН!$H$6:$H$504="FC-TF(корп)")*COUNTIF(ПЛАН!$D$6:$D$504,"<="&ПЛАН!$D$6:$D$504)+ROW(ПЛАН!$E$6:$E$504)%,COUNTIF(ПЛАН!$H$6:$H$504,"<>FC-TF(корп)")+ROW(E14)),COUNTIF(ПЛАН!$D$6:$D$504,"<="&ПЛАН!$D$6:$D$504)+ROW(ПЛАН!$E$6:$E$504)%,0)),"0") -> УЛИГ.40.А2.452915.312-053 | E21: 3.236666667 | F21: =IF(ISNA(VLOOKUP(D21,ПЛАН!$E$6:$G$504,2,0)),0,VLOOKUP(D21,ПЛАН!$E$6:$G$504,2,0)) -> 378 | G21: 12.2346 | J21: =IF(ISNA(VLOOKUP(D21,ПЛАН!$E$6:$G$504,3,0)),0,VLOOKUP(D21,ПЛАН!$E$6:$G$504,3,0)) -> 1.942 | K21: 247.1678682
C22: =IFERROR(INDEX(ПЛАН!$D$6:$D$504,MATCH(SMALL((ПЛАН!$H$6:$H$504="FC-TF(корп)")*COUNTIF(ПЛАН!$D$6:$D$504,"<="&ПЛАН!$D$6:$D$504),COUNTIF(ПЛАН!$H$6:$H$504,"<>FC-TF(корп)")+ROW(D15)),COUNTIF(ПЛАН!$D$6:$D$504,"<="&ПЛАН!$D$6:$D$504),0)),"0") -> Корпус | D22: =IFERROR(INDEX(ПЛАН!$E$6:$E$504,MATCH(SMALL((ПЛАН!$H$6:$H$504="FC-TF(корп)")*COUNTIF(ПЛАН!$D$6:$D$504,"<="&ПЛАН!$D$6:$D$504)+ROW(ПЛАН!$E$6:$E$504)%,COUNTIF(ПЛАН!$H$6:$H$504,"<>FC-TF(корп)")+ROW(E15)),COUNTIF(ПЛАН!$D$6:$D$504,"<="&ПЛАН!$D$6:$D$504)+ROW(ПЛАН!$E$6:$E$504)%,0)),"0") -> УЛИГ.40.А1.452915.312-063 | E22: 2.683333333 | F22: =IF(ISNA(VLOOKUP(D22,ПЛАН!$E$6:$G$504,2,0)),0,VLOOKUP(D22,ПЛАН!$E$6:$G$504,2,0)) -> 0 | G22: 0 | J22: =IF(ISNA(VLOOKUP(D22,ПЛАН!$E$6:$G$504,3,0)),0,VLOOKUP(D22,ПЛАН!$E$6:$G$504,3,0)) -> 1.61 | K22: 298.136646
C23: =IFERROR(INDEX(ПЛАН!$D$6:$D$504,MATCH(SMALL((ПЛАН!$H$6:$H$504="FC-TF(корп)")*COUNTIF(ПЛАН!$D$6:$D$504,"<="&ПЛАН!$D$6:$D$504),COUNTIF(ПЛАН!$H$6:$H$504,"<>FC-TF(корп)")+ROW(D16)),COUNTIF(ПЛАН!$D$6:$D$504,"<="&ПЛАН!$D$6:$D$504),0)),"0") -> Корпус | D23: =IFERROR(INDEX(ПЛАН!$E$6:$E$504,MATCH(SMALL((ПЛАН!$H$6:$H$504="FC-TF(корп)")*COUNTIF(ПЛАН!$D$6:$D$504,"<="&ПЛАН!$D$6:$D$504)+ROW(ПЛАН!$E$6:$E$504)%,COUNTIF(ПЛАН!$H$6:$H$504,"<>FC-TF(корп)")+ROW(E16)),COUNTIF(ПЛАН!$D$6:$D$504,"<="&ПЛАН!$D$6:$D$504)+ROW(ПЛАН!$E$6:$E$504)%,0)),"0") -> А1-180/350.312-20 | E23: 3.366666667 | F23: =IF(ISNA(VLOOKUP(D23,ПЛАН!$E$6:$G$504,2,0)),0,VLOOKUP(D23,ПЛАН!$E$6:$G$504,2,0)) -> 30 | G23: 1.01 | J23: =IF(ISNA(VLOOKUP(D23,ПЛАН!$E$6:$G$504,3,0)),0,VLOOKUP(D23,ПЛАН!$E$6:$G$504,3,0)) -> 2.02 | K23: 237.6237624
C24: =IFERROR(INDEX(ПЛАН!$D$6:$D$504,MATCH(SMALL((ПЛАН!$H$6:$H$504="FC-TF(корп)")*COUNTIF(ПЛАН!$D$6:$D$504,"<="&ПЛАН!$D$6:$D$504),COUNTIF(ПЛАН!$H$6:$H$504,"<>FC-TF(корп)")+ROW(D17)),COUNTIF(ПЛАН!$D$6:$D$504,"<="&ПЛАН!$D$6:$D$504),0)),"0") -> Корпус | D24: =IFERROR(INDEX(ПЛАН!$E$6:$E$504,MATCH(SMALL((ПЛАН!$H$6:$H$504="FC-TF(корп)")*COUNTIF(ПЛАН!$D$6:$D$504,"<="&ПЛАН!$D$6:$D$504)+ROW(ПЛАН!$E$6:$E$504)%,COUNTIF(ПЛАН!$H$6:$H$504,"<>FC-TF(корп)")+ROW(E17)),COUNTIF(ПЛАН!$D$6:$D$504,"<="&ПЛАН!$D$6:$D$504)+ROW(ПЛАН!$E$6:$E$504)%,0)),"0") -> А1-175/375.312-20 | E24: 3.366666667 | F24: =IF(ISNA(VLOOKUP(D24,ПЛАН!$E$6:$G$504,2,0)),0,VLOOKUP(D24,ПЛАН!$E$6:$G$504,2,0)) -> 50 | G24: 1.683333333 | J24: =IF(ISNA(VLOOKUP(D24,ПЛАН!$E$6:$G$504,3,0)),0,VLOOKUP(D24,ПЛАН!$E$6:$G$504,3,0)) -> 2.02 | K24: 237.6237624
C25: =IFERROR(INDEX(ПЛАН!$D$6:$D$504,MATCH(SMALL((ПЛАН!$H$6:$H$504="FC-TF(корп)")*COUNTIF(ПЛАН!$D$6:$D$504,"<="&ПЛАН!$D$6:$D$504),COUNTIF(ПЛАН!$H$6:$H$504,"<>FC-TF(корп)")+ROW(D18)),COUNTIF(ПЛАН!$D$6:$D$504,"<="&ПЛАН!$D$6:$D$504),0)),"0") -> Корпус | D25: =IFERROR(INDEX(ПЛАН!$E$6:$E$504,MATCH(SMALL((ПЛАН!$H$6:$H$504="FC-TF(корп)")*COUNTIF(ПЛАН!$D$6:$D$504,"<="&ПЛАН!$D$6:$D$504)+ROW(ПЛАН!$E$6:$E$504)%,COUNTIF(ПЛАН!$H$6:$H$504,"<>FC-TF(корп)")+ROW(E18)),COUNTIF(ПЛАН!$D$6:$D$504,"<="&ПЛАН!$D$6:$D$504)+ROW(ПЛАН!$E$6:$E$504)%,0)),"0") -> 15.2905312-55 | E25: 2.883333333 | F25: =IF(ISNA(VLOOKUP(D25,ПЛАН!$E$6:$G$504,2,0)),0,VLOOKUP(D25,ПЛАН!$E$6:$G$504,2,0)) -> 0 | G25: 0 | J25: =IF(ISNA(VLOOKUP(D25,ПЛАН!$E$6:$G$504,3,0)),0,VLOOKUP(D25,ПЛАН!$E$6:$G$504,3,0)) -> 1.73 | K25: 277.4566474
C26: =IFERROR(INDEX(ПЛАН!$D$6:$D$504,MATCH(SMALL((ПЛАН!$H$6:$H$504="FC-TF(корп)")*COUNTIF(ПЛАН!$D$6:$D$504,"<="&ПЛАН!$D$6:$D$504),COUNTIF(ПЛАН!$H$6:$H$504,"<>FC-TF(корп)")+ROW(D19)),COUNTIF(ПЛАН!$D$6:$D$504,"<="&ПЛАН!$D$6:$D$504),0)),"0") -> Корпус | D26: =IFERROR(INDEX(ПЛАН!$E$6:$E$504,MATCH(SMALL((ПЛАН!$H$6:$H$504="FC-TF(корп)")*COUNTIF(ПЛАН!$D$6:$D$504,"<="&ПЛАН!$D$6:$D$504)+ROW(ПЛАН!$E$6:$E$504)%,COUNTIF(ПЛАН!$H$6:$H$504,"<>FC-TF(корп)")+ROW(E19)),COUNTIF(ПЛАН!$D$6:$D$504,"<="&ПЛАН!$D$6:$D$504)+ROW(ПЛАН!$E$6:$E$504)%,0)),"0") -> 103Т-2905312-12 | E26: 3.516666667 | F26: =IF(ISNA(VLOOKUP(D26,ПЛАН!$E$6:$G$504,2,0)),0,VLOOKUP(D26,ПЛАН!$E$6:$G$504,2,0)) -> 0 | G26: 0 | J26: =IF(ISNA(VLOOKUP(D26,ПЛАН!$E$6:$G$504,3,0)),0,VLOOKUP(D26,ПЛАН!$E$6:$G$504,3,0)) -> 2.11 | K26: 227.4881517
C27: =IFERROR(INDEX(ПЛАН!$D$6:$D$504,MATCH(SMALL((ПЛАН!$H$6:$H$504="FC-TF(корп)")*COUNTIF(ПЛАН!$D$6:$D$504,"<="&ПЛАН!$D$6:$D$504),COUNTIF(ПЛАН!$H$6:$H$504,"<>FC-TF(корп)")+ROW(D20)),COUNTIF(ПЛАН!$D$6:$D$504,"<="&ПЛАН!$D$6:$D$504),0)),"0") -> Корпус | D27: =IFERROR(INDEX(ПЛАН!$E$6:$E$504,MATCH(SMALL((ПЛАН!$H$6:$H$504="FC-TF(корп)")*COUNTIF(ПЛАН!$D$6:$D$504,"<="&ПЛАН!$D$6:$D$504)+ROW(ПЛАН!$E$6:$E$504)%,COUNTIF(ПЛАН!$H$6:$H$504,"<>FC-TF(корп)")+ROW(E20)),COUNTIF(ПЛАН!$D$6:$D$504,"<="&ПЛАН!$D$6:$D$504)+ROW(ПЛАН!$E$6:$E$504)%,0)),"0") -> А1-200/385.312-20 | E27: 3.366666667 | F27: =IF(ISNA(VLOOKUP(D27,ПЛАН!$E$6:$G$504,2,0)),0,VLOOKUP(D27,ПЛАН!$E$6:$G$504,2,0)) -> 0 | G27: 0 | J27: =IF(ISNA(VLOOKUP(D27,ПЛАН!$E$6:$G$504,3,0)),0,VLOOKUP(D27,ПЛАН!$E$6:$G$504,3,0)) -> 2.02 | K27: 237.6237624
C28: =IFERROR(INDEX(ПЛАН!$D$6:$D$504,MATCH(SMALL((ПЛАН!$H$6:$H$504="FC-TF(корп)")*COUNTIF(ПЛАН!$D$6:$D$504,"<="&ПЛАН!$D$6:$D$504),COUNTIF(ПЛАН!$H$6:$H$504,"<>FC-TF(корп)")+ROW(D21)),COUNTIF(ПЛАН!$D$6:$D$504,"<="&ПЛАН!$D$6:$D$504),0)),"0") -> Корпус | D28: =IFERROR(INDEX(ПЛАН!$E$6:$E$504,MATCH(SMALL((ПЛАН!$H$6:$H$504="FC-TF(корп)")*COUNTIF(ПЛАН!$D$6:$D$504,"<="&ПЛАН!$D$6:$D$504)+ROW(ПЛАН!$E$6:$E$504)%,COUNTIF(ПЛАН!$H$6:$H$504,"<>FC-TF(корп)")+ROW(E21)),COUNTIF(ПЛАН!$D$6:$D$504,"<="&ПЛАН!$D$6:$D$504)+ROW(ПЛАН!$E$6:$E$504)%,0)),"0") -> А3.40-245/379.312 | E28: 3.233333333 | F28: =IF(ISNA(VLOOKUP(D28,ПЛАН!$E$6:$G$504,2,0)),0,VLOOKUP(D28,ПЛАН!$E$6:$G$504,2,0)) -> 0 | G28: 0 | J28: =IF(ISNA(VLOOKUP(D28,ПЛАН!$E$6:$G$504,3,0)),0,VLOOKUP(D28,ПЛАН!$E$6:$G$504,3,0)) -> 1.94 | K28: 247.4226804
C29: =IFERROR(INDEX(ПЛАН!$D$6:$D$504,MATCH(SMALL((ПЛАН!$H$6:$H$504="FC-TF(корп)")*COUNTIF(ПЛАН!$D$6:$D$504,"<="&ПЛАН!$D$6:$D$504),COUNTIF(ПЛАН!$H$6:$H$504,"<>FC-TF(корп)")+ROW(D22)),COUNTIF(ПЛАН!$D$6:$D$504,"<="&ПЛАН!$D$6:$D$504),0)),"0") -> Корпус | D29: =IFERROR(INDEX(ПЛАН!$E$6:$E$504,MATCH(SMALL((ПЛАН!$H$6:$H$504="FC-TF(корп)")*COUNTIF(ПЛАН!$D$6:$D$504,"<="&ПЛАН!$D$6:$D$504)+ROW(ПЛАН!$E$6:$E$504)%,COUNTIF(ПЛАН!$H$6:$H$504,"<>FC-TF(корп)")+ROW(E22)),COUNTIF(ПЛАН!$D$6:$D$504,"<="&ПЛАН!$D$6:$D$504)+ROW(ПЛАН!$E$6:$E$504)%,0)),"0") -> УЛИГ.40.А2.452915.312-107 | E29: 2.683333333 | F29: =IF(ISNA(VLOOKUP(D29,ПЛАН!$E$6:$G$504,2,0)),0,VLOOKUP(D29,ПЛАН!$E$6:$G$504,2,0)) -> 200 | G29: 5.366666667 | J29: =IF(ISNA(VLOOKUP(D29,ПЛАН!$E$6:$G$504,3,0)),0,VLOOKUP(D29,ПЛАН!$E$6:$G$504,3,0)) -> 1.61 | K29: 298.136646
C30: =IFERROR(INDEX(ПЛАН!$D$6:$D$504,MATCH(SMALL((ПЛАН!$H$6:$H$504="FC-TF(корп)")*COUNTIF(ПЛАН!$D$6:$D$504,"<="&ПЛАН!$D$6:$D$504),COUNTIF(ПЛАН!$H$6:$H$504,"<>FC-TF(корп)")+ROW(D23)),COUNTIF(ПЛАН!$D$6:$D$504,"<="&ПЛАН!$D$6:$D$504),0)),"0") -> Корпус | D30: =IFERROR(INDEX(ПЛАН!$E$6:$E$504,MATCH(SMALL((ПЛАН!$H$6:$H$504="FC-TF(корп)")*COUNTIF(ПЛАН!$D$6:$D$504,"<="&ПЛАН!$D$6:$D$504)+ROW(ПЛАН!$E$6:$E$504)%,COUNTIF(ПЛАН!$H$6:$H$504,"<>FC-TF(корп)")+ROW(E23)),COUNTIF(ПЛАН!$D$6:$D$504,"<="&ПЛАН!$D$6:$D$504)+ROW(ПЛАН!$E$6:$E$504)%,0)),"0") -> УЛИГ.50.А1.452995.312-031 | E30: 3.366666667 | F30: =IF(ISNA(VLOOKUP(D30,ПЛАН!$E$6:$G$504,2,0)),0,VLOOKUP(D30,ПЛАН!$E$6:$G$504,2,0)) -> 0 | G30: 0 | J30: =IF(ISNA(VLOOKUP(D30,ПЛАН!$E$6:$G$504,3,0)),0,VLOOKUP(D30,ПЛАН!$E$6:$G$504,3,0)) -> 2.02 | K30: 237.6237624
C31: =IFERROR(INDEX(ПЛАН!$D$6:$D$504,MATCH(SMALL((ПЛАН!$H$6:$H$504="FC-TF(корп)")*COUNTIF(ПЛАН!$D$6:$D$504,"<="&ПЛАН!$D$6:$D$504),COUNTIF(ПЛАН!$H$6:$H$504,"<>FC-TF(корп)")+ROW(D24)),COUNTIF(ПЛАН!$D$6:$D$504,"<="&ПЛАН!$D$6:$D$504),0)),"0") -> Корпус | D31: =IFERROR(INDEX(ПЛАН!$E$6:$E$504,MATCH(SMALL((ПЛАН!$H$6:$H$504="FC-TF(корп)")*COUNTIF(ПЛАН!$D$6:$D$504,"<="&ПЛАН!$D$6:$D$504)+ROW(ПЛАН!$E$6:$E$504)%,COUNTIF(ПЛАН!$H$6:$H$504,"<>FC-TF(корп)")+ROW(E24)),COUNTIF(ПЛАН!$D$6:$D$504,"<="&ПЛАН!$D$6:$D$504)+ROW(ПЛАН!$E$6:$E$504)%,0)),"0") -> УЛИГ.667183.312-075 | E31: 3.516666667 | F31: =IF(ISNA(VLOOKUP(D31,ПЛАН!$E$6:$G$504,2,0)),0,VLOOKUP(D31,ПЛАН!$E$6:$G$504,2,0)) -> 0 | G31: 0 | J31: =IF(ISNA(VLOOKUP(D31,ПЛАН!$E$6:$G$504,3,0)),0,VLOOKUP(D31,ПЛАН!$E$6:$G$504,3,0)) -> 2.11 | K31: 227.4881517
C32: =IFERROR(INDEX(ПЛАН!$D$6:$D$504,MATCH(SMALL((ПЛАН!$H$6:$H$504="FC-TF(корп)")*COUNTIF(ПЛАН!$D$6:$D$504,"<="&ПЛАН!$D$6:$D$504),COUNTIF(ПЛАН!$H$6:$H$504,"<>FC-TF(корп)")+ROW(D25)),COUNTIF(ПЛАН!$D$6:$D$504,"<="&ПЛАН!$D$6:$D$504),0)),"0") -> Корпус | D32: =IFERROR(INDEX(ПЛАН!$E$6:$E$504,MATCH(SMALL((ПЛАН!$H$6:$H$504="FC-TF(корп)")*COUNTIF(ПЛАН!$D$6:$D$504,"<="&ПЛАН!$D$6:$D$504)+ROW(ПЛАН!$E$6:$E$504)%,COUNTIF(ПЛАН!$H$6:$H$504,"<>FC-TF(корп)")+ROW(E25)),COUNTIF(ПЛАН!$D$6:$D$504,"<="&ПЛАН!$D$6:$D$504)+ROW(ПЛАН!$E$6:$E$504)%,0)),"0") -> УЛИГ.667183.312-014-02 | E32: 3.366666667 | F32: =IF(ISNA(VLOOKUP(D32,ПЛАН!$E$6:$G$504,2,0)),0,VLOOKUP(D32,ПЛАН!$E$6:$G$504,2,0)) -> 0 | G32: 0 | J32: =IF(ISNA(VLOOKUP(D32,ПЛАН!$E$6:$G$504,3,0)),0,VLOOKUP(D32,ПЛАН!$E$6:$G$504,3,0)) -> 2.02 | K32: 237.6237624
C33: =IFERROR(INDEX(ПЛАН!$D$6:$D$504,MATCH(SMALL((ПЛАН!$H$6:$H$504="FC-TF(корп)")*COUNTIF(ПЛАН!$D$6:$D$504,"<="&ПЛАН!$D$6:$D$504),COUNTIF(ПЛАН!$H$6:$H$504,"<>FC-TF(корп)")+ROW(D26)),COUNTIF(ПЛАН!$D$6:$D$504,"<="&ПЛАН!$D$6:$D$504),0)),"0") -> Корпус | D33: =IFERROR(INDEX(ПЛАН!$E$6:$E$504,MATCH(SMALL((ПЛАН!$H$6:$H$504="FC-TF(корп)")*COUNTIF(ПЛАН!$D$6:$D$504,"<="&ПЛАН!$D$6:$D$504)+ROW(ПЛАН!$E$6:$E$504)%,COUNTIF(ПЛАН!$H$6:$H$504,"<>FC-TF(корп)")+ROW(E26)),COUNTIF(ПЛАН!$D$6:$D$504,"<="&ПЛАН!$D$6:$D$504)+ROW(ПЛАН!$E$6:$E$504)%,0)),"0") -> А1-130/300.312-20 | E33: 3.366666667 | F33: =IF(ISNA(VLOOKUP(D33,ПЛАН!$E$6:$G$504,2,0)),0,VLOOKUP(D33,ПЛАН!$E$6:$G$504,2,0)) -> 0 | G33: 0 | J33: =IF(ISNA(VLOOKUP(D33,ПЛАН!$E$6:$G$504,3,0)),0,VLOOKUP(D33,ПЛАН!$E$6:$G$504,3,0)) -> 2.02 | K33: 237.6237624
C34: =IFERROR(INDEX(ПЛАН!$D$6:$D$504,MATCH(SMALL((ПЛАН!$H$6:$H$504="FC-TF(корп)")*COUNTIF(ПЛАН!$D$6:$D$504,"<="&ПЛАН!$D$6:$D$504),COUNTIF(ПЛАН!$H$6:$H$504,"<>FC-TF(корп)")+ROW(D27)),COUNTIF(ПЛАН!$D$6:$D$504,"<="&ПЛАН!$D$6:$D$504),0)),"0") -> Корпус | D34: =IFERROR(INDEX(ПЛАН!$E$6:$E$504,MATCH(SMALL((ПЛАН!$H$6:$H$504="FC-TF(корп)")*COUNTIF(ПЛАН!$D$6:$D$504,"<="&ПЛАН!$D$6:$D$504)+ROW(ПЛАН!$E$6:$E$504)%,COUNTIF(ПЛАН!$H$6:$H$504,"<>FC-TF(корп)")+ROW(E27)),COUNTIF(ПЛАН!$D$6:$D$504,"<="&ПЛАН!$D$6:$D$504)+ROW(ПЛАН!$E$6:$E$504)%,0)),"0") -> А1-160/330.312-20 | E34: 3.366666667 | F34: =IF(ISNA(VLOOKUP(D34,ПЛАН!$E$6:$G$504,2,0)),0,VLOOKUP(D34,ПЛАН!$E$6:$G$504,2,0)) -> 0 | G34: 0 | J34: =IF(ISNA(VLOOKUP(D34,ПЛАН!$E$6:$G$504,3,0)),0,VLOOKUP(D34,ПЛАН!$E$6:$G$504,3,0)) -> 2.02 | K34: 237.6237624
C35: =IFERROR(INDEX(ПЛАН!$D$6:$D$504,MATCH(SMALL((ПЛАН!$H$6:$H$504="FC-TF(корп)")*COUNTIF(ПЛАН!$D$6:$D$504,"<="&ПЛАН!$D$6:$D$504),COUNTIF(ПЛАН!$H$6:$H$504,"<>FC-TF(корп)")+ROW(D28)),COUNTIF(ПЛАН!$D$6:$D$504,"<="&ПЛАН!$D$6:$D$504),0)),"0") -> Корпус | D35: =IFERROR(INDEX(ПЛАН!$E$6:$E$504,MATCH(SMALL((ПЛАН!$H$6:$H$504="FC-TF(корп)")*COUNTIF(ПЛАН!$D$6:$D$504,"<="&ПЛАН!$D$6:$D$504)+ROW(ПЛАН!$E$6:$E$504)%,COUNTIF(ПЛАН!$H$6:$H$504,"<>FC-TF(корп)")+ROW(E28)),COUNTIF(ПЛАН!$D$6:$D$504,"<="&ПЛАН!$D$6:$D$504)+ROW(ПЛАН!$E$6:$E$504)%,0)),"0") -> А3.40-295/434.312 | E35: 2.683333333 | F35: =IF(ISNA(VLOOKUP(D35,ПЛАН!$E$6:$G$504,2,0)),0,VLOOKUP(D35,ПЛАН!$E$6:$G$504,2,0)) -> 0 | G35: 0 | J35: =IF(ISNA(VLOOKUP(D35,ПЛАН!$E$6:$G$504,3,0)),0,VLOOKUP(D35,ПЛАН!$E$6:$G$504,3,0)) -> 1.61 | K35: 298.136646
C36: =IFERROR(INDEX(ПЛАН!$D$6:$D$504,MATCH(SMALL((ПЛАН!$H$6:$H$504="FC-TF(корп)")*COUNTIF(ПЛАН!$D$6:$D$504,"<="&ПЛАН!$D$6:$D$504),COUNTIF(ПЛАН!$H$6:$H$504,"<>FC-TF(корп)")+ROW(D29)),COUNTIF(ПЛАН!$D$6:$D$504,"<="&ПЛАН!$D$6:$D$504),0)),"0") -> Корпус | D36: =IFERROR(INDEX(ПЛАН!$E$6:$E$504,MATCH(SMALL((ПЛАН!$H$6:$H$504="FC-TF(корп)")*COUNTIF(ПЛАН!$D$6:$D$504,"<="&ПЛАН!$D$6:$D$504)+ROW(ПЛАН!$E$6:$E$504)%,COUNTIF(ПЛАН!$H$6:$H$504,"<>FC-TF(корп)")+ROW(E29)),COUNTIF(ПЛАН!$D$6:$D$504,"<="&ПЛАН!$D$6:$D$504)+ROW(ПЛАН!$E$6:$E$504)%,0)),"0") -> УЛИГ.40.А1.452995.312-064 | E36: 2.683333333 | F36: =IF(ISNA(VLOOKUP(D36,ПЛАН!$E$6:$G$504,2,0)),0,VLOOKUP(D36,ПЛАН!$E$6:$G$504,2,0)) -> 4 | G36: 0.1073333333 | J36: =IF(ISNA(VLOOKUP(D36,ПЛАН!$E$6:$G$504,3,0)),0,VLOOKUP(D36,ПЛАН!$E$6:$G$504,3,0)) -> 1.61 | K36: 298.136646
C37: =IFERROR(INDEX(ПЛАН!$D$6:$D$504,MATCH(SMALL((ПЛАН!$H$6:$H$504="FC-TF(корп)")*COUNTIF(ПЛАН!$D$6:$D$504,"<="&ПЛАН!$D$6:$D$504),COUNTIF(ПЛАН!$H$6:$H$504,"<>FC-TF(корп)")+ROW(D30)),COUNTIF(ПЛАН!$D$6:$D$504,"<="&ПЛАН!$D$6:$D$504),0)),"0") -> Корпус | D37: =IFERROR(INDEX(ПЛАН!$E$6:$E$504,MATCH(SMALL((ПЛАН!$H$6:$H$504="FC-TF(корп)")*COUNTIF(ПЛАН!$D$6:$D$504,"<="&ПЛАН!$D$6:$D$504)+ROW(ПЛАН!$E$6:$E$504)%,COUNTIF(ПЛАН!$H$6:$H$504,"<>FC-TF(корп)")+ROW(E30)),COUNTIF(ПЛАН!$D$6:$D$504,"<="&ПЛАН!$D$6:$D$504)+ROW(ПЛАН!$E$6:$E$504)%,0)),"0") -> УЛИГ.50.А1.452995.312-034 | E37: 3.366666667 | F37: =IF(ISNA(VLOOKUP(D37,ПЛАН!$E$6:$G$504,2,0)),0,VLOOKUP(D37,ПЛАН!$E$6:$G$504,2,0)) -> 6 | G37: 0.202 | J37: =IF(ISNA(VLOOKUP(D37,ПЛАН!$E$6:$G$504,3,0)),0,VLOOKUP(D37,ПЛАН!$E$6:$G$504,3,0)) -> 2.02 | K37: 237.6237624
C38: =IFERROR(INDEX(ПЛАН!$D$6:$D$504,MATCH(SMALL((ПЛАН!$H$6:$H$504="FC-TF(корп)")*COUNTIF(ПЛАН!$D$6:$D$504,"<="&ПЛАН!$D$6:$D$504),COUNTIF(ПЛАН!$H$6:$H$504,"<>FC-TF(корп)")+ROW(D31)),COUNTIF(ПЛАН!$D$6:$D$504,"<="&ПЛАН!$D$6:$D$504),0)),"0") -> Корпус ам. | D38: =IFERROR(INDEX(ПЛАН!$E$6:$E$504,MATCH(SMALL((ПЛАН!$H$6:$H$504="FC-TF(корп)")*COUNTIF(ПЛАН!$D$6:$D$504,"<="&ПЛАН!$D$6:$D$504)+ROW(ПЛАН!$E$6:$E$504)%,COUNTIF(ПЛАН!$H$6:$H$504,"<>FC-TF(корп)")+ROW(E31)),COUNTIF(ПЛАН!$D$6:$D$504,"<="&ПЛАН!$D$6:$D$504)+ROW(ПЛАН!$E$6:$E$504)%,0)),"0") -> 26Т.081.02.312-10 | E38: 4.533333333 | F38: =IF(ISNA(VLOOKUP(D38,ПЛАН!$E$6:$G$504,2,0)),0,VLOOKUP(D38,ПЛАН!$E$6:$G$504,2,0)) -> 0 | G38: 0 | J38: =IF(ISNA(VLOOKUP(D38,ПЛАН!$E$6:$G$504,3,0)),0,VLOOKUP(D38,ПЛАН!$E$6:$G$504,3,0)) -> 2.72 | K38: 176.4705882
C39: =IFERROR(INDEX(ПЛАН!$D$6:$D$504,MATCH(SMALL((ПЛАН!$H$6:$H$504="FC-TF(корп)")*COUNTIF(ПЛАН!$D$6:$D$504,"<="&ПЛАН!$D$6:$D$504),COUNTIF(ПЛАН!$H$6:$H$504,"<>FC-TF(корп)")+ROW(D32)),COUNTIF(ПЛАН!$D$6:$D$504,"<="&ПЛАН!$D$6:$D$504),0)),"0") -> Корпус ам. | D39: =IFERROR(INDEX(ПЛАН!$E$6:$E$504,MATCH(SMALL((ПЛАН!$H$6:$H$504="FC-TF(корп)")*COUNTIF(ПЛАН!$D$6:$D$504,"<="&ПЛАН!$D$6:$D$504)+ROW(ПЛАН!$E$6:$E$504)%,COUNTIF(ПЛАН!$H$6:$H$504,"<>FC-TF(корп)")+ROW(E32)),COUNTIF(ПЛАН!$D$6:$D$504,"<="&ПЛАН!$D$6:$D$504)+ROW(ПЛАН!$E$6:$E$504)%,0)),"0") -> УЛИГ.40.А1.452995.312-027 | E39: 2.683333333 | F39: =IF(ISNA(VLOOKUP(D39,ПЛАН!$E$6:$G$504,2,0)),0,VLOOKUP(D39,ПЛАН!$E$6:$G$504,2,0)) -> 1076 | G39: 28.87266667 | J39: =IF(ISNA(VLOOKUP(D39,ПЛАН!$E$6:$G$504,3,0)),0,VLOOKUP(D39,ПЛАН!$E$6:$G$504,3,0)) -> 1.61 | K39: 298.136646
C40: =IFERROR(INDEX(ПЛАН!$D$6:$D$504,MATCH(SMALL((ПЛАН!$H$6:$H$504="FC-TF(корп)")*COUNTIF(ПЛАН!$D$6:$D$504,"<="&ПЛАН!$D$6:$D$504),COUNTIF(ПЛАН!$H$6:$H$504,"<>FC-TF(корп)")+ROW(D33)),COUNTIF(ПЛАН!$D$6:$D$504,"<="&ПЛАН!$D$6:$D$504),0)),"0") -> Цилиндр | D40: =IFERROR(INDEX(ПЛАН!$E$6:$E$504,MATCH(SMALL((ПЛАН!$H$6:$H$504="FC-TF(корп)")*COUNTIF(ПЛАН!$D$6:$D$504,"<="&ПЛАН!$D$6:$D$504)+ROW(ПЛАН!$E$6:$E$504)%,COUNTIF(ПЛАН!$H$6:$H$504,"<>FC-TF(корп)")+ROW(E33)),COUNTIF(ПЛАН!$D$6:$D$504,"<="&ПЛАН!$D$6:$D$504)+ROW(ПЛАН!$E$6:$E$504)%,0)),"0") -> 40.А1-275/460.318 | E40: 0.79 | F40: =IF(ISNA(VLOOKUP(D40,ПЛАН!$E$6:$G$504,2,0)),0,VLOOKUP(D40,ПЛАН!$E$6:$G$504,2,0)) -> 350 | G40: 2.765 | J40: =IF(ISNA(VLOOKUP(D40,ПЛАН!$E$6:$G$504,3,0)),0,VLOOKUP(D40,ПЛАН!$E$6:$G$504,3,0)) -> 0.474 | K40: 1012.658228
C41: =IFERROR(INDEX(ПЛАН!$D$6:$D$504,MATCH(SMALL((ПЛАН!$H$6:$H$504="FC-TF(корп)")*COUNTIF(ПЛАН!$D$6:$D$504,"<="&ПЛАН!$D$6:$D$504),COUNTIF(ПЛАН!$H$6:$H$504,"<>FC-TF(корп)")+ROW(D34)),COUNTIF(ПЛАН!$D$6:$D$504,"<="&ПЛАН!$D$6:$D$504),0)),"0") -> Цилиндр | D41: =IFERROR(INDEX(ПЛАН!$E$6:$E$504,MATCH(SMALL((ПЛАН!$H$6:$H$504="FC-TF(корп)")*COUNTIF(ПЛАН!$D$6:$D$504,"<="&ПЛАН!$D$6:$D$504)+ROW(ПЛАН!$E$6:$E$504)%,COUNTIF(ПЛАН!$H$6:$H$504,"<>FC-TF(корп)")+ROW(E34)),COUNTIF(ПЛАН!$D$6:$D$504,"<="&ПЛАН!$D$6:$D$504)+ROW(ПЛАН!$E$6:$E$504)%,0)),"0") -> 15.2905318-21 | E41: 0.79 | F41: =IF(ISNA(VLOOKUP(D41,ПЛАН!$E$6:$G$504,2,0)),0,VLOOKUP(D41,ПЛАН!$E$6:$G$504,2,0)) -> 5228 | G41: 41.3012 | J41: =IF(ISNA(VLOOKUP(D41,ПЛАН!$E$6:$G$504,3,0)),0,VLOOKUP(D41,ПЛАН!$E$6:$G$504,3,0)) -> 0.474 | K41: 1012.658228
C42: =IFERROR(INDEX(ПЛАН!$D$6:$D$504,MATCH(SMALL((ПЛАН!$H$6:$H$504="FC-TF(корп)")*COUNTIF(ПЛАН!$D$6:$D$504,"<="&ПЛАН!$D$6:$D$504),COUNTIF(ПЛАН!$H$6:$H$504,"<>FC-TF(корп)")+ROW(D35)),COUNTIF(ПЛАН!$D$6:$D$504,"<="&ПЛАН!$D$6:$D$504),0)),"0") -> Цилиндр | D42: =IFERROR(INDEX(ПЛАН!$E$6:$E$504,MATCH(SMALL((ПЛАН!$H$6:$H$504="FC-TF(корп)")*COUNTIF(ПЛАН!$D$6:$D$504,"<="&ПЛАН!$D$6:$D$504)+ROW(ПЛАН!$E$6:$E$504)%,COUNTIF(ПЛАН!$H$6:$H$504,"<>FC-TF(корп)")+ROW(E35)),COUNTIF(ПЛАН!$D$6:$D$504,"<="&ПЛАН!$D$6:$D$504)+ROW(ПЛАН!$E$6:$E$504)%,0)),"0") -> 15.2905318-31 | E42: 0.79 | F42: =IF(ISNA(VLOOKUP(D42,ПЛАН!$E$6:$G$504,2,0)),0,VLOOKUP(D42,ПЛАН!$E$6:$G$504,2,0)) -> 80 | G42: 0.632 | J42: =IF(ISNA(VLOOKUP(D42,ПЛАН!$E$6:$G$504,3,0)),0,VLOOKUP(D42,ПЛАН!$E$6:$G$504,3,0)) -> 0.474 | K42: 1012.658228
C43: =IFERROR(INDEX(ПЛАН!$D$6:$D$504,MATCH(SMALL((ПЛАН!$H$6:$H$504="FC-TF(корп)")*COUNTIF(ПЛАН!$D$6:$D$504,"<="&ПЛАН!$D$6:$D$504),COUNTIF(ПЛАН!$H$6:$H$504,"<>FC-TF(корп)")+ROW(D36)),COUNTIF(ПЛАН!$D$6:$D$504,"<="&ПЛАН!$D$6:$D$504),0)),"0") -> Цилиндр | D43: =IFERROR(INDEX(ПЛАН!$E$6:$E$504,MATCH(SMALL((ПЛАН!$H$6:$H$504="FC-TF(корп)")*COUNTIF(ПЛАН!$D$6:$D$504,"<="&ПЛАН!$D$6:$D$504)+ROW(ПЛАН!$E$6:$E$504)%,COUNTIF(ПЛАН!$H$6:$H$504,"<>FC-TF(корп)")+ROW(E36)),COUNTIF(ПЛАН!$D$6:$D$504,"<="&ПЛАН!$D$6:$D$504)+ROW(ПЛАН!$E$6:$E$504)%,0)),"0") -> 15.2905318-01 | E43: 0.79 | F43: =IF(ISNA(VLOOKUP(D43,ПЛАН!$E$6:$G$504,2,0)),0,VLOOKUP(D43,ПЛАН!$E$6:$G$504,2,0)) -> 242 | G43: 1.9118 | J43: =IF(ISNA(VLOOKUP(D43,ПЛАН!$E$6:$G$504,3,0)),0,VLOOKUP(D43,ПЛАН!$E$6:$G$504,3,0)) -> 0.474 | K43: 1012.658228
C44: =IFERROR(INDEX(ПЛАН!$D$6:$D$504,MATCH(SMALL((ПЛАН!$H$6:$H$504="FC-TF(корп)")*COUNTIF(ПЛАН!$D$6:$D$504,"<="&ПЛАН!$D$6:$D$504),COUNTIF(ПЛАН!$H$6:$H$504,"<>FC-TF(корп)")+ROW(D37)),COUNTIF(ПЛАН!$D$6:$D$504,"<="&ПЛАН!$D$6:$D$504),0)),"0") -> Цилиндр | D44: =IFERROR(INDEX(ПЛАН!$E$6:$E$504,MATCH(SMALL((ПЛАН!$H$6:$H$504="FC-TF(корп)")*COUNTIF(ПЛАН!$D$6:$D$504,"<="&ПЛАН!$D$6:$D$504)+ROW(ПЛАН!$E$6:$E$504)%,COUNTIF(ПЛАН!$H$6:$H$504,"<>FC-TF(корп)")+ROW(E37)),COUNTIF(ПЛАН!$D$6:$D$504,"<="&ПЛАН!$D$6:$D$504)+ROW(ПЛАН!$E$6:$E$504)%,0)),"0") -> 15.2905318-11 | E44: 0.79 | F44: =IF(ISNA(VLOOKUP(D44,ПЛАН!$E$6:$G$504,2,0)),0,VLOOKUP(D44,ПЛАН!$E$6:$G$504,2,0)) -> 2808 | G44: 22.1832 | J44: =IF(ISNA(VLOOKUP(D44,ПЛАН!$E$6:$G$504,3,0)),0,VLOOKUP(D44,ПЛАН!$E$6:$G$504,3,0)) -> 0.474 | K44: 1012.658228
C45: =IFERROR(INDEX(ПЛАН!$D$6:$D$504,MATCH(SMALL((ПЛАН!$H$6:$H$504="FC-TF(корп)")*COUNTIF(ПЛАН!$D$6:$D$504,"<="&ПЛАН!$D$6:$D$504),COUNTIF(ПЛАН!$H$6:$H$504,"<>FC-TF(корп)")+ROW(D38)),COUNTIF(ПЛАН!$D$6:$D$504,"<="&ПЛАН!$D$6:$D$504),0)),"0") -> Цилиндр | D45: =IFERROR(INDEX(ПЛАН!$E$6:$E$504,MATCH(SMALL((ПЛАН!$H$6:$H$504="FC-TF(корп)")*COUNTIF(ПЛАН!$D$6:$D$504,"<="&ПЛАН!$D$6:$D$504)+ROW(ПЛАН!$E$6:$E$504)%,COUNTIF(ПЛАН!$H$6:$H$504,"<>FC-TF(корп)")+ROW(E38)),COUNTIF(ПЛАН!$D$6:$D$504,"<="&ПЛАН!$D$6:$D$504)+ROW(ПЛАН!$E$6:$E$504)%,0)),"0") -> 22.2905318 | E45: 0.79 | F45: =IF(ISNA(VLOOKUP(D45,ПЛАН!$E$6:$G$504,2,0)),0,VLOOKUP(D45,ПЛАН!$E$6:$G$504,2,0)) -> 0 | G45: 0 | J45: =IF(ISNA(VLOOKUP(D45,ПЛАН!$E$6:$G$504,3,0)),0,VLOOKUP(D45,ПЛАН!$E$6:$G$504,3,0)) -> 0.474 | K45: 1012.658228
C46: =IFERROR(INDEX(ПЛАН!$D$6:$D$504,MATCH(SMALL((ПЛАН!$H$6:$H$504="FC-TF(корп)")*COUNTIF(ПЛАН!$D$6:$D$504,"<="&ПЛАН!$D$6:$D$504),COUNTIF(ПЛАН!$H$6:$H$504,"<>FC-TF(корп)")+ROW(D39)),COUNTIF(ПЛАН!$D$6:$D$504,"<="&ПЛАН!$D$6:$D$504),0)),"0") -> Цилиндр | D46: =IFERROR(INDEX(ПЛАН!$E$6:$E$504,MATCH(SMALL((ПЛАН!$H$6:$H$504="FC-TF(корп)")*COUNTIF(ПЛАН!$D$6:$D$504,"<="&ПЛАН!$D$6:$D$504)+ROW(ПЛАН!$E$6:$E$504)%,COUNTIF(ПЛАН!$H$6:$H$504,"<>FC-TF(корп)")+ROW(E39)),COUNTIF(ПЛАН!$D$6:$D$504,"<="&ПЛАН!$D$6:$D$504)+ROW(ПЛАН!$E$6:$E$504)%,0)),"0") -> УЛИГ.40.А1.452915.318-063 | E46: 0.79 | F46: =IF(ISNA(VLOOKUP(D46,ПЛАН!$E$6:$G$504,2,0)),0,VLOOKUP(D46,ПЛАН!$E$6:$G$504,2,0)) -> 0 | G46: 0 | J46: =IF(ISNA(VLOOKUP(D46,ПЛАН!$E$6:$G$504,3,0)),0,VLOOKUP(D46,ПЛАН!$E$6:$G$504,3,0)) -> 0.474 | K46: 1012.658228
C47: =IFERROR(INDEX(ПЛАН!$D$6:$D$504,MATCH(SMALL((ПЛАН!$H$6:$H$504="FC-TF(корп)")*COUNTIF(ПЛАН!$D$6:$D$504,"<="&ПЛАН!$D$6:$D$504),COUNTIF(ПЛАН!$H$6:$H$504,"<>FC-TF(корп)")+ROW(D40)),COUNTIF(ПЛАН!$D$6:$D$504,"<="&ПЛАН!$D$6:$D$504),0)),"0") -> Цилиндр ам. | D47: =IFERROR(INDEX(ПЛАН!$E$6:$E$504,MATCH(SMALL((ПЛАН!$H$6:$H$504="FC-TF(корп)")*COUNTIF(ПЛАН!$D$6:$D$504,"<="&ПЛАН!$D$6:$D$504)+ROW(ПЛАН!$E$6:$E$504)%,COUNTIF(ПЛАН!$H$6:$H$504,"<>FC-TF(корп)")+ROW(E40)),COUNTIF(ПЛАН!$D$6:$D$504,"<="&ПЛАН!$D$6:$D$504)+ROW(ПЛАН!$E$6:$E$504)%,0)),"0") -> УЛИГ.40.А1.452995.318-027 | E47: 0.79 | F47: =IF(ISNA(VLOOKUP(D47,ПЛАН!$E$6:$G$504,2,0)),0,VLOOKUP(D47,ПЛАН!$E$6:$G$504,2,0)) -> 1076 | G47: 8.5004 | J47: =IF(ISNA(VLOOKUP(D47,ПЛАН!$E$6:$G$504,3,0)),0,VLOOKUP(D47,ПЛАН!$E$6:$G$504,3,0)) -> 0.474 | K47: 1012.658228
C48: =IFERROR(INDEX(ПЛАН!$D$6:$D$504,MATCH(SMALL((ПЛАН!$H$6:$H$504="FC-TF(корп)")*COUNTIF(ПЛАН!$D$6:$D$504,"<="&ПЛАН!$D$6:$D$504),COUNTIF(ПЛАН!$H$6:$H$504,"<>FC-TF(корп)")+ROW(D41)),COUNTIF(ПЛАН!$D$6:$D$504,"<="&ПЛАН!$D$6:$D$504),0)),"0") -> 0 | D48: =IFERROR(INDEX(ПЛАН!$E$6:$E$504,MATCH(SMALL((ПЛАН!$H$6:$H$504="FC-TF(корп)")*COUNTIF(ПЛАН!$D$6:$D$504,"<="&ПЛАН!$D$6:$D$504)+ROW(ПЛАН!$E$6:$E$504)%,COUNTIF(ПЛАН!$H$6:$H$504,"<>FC-TF(корп)")+ROW(E41)),COUNTIF(ПЛАН!$D$6:$D$504,"<="&ПЛАН!$D$6:$D$504)+ROW(ПЛАН!$E$6:$E$504)%,0)),"0") -> 0 | E48: 0 | F48: =IF(ISNA(VLOOKUP(D48,ПЛАН!$E$6:$G$504,2,0)),0,VLOOKUP(D48,ПЛАН!$E$6:$G$504,2,0)) -> 0 | G48: 0 | J48: =IF(ISNA(VLOOKUP(D48,ПЛАН!$E$6:$G$504,3,0)),0,VLOOKUP(D48,ПЛАН!$E$6:$G$504,3,0)) -> 0
C49: =IFERROR(INDEX(ПЛАН!$D$6:$D$504,MATCH(SMALL((ПЛАН!$H$6:$H$504="FC-TF(корп)")*COUNTIF(ПЛАН!$D$6:$D$504,"<="&ПЛАН!$D$6:$D$504),COUNTIF(ПЛАН!$H$6:$H$504,"<>FC-TF(корп)")+ROW(D42)),COUNTIF(ПЛАН!$D$6:$D$504,"<="&ПЛАН!$D$6:$D$504),0)),"0") -> 0 | D49: =IFERROR(INDEX(ПЛАН!$E$6:$E$504,MATCH(SMALL((ПЛАН!$H$6:$H$504="FC-TF(корп)")*COUNTIF(ПЛАН!$D$6:$D$504,"<="&ПЛАН!$D$6:$D$504)+ROW(ПЛАН!$E$6:$E$504)%,COUNTIF(ПЛАН!$H$6:$H$504,"<>FC-TF(корп)")+ROW(E42)),COUNTIF(ПЛАН!$D$6:$D$504,"<="&ПЛАН!$D$6:$D$504)+ROW(ПЛАН!$E$6:$E$504)%,0)),"0") -> 0 | E49: 0 | F49: =IF(ISNA(VLOOKUP(D49,ПЛАН!$E$6:$G$504,2,0)),0,VLOOKUP(D49,ПЛАН!$E$6:$G$504,2,0)) -> 0 | G49: 0 | J49: =IF(ISNA(VLOOKUP(D49,ПЛАН!$E$6:$G$504,3,0)),0,VLOOKUP(D49,ПЛАН!$E$6:$G$504,3,0)) -> 0
C50: =IFERROR(INDEX(ПЛАН!$D$6:$D$504,MATCH(SMALL((ПЛАН!$H$6:$H$504="FC-TF(корп)")*COUNTIF(ПЛАН!$D$6:$D$504,"<="&ПЛАН!$D$6:$D$504),COUNTIF(ПЛАН!$H$6:$H$504,"<>FC-TF(корп)")+ROW(D43)),COUNTIF(ПЛАН!$D$6:$D$504,"<="&ПЛАН!$D$6:$D$504),0)),"0") -> 0 | D50: =IFERROR(INDEX(ПЛАН!$E$6:$E$504,MATCH(SMALL((ПЛАН!$H$6:$H$504="FC-TF(корп)")*COUNTIF(ПЛАН!$D$6:$D$504,"<="&ПЛАН!$D$6:$D$504)+ROW(ПЛАН!$E$6:$E$504)%,COUNTIF(ПЛАН!$H$6:$H$504,"<>FC-TF(корп)")+ROW(E43)),COUNTIF(ПЛАН!$D$6:$D$504,"<="&ПЛАН!$D$6:$D$504)+ROW(ПЛАН!$E$6:$E$504)%,0)),"0") -> 0 | E50: 0 | F50: =IF(ISNA(VLOOKUP(D50,ПЛАН!$E$6:$G$504,2,0)),0,VLOOKUP(D50,ПЛАН!$E$6:$G$504,2,0)) -> 0 | G50: 0 | J50: =IF(ISNA(VLOOKUP(D50,ПЛАН!$E$6:$G$504,3,0)),0,VLOOKUP(D50,ПЛАН!$E$6:$G$504,3,0)) -> 0
C51: =IFERROR(INDEX(ПЛАН!$D$6:$D$504,MATCH(SMALL((ПЛАН!$H$6:$H$504="FC-TF(корп)")*COUNTIF(ПЛАН!$D$6:$D$504,"<="&ПЛАН!$D$6:$D$504),COUNTIF(ПЛАН!$H$6:$H$504,"<>FC-TF(корп)")+ROW(D44)),COUNTIF(ПЛАН!$D$6:$D$504,"<="&ПЛАН!$D$6:$D$504),0)),"0") -> 0 | D51: =IFERROR(INDEX(ПЛАН!$E$6:$E$504,MATCH(SMALL((ПЛАН!$H$6:$H$504="FC-TF(корп)")*COUNTIF(ПЛАН!$D$6:$D$504,"<="&ПЛАН!$D$6:$D$504)+ROW(ПЛАН!$E$6:$E$504)%,COUNTIF(ПЛАН!$H$6:$H$504,"<>FC-TF(корп)")+ROW(E44)),COUNTIF(ПЛАН!$D$6:$D$504,"<="&ПЛАН!$D$6:$D$504)+ROW(ПЛАН!$E$6:$E$504)%,0)),"0") -> 0 | E51: 0 | F51: =IF(ISNA(VLOOKUP(D51,ПЛАН!$E$6:$G$504,2,0)),0,VLOOKUP(D51,ПЛАН!$E$6:$G$504,2,0)) -> 0 | G51: 0 | J51: =IF(ISNA(VLOOKUP(D51,ПЛАН!$E$6:$G$504,3,0)),0,VLOOKUP(D51,ПЛАН!$E$6:$G$504,3,0)) -> 0
C52: =IFERROR(INDEX(ПЛАН!$D$6:$D$504,MATCH(SMALL((ПЛАН!$H$6:$H$504="FC-TF(корп)")*COUNTIF(ПЛАН!$D$6:$D$504,"<="&ПЛАН!$D$6:$D$504),COUNTIF(ПЛАН!$H$6:$H$504,"<>FC-TF(корп)")+ROW(D45)),COUNTIF(ПЛАН!$D$6:$D$504,"<="&ПЛАН!$D$6:$D$504),0)),"0") -> 0 | D52: =IFERROR(INDEX(ПЛАН!$E$6:$E$504,MATCH(SMALL((ПЛАН!$H$6:$H$504="FC-TF(корп)")*COUNTIF(ПЛАН!$D$6:$D$504,"<="&ПЛАН!$D$6:$D$504)+ROW(ПЛАН!$E$6:$E$504)%,COUNTIF(ПЛАН!$H$6:$H$504,"<>FC-TF(корп)")+ROW(E45)),COUNTIF(ПЛАН!$D$6:$D$504,"<="&ПЛАН!$D$6:$D$504)+ROW(ПЛАН!$E$6:$E$504)%,0)),"0") -> 0 | E52: 0 | F52: =IF(ISNA(VLOOKUP(D52,ПЛАН!$E$6:$G$504,2,0)),0,VLOOKUP(D52,ПЛАН!$E$6:$G$504,2,0)) -> 0 | G52: 0 | J52: =IF(ISNA(VLOOKUP(D52,ПЛАН!$E$6:$G$504,3,0)),0,VLOOKUP(D52,ПЛАН!$E$6:$G$504,3,0)) -> 0
C53: =IFERROR(INDEX(ПЛАН!$D$6:$D$504,MATCH(SMALL((ПЛАН!$H$6:$H$504="FC-TF(корп)")*COUNTIF(ПЛАН!$D$6:$D$504,"<="&ПЛАН!$D$6:$D$504),COUNTIF(ПЛАН!$H$6:$H$504,"<>FC-TF(корп)")+ROW(D46)),COUNTIF(ПЛАН!$D$6:$D$504,"<="&ПЛАН!$D$6:$D$504),0)),"0") -> 0 | D53: =IFERROR(INDEX(ПЛАН!$E$6:$E$504,MATCH(SMALL((ПЛАН!$H$6:$H$504="FC-TF(корп)")*COUNTIF(ПЛАН!$D$6:$D$504,"<="&ПЛАН!$D$6:$D$504)+ROW(ПЛАН!$E$6:$E$504)%,COUNTIF(ПЛАН!$H$6:$H$504,"<>FC-TF(корп)")+ROW(E46)),COUNTIF(ПЛАН!$D$6:$D$504,"<="&ПЛАН!$D$6:$D$504)+ROW(ПЛАН!$E$6:$E$504)%,0)),"0") -> 0 | E53: 0 | F53: =IF(ISNA(VLOOKUP(D53,ПЛАН!$E$6:$G$504,2,0)),0,VLOOKUP(D53,ПЛАН!$E$6:$G$504,2,0)) -> 0 | G53: 0 | J53: =IF(ISNA(VLOOKUP(D53,ПЛАН!$E$6:$G$504,3,0)),0,VLOOKUP(D53,ПЛАН!$E$6:$G$504,3,0)) -> 0
C54: =IFERROR(INDEX(ПЛАН!$D$6:$D$504,MATCH(SMALL((ПЛАН!$H$6:$H$504="FC-TF(корп)")*COUNTIF(ПЛАН!$D$6:$D$504,"<="&ПЛАН!$D$6:$D$504),COUNTIF(ПЛАН!$H$6:$H$504,"<>FC-TF(корп)")+ROW(D47)),COUNTIF(ПЛАН!$D$6:$D$504,"<="&ПЛАН!$D$6:$D$504),0)),"0") -> 0 | D54: =IFERROR(INDEX(ПЛАН!$E$6:$E$504,MATCH(SMALL((ПЛАН!$H$6:$H$504="FC-TF(корп)")*COUNTIF(ПЛАН!$D$6:$D$504,"<="&ПЛАН!$D$6:$D$504)+ROW(ПЛАН!$E$6:$E$504)%,COUNTIF(ПЛАН!$H$6:$H$504,"<>FC-TF(корп)")+ROW(E47)),COUNTIF(ПЛАН!$D$6:$D$504,"<="&ПЛАН!$D$6:$D$504)+ROW(ПЛАН!$E$6:$E$504)%,0)),"0") -> 0 | E54: 0 | F54: =IF(ISNA(VLOOKUP(D54,ПЛАН!$E$6:$G$504,2,0)),0,VLOOKUP(D54,ПЛАН!$E$6:$G$504,2,0)) -> 0 | G54: 0 | J54: =IF(ISNA(VLOOKUP(D54,ПЛАН!$E$6:$G$504,3,0)),0,VLOOKUP(D54,ПЛАН!$E$6:$G$504,3,0)) -> 0
C55: =IFERROR(INDEX(ПЛАН!$D$6:$D$504,MATCH(SMALL((ПЛАН!$H$6:$H$504="FC-TF(корп)")*COUNTIF(ПЛАН!$D$6:$D$504,"<="&ПЛАН!$D$6:$D$504),COUNTIF(ПЛАН!$H$6:$H$504,"<>FC-TF(корп)")+ROW(D48)),COUNTIF(ПЛАН!$D$6:$D$504,"<="&ПЛАН!$D$6:$D$504),0)),"0") -> 0 | D55: =IFERROR(INDEX(ПЛАН!$E$6:$E$504,MATCH(SMALL((ПЛАН!$H$6:$H$504="FC-TF(корп)")*COUNTIF(ПЛАН!$D$6:$D$504,"<="&ПЛАН!$D$6:$D$504)+ROW(ПЛАН!$E$6:$E$504)%,COUNTIF(ПЛАН!$H$6:$H$504,"<>FC-TF(корп)")+ROW(E48)),COUNTIF(ПЛАН!$D$6:$D$504,"<="&ПЛАН!$D$6:$D$504)+ROW(ПЛАН!$E$6:$E$504)%,0)),"0") -> 0 | E55: 0 | F55: =IF(ISNA(VLOOKUP(D55,ПЛАН!$E$6:$G$504,2,0)),0,VLOOKUP(D55,ПЛАН!$E$6:$G$504,2,0)) -> 0 | G55: 0 | J55: =IF(ISNA(VLOOKUP(D55,ПЛАН!$E$6:$G$504,3,0)),0,VLOOKUP(D55,ПЛАН!$E$6:$G$504,3,0)) -> 0
C56: =IFERROR(INDEX(ПЛАН!$D$6:$D$504,MATCH(SMALL((ПЛАН!$H$6:$H$504="FC-TF(корп)")*COUNTIF(ПЛАН!$D$6:$D$504,"<="&ПЛАН!$D$6:$D$504),COUNTIF(ПЛАН!$H$6:$H$504,"<>FC-TF(корп)")+ROW(D49)),COUNTIF(ПЛАН!$D$6:$D$504,"<="&ПЛАН!$D$6:$D$504),0)),"0") -> 0 | D56: =IFERROR(INDEX(ПЛАН!$E$6:$E$504,MATCH(SMALL((ПЛАН!$H$6:$H$504="FC-TF(корп)")*COUNTIF(ПЛАН!$D$6:$D$504,"<="&ПЛАН!$D$6:$D$504)+ROW(ПЛАН!$E$6:$E$504)%,COUNTIF(ПЛАН!$H$6:$H$504,"<>FC-TF(корп)")+ROW(E49)),COUNTIF(ПЛАН!$D$6:$D$504,"<="&ПЛАН!$D$6:$D$504)+ROW(ПЛАН!$E$6:$E$504)%,0)),"0") -> 0 | E56: 0 | F56: =IF(ISNA(VLOOKUP(D56,ПЛАН!$E$6:$G$504,2,0)),0,VLOOKUP(D56,ПЛАН!$E$6:$G$504,2,0)) -> 0 | G56: 0 | J56: =IF(ISNA(VLOOKUP(D56,ПЛАН!$E$6:$G$504,3,0)),0,VLOOKUP(D56,ПЛАН!$E$6:$G$504,3,0)) -> 0
C57: =IFERROR(INDEX(ПЛАН!$D$6:$D$504,MATCH(SMALL((ПЛАН!$H$6:$H$504="FC-TF(корп)")*COUNTIF(ПЛАН!$D$6:$D$504,"<="&ПЛАН!$D$6:$D$504),COUNTIF(ПЛАН!$H$6:$H$504,"<>FC-TF(корп)")+ROW(D50)),COUNTIF(ПЛАН!$D$6:$D$504,"<="&ПЛАН!$D$6:$D$504),0)),"0") -> 0 | D57: =IFERROR(INDEX(ПЛАН!$E$6:$E$504,MATCH(SMALL((ПЛАН!$H$6:$H$504="FC-TF(корп)")*COUNTIF(ПЛАН!$D$6:$D$504,"<="&ПЛАН!$D$6:$D$504)+ROW(ПЛАН!$E$6:$E$504)%,COUNTIF(ПЛАН!$H$6:$H$504,"<>FC-TF(корп)")+ROW(E50)),COUNTIF(ПЛАН!$D$6:$D$504,"<="&ПЛАН!$D$6:$D$504)+ROW(ПЛАН!$E$6:$E$504)%,0)),"0") -> 0 | E57: 0 | F57: =IF(ISNA(VLOOKUP(D57,ПЛАН!$E$6:$G$504,2,0)),0,VLOOKUP(D57,ПЛАН!$E$6:$G$504,2,0)) -> 0 | G57: 0 | J57: =IF(ISNA(VLOOKUP(D57,ПЛАН!$E$6:$G$504,3,0)),0,VLOOKUP(D57,ПЛАН!$E$6:$G$504,3,0)) -> 0
C58: =IFERROR(INDEX(ПЛАН!$D$6:$D$504,MATCH(SMALL((ПЛАН!$H$6:$H$504="FC-TF(корп)")*COUNTIF(ПЛАН!$D$6:$D$504,"<="&ПЛАН!$D$6:$D$504),COUNTIF(ПЛАН!$H$6:$H$504,"<>FC-TF(корп)")+ROW(D51)),COUNTIF(ПЛАН!$D$6:$D$504,"<="&ПЛАН!$D$6:$D$504),0)),"0") -> 0 | D58: =IFERROR(INDEX(ПЛАН!$E$6:$E$504,MATCH(SMALL((ПЛАН!$H$6:$H$504="FC-TF(корп)")*COUNTIF(ПЛАН!$D$6:$D$504,"<="&ПЛАН!$D$6:$D$504)+ROW(ПЛАН!$E$6:$E$504)%,COUNTIF(ПЛАН!$H$6:$H$504,"<>FC-TF(корп)")+ROW(E51)),COUNTIF(ПЛАН!$D$6:$D$504,"<="&ПЛАН!$D$6:$D$504)+ROW(ПЛАН!$E$6:$E$504)%,0)),"0") -> 0 | E58: 0 | F58: =IF(ISNA(VLOOKUP(D58,ПЛАН!$E$6:$G$504,2,0)),0,VLOOKUP(D58,ПЛАН!$E$6:$G$504,2,0)) -> 0 | G58: 0 | J58: =IF(ISNA(VLOOKUP(D58,ПЛАН!$E$6:$G$504,3,0)),0,VLOOKUP(D58,ПЛАН!$E$6:$G$504,3,0)) -> 0
C59: =IFERROR(INDEX(ПЛАН!$D$6:$D$504,MATCH(SMALL((ПЛАН!$H$6:$H$504="FC-TF(корп)")*COUNTIF(ПЛАН!$D$6:$D$504,"<="&ПЛАН!$D$6:$D$504),COUNTIF(ПЛАН!$H$6:$H$504,"<>FC-TF(корп)")+ROW(D52)),COUNTIF(ПЛАН!$D$6:$D$504,"<="&ПЛАН!$D$6:$D$504),0)),"0") -> 0 | D59: =IFERROR(INDEX(ПЛАН!$E$6:$E$504,MATCH(SMALL((ПЛАН!$H$6:$H$504="FC-TF(корп)")*COUNTIF(ПЛАН!$D$6:$D$504,"<="&ПЛАН!$D$6:$D$504)+ROW(ПЛАН!$E$6:$E$504)%,COUNTIF(ПЛАН!$H$6:$H$504,"<>FC-TF(корп)")+ROW(E52)),COUNTIF(ПЛАН!$D$6:$D$504,"<="&ПЛАН!$D$6:$D$504)+ROW(ПЛАН!$E$6:$E$504)%,0)),"0") -> 0 | E59: 0 | F59: =IF(ISNA(VLOOKUP(D59,ПЛАН!$E$6:$G$504,2,0)),0,VLOOKUP(D59,ПЛАН!$E$6:$G$504,2,0)) -> 0 | G59: 0 | J59: =IF(ISNA(VLOOKUP(D59,ПЛАН!$E$6:$G$504,3,0)),0,VLOOKUP(D59,ПЛАН!$E$6:$G$504,3,0)) -> 0
C60: =IFERROR(INDEX(ПЛАН!$D$6:$D$504,MATCH(SMALL((ПЛАН!$H$6:$H$504="FC-TF(корп)")*COUNTIF(ПЛАН!$D$6:$D$504,"<="&ПЛАН!$D$6:$D$504),COUNTIF(ПЛАН!$H$6:$H$504,"<>FC-TF(корп)")+ROW(D53)),COUNTIF(ПЛАН!$D$6:$D$504,"<="&ПЛАН!$D$6:$D$504),0)),"0") -> 0 | D60: =IFERROR(INDEX(ПЛАН!$E$6:$E$504,MATCH(SMALL((ПЛАН!$H$6:$H$504="FC-TF(корп)")*COUNTIF(ПЛАН!$D$6:$D$504,"<="&ПЛАН!$D$6:$D$504)+ROW(ПЛАН!$E$6:$E$504)%,COUNTIF(ПЛАН!$H$6:$H$504,"<>FC-TF(корп)")+ROW(E53)),COUNTIF(ПЛАН!$D$6:$D$504,"<="&ПЛАН!$D$6:$D$504)+ROW(ПЛАН!$E$6:$E$504)%,0)),"0") -> 0 | E60: 0 | F60: =IF(ISNA(VLOOKUP(D60,ПЛАН!$E$6:$G$504,2,0)),0,VLOOKUP(D60,ПЛАН!$E$6:$G$504,2,0)) -> 0 | G60: 0 | J60: =IF(ISNA(VLOOKUP(D60,ПЛАН!$E$6:$G$504,3,0)),0,VLOOKUP(D60,ПЛАН!$E$6:$G$504,3,0)) -> 0
C61: =IFERROR(INDEX(ПЛАН!$D$6:$D$504,MATCH(SMALL((ПЛАН!$H$6:$H$504="FC-TF(корп)")*COUNTIF(ПЛАН!$D$6:$D$504,"<="&ПЛАН!$D$6:$D$504),COUNTIF(ПЛАН!$H$6:$H$504,"<>FC-TF(корп)")+ROW(D54)),COUNTIF(ПЛАН!$D$6:$D$504,"<="&ПЛАН!$D$6:$D$504),0)),"0") -> 0 | D61: =IFERROR(INDEX(ПЛАН!$E$6:$E$504,MATCH(SMALL((ПЛАН!$H$6:$H$504="FC-TF(корп)")*COUNTIF(ПЛАН!$D$6:$D$504,"<="&ПЛАН!$D$6:$D$504)+ROW(ПЛАН!$E$6:$E$504)%,COUNTIF(ПЛАН!$H$6:$H$504,"<>FC-TF(корп)")+ROW(E54)),COUNTIF(ПЛАН!$D$6:$D$504,"<="&ПЛАН!$D$6:$D$504)+ROW(ПЛАН!$E$6:$E$504)%,0)),"0") -> 0 | E61: 0 | F61: =IF(ISNA(VLOOKUP(D61,ПЛАН!$E$6:$G$504,2,0)),0,VLOOKUP(D61,ПЛАН!$E$6:$G$504,2,0)) -> 0 | G61: 0 | J61: =IF(ISNA(VLOOKUP(D61,ПЛАН!$E$6:$G$504,3,0)),0,VLOOKUP(D61,ПЛАН!$E$6:$G$504,3,0)) -> 0
C62: =IFERROR(INDEX(ПЛАН!$D$6:$D$504,MATCH(SMALL((ПЛАН!$H$6:$H$504="FC-TF(корп)")*COUNTIF(ПЛАН!$D$6:$D$504,"<="&ПЛАН!$D$6:$D$504),COUNTIF(ПЛАН!$H$6:$H$504,"<>FC-TF(корп)")+ROW(D55)),COUNTIF(ПЛАН!$D$6:$D$504,"<="&ПЛАН!$D$6:$D$504),0)),"0") -> 0 | D62: =IFERROR(INDEX(ПЛАН!$E$6:$E$504,MATCH(SMALL((ПЛАН!$H$6:$H$504="FC-TF(корп)")*COUNTIF(ПЛАН!$D$6:$D$504,"<="&ПЛАН!$D$6:$D$504)+ROW(ПЛАН!$E$6:$E$504)%,COUNTIF(ПЛАН!$H$6:$H$504,"<>FC-TF(корп)")+ROW(E55)),COUNTIF(ПЛАН!$D$6:$D$504,"<="&ПЛАН!$D$6:$D$504)+ROW(ПЛАН!$E$6:$E$504)%,0)),"0") -> 0 | E62: 0 | F62: =IF(ISNA(VLOOKUP(D62,ПЛАН!$E$6:$G$504,2,0)),0,VLOOKUP(D62,ПЛАН!$E$6:$G$504,2,0)) -> 0 | G62: 0 | J62: =IF(ISNA(VLOOKUP(D62,ПЛАН!$E$6:$G$504,3,0)),0,VLOOKUP(D62,ПЛАН!$E$6:$G$504,3,0)) -> 0
C63: =IFERROR(INDEX(ПЛАН!$D$6:$D$504,MATCH(SMALL((ПЛАН!$H$6:$H$504="FC-TF(корп)")*COUNTIF(ПЛАН!$D$6:$D$504,"<="&ПЛАН!$D$6:$D$504),COUNTIF(ПЛАН!$H$6:$H$504,"<>FC-TF(корп)")+ROW(D56)),COUNTIF(ПЛАН!$D$6:$D$504,"<="&ПЛАН!$D$6:$D$504),0)),"0") -> 0 | D63: =IFERROR(INDEX(ПЛАН!$E$6:$E$504,MATCH(SMALL((ПЛАН!$H$6:$H$504="FC-TF(корп)")*COUNTIF(ПЛАН!$D$6:$D$504,"<="&ПЛАН!$D$6:$D$504)+ROW(ПЛАН!$E$6:$E$504)%,COUNTIF(ПЛАН!$H$6:$H$504,"<>FC-TF(корп)")+ROW(E56)),COUNTIF(ПЛАН!$D$6:$D$504,"<="&ПЛАН!$D$6:$D$504)+ROW(ПЛАН!$E$6:$E$504)%,0)),"0") -> 0 | E63: 0 | F63: =IF(ISNA(VLOOKUP(D63,ПЛАН!$E$6:$G$504,2,0)),0,VLOOKUP(D63,ПЛАН!$E$6:$G$504,2,0)) -> 0 | G63: 0 | J63: =IF(ISNA(VLOOKUP(D63,ПЛАН!$E$6:$G$504,3,0)),0,VLOOKUP(D63,ПЛАН!$E$6:$G$504,3,0)) -> 0
C64: =IFERROR(INDEX(ПЛАН!$D$6:$D$504,MATCH(SMALL((ПЛАН!$H$6:$H$504="FC-TF(корп)")*COUNTIF(ПЛАН!$D$6:$D$504,"<="&ПЛАН!$D$6:$D$504),COUNTIF(ПЛАН!$H$6:$H$504,"<>FC-TF(корп)")+ROW(D57)),COUNTIF(ПЛАН!$D$6:$D$504,"<="&ПЛАН!$D$6:$D$504),0)),"0") -> 0 | D64: =IFERROR(INDEX(ПЛАН!$E$6:$E$504,MATCH(SMALL((ПЛАН!$H$6:$H$504="FC-TF(корп)")*COUNTIF(ПЛАН!$D$6:$D$504,"<="&ПЛАН!$D$6:$D$504)+ROW(ПЛАН!$E$6:$E$504)%,COUNTIF(ПЛАН!$H$6:$H$504,"<>FC-TF(корп)")+ROW(E57)),COUNTIF(ПЛАН!$D$6:$D$504,"<="&ПЛАН!$D$6:$D$504)+ROW(ПЛАН!$E$6:$E$504)%,0)),"0") -> 0 | E64: 0 | F64: =IF(ISNA(VLOOKUP(D64,ПЛАН!$E$6:$G$504,2,0)),0,VLOOKUP(D64,ПЛАН!$E$6:$G$504,2,0)) -> 0 | G64: 0 | J64: =IF(ISNA(VLOOKUP(D64,ПЛАН!$E$6:$G$504,3,0)),0,VLOOKUP(D64,ПЛАН!$E$6:$G$504,3,0)) -> 0
C65: =IFERROR(INDEX(ПЛАН!$D$6:$D$504,MATCH(SMALL((ПЛАН!$H$6:$H$504="FC-TF(корп)")*COUNTIF(ПЛАН!$D$6:$D$504,"<="&ПЛАН!$D$6:$D$504),COUNTIF(ПЛАН!$H$6:$H$504,"<>FC-TF(корп)")+ROW(D58)),COUNTIF(ПЛАН!$D$6:$D$504,"<="&ПЛАН!$D$6:$D$504),0)),"0") -> 0 | D65: =IFERROR(INDEX(ПЛАН!$E$6:$E$504,MATCH(SMALL((ПЛАН!$H$6:$H$504="FC-TF(корп)")*COUNTIF(ПЛАН!$D$6:$D$504,"<="&ПЛАН!$D$6:$D$504)+ROW(ПЛАН!$E$6:$E$504)%,COUNTIF(ПЛАН!$H$6:$H$504,"<>FC-TF(корп)")+ROW(E58)),COUNTIF(ПЛАН!$D$6:$D$504,"<="&ПЛАН!$D$6:$D$504)+ROW(ПЛАН!$E$6:$E$504)%,0)),"0") -> 0 | E65: 0 | F65: =IF(ISNA(VLOOKUP(D65,ПЛАН!$E$6:$G$504,2,0)),0,VLOOKUP(D65,ПЛАН!$E$6:$G$504,2,0)) -> 0 | G65: 0 | J65: =IF(ISNA(VLOOKUP(D65,ПЛАН!$E$6:$G$504,3,0)),0,VLOOKUP(D65,ПЛАН!$E$6:$G$504,3,0)) -> 0
C66: =IFERROR(INDEX(ПЛАН!$D$6:$D$504,MATCH(SMALL((ПЛАН!$H$6:$H$504="FC-TF(корп)")*COUNTIF(ПЛАН!$D$6:$D$504,"<="&ПЛАН!$D$6:$D$504),COUNTIF(ПЛАН!$H$6:$H$504,"<>FC-TF(корп)")+ROW(D59)),COUNTIF(ПЛАН!$D$6:$D$504,"<="&ПЛАН!$D$6:$D$504),0)),"0") -> 0 | D66: =IFERROR(INDEX(ПЛАН!$E$6:$E$504,MATCH(SMALL((ПЛАН!$H$6:$H$504="FC-TF(корп)")*COUNTIF(ПЛАН!$D$6:$D$504,"<="&ПЛАН!$D$6:$D$504)+ROW(ПЛАН!$E$6:$E$504)%,COUNTIF(ПЛАН!$H$6:$H$504,"<>FC-TF(корп)")+ROW(E59)),COUNTIF(ПЛАН!$D$6:$D$504,"<="&ПЛАН!$D$6:$D$504)+ROW(ПЛАН!$E$6:$E$504)%,0)),"0") -> 0 | E66: 0 | F66: =IF(ISNA(VLOOKUP(D66,ПЛАН!$E$6:$G$504,2,0)),0,VLOOKUP(D66,ПЛАН!$E$6:$G$504,2,0)) -> 0 | G66: 0 | J66: =IF(ISNA(VLOOKUP(D66,ПЛАН!$E$6:$G$504,3,0)),0,VLOOKUP(D66,ПЛАН!$E$6:$G$504,3,0)) -> 0
C67: =IFERROR(INDEX(ПЛАН!$D$6:$D$504,MATCH(SMALL((ПЛАН!$H$6:$H$504="FC-TF(корп)")*COUNTIF(ПЛАН!$D$6:$D$504,"<="&ПЛАН!$D$6:$D$504),COUNTIF(ПЛАН!$H$6:$H$504,"<>FC-TF(корп)")+ROW(D60)),COUNTIF(ПЛАН!$D$6:$D$504,"<="&ПЛАН!$D$6:$D$504),0)),"0") -> 0 | D67: =IFERROR(INDEX(ПЛАН!$E$6:$E$504,MATCH(SMALL((ПЛАН!$H$6:$H$504="FC-TF(корп)")*COUNTIF(ПЛАН!$D$6:$D$504,"<="&ПЛАН!$D$6:$D$504)+ROW(ПЛАН!$E$6:$E$504)%,COUNTIF(ПЛАН!$H$6:$H$504,"<>FC-TF(корп)")+ROW(E60)),COUNTIF(ПЛАН!$D$6:$D$504,"<="&ПЛАН!$D$6:$D$504)+ROW(ПЛАН!$E$6:$E$504)%,0)),"0") -> 0 | E67: 0 | F67: =IF(ISNA(VLOOKUP(D67,ПЛАН!$E$6:$G$504,2,0)),0,VLOOKUP(D67,ПЛАН!$E$6:$G$504,2,0)) -> 0 | G67: 0 | J67: =IF(ISNA(VLOOKUP(D67,ПЛАН!$E$6:$G$504,3,0)),0,VLOOKUP(D67,ПЛАН!$E$6:$G$504,3,0)) -> 0
C68: =IFERROR(INDEX(ПЛАН!$D$6:$D$504,MATCH(SMALL((ПЛАН!$H$6:$H$504="FC-TF(корп)")*COUNTIF(ПЛАН!$D$6:$D$504,"<="&ПЛАН!$D$6:$D$504),COUNTIF(ПЛАН!$H$6:$H$504,"<>FC-TF(корп)")+ROW(D61)),COUNTIF(ПЛАН!$D$6:$D$504,"<="&ПЛАН!$D$6:$D$504),0)),"0") -> 0 | D68: =IFERROR(INDEX(ПЛАН!$E$6:$E$504,MATCH(SMALL((ПЛАН!$H$6:$H$504="FC-TF(корп)")*COUNTIF(ПЛАН!$D$6:$D$504,"<="&ПЛАН!$D$6:$D$504)+ROW(ПЛАН!$E$6:$E$504)%,COUNTIF(ПЛАН!$H$6:$H$504,"<>FC-TF(корп)")+ROW(E61)),COUNTIF(ПЛАН!$D$6:$D$504,"<="&ПЛАН!$D$6:$D$504)+ROW(ПЛАН!$E$6:$E$504)%,0)),"0") -> 0 | E68: 0 | F68: =IF(ISNA(VLOOKUP(D68,ПЛАН!$E$6:$G$504,2,0)),0,VLOOKUP(D68,ПЛАН!$E$6:$G$504,2,0)) -> 0 | G68: 0 | J68: =IF(ISNA(VLOOKUP(D68,ПЛАН!$E$6:$G$504,3,0)),0,VLOOKUP(D68,ПЛАН!$E$6:$G$504,3,0)) -> 0
C69: =IFERROR(INDEX(ПЛАН!$D$6:$D$504,MATCH(SMALL((ПЛАН!$H$6:$H$504="FC-TF(корп)")*COUNTIF(ПЛАН!$D$6:$D$504,"<="&ПЛАН!$D$6:$D$504),COUNTIF(ПЛАН!$H$6:$H$504,"<>FC-TF(корп)")+ROW(D62)),COUNTIF(ПЛАН!$D$6:$D$504,"<="&ПЛАН!$D$6:$D$504),0)),"0") -> 0 | D69: =IFERROR(INDEX(ПЛАН!$E$6:$E$504,MATCH(SMALL((ПЛАН!$H$6:$H$504="FC-TF(корп)")*COUNTIF(ПЛАН!$D$6:$D$504,"<="&ПЛАН!$D$6:$D$504)+ROW(ПЛАН!$E$6:$E$504)%,COUNTIF(ПЛАН!$H$6:$H$504,"<>FC-TF(корп)")+ROW(E62)),COUNTIF(ПЛАН!$D$6:$D$504,"<="&ПЛАН!$D$6:$D$504)+ROW(ПЛАН!$E$6:$E$504)%,0)),"0") -> 0 | E69: 0 | F69: =IF(ISNA(VLOOKUP(D69,ПЛАН!$E$6:$G$504,2,0)),0,VLOOKUP(D69,ПЛАН!$E$6:$G$504,2,0)) -> 0 | G69: 0 | J69: =IF(ISNA(VLOOKUP(D69,ПЛАН!$E$6:$G$504,3,0)),0,VLOOKUP(D69,ПЛАН!$E$6:$G$504,3,0)) -> 0
C70: =IFERROR(INDEX(ПЛАН!$D$6:$D$504,MATCH(SMALL((ПЛАН!$H$6:$H$504="FC-TF(корп)")*COUNTIF(ПЛАН!$D$6:$D$504,"<="&ПЛАН!$D$6:$D$504),COUNTIF(ПЛАН!$H$6:$H$504,"<>FC-TF(корп)")+ROW(D63)),COUNTIF(ПЛАН!$D$6:$D$504,"<="&ПЛАН!$D$6:$D$504),0)),"0") -> 0 | D70: =IFERROR(INDEX(ПЛАН!$E$6:$E$504,MATCH(SMALL((ПЛАН!$H$6:$H$504="FC-TF(корп)")*COUNTIF(ПЛАН!$D$6:$D$504,"<="&ПЛАН!$D$6:$D$504)+ROW(ПЛАН!$E$6:$E$504)%,COUNTIF(ПЛАН!$H$6:$H$504,"<>FC-TF(корп)")+ROW(E63)),COUNTIF(ПЛАН!$D$6:$D$504,"<="&ПЛАН!$D$6:$D$504)+ROW(ПЛАН!$E$6:$E$504)%,0)),"0") -> 0 | E70: 0 | F70: =IF(ISNA(VLOOKUP(D70,ПЛАН!$E$6:$G$504,2,0)),0,VLOOKUP(D70,ПЛАН!$E$6:$G$504,2,0)) -> 0 | G70: 0 | J70: =IF(ISNA(VLOOKUP(D70,ПЛАН!$E$6:$G$504,3,0)),0,VLOOKUP(D70,ПЛАН!$E$6:$G$504,3,0)) -> 0
C71: =IFERROR(INDEX(ПЛАН!$D$6:$D$504,MATCH(SMALL((ПЛАН!$H$6:$H$504="FC-TF(корп)")*COUNTIF(ПЛАН!$D$6:$D$504,"<="&ПЛАН!$D$6:$D$504),COUNTIF(ПЛАН!$H$6:$H$504,"<>FC-TF(корп)")+ROW(D64)),COUNTIF(ПЛАН!$D$6:$D$504,"<="&ПЛАН!$D$6:$D$504),0)),"0") -> 0 | D71: =IFERROR(INDEX(ПЛАН!$E$6:$E$504,MATCH(SMALL((ПЛАН!$H$6:$H$504="FC-TF(корп)")*COUNTIF(ПЛАН!$D$6:$D$504,"<="&ПЛАН!$D$6:$D$504)+ROW(ПЛАН!$E$6:$E$504)%,COUNTIF(ПЛАН!$H$6:$H$504,"<>FC-TF(корп)")+ROW(E64)),COUNTIF(ПЛАН!$D$6:$D$504,"<="&ПЛАН!$D$6:$D$504)+ROW(ПЛАН!$E$6:$E$504)%,0)),"0") -> 0 | E71: 0 | F71: =IF(ISNA(VLOOKUP(D71,ПЛАН!$E$6:$G$504,2,0)),0,VLOOKUP(D71,ПЛАН!$E$6:$G$504,2,0)) -> 0 | G71: 0 | J71: =IF(ISNA(VLOOKUP(D71,ПЛАН!$E$6:$G$504,3,0)),0,VLOOKUP(D71,ПЛАН!$E$6:$G$504,3,0)) -> 0
C72: =IFERROR(INDEX(ПЛАН!$D$6:$D$504,MATCH(SMALL((ПЛАН!$H$6:$H$504="FC-TF(корп)")*COUNTIF(ПЛАН!$D$6:$D$504,"<="&ПЛАН!$D$6:$D$504),COUNTIF(ПЛАН!$H$6:$H$504,"<>FC-TF(корп)")+ROW(D65)),COUNTIF(ПЛАН!$D$6:$D$504,"<="&ПЛАН!$D$6:$D$504),0)),"0") -> 0 | D72: =IFERROR(INDEX(ПЛАН!$E$6:$E$504,MATCH(SMALL((ПЛАН!$H$6:$H$504="FC-TF(корп)")*COUNTIF(ПЛАН!$D$6:$D$504,"<="&ПЛАН!$D$6:$D$504)+ROW(ПЛАН!$E$6:$E$504)%,COUNTIF(ПЛАН!$H$6:$H$504,"<>FC-TF(корп)")+ROW(E65)),COUNTIF(ПЛАН!$D$6:$D$504,"<="&ПЛАН!$D$6:$D$504)+ROW(ПЛАН!$E$6:$E$504)%,0)),"0") -> 0 | E72: 0 | F72: =IF(ISNA(VLOOKUP(D72,ПЛАН!$E$6:$G$504,2,0)),0,VLOOKUP(D72,ПЛАН!$E$6:$G$504,2,0)) -> 0 | G72: 0 | J72: =IF(ISNA(VLOOKUP(D72,ПЛАН!$E$6:$G$504,3,0)),0,VLOOKUP(D72,ПЛАН!$E$6:$G$504,3,0)) -> 0
C73: =IFERROR(INDEX(ПЛАН!$D$6:$D$504,MATCH(SMALL((ПЛАН!$H$6:$H$504="FC-TF(корп)")*COUNTIF(ПЛАН!$D$6:$D$504,"<="&ПЛАН!$D$6:$D$504),COUNTIF(ПЛАН!$H$6:$H$504,"<>FC-TF(корп)")+ROW(D66)),COUNTIF(ПЛАН!$D$6:$D$504,"<="&ПЛАН!$D$6:$D$504),0)),"0") -> 0 | D73: =IFERROR(INDEX(ПЛАН!$E$6:$E$504,MATCH(SMALL((ПЛАН!$H$6:$H$504="FC-TF(корп)")*COUNTIF(ПЛАН!$D$6:$D$504,"<="&ПЛАН!$D$6:$D$504)+ROW(ПЛАН!$E$6:$E$504)%,COUNTIF(ПЛАН!$H$6:$H$504,"<>FC-TF(корп)")+ROW(E66)),COUNTIF(ПЛАН!$D$6:$D$504,"<="&ПЛАН!$D$6:$D$504)+ROW(ПЛАН!$E$6:$E$504)%,0)),"0") -> 0 | E73: =J73/60*100 -> 0 | F73: =IF(ISNA(VLOOKUP(D73,ПЛАН!$E$6:$G$504,2,0)),0,VLOOKUP(D73,ПЛАН!$E$6:$G$504,2,0)) -> 0 | G73: =E73*F73/100 -> 0 | J73: =IF(ISNA(VLOOKUP(D73,ПЛАН!$E$6:$G$504,3,0)),0,VLOOKUP(D73,ПЛАН!$E$6:$G$504,3,0)) -> 0 | K73: =8*60/J73 -> 
C74: =IFERROR(INDEX(ПЛАН!$D$6:$D$504,MATCH(SMALL((ПЛАН!$H$6:$H$504="FC-TF(корп)")*COUNTIF(ПЛАН!$D$6:$D$504,"<="&ПЛАН!$D$6:$D$504),COUNTIF(ПЛАН!$H$6:$H$504,"<>FC-TF(корп)")+ROW(D67)),COUNTIF(ПЛАН!$D$6:$D$504,"<="&ПЛАН!$D$6:$D$504),0)),"0") -> 0 | D74: =IFERROR(INDEX(ПЛАН!$E$6:$E$504,MATCH(SMALL((ПЛАН!$H$6:$H$504="FC-TF(корп)")*COUNTIF(ПЛАН!$D$6:$D$504,"<="&ПЛАН!$D$6:$D$504)+ROW(ПЛАН!$E$6:$E$504)%,COUNTIF(ПЛАН!$H$6:$H$504,"<>FC-TF(корп)")+ROW(E67)),COUNTIF(ПЛАН!$D$6:$D$504,"<="&ПЛАН!$D$6:$D$504)+ROW(ПЛАН!$E$6:$E$504)%,0)),"0") -> 0 | E74: 0 | F74: =IF(ISNA(VLOOKUP(D74,ПЛАН!$E$6:$G$504,2,0)),0,VLOOKUP(D74,ПЛАН!$E$6:$G$504,2,0)) -> 0 | G74: 0 | J74: =IF(ISNA(VLOOKUP(D74,ПЛАН!$E$6:$G$504,3,0)),0,VLOOKUP(D74,ПЛАН!$E$6:$G$504,3,0)) -> 0
C75: =IFERROR(INDEX(ПЛАН!$D$6:$D$504,MATCH(SMALL((ПЛАН!$H$6:$H$504="FC-TF(корп)")*COUNTIF(ПЛАН!$D$6:$D$504,"<="&ПЛАН!$D$6:$D$504),COUNTIF(ПЛАН!$H$6:$H$504,"<>FC-TF(корп)")+ROW(D68)),COUNTIF(ПЛАН!$D$6:$D$504,"<="&ПЛАН!$D$6:$D$504),0)),"0") -> 0 | D75: =IFERROR(INDEX(ПЛАН!$E$6:$E$504,MATCH(SMALL((ПЛАН!$H$6:$H$504="FC-TF(корп)")*COUNTIF(ПЛАН!$D$6:$D$504,"<="&ПЛАН!$D$6:$D$504)+ROW(ПЛАН!$E$6:$E$504)%,COUNTIF(ПЛАН!$H$6:$H$504,"<>FC-TF(корп)")+ROW(E68)),COUNTIF(ПЛАН!$D$6:$D$504,"<="&ПЛАН!$D$6:$D$504)+ROW(ПЛАН!$E$6:$E$504)%,0)),"0") -> 0 | E75: 0 | F75: =IF(ISNA(VLOOKUP(D75,ПЛАН!$E$6:$G$504,2,0)),0,VLOOKUP(D75,ПЛАН!$E$6:$G$504,2,0)) -> 0 | G75: 0 | J75: =IF(ISNA(VLOOKUP(D75,ПЛАН!$E$6:$G$504,3,0)),0,VLOOKUP(D75,ПЛАН!$E$6:$G$504,3,0)) -> 0
C76: =IFERROR(INDEX(ПЛАН!$D$6:$D$504,MATCH(SMALL((ПЛАН!$H$6:$H$504="FC-TF(корп)")*COUNTIF(ПЛАН!$D$6:$D$504,"<="&ПЛАН!$D$6:$D$504),COUNTIF(ПЛАН!$H$6:$H$504,"<>FC-TF(корп)")+ROW(D69)),COUNTIF(ПЛАН!$D$6:$D$504,"<="&ПЛАН!$D$6:$D$504),0)),"0") -> 0 | D76: =IFERROR(INDEX(ПЛАН!$E$6:$E$504,MATCH(SMALL((ПЛАН!$H$6:$H$504="FC-TF(корп)")*COUNTIF(ПЛАН!$D$6:$D$504,"<="&ПЛАН!$D$6:$D$504)+ROW(ПЛАН!$E$6:$E$504)%,COUNTIF(ПЛАН!$H$6:$H$504,"<>FC-TF(корп)")+ROW(E69)),COUNTIF(ПЛАН!$D$6:$D$504,"<="&ПЛАН!$D$6:$D$504)+ROW(ПЛАН!$E$6:$E$504)%,0)),"0") -> 0 | E76: 0 | F76: =IF(ISNA(VLOOKUP(D76,ПЛАН!$E$6:$G$504,2,0)),0,VLOOKUP(D76,ПЛАН!$E$6:$G$504,2,0)) -> 0 | G76: 0 | J76: =IF(ISNA(VLOOKUP(D76,ПЛАН!$E$6:$G$504,3,0)),0,VLOOKUP(D76,ПЛАН!$E$6:$G$504,3,0)) -> 0
C77: =IFERROR(INDEX(ПЛАН!$D$6:$D$504,MATCH(SMALL((ПЛАН!$H$6:$H$504="FC-TF(корп)")*COUNTIF(ПЛАН!$D$6:$D$504,"<="&ПЛАН!$D$6:$D$504),COUNTIF(ПЛАН!$H$6:$H$504,"<>FC-TF(корп)")+ROW(D70)),COUNTIF(ПЛАН!$D$6:$D$504,"<="&ПЛАН!$D$6:$D$504),0)),"0") -> 0 | D77: =IFERROR(INDEX(ПЛАН!$E$6:$E$504,MATCH(SMALL((ПЛАН!$H$6:$H$504="FC-TF(корп)")*COUNTIF(ПЛАН!$D$6:$D$504,"<="&ПЛАН!$D$6:$D$504)+ROW(ПЛАН!$E$6:$E$504)%,COUNTIF(ПЛАН!$H$6:$H$504,"<>FC-TF(корп)")+ROW(E70)),COUNTIF(ПЛАН!$D$6:$D$504,"<="&ПЛАН!$D$6:$D$504)+ROW(ПЛАН!$E$6:$E$504)%,0)),"0") -> 0 | E77: 0 | F77: =IF(ISNA(VLOOKUP(D77,ПЛАН!$E$6:$G$504,2,0)),0,VLOOKUP(D77,ПЛАН!$E$6:$G$504,2,0)) -> 0 | G77: 0 | J77: =IF(ISNA(VLOOKUP(D77,ПЛАН!$E$6:$G$504,3,0)),0,VLOOKUP(D77,ПЛАН!$E$6:$G$504,3,0)) -> 0
C78: =IFERROR(INDEX(ПЛАН!$D$6:$D$504,MATCH(SMALL((ПЛАН!$H$6:$H$504="FC-TF(корп)")*COUNTIF(ПЛАН!$D$6:$D$504,"<="&ПЛАН!$D$6:$D$504),COUNTIF(ПЛАН!$H$6:$H$504,"<>FC-TF(корп)")+ROW(D71)),COUNTIF(ПЛАН!$D$6:$D$504,"<="&ПЛАН!$D$6:$D$504),0)),"0") -> 0 | D78: =IFERROR(INDEX(ПЛАН!$E$6:$E$504,MATCH(SMALL((ПЛАН!$H$6:$H$504="FC-TF(корп)")*COUNTIF(ПЛАН!$D$6:$D$504,"<="&ПЛАН!$D$6:$D$504)+ROW(ПЛАН!$E$6:$E$504)%,COUNTIF(ПЛАН!$H$6:$H$504,"<>FC-TF(корп)")+ROW(E71)),COUNTIF(ПЛАН!$D$6:$D$504,"<="&ПЛАН!$D$6:$D$504)+ROW(ПЛАН!$E$6:$E$504)%,0)),"0") -> 0 | E78: 0 | F78: =IF(ISNA(VLOOKUP(D78,ПЛАН!$E$6:$G$504,2,0)),0,VLOOKUP(D78,ПЛАН!$E$6:$G$504,2,0)) -> 0 | G78: 0 | J78: =IF(ISNA(VLOOKUP(D78,ПЛАН!$E$6:$G$504,3,0)),0,VLOOKUP(D78,ПЛАН!$E$6:$G$504,3,0)) -> 0
C79: =IFERROR(INDEX(ПЛАН!$D$6:$D$504,MATCH(SMALL((ПЛАН!$H$6:$H$504="FC-TF(корп)")*COUNTIF(ПЛАН!$D$6:$D$504,"<="&ПЛАН!$D$6:$D$504),COUNTIF(ПЛАН!$H$6:$H$504,"<>FC-TF(корп)")+ROW(D72)),COUNTIF(ПЛАН!$D$6:$D$504,"<="&ПЛАН!$D$6:$D$504),0)),"0") -> 0 | D79: =IFERROR(INDEX(ПЛАН!$E$6:$E$504,MATCH(SMALL((ПЛАН!$H$6:$H$504="FC-TF(корп)")*COUNTIF(ПЛАН!$D$6:$D$504,"<="&ПЛАН!$D$6:$D$504)+ROW(ПЛАН!$E$6:$E$504)%,COUNTIF(ПЛАН!$H$6:$H$504,"<>FC-TF(корп)")+ROW(E72)),COUNTIF(ПЛАН!$D$6:$D$504,"<="&ПЛАН!$D$6:$D$504)+ROW(ПЛАН!$E$6:$E$504)%,0)),"0") -> 0 | E79: 0 | F79: =IF(ISNA(VLOOKUP(D79,ПЛАН!$E$6:$G$504,2,0)),0,VLOOKUP(D79,ПЛАН!$E$6:$G$504,2,0)) -> 0 | G79: 0 | J79: =IF(ISNA(VLOOKUP(D79,ПЛАН!$E$6:$G$504,3,0)),0,VLOOKUP(D79,ПЛАН!$E$6:$G$504,3,0)) -> 0
C80: =IFERROR(INDEX(ПЛАН!$D$6:$D$504,MATCH(SMALL((ПЛАН!$H$6:$H$504="FC-TF(корп)")*COUNTIF(ПЛАН!$D$6:$D$504,"<="&ПЛАН!$D$6:$D$504),COUNTIF(ПЛАН!$H$6:$H$504,"<>FC-TF(корп)")+ROW(D73)),COUNTIF(ПЛАН!$D$6:$D$504,"<="&ПЛАН!$D$6:$D$504),0)),"0") -> 0 | D80: =IFERROR(INDEX(ПЛАН!$E$6:$E$504,MATCH(SMALL((ПЛАН!$H$6:$H$504="FC-TF(корп)")*COUNTIF(ПЛАН!$D$6:$D$504,"<="&ПЛАН!$D$6:$D$504)+ROW(ПЛАН!$E$6:$E$504)%,COUNTIF(ПЛАН!$H$6:$H$504,"<>FC-TF(корп)")+ROW(E73)),COUNTIF(ПЛАН!$D$6:$D$504,"<="&ПЛАН!$D$6:$D$504)+ROW(ПЛАН!$E$6:$E$504)%,0)),"0") -> 0 | E80: 0 | F80: =IF(ISNA(VLOOKUP(D80,ПЛАН!$E$6:$G$504,2,0)),0,VLOOKUP(D80,ПЛАН!$E$6:$G$504,2,0)) -> 0 | G80: 0 | J80: =IF(ISNA(VLOOKUP(D80,ПЛАН!$E$6:$G$504,3,0)),0,VLOOKUP(D80,ПЛАН!$E$6:$G$504,3,0)) -> 0
C81: =IFERROR(INDEX(ПЛАН!$D$6:$D$504,MATCH(SMALL((ПЛАН!$H$6:$H$504="FC-TF(корп)")*COUNTIF(ПЛАН!$D$6:$D$504,"<="&ПЛАН!$D$6:$D$504),COUNTIF(ПЛАН!$H$6:$H$504,"<>FC-TF(корп)")+ROW(D74)),COUNTIF(ПЛАН!$D$6:$D$504,"<="&ПЛАН!$D$6:$D$504),0)),"0") -> 0 | D81: =IFERROR(INDEX(ПЛАН!$E$6:$E$504,MATCH(SMALL((ПЛАН!$H$6:$H$504="FC-TF(корп)")*COUNTIF(ПЛАН!$D$6:$D$504,"<="&ПЛАН!$D$6:$D$504)+ROW(ПЛАН!$E$6:$E$504)%,COUNTIF(ПЛАН!$H$6:$H$504,"<>FC-TF(корп)")+ROW(E74)),COUNTIF(ПЛАН!$D$6:$D$504,"<="&ПЛАН!$D$6:$D$504)+ROW(ПЛАН!$E$6:$E$504)%,0)),"0") -> 0 | E81: 0 | F81: =IF(ISNA(VLOOKUP(D81,ПЛАН!$E$6:$G$504,2,0)),0,VLOOKUP(D81,ПЛАН!$E$6:$G$504,2,0)) -> 0 | G81: 0 | J81: =IF(ISNA(VLOOKUP(D81,ПЛАН!$E$6:$G$504,3,0)),0,VLOOKUP(D81,ПЛАН!$E$6:$G$504,3,0)) -> 0
C82: =IFERROR(INDEX(ПЛАН!$D$6:$D$504,MATCH(SMALL((ПЛАН!$H$6:$H$504="FC-TF(корп)")*COUNTIF(ПЛАН!$D$6:$D$504,"<="&ПЛАН!$D$6:$D$504),COUNTIF(ПЛАН!$H$6:$H$504,"<>FC-TF(корп)")+ROW(D75)),COUNTIF(ПЛАН!$D$6:$D$504,"<="&ПЛАН!$D$6:$D$504),0)),"0") -> 0 | D82: =IFERROR(INDEX(ПЛАН!$E$6:$E$504,MATCH(SMALL((ПЛАН!$H$6:$H$504="FC-TF(корп)")*COUNTIF(ПЛАН!$D$6:$D$504,"<="&ПЛАН!$D$6:$D$504)+ROW(ПЛАН!$E$6:$E$504)%,COUNTIF(ПЛАН!$H$6:$H$504,"<>FC-TF(корп)")+ROW(E75)),COUNTIF(ПЛАН!$D$6:$D$504,"<="&ПЛАН!$D$6:$D$504)+ROW(ПЛАН!$E$6:$E$504)%,0)),"0") -> 0 | E82: 0 | F82: =IF(ISNA(VLOOKUP(D82,ПЛАН!$E$6:$G$504,2,0)),0,VLOOKUP(D82,ПЛАН!$E$6:$G$504,2,0)) -> 0 | G82: 0 | J82: =IF(ISNA(VLOOKUP(D82,ПЛАН!$E$6:$G$504,3,0)),0,VLOOKUP(D82,ПЛАН!$E$6:$G$504,3,0)) -> 0
C83: =IFERROR(INDEX(ПЛАН!$D$6:$D$504,MATCH(SMALL((ПЛАН!$H$6:$H$504="FC-TF(корп)")*COUNTIF(ПЛАН!$D$6:$D$504,"<="&ПЛАН!$D$6:$D$504),COUNTIF(ПЛАН!$H$6:$H$504,"<>FC-TF(корп)")+ROW(D76)),COUNTIF(ПЛАН!$D$6:$D$504,"<="&ПЛАН!$D$6:$D$504),0)),"0") -> 0 | D83: =IFERROR(INDEX(ПЛАН!$E$6:$E$504,MATCH(SMALL((ПЛАН!$H$6:$H$504="FC-TF(корп)")*COUNTIF(ПЛАН!$D$6:$D$504,"<="&ПЛАН!$D$6:$D$504)+ROW(ПЛАН!$E$6:$E$504)%,COUNTIF(ПЛАН!$H$6:$H$504,"<>FC-TF(корп)")+ROW(E76)),COUNTIF(ПЛАН!$D$6:$D$504,"<="&ПЛАН!$D$6:$D$504)+ROW(ПЛАН!$E$6:$E$504)%,0)),"0") -> 0 | E83: 0 | F83: =IF(ISNA(VLOOKUP(D83,ПЛАН!$E$6:$G$504,2,0)),0,VLOOKUP(D83,ПЛАН!$E$6:$G$504,2,0)) -> 0 | G83: 0 | J83: =IF(ISNA(VLOOKUP(D83,ПЛАН!$E$6:$G$504,3,0)),0,VLOOKUP(D83,ПЛАН!$E$6:$G$504,3,0)) -> 0
C84: =IFERROR(INDEX(ПЛАН!$D$6:$D$504,MATCH(SMALL((ПЛАН!$H$6:$H$504="FC-TF(корп)")*COUNTIF(ПЛАН!$D$6:$D$504,"<="&ПЛАН!$D$6:$D$504),COUNTIF(ПЛАН!$H$6:$H$504,"<>FC-TF(корп)")+ROW(D77)),COUNTIF(ПЛАН!$D$6:$D$504,"<="&ПЛАН!$D$6:$D$504),0)),"0") -> 0 | D84: =IFERROR(INDEX(ПЛАН!$E$6:$E$504,MATCH(SMALL((ПЛАН!$H$6:$H$504="FC-TF(корп)")*COUNTIF(ПЛАН!$D$6:$D$504,"<="&ПЛАН!$D$6:$D$504)+ROW(ПЛАН!$E$6:$E$504)%,COUNTIF(ПЛАН!$H$6:$H$504,"<>FC-TF(корп)")+ROW(E77)),COUNTIF(ПЛАН!$D$6:$D$504,"<="&ПЛАН!$D$6:$D$504)+ROW(ПЛАН!$E$6:$E$504)%,0)),"0") -> 0 | E84: 0 | F84: =IF(ISNA(VLOOKUP(D84,ПЛАН!$E$6:$G$504,2,0)),0,VLOOKUP(D84,ПЛАН!$E$6:$G$504,2,0)) -> 0 | G84: 0 | J84: =IF(ISNA(VLOOKUP(D84,ПЛАН!$E$6:$G$504,3,0)),0,VLOOKUP(D84,ПЛАН!$E$6:$G$504,3,0)) -> 0
C85: =IFERROR(INDEX(ПЛАН!$D$6:$D$504,MATCH(SMALL((ПЛАН!$H$6:$H$504="FC-TF(корп)")*COUNTIF(ПЛАН!$D$6:$D$504,"<="&ПЛАН!$D$6:$D$504),COUNTIF(ПЛАН!$H$6:$H$504,"<>FC-TF(корп)")+ROW(D78)),COUNTIF(ПЛАН!$D$6:$D$504,"<="&ПЛАН!$D$6:$D$504),0)),"0") -> 0 | D85: =IFERROR(INDEX(ПЛАН!$E$6:$E$504,MATCH(SMALL((ПЛАН!$H$6:$H$504="FC-TF(корп)")*COUNTIF(ПЛАН!$D$6:$D$504,"<="&ПЛАН!$D$6:$D$504)+ROW(ПЛАН!$E$6:$E$504)%,COUNTIF(ПЛАН!$H$6:$H$504,"<>FC-TF(корп)")+ROW(E78)),COUNTIF(ПЛАН!$D$6:$D$504,"<="&ПЛАН!$D$6:$D$504)+ROW(ПЛАН!$E$6:$E$504)%,0)),"0") -> 0 | E85: 0 | F85: =IF(ISNA(VLOOKUP(D85,ПЛАН!$E$6:$G$504,2,0)),0,VLOOKUP(D85,ПЛАН!$E$6:$G$504,2,0)) -> 0 | G85: 0 | J85: =IF(ISNA(VLOOKUP(D85,ПЛАН!$E$6:$G$504,3,0)),0,VLOOKUP(D85,ПЛАН!$E$6:$G$504,3,0)) -> 0
C86: =IFERROR(INDEX(ПЛАН!$D$6:$D$504,MATCH(SMALL((ПЛАН!$H$6:$H$504="FC-TF(корп)")*COUNTIF(ПЛАН!$D$6:$D$504,"<="&ПЛАН!$D$6:$D$504),COUNTIF(ПЛАН!$H$6:$H$504,"<>FC-TF(корп)")+ROW(D79)),COUNTIF(ПЛАН!$D$6:$D$504,"<="&ПЛАН!$D$6:$D$504),0)),"0") -> 0 | D86: =IFERROR(INDEX(ПЛАН!$E$6:$E$504,MATCH(SMALL((ПЛАН!$H$6:$H$504="FC-TF(корп)")*COUNTIF(ПЛАН!$D$6:$D$504,"<="&ПЛАН!$D$6:$D$504)+ROW(ПЛАН!$E$6:$E$504)%,COUNTIF(ПЛАН!$H$6:$H$504,"<>FC-TF(корп)")+ROW(E79)),COUNTIF(ПЛАН!$D$6:$D$504,"<="&ПЛАН!$D$6:$D$504)+ROW(ПЛАН!$E$6:$E$504)%,0)),"0") -> 0 | E86: 0 | F86: =IF(ISNA(VLOOKUP(D86,ПЛАН!$E$6:$G$504,2,0)),0,VLOOKUP(D86,ПЛАН!$E$6:$G$504,2,0)) -> 0 | G86: 0 | J86: =IF(ISNA(VLOOKUP(D86,ПЛАН!$E$6:$G$504,3,0)),0,VLOOKUP(D86,ПЛАН!$E$6:$G$504,3,0)) -> 0
C87: =IFERROR(INDEX(ПЛАН!$D$6:$D$504,MATCH(SMALL((ПЛАН!$H$6:$H$504="FC-TF(корп)")*COUNTIF(ПЛАН!$D$6:$D$504,"<="&ПЛАН!$D$6:$D$504),COUNTIF(ПЛАН!$H$6:$H$504,"<>FC-TF(корп)")+ROW(D80)),COUNTIF(ПЛАН!$D$6:$D$504,"<="&ПЛАН!$D$6:$D$504),0)),"0") -> 0 | D87: =IFERROR(INDEX(ПЛАН!$E$6:$E$504,MATCH(SMALL((ПЛАН!$H$6:$H$504="FC-TF(корп)")*COUNTIF(ПЛАН!$D$6:$D$504,"<="&ПЛАН!$D$6:$D$504)+ROW(ПЛАН!$E$6:$E$504)%,COUNTIF(ПЛАН!$H$6:$H$504,"<>FC-TF(корп)")+ROW(E80)),COUNTIF(ПЛАН!$D$6:$D$504,"<="&ПЛАН!$D$6:$D$504)+ROW(ПЛАН!$E$6:$E$504)%,0)),"0") -> 0 | E87: 0 | F87: =IF(ISNA(VLOOKUP(D87,ПЛАН!$E$6:$G$504,2,0)),0,VLOOKUP(D87,ПЛАН!$E$6:$G$504,2,0)) -> 0 | G87: 0 | J87: =IF(ISNA(VLOOKUP(D87,ПЛАН!$E$6:$G$504,3,0)),0,VLOOKUP(D87,ПЛАН!$E$6:$G$504,3,0)) -> 0
C88: =IFERROR(INDEX(ПЛАН!$D$6:$D$504,MATCH(SMALL((ПЛАН!$H$6:$H$504="FC-TF(корп)")*COUNTIF(ПЛАН!$D$6:$D$504,"<="&ПЛАН!$D$6:$D$504),COUNTIF(ПЛАН!$H$6:$H$504,"<>FC-TF(корп)")+ROW(D81)),COUNTIF(ПЛАН!$D$6:$D$504,"<="&ПЛАН!$D$6:$D$504),0)),"0") -> 0 | D88: =IFERROR(INDEX(ПЛАН!$E$6:$E$504,MATCH(SMALL((ПЛАН!$H$6:$H$504="FC-TF(корп)")*COUNTIF(ПЛАН!$D$6:$D$504,"<="&ПЛАН!$D$6:$D$504)+ROW(ПЛАН!$E$6:$E$504)%,COUNTIF(ПЛАН!$H$6:$H$504,"<>FC-TF(корп)")+ROW(E81)),COUNTIF(ПЛАН!$D$6:$D$504,"<="&ПЛАН!$D$6:$D$504)+ROW(ПЛАН!$E$6:$E$504)%,0)),"0") -> 0 | E88: 0 | F88: =IF(ISNA(VLOOKUP(D88,ПЛАН!$E$6:$G$504,2,0)),0,VLOOKUP(D88,ПЛАН!$E$6:$G$504,2,0)) -> 0 | G88: 0 | J88: =IF(ISNA(VLOOKUP(D88,ПЛАН!$E$6:$G$504,3,0)),0,VLOOKUP(D88,ПЛАН!$E$6:$G$504,3,0)) -> 0
C89: =IFERROR(INDEX(ПЛАН!$D$6:$D$504,MATCH(SMALL((ПЛАН!$H$6:$H$504="FC-TF(корп)")*COUNTIF(ПЛАН!$D$6:$D$504,"<="&ПЛАН!$D$6:$D$504),COUNTIF(ПЛАН!$H$6:$H$504,"<>FC-TF(корп)")+ROW(D82)),COUNTIF(ПЛАН!$D$6:$D$504,"<="&ПЛАН!$D$6:$D$504),0)),"0") -> 0 | D89: =IFERROR(INDEX(ПЛАН!$E$6:$E$504,MATCH(SMALL((ПЛАН!$H$6:$H$504="FC-TF(корп)")*COUNTIF(ПЛАН!$D$6:$D$504,"<="&ПЛАН!$D$6:$D$504)+ROW(ПЛАН!$E$6:$E$504)%,COUNTIF(ПЛАН!$H$6:$H$504,"<>FC-TF(корп)")+ROW(E82)),COUNTIF(ПЛАН!$D$6:$D$504,"<="&ПЛАН!$D$6:$D$504)+ROW(ПЛАН!$E$6:$E$504)%,0)),"0") -> 0 | E89: 0 | F89: =IF(ISNA(VLOOKUP(D89,ПЛАН!$E$6:$G$504,2,0)),0,VLOOKUP(D89,ПЛАН!$E$6:$G$504,2,0)) -> 0 | G89: 0 | J89: =IF(ISNA(VLOOKUP(D89,ПЛАН!$E$6:$G$504,3,0)),0,VLOOKUP(D89,ПЛАН!$E$6:$G$504,3,0)) -> 0
C90: =IFERROR(INDEX(ПЛАН!$D$6:$D$504,MATCH(SMALL((ПЛАН!$H$6:$H$504="FC-TF(корп)")*COUNTIF(ПЛАН!$D$6:$D$504,"<="&ПЛАН!$D$6:$D$504),COUNTIF(ПЛАН!$H$6:$H$504,"<>FC-TF(корп)")+ROW(D83)),COUNTIF(ПЛАН!$D$6:$D$504,"<="&ПЛАН!$D$6:$D$504),0)),"0") -> 0 | D90: =IFERROR(INDEX(ПЛАН!$E$6:$E$504,MATCH(SMALL((ПЛАН!$H$6:$H$504="FC-TF(корп)")*COUNTIF(ПЛАН!$D$6:$D$504,"<="&ПЛАН!$D$6:$D$504)+ROW(ПЛАН!$E$6:$E$504)%,COUNTIF(ПЛАН!$H$6:$H$504,"<>FC-TF(корп)")+ROW(E83)),COUNTIF(ПЛАН!$D$6:$D$504,"<="&ПЛАН!$D$6:$D$504)+ROW(ПЛАН!$E$6:$E$504)%,0)),"0") -> 0 | E90: 0 | F90: =IF(ISNA(VLOOKUP(D90,ПЛАН!$E$6:$G$504,2,0)),0,VLOOKUP(D90,ПЛАН!$E$6:$G$504,2,0)) -> 0 | G90: 0 | J90: =IF(ISNA(VLOOKUP(D90,ПЛАН!$E$6:$G$504,3,0)),0,VLOOKUP(D90,ПЛАН!$E$6:$G$504,3,0)) -> 0
C91: =IFERROR(INDEX(ПЛАН!$D$6:$D$504,MATCH(SMALL((ПЛАН!$H$6:$H$504="FC-TF(корп)")*COUNTIF(ПЛАН!$D$6:$D$504,"<="&ПЛАН!$D$6:$D$504),COUNTIF(ПЛАН!$H$6:$H$504,"<>FC-TF(корп)")+ROW(D84)),COUNTIF(ПЛАН!$D$6:$D$504,"<="&ПЛАН!$D$6:$D$504),0)),"0") -> 0 | D91: =IFERROR(INDEX(ПЛАН!$E$6:$E$504,MATCH(SMALL((ПЛАН!$H$6:$H$504="FC-TF(корп)")*COUNTIF(ПЛАН!$D$6:$D$504,"<="&ПЛАН!$D$6:$D$504)+ROW(ПЛАН!$E$6:$E$504)%,COUNTIF(ПЛАН!$H$6:$H$504,"<>FC-TF(корп)")+ROW(E84)),COUNTIF(ПЛАН!$D$6:$D$504,"<="&ПЛАН!$D$6:$D$504)+ROW(ПЛАН!$E$6:$E$504)%,0)),"0") -> 0 | E91: 0 | F91: =IF(ISNA(VLOOKUP(D91,ПЛАН!$E$6:$G$504,2,0)),0,VLOOKUP(D91,ПЛАН!$E$6:$G$504,2,0)) -> 0 | G91: 0 | J91: =IF(ISNA(VLOOKUP(D91,ПЛАН!$E$6:$G$504,3,0)),0,VLOOKUP(D91,ПЛАН!$E$6:$G$504,3,0)) -> 0
C92: =IFERROR(INDEX(ПЛАН!$D$6:$D$504,MATCH(SMALL((ПЛАН!$H$6:$H$504="FC-TF(корп)")*COUNTIF(ПЛАН!$D$6:$D$504,"<="&ПЛАН!$D$6:$D$504),COUNTIF(ПЛАН!$H$6:$H$504,"<>FC-TF(корп)")+ROW(D85)),COUNTIF(ПЛАН!$D$6:$D$504,"<="&ПЛАН!$D$6:$D$504),0)),"0") -> 0 | D92: =IFERROR(INDEX(ПЛАН!$E$6:$E$504,MATCH(SMALL((ПЛАН!$H$6:$H$504="FC-TF(корп)")*COUNTIF(ПЛАН!$D$6:$D$504,"<="&ПЛАН!$D$6:$D$504)+ROW(ПЛАН!$E$6:$E$504)%,COUNTIF(ПЛАН!$H$6:$H$504,"<>FC-TF(корп)")+ROW(E85)),COUNTIF(ПЛАН!$D$6:$D$504,"<="&ПЛАН!$D$6:$D$504)+ROW(ПЛАН!$E$6:$E$504)%,0)),"0") -> 0 | E92: 0 | F92: =IF(ISNA(VLOOKUP(D92,ПЛАН!$E$6:$G$504,2,0)),0,VLOOKUP(D92,ПЛАН!$E$6:$G$504,2,0)) -> 0 | G92: 0 | J92: =IF(ISNA(VLOOKUP(D92,ПЛАН!$E$6:$G$504,3,0)),0,VLOOKUP(D92,ПЛАН!$E$6:$G$504,3,0)) -> 0
C93: =IFERROR(INDEX(ПЛАН!$D$6:$D$504,MATCH(SMALL((ПЛАН!$H$6:$H$504="FC-TF(корп)")*COUNTIF(ПЛАН!$D$6:$D$504,"<="&ПЛАН!$D$6:$D$504),COUNTIF(ПЛАН!$H$6:$H$504,"<>FC-TF(корп)")+ROW(D86)),COUNTIF(ПЛАН!$D$6:$D$504,"<="&ПЛАН!$D$6:$D$504),0)),"0") -> 0 | D93: =IFERROR(INDEX(ПЛАН!$E$6:$E$504,MATCH(SMALL((ПЛАН!$H$6:$H$504="FC-TF(корп)")*COUNTIF(ПЛАН!$D$6:$D$504,"<="&ПЛАН!$D$6:$D$504)+ROW(ПЛАН!$E$6:$E$504)%,COUNTIF(ПЛАН!$H$6:$H$504,"<>FC-TF(корп)")+ROW(E86)),COUNTIF(ПЛАН!$D$6:$D$504,"<="&ПЛАН!$D$6:$D$504)+ROW(ПЛАН!$E$6:$E$504)%,0)),"0") -> 0 | E93: 0 | F93: =IF(ISNA(VLOOKUP(D93,ПЛАН!$E$6:$G$504,2,0)),0,VLOOKUP(D93,ПЛАН!$E$6:$G$504,2,0)) -> 0 | G93: 0 | J93: =IF(ISNA(VLOOKUP(D93,ПЛАН!$E$6:$G$504,3,0)),0,VLOOKUP(D93,ПЛАН!$E$6:$G$504,3,0)) -> 0
C94: =IFERROR(INDEX(ПЛАН!$D$6:$D$504,MATCH(SMALL((ПЛАН!$H$6:$H$504="FC-TF(корп)")*COUNTIF(ПЛАН!$D$6:$D$504,"<="&ПЛАН!$D$6:$D$504),COUNTIF(ПЛАН!$H$6:$H$504,"<>FC-TF(корп)")+ROW(D87)),COUNTIF(ПЛАН!$D$6:$D$504,"<="&ПЛАН!$D$6:$D$504),0)),"0") -> 0 | D94: =IFERROR(INDEX(ПЛАН!$E$6:$E$504,MATCH(SMALL((ПЛАН!$H$6:$H$504="FC-TF(корп)")*COUNTIF(ПЛАН!$D$6:$D$504,"<="&ПЛАН!$D$6:$D$504)+ROW(ПЛАН!$E$6:$E$504)%,COUNTIF(ПЛАН!$H$6:$H$504,"<>FC-TF(корп)")+ROW(E87)),COUNTIF(ПЛАН!$D$6:$D$504,"<="&ПЛАН!$D$6:$D$504)+ROW(ПЛАН!$E$6:$E$504)%,0)),"0") -> 0 | E94: 0 | F94: =IF(ISNA(VLOOKUP(D94,ПЛАН!$E$6:$G$504,2,0)),0,VLOOKUP(D94,ПЛАН!$E$6:$G$504,2,0)) -> 0 | G94: 0 | J94: =IF(ISNA(VLOOKUP(D94,ПЛАН!$E$6:$G$504,3,0)),0,VLOOKUP(D94,ПЛАН!$E$6:$G$504,3,0)) -> 0
G96: =SUM(G8:G94) -> 531.1612 | H96: =G96/(I6*1) -> 1.005987121

Sheet FC-TF(шток)
C2: Трудоемкость изготовления деталей по действующим нормам цех №3 станки FC-TF 10 | J2: На октябрь 2021 г.
A3: Оборудование (группа) | C3: Деталь | E3: Трудоемк. на 100 дет. в нормо-час. | F3: Количество деталей на программу (в шт.) | G3: Трудоемк. на программу в нормо-час. | H3: Загрузка оборудован. по действую-щим нормам в нормо-час. | I3: Фонд времени работы одного станка | J3: Тшт, мин. | K3: Количество деталей в смену (в шт.)
A4: Инв. номер | B4: Наименование | C4: Наименование | D4: Обозначение
A5: 1 | B5: 2 | C5: 3 | D5: 4 | E5: 5 | F5: 6 | G5: 7 | H5: 8 | I5: 9 | J5: 10 | K5: 11
A6: 40201 | B6: FC-TF 10 | H6: В 3 смены | I6: =176*3 -> 528
C8: =IFERROR(INDEX(ПЛАН!$D$6:$D$504,MATCH(SMALL((ПЛАН!$H$6:$H$504="FC-TF(шток)")*COUNTIF(ПЛАН!$D$6:$D$504,"<="&ПЛАН!$D$6:$D$504),COUNTIF(ПЛАН!$H$6:$H$504,"<>FC-TF(шток)")+ROW(D1)),COUNTIF(ПЛАН!$D$6:$D$504,"<="&ПЛАН!$D$6:$D$504),0)),"0") -> Шток | D8: =IFERROR(INDEX(ПЛАН!$E$6:$E$504,MATCH(SMALL((ПЛАН!$H$6:$H$504="FC-TF(шток)")*COUNTIF(ПЛАН!$D$6:$D$504,"<="&ПЛАН!$D$6:$D$504)+ROW(ПЛАН!$E$6:$E$504)%,COUNTIF(ПЛАН!$H$6:$H$504,"<>FC-TF(шток)")+ROW(E1)),COUNTIF(ПЛАН!$D$6:$D$504,"<="&ПЛАН!$D$6:$D$504)+ROW(ПЛАН!$E$6:$E$504)%,0)),"0") -> 103Т-2905482 | E8: =J8/60*100 -> 7.956666667 | F8: =IF(ISNA(VLOOKUP(D8,ПЛАН!$E$6:$G$504,2,0)),0,VLOOKUP(D8,ПЛАН!$E$6:$G$504,2,0)) -> 800 | G8: =E8*F8/100 -> 63.65333333 | J8: =IF(ISNA(VLOOKUP(D8,ПЛАН!$E$6:$G$504,3,0)),0,VLOOKUP(D8,ПЛАН!$E$6:$G$504,3,0)) -> 4.774 | K8: =8*60/J8 -> 100.5446167
C9: =IFERROR(INDEX(ПЛАН!$D$6:$D$504,MATCH(SMALL((ПЛАН!$H$6:$H$504="FC-TF(шток)")*COUNTIF(ПЛАН!$D$6:$D$504,"<="&ПЛАН!$D$6:$D$504),COUNTIF(ПЛАН!$H$6:$H$504,"<>FC-TF(шток)")+ROW(D2)),COUNTIF(ПЛАН!$D$6:$D$504,"<="&ПЛАН!$D$6:$D$504),0)),"0") -> Шток | D9: =IFERROR(INDEX(ПЛАН!$E$6:$E$504,MATCH(SMALL((ПЛАН!$H$6:$H$504="FC-TF(шток)")*COUNTIF(ПЛАН!$D$6:$D$504,"<="&ПЛАН!$D$6:$D$504)+ROW(ПЛАН!$E$6:$E$504)%,COUNTIF(ПЛАН!$H$6:$H$504,"<>FC-TF(шток)")+ROW(E2)),COUNTIF(ПЛАН!$D$6:$D$504,"<="&ПЛАН!$D$6:$D$504)+ROW(ПЛАН!$E$6:$E$504)%,0)),"0") -> 205-2905482 | E9: =J9/60*100 -> 7.956666667 | F9: =IF(ISNA(VLOOKUP(D9,ПЛАН!$E$6:$G$504,2,0)),0,VLOOKUP(D9,ПЛАН!$E$6:$G$504,2,0)) -> 0 | G9: =E9*F9/100 -> 0 | J9: =IF(ISNA(VLOOKUP(D9,ПЛАН!$E$6:$G$504,3,0)),0,VLOOKUP(D9,ПЛАН!$E$6:$G$504,3,0)) -> 4.774 | K9: =8*60/J9 -> 100.5446167
C10: =IFERROR(INDEX(ПЛАН!$D$6:$D$504,MATCH(SMALL((ПЛАН!$H$6:$H$504="FC-TF(шток)")*COUNTIF(ПЛАН!$D$6:$D$504,"<="&ПЛАН!$D$6:$D$504),COUNTIF(ПЛАН!$H$6:$H$504,"<>FC-TF(шток)")+ROW(D3)),COUNTIF(ПЛАН!$D$6:$D$504,"<="&ПЛАН!$D$6:$D$504),0)),"0") -> Шток | D10: =IFERROR(INDEX(ПЛАН!$E$6:$E$504,MATCH(SMALL((ПЛАН!$H$6:$H$504="FC-TF(шток)")*COUNTIF(ПЛАН!$D$6:$D$504,"<="&ПЛАН!$D$6:$D$504)+ROW(ПЛАН!$E$6:$E$504)%,COUNTIF(ПЛАН!$H$6:$H$504,"<>FC-TF(шток)")+ROW(E3)),COUNTIF(ПЛАН!$D$6:$D$504,"<="&ПЛАН!$D$6:$D$504)+ROW(ПЛАН!$E$6:$E$504)%,0)),"0") -> 26Т.081.02.482 | E10: 11.10666667 | F10: =IF(ISNA(VLOOKUP(D10,ПЛАН!$E$6:$G$504,2,0)),0,VLOOKUP(D10,ПЛАН!$E$6:$G$504,2,0)) -> 0 | G10: 0 | J10: =IF(ISNA(VLOOKUP(D10,ПЛАН!$E$6:$G$504,3,0)),0,VLOOKUP(D10,ПЛАН!$E$6:$G$504,3,0)) -> 6.664 | K10: 72.02881152
C11: =IFERROR(INDEX(ПЛАН!$D$6:$D$504,MATCH(SMALL((ПЛАН!$H$6:$H$504="FC-TF(шток)")*COUNTIF(ПЛАН!$D$6:$D$504,"<="&ПЛАН!$D$6:$D$504),COUNTIF(ПЛАН!$H$6:$H$504,"<>FC-TF(шток)")+ROW(D4)),COUNTIF(ПЛАН!$D$6:$D$504,"<="&ПЛАН!$D$6:$D$504),0)),"0") -> Шток | D11: =IFERROR(INDEX(ПЛАН!$E$6:$E$504,MATCH(SMALL((ПЛАН!$H$6:$H$504="FC-TF(шток)")*COUNTIF(ПЛАН!$D$6:$D$504,"<="&ПЛАН!$D$6:$D$504)+ROW(ПЛАН!$E$6:$E$504)%,COUNTIF(ПЛАН!$H$6:$H$504,"<>FC-TF(шток)")+ROW(E4)),COUNTIF(ПЛАН!$D$6:$D$504,"<="&ПЛАН!$D$6:$D$504)+ROW(ПЛАН!$E$6:$E$504)%,0)),"0") -> УЛИГ.40.452995.356-027 | E11: 4.87 | F11: =IF(ISNA(VLOOKUP(D11,ПЛАН!$E$6:$G$504,2,0)),0,VLOOKUP(D11,ПЛАН!$E$6:$G$504,2,0)) -> 1076 | G11: 52.4012 | J11: =IF(ISNA(VLOOKUP(D11,ПЛАН!$E$6:$G$504,3,0)),0,VLOOKUP(D11,ПЛАН!$E$6:$G$504,3,0)) -> 2.922 | K11: 164.2710472
C12: =IFERROR(INDEX(ПЛАН!$D$6:$D$504,MATCH(SMALL((ПЛАН!$H$6:$H$504="FC-TF(шток)")*COUNTIF(ПЛАН!$D$6:$D$504,"<="&ПЛАН!$D$6:$D$504),COUNTIF(ПЛАН!$H$6:$H$504,"<>FC-TF(шток)")+ROW(D5)),COUNTIF(ПЛАН!$D$6:$D$504,"<="&ПЛАН!$D$6:$D$504),0)),"0") -> Шток | D12: =IFERROR(INDEX(ПЛАН!$E$6:$E$504,MATCH(SMALL((ПЛАН!$H$6:$H$504="FC-TF(шток)")*COUNTIF(ПЛАН!$D$6:$D$504,"<="&ПЛАН!$D$6:$D$504)+ROW(ПЛАН!$E$6:$E$504)%,COUNTIF(ПЛАН!$H$6:$H$504,"<>FC-TF(шток)")+ROW(E5)),COUNTIF(ПЛАН!$D$6:$D$504,"<="&ПЛАН!$D$6:$D$504)+ROW(ПЛАН!$E$6:$E$504)%,0)),"0") -> 40.УЛИГ.452995.356-021 | E12: 4.87 | F12: =IF(ISNA(VLOOKUP(D12,ПЛАН!$E$6:$G$504,2,0)),0,VLOOKUP(D12,ПЛАН!$E$6:$G$504,2,0)) -> 350 | G12: 17.045 | J12: =IF(ISNA(VLOOKUP(D12,ПЛАН!$E$6:$G$504,3,0)),0,VLOOKUP(D12,ПЛАН!$E$6:$G$504,3,0)) -> 2.922 | K12: 164.2710472
C13: =IFERROR(INDEX(ПЛАН!$D$6:$D$504,MATCH(SMALL((ПЛАН!$H$6:$H$504="FC-TF(шток)")*COUNTIF(ПЛАН!$D$6:$D$504,"<="&ПЛАН!$D$6:$D$504),COUNTIF(ПЛАН!$H$6:$H$504,"<>FC-TF(шток)")+ROW(D6)),COUNTIF(ПЛАН!$D$6:$D$504,"<="&ПЛАН!$D$6:$D$504),0)),"0") -> Шток | D13: =IFERROR(INDEX(ПЛАН!$E$6:$E$504,MATCH(SMALL((ПЛАН!$H$6:$H$504="FC-TF(шток)")*COUNTIF(ПЛАН!$D$6:$D$504,"<="&ПЛАН!$D$6:$D$504)+ROW(ПЛАН!$E$6:$E$504)%,COUNTIF(ПЛАН!$H$6:$H$504,"<>FC-TF(шток)")+ROW(E6)),COUNTIF(ПЛАН!$D$6:$D$504,"<="&ПЛАН!$D$6:$D$504)+ROW(ПЛАН!$E$6:$E$504)%,0)),"0") -> 101-2905482-20 | E13: 8.133333333 | F13: =IF(ISNA(VLOOKUP(D13,ПЛАН!$E$6:$G$504,2,0)),0,VLOOKUP(D13,ПЛАН!$E$6:$G$504,2,0)) -> 150 | G13: 12.2 | J13: =IF(ISNA(VLOOKUP(D13,ПЛАН!$E$6:$G$504,3,0)),0,VLOOKUP(D13,ПЛАН!$E$6:$G$504,3,0)) -> 4.88 | K13: 98.36065574
C14: =IFERROR(INDEX(ПЛАН!$D$6:$D$504,MATCH(SMALL((ПЛАН!$H$6:$H$504="FC-TF(шток)")*COUNTIF(ПЛАН!$D$6:$D$504,"<="&ПЛАН!$D$6:$D$504),COUNTIF(ПЛАН!$H$6:$H$504,"<>FC-TF(шток)")+ROW(D7)),COUNTIF(ПЛАН!$D$6:$D$504,"<="&ПЛАН!$D$6:$D$504),0)),"0") -> Шток | D14: =IFERROR(INDEX(ПЛАН!$E$6:$E$504,MATCH(SMALL((ПЛАН!$H$6:$H$504="FC-TF(шток)")*COUNTIF(ПЛАН!$D$6:$D$504,"<="&ПЛАН!$D$6:$D$504)+ROW(ПЛАН!$E$6:$E$504)%,COUNTIF(ПЛАН!$H$6:$H$504,"<>FC-TF(шток)")+ROW(E7)),COUNTIF(ПЛАН!$D$6:$D$504,"<="&ПЛАН!$D$6:$D$504)+ROW(ПЛАН!$E$6:$E$504)%,0)),"0") -> ТЕ1-10А-2905356-10 | E14: 5.63 | F14: =IF(ISNA(VLOOKUP(D14,ПЛАН!$E$6:$G$504,2,0)),0,VLOOKUP(D14,ПЛАН!$E$6:$G$504,2,0)) -> 300 | G14: 16.89 | J14: =IF(ISNA(VLOOKUP(D14,ПЛАН!$E$6:$G$504,3,0)),0,VLOOKUP(D14,ПЛАН!$E$6:$G$504,3,0)) -> 3.378 | K14: 142.0959147
C15: =IFERROR(INDEX(ПЛАН!$D$6:$D$504,MATCH(SMALL((ПЛАН!$H$6:$H$504="FC-TF(шток)")*COUNTIF(ПЛАН!$D$6:$D$504,"<="&ПЛАН!$D$6:$D$504),COUNTIF(ПЛАН!$H$6:$H$504,"<>FC-TF(шток)")+ROW(D8)),COUNTIF(ПЛАН!$D$6:$D$504,"<="&ПЛАН!$D$6:$D$504),0)),"0") -> Шток | D15: =IFERROR(INDEX(ПЛАН!$E$6:$E$504,MATCH(SMALL((ПЛАН!$H$6:$H$504="FC-TF(шток)")*COUNTIF(ПЛАН!$D$6:$D$504,"<="&ПЛАН!$D$6:$D$504)+ROW(ПЛАН!$E$6:$E$504)%,COUNTIF(ПЛАН!$H$6:$H$504,"<>FC-TF(шток)")+ROW(E8)),COUNTIF(ПЛАН!$D$6:$D$504,"<="&ПЛАН!$D$6:$D$504)+ROW(ПЛАН!$E$6:$E$504)%,0)),"0") -> 54327-2915356-71 | E15: 4.533333333 | F15: =IF(ISNA(VLOOKUP(D15,ПЛАН!$E$6:$G$504,2,0)),0,VLOOKUP(D15,ПЛАН!$E$6:$G$504,2,0)) -> 738 | G15: 33.456 | J15: =IF(ISNA(VLOOKUP(D15,ПЛАН!$E$6:$G$504,3,0)),0,VLOOKUP(D15,ПЛАН!$E$6:$G$504,3,0)) -> 2.72 | K15: 176.4705882
C16: =IFERROR(INDEX(ПЛАН!$D$6:$D$504,MATCH(SMALL((ПЛАН!$H$6:$H$504="FC-TF(шток)")*COUNTIF(ПЛАН!$D$6:$D$504,"<="&ПЛАН!$D$6:$D$504),COUNTIF(ПЛАН!$H$6:$H$504,"<>FC-TF(шток)")+ROW(D9)),COUNTIF(ПЛАН!$D$6:$D$504,"<="&ПЛАН!$D$6:$D$504),0)),"0") -> Шток | D16: =IFERROR(INDEX(ПЛАН!$E$6:$E$504,MATCH(SMALL((ПЛАН!$H$6:$H$504="FC-TF(шток)")*COUNTIF(ПЛАН!$D$6:$D$504,"<="&ПЛАН!$D$6:$D$504)+ROW(ПЛАН!$E$6:$E$504)%,COUNTIF(ПЛАН!$H$6:$H$504,"<>FC-TF(шток)")+ROW(E9)),COUNTIF(ПЛАН!$D$6:$D$504,"<="&ПЛАН!$D$6:$D$504)+ROW(ПЛАН!$E$6:$E$504)%,0)),"0") -> 54327-2915356-81 | E16: 4.533333333 | F16: =IF(ISNA(VLOOKUP(D16,ПЛАН!$E$6:$G$504,2,0)),0,VLOOKUP(D16,ПЛАН!$E$6:$G$504,2,0)) -> 50 | G16: 2.266666667 | J16: =IF(ISNA(VLOOKUP(D16,ПЛАН!$E$6:$G$504,3,0)),0,VLOOKUP(D16,ПЛАН!$E$6:$G$504,3,0)) -> 2.72 | K16: 176.4705882
C17: =IFERROR(INDEX(ПЛАН!$D$6:$D$504,MATCH(SMALL((ПЛАН!$H$6:$H$504="FC-TF(шток)")*COUNTIF(ПЛАН!$D$6:$D$504,"<="&ПЛАН!$D$6:$D$504),COUNTIF(ПЛАН!$H$6:$H$504,"<>FC-TF(шток)")+ROW(D10)),COUNTIF(ПЛАН!$D$6:$D$504,"<="&ПЛАН!$D$6:$D$504),0)),"0") -> Шток | D17: =IFERROR(INDEX(ПЛАН!$E$6:$E$504,MATCH(SMALL((ПЛАН!$H$6:$H$504="FC-TF(шток)")*COUNTIF(ПЛАН!$D$6:$D$504,"<="&ПЛАН!$D$6:$D$504)+ROW(ПЛАН!$E$6:$E$504)%,COUNTIF(ПЛАН!$H$6:$H$504,"<>FC-TF(шток)")+ROW(E10)),COUNTIF(ПЛАН!$D$6:$D$504,"<="&ПЛАН!$D$6:$D$504)+ROW(ПЛАН!$E$6:$E$504)%,0)),"0") -> 54327-2915356-91 | E17: 4.533333333 | F17: =IF(ISNA(VLOOKUP(D17,ПЛАН!$E$6:$G$504,2,0)),0,VLOOKUP(D17,ПЛАН!$E$6:$G$504,2,0)) -> 460 | G17: 20.85333333 | J17: =IF(ISNA(VLOOKUP(D17,ПЛАН!$E$6:$G$504,3,0)),0,VLOOKUP(D17,ПЛАН!$E$6:$G$504,3,0)) -> 2.72 | K17: 176.4705882
C18: =IFERROR(INDEX(ПЛАН!$D$6:$D$504,MATCH(SMALL((ПЛАН!$H$6:$H$504="FC-TF(шток)")*COUNTIF(ПЛАН!$D$6:$D$504,"<="&ПЛАН!$D$6:$D$504),COUNTIF(ПЛАН!$H$6:$H$504,"<>FC-TF(шток)")+ROW(D11)),COUNTIF(ПЛАН!$D$6:$D$504,"<="&ПЛАН!$D$6:$D$504),0)),"0") -> Шток | D18: =IFERROR(INDEX(ПЛАН!$E$6:$E$504,MATCH(SMALL((ПЛАН!$H$6:$H$504="FC-TF(шток)")*COUNTIF(ПЛАН!$D$6:$D$504,"<="&ПЛАН!$D$6:$D$504)+ROW(ПЛАН!$E$6:$E$504)%,COUNTIF(ПЛАН!$H$6:$H$504,"<>FC-TF(шток)")+ROW(E11)),COUNTIF(ПЛАН!$D$6:$D$504,"<="&ПЛАН!$D$6:$D$504)+ROW(ПЛАН!$E$6:$E$504)%,0)),"0") -> 54327-2915356-60 | E18: 4.533333333 | F18: =IF(ISNA(VLOOKUP(D18,ПЛАН!$E$6:$G$504,2,0)),0,VLOOKUP(D18,ПЛАН!$E$6:$G$504,2,0)) -> 488 | G18: 22.12266667 | J18: =IF(ISNA(VLOOKUP(D18,ПЛАН!$E$6:$G$504,3,0)),0,VLOOKUP(D18,ПЛАН!$E$6:$G$504,3,0)) -> 2.72 | K18: 176.4705882
C19: =IFERROR(INDEX(ПЛАН!$D$6:$D$504,MATCH(SMALL((ПЛАН!$H$6:$H$504="FC-TF(шток)")*COUNTIF(ПЛАН!$D$6:$D$504,"<="&ПЛАН!$D$6:$D$504),COUNTIF(ПЛАН!$H$6:$H$504,"<>FC-TF(шток)")+ROW(D12)),COUNTIF(ПЛАН!$D$6:$D$504,"<="&ПЛАН!$D$6:$D$504),0)),"0") -> Шток | D19: =IFERROR(INDEX(ПЛАН!$E$6:$E$504,MATCH(SMALL((ПЛАН!$H$6:$H$504="FC-TF(шток)")*COUNTIF(ПЛАН!$D$6:$D$504,"<="&ПЛАН!$D$6:$D$504)+ROW(ПЛАН!$E$6:$E$504)%,COUNTIF(ПЛАН!$H$6:$H$504,"<>FC-TF(шток)")+ROW(E12)),COUNTIF(ПЛАН!$D$6:$D$504,"<="&ПЛАН!$D$6:$D$504)+ROW(ПЛАН!$E$6:$E$504)%,0)),"0") -> А1-255/475.356 | E19: 3.75 | F19: =IF(ISNA(VLOOKUP(D19,ПЛАН!$E$6:$G$504,2,0)),0,VLOOKUP(D19,ПЛАН!$E$6:$G$504,2,0)) -> 768 | G19: 28.8 | J19: =IF(ISNA(VLOOKUP(D19,ПЛАН!$E$6:$G$504,3,0)),0,VLOOKUP(D19,ПЛАН!$E$6:$G$504,3,0)) -> 2.25 | K19: 213.3333333
C20: =IFERROR(INDEX(ПЛАН!$D$6:$D$504,MATCH(SMALL((ПЛАН!$H$6:$H$504="FC-TF(шток)")*COUNTIF(ПЛАН!$D$6:$D$504,"<="&ПЛАН!$D$6:$D$504),COUNTIF(ПЛАН!$H$6:$H$504,"<>FC-TF(шток)")+ROW(D13)),COUNTIF(ПЛАН!$D$6:$D$504,"<="&ПЛАН!$D$6:$D$504),0)),"0") -> Шток | D20: =IFERROR(INDEX(ПЛАН!$E$6:$E$504,MATCH(SMALL((ПЛАН!$H$6:$H$504="FC-TF(шток)")*COUNTIF(ПЛАН!$D$6:$D$504,"<="&ПЛАН!$D$6:$D$504)+ROW(ПЛАН!$E$6:$E$504)%,COUNTIF(ПЛАН!$H$6:$H$504,"<>FC-TF(шток)")+ROW(E13)),COUNTIF(ПЛАН!$D$6:$D$504,"<="&ПЛАН!$D$6:$D$504)+ROW(ПЛАН!$E$6:$E$504)%,0)),"0") -> A1-350/525.356-10 | E20: 4.705 | F20: =IF(ISNA(VLOOKUP(D20,ПЛАН!$E$6:$G$504,2,0)),0,VLOOKUP(D20,ПЛАН!$E$6:$G$504,2,0)) -> 242 | G20: 11.3861 | J20: =IF(ISNA(VLOOKUP(D20,ПЛАН!$E$6:$G$504,3,0)),0,VLOOKUP(D20,ПЛАН!$E$6:$G$504,3,0)) -> 2.823 | K20: 170.031881
C21: =IFERROR(INDEX(ПЛАН!$D$6:$D$504,MATCH(SMALL((ПЛАН!$H$6:$H$504="FC-TF(шток)")*COUNTIF(ПЛАН!$D$6:$D$504,"<="&ПЛАН!$D$6:$D$504),COUNTIF(ПЛАН!$H$6:$H$504,"<>FC-TF(шток)")+ROW(D14)),COUNTIF(ПЛАН!$D$6:$D$504,"<="&ПЛАН!$D$6:$D$504),0)),"0") -> Шток | D21: =IFERROR(INDEX(ПЛАН!$E$6:$E$504,MATCH(SMALL((ПЛАН!$H$6:$H$504="FC-TF(шток)")*COUNTIF(ПЛАН!$D$6:$D$504,"<="&ПЛАН!$D$6:$D$504)+ROW(ПЛАН!$E$6:$E$504)%,COUNTIF(ПЛАН!$H$6:$H$504,"<>FC-TF(шток)")+ROW(E14)),COUNTIF(ПЛАН!$D$6:$D$504,"<="&ПЛАН!$D$6:$D$504)+ROW(ПЛАН!$E$6:$E$504)%,0)),"0") -> A1-325/500.356-10 | E21: 4.705 | F21: =IF(ISNA(VLOOKUP(D21,ПЛАН!$E$6:$G$504,2,0)),0,VLOOKUP(D21,ПЛАН!$E$6:$G$504,2,0)) -> 2808 | G21: 132.1164 | J21: =IF(ISNA(VLOOKUP(D21,ПЛАН!$E$6:$G$504,3,0)),0,VLOOKUP(D21,ПЛАН!$E$6:$G$504,3,0)) -> 2.823 | K21: 170.031881
C22: =IFERROR(INDEX(ПЛАН!$D$6:$D$504,MATCH(SMALL((ПЛАН!$H$6:$H$504="FC-TF(шток)")*COUNTIF(ПЛАН!$D$6:$D$504,"<="&ПЛАН!$D$6:$D$504),COUNTIF(ПЛАН!$H$6:$H$504,"<>FC-TF(шток)")+ROW(D15)),COUNTIF(ПЛАН!$D$6:$D$504,"<="&ПЛАН!$D$6:$D$504),0)),"0") -> Шток | D22: =IFERROR(INDEX(ПЛАН!$E$6:$E$504,MATCH(SMALL((ПЛАН!$H$6:$H$504="FC-TF(шток)")*COUNTIF(ПЛАН!$D$6:$D$504,"<="&ПЛАН!$D$6:$D$504)+ROW(ПЛАН!$E$6:$E$504)%,COUNTIF(ПЛАН!$H$6:$H$504,"<>FC-TF(шток)")+ROW(E15)),COUNTIF(ПЛАН!$D$6:$D$504,"<="&ПЛАН!$D$6:$D$504)+ROW(ПЛАН!$E$6:$E$504)%,0)),"0") -> А1-300/475.356-10 | E22: 4.483333333 | F22: =IF(ISNA(VLOOKUP(D22,ПЛАН!$E$6:$G$504,2,0)),0,VLOOKUP(D22,ПЛАН!$E$6:$G$504,2,0)) -> 3722 | G22: 166.8696667 | J22: =IF(ISNA(VLOOKUP(D22,ПЛАН!$E$6:$G$504,3,0)),0,VLOOKUP(D22,ПЛАН!$E$6:$G$504,3,0)) -> 2.69 | K22: 178.4386617
C23: =IFERROR(INDEX(ПЛАН!$D$6:$D$504,MATCH(SMALL((ПЛАН!$H$6:$H$504="FC-TF(шток)")*COUNTIF(ПЛАН!$D$6:$D$504,"<="&ПЛАН!$D$6:$D$504),COUNTIF(ПЛАН!$H$6:$H$504,"<>FC-TF(шток)")+ROW(D16)),COUNTIF(ПЛАН!$D$6:$D$504,"<="&ПЛАН!$D$6:$D$504),0)),"0") -> Шток | D23: =IFERROR(INDEX(ПЛАН!$E$6:$E$504,MATCH(SMALL((ПЛАН!$H$6:$H$504="FC-TF(шток)")*COUNTIF(ПЛАН!$D$6:$D$504,"<="&ПЛАН!$D$6:$D$504)+ROW(ПЛАН!$E$6:$E$504)%,COUNTIF(ПЛАН!$H$6:$H$504,"<>FC-TF(шток)")+ROW(E16)),COUNTIF(ПЛАН!$D$6:$D$504,"<="&ПЛАН!$D$6:$D$504)+ROW(ПЛАН!$E$6:$E$504)%,0)),"0") -> А1-275/450.356-10 | E23: 4.705 | F23: =IF(ISNA(VLOOKUP(D23,ПЛАН!$E$6:$G$504,2,0)),0,VLOOKUP(D23,ПЛАН!$E$6:$G$504,2,0)) -> 30 | G23: 1.4115 | J23: =IF(ISNA(VLOOKUP(D23,ПЛАН!$E$6:$G$504,3,0)),0,VLOOKUP(D23,ПЛАН!$E$6:$G$504,3,0)) -> 2.823 | K23: 170.031881
C24: =IFERROR(INDEX(ПЛАН!$D$6:$D$504,MATCH(SMALL((ПЛАН!$H$6:$H$504="FC-TF(шток)")*COUNTIF(ПЛАН!$D$6:$D$504,"<="&ПЛАН!$D$6:$D$504),COUNTIF(ПЛАН!$H$6:$H$504,"<>FC-TF(шток)")+ROW(D17)),COUNTIF(ПЛАН!$D$6:$D$504,"<="&ПЛАН!$D$6:$D$504),0)),"0") -> Шток | D24: =IFERROR(INDEX(ПЛАН!$E$6:$E$504,MATCH(SMALL((ПЛАН!$H$6:$H$504="FC-TF(шток)")*COUNTIF(ПЛАН!$D$6:$D$504,"<="&ПЛАН!$D$6:$D$504)+ROW(ПЛАН!$E$6:$E$504)%,COUNTIF(ПЛАН!$H$6:$H$504,"<>FC-TF(шток)")+ROW(E17)),COUNTIF(ПЛАН!$D$6:$D$504,"<="&ПЛАН!$D$6:$D$504)+ROW(ПЛАН!$E$6:$E$504)%,0)),"0") -> 54327-2915356-51 | E24: 3.75 | F24: =IF(ISNA(VLOOKUP(D24,ПЛАН!$E$6:$G$504,2,0)),0,VLOOKUP(D24,ПЛАН!$E$6:$G$504,2,0)) -> 0 | G24: 0 | J24: =IF(ISNA(VLOOKUP(D24,ПЛАН!$E$6:$G$504,3,0)),0,VLOOKUP(D24,ПЛАН!$E$6:$G$504,3,0)) -> 2.25 | K24: 213.3333333
C25: =IFERROR(INDEX(ПЛАН!$D$6:$D$504,MATCH(SMALL((ПЛАН!$H$6:$H$504="FC-TF(шток)")*COUNTIF(ПЛАН!$D$6:$D$504,"<="&ПЛАН!$D$6:$D$504),COUNTIF(ПЛАН!$H$6:$H$504,"<>FC-TF(шток)")+ROW(D18)),COUNTIF(ПЛАН!$D$6:$D$504,"<="&ПЛАН!$D$6:$D$504),0)),"0") -> Шток | D25: =IFERROR(INDEX(ПЛАН!$E$6:$E$504,MATCH(SMALL((ПЛАН!$H$6:$H$504="FC-TF(шток)")*COUNTIF(ПЛАН!$D$6:$D$504,"<="&ПЛАН!$D$6:$D$504)+ROW(ПЛАН!$E$6:$E$504)%,COUNTIF(ПЛАН!$H$6:$H$504,"<>FC-TF(шток)")+ROW(E18)),COUNTIF(ПЛАН!$D$6:$D$504,"<="&ПЛАН!$D$6:$D$504)+ROW(ПЛАН!$E$6:$E$504)%,0)),"0") -> А2-245/450.482-21 | E25: 8.133333333 | F25: =IF(ISNA(VLOOKUP(D25,ПЛАН!$E$6:$G$504,2,0)),0,VLOOKUP(D25,ПЛАН!$E$6:$G$504,2,0)) -> 0 | G25: 0 | J25: =IF(ISNA(VLOOKUP(D25,ПЛАН!$E$6:$G$504,3,0)),0,VLOOKUP(D25,ПЛАН!$E$6:$G$504,3,0)) -> 4.88 | K25: 98.36065574
C26: =IFERROR(INDEX(ПЛАН!$D$6:$D$504,MATCH(SMALL((ПЛАН!$H$6:$H$504="FC-TF(шток)")*COUNTIF(ПЛАН!$D$6:$D$504,"<="&ПЛАН!$D$6:$D$504),COUNTIF(ПЛАН!$H$6:$H$504,"<>FC-TF(шток)")+ROW(D19)),COUNTIF(ПЛАН!$D$6:$D$504,"<="&ПЛАН!$D$6:$D$504),0)),"0") -> Шток | D26: =IFERROR(INDEX(ПЛАН!$E$6:$E$504,MATCH(SMALL((ПЛАН!$H$6:$H$504="FC-TF(шток)")*COUNTIF(ПЛАН!$D$6:$D$504,"<="&ПЛАН!$D$6:$D$504)+ROW(ПЛАН!$E$6:$E$504)%,COUNTIF(ПЛАН!$H$6:$H$504,"<>FC-TF(шток)")+ROW(E19)),COUNTIF(ПЛАН!$D$6:$D$504,"<="&ПЛАН!$D$6:$D$504)+ROW(ПЛАН!$E$6:$E$504)%,0)),"0") -> А2-230/450.482-21 | E26: 8.133333333 | F26: =IF(ISNA(VLOOKUP(D26,ПЛАН!$E$6:$G$504,2,0)),0,VLOOKUP(D26,ПЛАН!$E$6:$G$504,2,0)) -> 0 | G26: 0 | J26: =IF(ISNA(VLOOKUP(D26,ПЛАН!$E$6:$G$504,3,0)),0,VLOOKUP(D26,ПЛАН!$E$6:$G$504,3,0)) -> 4.88 | K26: 98.36065574
C27: =IFERROR(INDEX(ПЛАН!$D$6:$D$504,MATCH(SMALL((ПЛАН!$H$6:$H$504="FC-TF(шток)")*COUNTIF(ПЛАН!$D$6:$D$504,"<="&ПЛАН!$D$6:$D$504),COUNTIF(ПЛАН!$H$6:$H$504,"<>FC-TF(шток)")+ROW(D20)),COUNTIF(ПЛАН!$D$6:$D$504,"<="&ПЛАН!$D$6:$D$504),0)),"0") -> Шток | D27: =IFERROR(INDEX(ПЛАН!$E$6:$E$504,MATCH(SMALL((ПЛАН!$H$6:$H$504="FC-TF(шток)")*COUNTIF(ПЛАН!$D$6:$D$504,"<="&ПЛАН!$D$6:$D$504)+ROW(ПЛАН!$E$6:$E$504)%,COUNTIF(ПЛАН!$H$6:$H$504,"<>FC-TF(шток)")+ROW(E20)),COUNTIF(ПЛАН!$D$6:$D$504,"<="&ПЛАН!$D$6:$D$504)+ROW(ПЛАН!$E$6:$E$504)%,0)),"0") -> УЛИГ.452995.482-004-03 | E27: 5.716666667 | F27: =IF(ISNA(VLOOKUP(D27,ПЛАН!$E$6:$G$504,2,0)),0,VLOOKUP(D27,ПЛАН!$E$6:$G$504,2,0)) -> 384 | G27: 21.952 | J27: =IF(ISNA(VLOOKUP(D27,ПЛАН!$E$6:$G$504,3,0)),0,VLOOKUP(D27,ПЛАН!$E$6:$G$504,3,0)) -> 3.43 | K27: 139.941691
C28: =IFERROR(INDEX(ПЛАН!$D$6:$D$504,MATCH(SMALL((ПЛАН!$H$6:$H$504="FC-TF(шток)")*COUNTIF(ПЛАН!$D$6:$D$504,"<="&ПЛАН!$D$6:$D$504),COUNTIF(ПЛАН!$H$6:$H$504,"<>FC-TF(шток)")+ROW(D21)),COUNTIF(ПЛАН!$D$6:$D$504,"<="&ПЛАН!$D$6:$D$504),0)),"0") -> Шток | D28: =IFERROR(INDEX(ПЛАН!$E$6:$E$504,MATCH(SMALL((ПЛАН!$H$6:$H$504="FC-TF(шток)")*COUNTIF(ПЛАН!$D$6:$D$504,"<="&ПЛАН!$D$6:$D$504)+ROW(ПЛАН!$E$6:$E$504)%,COUNTIF(ПЛАН!$H$6:$H$504,"<>FC-TF(шток)")+ROW(E21)),COUNTIF(ПЛАН!$D$6:$D$504,"<="&ПЛАН!$D$6:$D$504)+ROW(ПЛАН!$E$6:$E$504)%,0)),"0") -> УЛИГ.452995.482-020 | E28: 7.25 | F28: =IF(ISNA(VLOOKUP(D28,ПЛАН!$E$6:$G$504,2,0)),0,VLOOKUP(D28,ПЛАН!$E$6:$G$504,2,0)) -> 480 | G28: 34.8 | J28: =IF(ISNA(VLOOKUP(D28,ПЛАН!$E$6:$G$504,3,0)),0,VLOOKUP(D28,ПЛАН!$E$6:$G$504,3,0)) -> 4.35 | K28: 110.3448276
C29: =IFERROR(INDEX(ПЛАН!$D$6:$D$504,MATCH(SMALL((ПЛАН!$H$6:$H$504="FC-TF(шток)")*COUNTIF(ПЛАН!$D$6:$D$504,"<="&ПЛАН!$D$6:$D$504),COUNTIF(ПЛАН!$H$6:$H$504,"<>FC-TF(шток)")+ROW(D22)),COUNTIF(ПЛАН!$D$6:$D$504,"<="&ПЛАН!$D$6:$D$504),0)),"0") -> Шток | D29: =IFERROR(INDEX(ПЛАН!$E$6:$E$504,MATCH(SMALL((ПЛАН!$H$6:$H$504="FC-TF(шток)")*COUNTIF(ПЛАН!$D$6:$D$504,"<="&ПЛАН!$D$6:$D$504)+ROW(ПЛАН!$E$6:$E$504)%,COUNTIF(ПЛАН!$H$6:$H$504,"<>FC-TF(шток)")+ROW(E22)),COUNTIF(ПЛАН!$D$6:$D$504,"<="&ПЛАН!$D$6:$D$504)+ROW(ПЛАН!$E$6:$E$504)%,0)),"0") -> УЛИГ.50.А2.452995.482-044 | E29: 7.25 | F29: =IF(ISNA(VLOOKUP(D29,ПЛАН!$E$6:$G$504,2,0)),0,VLOOKUP(D29,ПЛАН!$E$6:$G$504,2,0)) -> 0 | G29: 0 | J29: =IF(ISNA(VLOOKUP(D29,ПЛАН!$E$6:$G$504,3,0)),0,VLOOKUP(D29,ПЛАН!$E$6:$G$504,3,0)) -> 4.35 | K29: 110.3448276
C30: =IFERROR(INDEX(ПЛАН!$D$6:$D$504,MATCH(SMALL((ПЛАН!$H$6:$H$504="FC-TF(шток)")*COUNTIF(ПЛАН!$D$6:$D$504,"<="&ПЛАН!$D$6:$D$504),COUNTIF(ПЛАН!$H$6:$H$504,"<>FC-TF(шток)")+ROW(D23)),COUNTIF(ПЛАН!$D$6:$D$504,"<="&ПЛАН!$D$6:$D$504),0)),"0") -> Шток | D30: =IFERROR(INDEX(ПЛАН!$E$6:$E$504,MATCH(SMALL((ПЛАН!$H$6:$H$504="FC-TF(шток)")*COUNTIF(ПЛАН!$D$6:$D$504,"<="&ПЛАН!$D$6:$D$504)+ROW(ПЛАН!$E$6:$E$504)%,COUNTIF(ПЛАН!$H$6:$H$504,"<>FC-TF(шток)")+ROW(E23)),COUNTIF(ПЛАН!$D$6:$D$504,"<="&ПЛАН!$D$6:$D$504)+ROW(ПЛАН!$E$6:$E$504)%,0)),"0") -> УЛИГ.50.А3.452995.482-080-01 | E30: 7.25 | F30: =IF(ISNA(VLOOKUP(D30,ПЛАН!$E$6:$G$504,2,0)),0,VLOOKUP(D30,ПЛАН!$E$6:$G$504,2,0)) -> 0 | G30: 0 | J30: =IF(ISNA(VLOOKUP(D30,ПЛАН!$E$6:$G$504,3,0)),0,VLOOKUP(D30,ПЛАН!$E$6:$G$504,3,0)) -> 4.35 | K30: 110.3448276
C31: =IFERROR(INDEX(ПЛАН!$D$6:$D$504,MATCH(SMALL((ПЛАН!$H$6:$H$504="FC-TF(шток)")*COUNTIF(ПЛАН!$D$6:$D$504,"<="&ПЛАН!$D$6:$D$504),COUNTIF(ПЛАН!$H$6:$H$504,"<>FC-TF(шток)")+ROW(D24)),COUNTIF(ПЛАН!$D$6:$D$504,"<="&ПЛАН!$D$6:$D$504),0)),"0") -> Шток | D31: =IFERROR(INDEX(ПЛАН!$E$6:$E$504,MATCH(SMALL((ПЛАН!$H$6:$H$504="FC-TF(шток)")*COUNTIF(ПЛАН!$D$6:$D$504,"<="&ПЛАН!$D$6:$D$504)+ROW(ПЛАН!$E$6:$E$504)%,COUNTIF(ПЛАН!$H$6:$H$504,"<>FC-TF(шток)")+ROW(E24)),COUNTIF(ПЛАН!$D$6:$D$504,"<="&ПЛАН!$D$6:$D$504)+ROW(ПЛАН!$E$6:$E$504)%,0)),"0") -> А2-245/450.482 | E31: 7.25 | F31: =IF(ISNA(VLOOKUP(D31,ПЛАН!$E$6:$G$504,2,0)),0,VLOOKUP(D31,ПЛАН!$E$6:$G$504,2,0)) -> 0 | G31: 0 | J31: =IF(ISNA(VLOOKUP(D31,ПЛАН!$E$6:$G$504,3,0)),0,VLOOKUP(D31,ПЛАН!$E$6:$G$504,3,0)) -> 4.35 | K31: 110.3448276
C32: =IFERROR(INDEX(ПЛАН!$D$6:$D$504,MATCH(SMALL((ПЛАН!$H$6:$H$504="FC-TF(шток)")*COUNTIF(ПЛАН!$D$6:$D$504,"<="&ПЛАН!$D$6:$D$504),COUNTIF(ПЛАН!$H$6:$H$504,"<>FC-TF(шток)")+ROW(D25)),COUNTIF(ПЛАН!$D$6:$D$504,"<="&ПЛАН!$D$6:$D$504),0)),"0") -> Шток | D32: =IFERROR(INDEX(ПЛАН!$E$6:$E$504,MATCH(SMALL((ПЛАН!$H$6:$H$504="FC-TF(шток)")*COUNTIF(ПЛАН!$D$6:$D$504,"<="&ПЛАН!$D$6:$D$504)+ROW(ПЛАН!$E$6:$E$504)%,COUNTIF(ПЛАН!$H$6:$H$504,"<>FC-TF(шток)")+ROW(E25)),COUNTIF(ПЛАН!$D$6:$D$504,"<="&ПЛАН!$D$6:$D$504)+ROW(ПЛАН!$E$6:$E$504)%,0)),"0") -> УЛИГ.40.А2.452915.482-053 | E32: 5.533333333 | F32: =IF(ISNA(VLOOKUP(D32,ПЛАН!$E$6:$G$504,2,0)),0,VLOOKUP(D32,ПЛАН!$E$6:$G$504,2,0)) -> 378 | G32: 20.916 | J32: =IF(ISNA(VLOOKUP(D32,ПЛАН!$E$6:$G$504,3,0)),0,VLOOKUP(D32,ПЛАН!$E$6:$G$504,3,0)) -> 3.32 | K32: 144.5783133
C33: =IFERROR(INDEX(ПЛАН!$D$6:$D$504,MATCH(SMALL((ПЛАН!$H$6:$H$504="FC-TF(шток)")*COUNTIF(ПЛАН!$D$6:$D$504,"<="&ПЛАН!$D$6:$D$504),COUNTIF(ПЛАН!$H$6:$H$504,"<>FC-TF(шток)")+ROW(D26)),COUNTIF(ПЛАН!$D$6:$D$504,"<="&ПЛАН!$D$6:$D$504),0)),"0") -> Шток | D33: =IFERROR(INDEX(ПЛАН!$E$6:$E$504,MATCH(SMALL((ПЛАН!$H$6:$H$504="FC-TF(шток)")*COUNTIF(ПЛАН!$D$6:$D$504,"<="&ПЛАН!$D$6:$D$504)+ROW(ПЛАН!$E$6:$E$504)%,COUNTIF(ПЛАН!$H$6:$H$504,"<>FC-TF(шток)")+ROW(E26)),COUNTIF(ПЛАН!$D$6:$D$504,"<="&ПЛАН!$D$6:$D$504)+ROW(ПЛАН!$E$6:$E$504)%,0)),"0") -> УЛИГ.40.А1.452995.356-100 | E33: 5.533333333 | F33: =IF(ISNA(VLOOKUP(D33,ПЛАН!$E$6:$G$504,2,0)),0,VLOOKUP(D33,ПЛАН!$E$6:$G$504,2,0)) -> 0 | G33: 0 | J33: =IF(ISNA(VLOOKUP(D33,ПЛАН!$E$6:$G$504,3,0)),0,VLOOKUP(D33,ПЛАН!$E$6:$G$504,3,0)) -> 3.32 | K33: 144.5783133
C34: =IFERROR(INDEX(ПЛАН!$D$6:$D$504,MATCH(SMALL((ПЛАН!$H$6:$H$504="FC-TF(шток)")*COUNTIF(ПЛАН!$D$6:$D$504,"<="&ПЛАН!$D$6:$D$504),COUNTIF(ПЛАН!$H$6:$H$504,"<>FC-TF(шток)")+ROW(D27)),COUNTIF(ПЛАН!$D$6:$D$504,"<="&ПЛАН!$D$6:$D$504),0)),"0") -> Шток | D34: =IFERROR(INDEX(ПЛАН!$E$6:$E$504,MATCH(SMALL((ПЛАН!$H$6:$H$504="FC-TF(шток)")*COUNTIF(ПЛАН!$D$6:$D$504,"<="&ПЛАН!$D$6:$D$504)+ROW(ПЛАН!$E$6:$E$504)%,COUNTIF(ПЛАН!$H$6:$H$504,"<>FC-TF(шток)")+ROW(E27)),COUNTIF(ПЛАН!$D$6:$D$504,"<="&ПЛАН!$D$6:$D$504)+ROW(ПЛАН!$E$6:$E$504)%,0)),"0") -> А1-180/350.356 | E34: 4.483333333 | F34: =IF(ISNA(VLOOKUP(D34,ПЛАН!$E$6:$G$504,2,0)),0,VLOOKUP(D34,ПЛАН!$E$6:$G$504,2,0)) -> 30 | G34: 1.345 | J34: =IF(ISNA(VLOOKUP(D34,ПЛАН!$E$6:$G$504,3,0)),0,VLOOKUP(D34,ПЛАН!$E$6:$G$504,3,0)) -> 2.69 | K34: 178.4386617
C35: =IFERROR(INDEX(ПЛАН!$D$6:$D$504,MATCH(SMALL((ПЛАН!$H$6:$H$504="FC-TF(шток)")*COUNTIF(ПЛАН!$D$6:$D$504,"<="&ПЛАН!$D$6:$D$504),COUNTIF(ПЛАН!$H$6:$H$504,"<>FC-TF(шток)")+ROW(D28)),COUNTIF(ПЛАН!$D$6:$D$504,"<="&ПЛАН!$D$6:$D$504),0)),"0") -> Шток | D35: =IFERROR(INDEX(ПЛАН!$E$6:$E$504,MATCH(SMALL((ПЛАН!$H$6:$H$504="FC-TF(шток)")*COUNTIF(ПЛАН!$D$6:$D$504,"<="&ПЛАН!$D$6:$D$504)+ROW(ПЛАН!$E$6:$E$504)%,COUNTIF(ПЛАН!$H$6:$H$504,"<>FC-TF(шток)")+ROW(E28)),COUNTIF(ПЛАН!$D$6:$D$504,"<="&ПЛАН!$D$6:$D$504)+ROW(ПЛАН!$E$6:$E$504)%,0)),"0") -> УЛИГ.50.А1.452995.356-070 | E35: 5.855 | F35: =IF(ISNA(VLOOKUP(D35,ПЛАН!$E$6:$G$504,2,0)),0,VLOOKUP(D35,ПЛАН!$E$6:$G$504,2,0)) -> 2400 | G35: 140.52 | J35: =IF(ISNA(VLOOKUP(D35,ПЛАН!$E$6:$G$504,3,0)),0,VLOOKUP(D35,ПЛАН!$E$6:$G$504,3,0)) -> 3.513 | K35: 136.6353544
C36: =IFERROR(INDEX(ПЛАН!$D$6:$D$504,MATCH(SMALL((ПЛАН!$H$6:$H$504="FC-TF(шток)")*COUNTIF(ПЛАН!$D$6:$D$504,"<="&ПЛАН!$D$6:$D$504),COUNTIF(ПЛАН!$H$6:$H$504,"<>FC-TF(шток)")+ROW(D29)),COUNTIF(ПЛАН!$D$6:$D$504,"<="&ПЛАН!$D$6:$D$504),0)),"0") -> Шток | D36: =IFERROR(INDEX(ПЛАН!$E$6:$E$504,MATCH(SMALL((ПЛАН!$H$6:$H$504="FC-TF(шток)")*COUNTIF(ПЛАН!$D$6:$D$504,"<="&ПЛАН!$D$6:$D$504)+ROW(ПЛАН!$E$6:$E$504)%,COUNTIF(ПЛАН!$H$6:$H$504,"<>FC-TF(шток)")+ROW(E29)),COUNTIF(ПЛАН!$D$6:$D$504,"<="&ПЛАН!$D$6:$D$504)+ROW(ПЛАН!$E$6:$E$504)%,0)),"0") -> А1-175/375.356 | E36: 4.483333333 | F36: =IF(ISNA(VLOOKUP(D36,ПЛАН!$E$6:$G$504,2,0)),0,VLOOKUP(D36,ПЛАН!$E$6:$G$504,2,0)) -> 50 | G36: 2.241666667 | J36: =IF(ISNA(VLOOKUP(D36,ПЛАН!$E$6:$G$504,3,0)),0,VLOOKUP(D36,ПЛАН!$E$6:$G$504,3,0)) -> 2.69 | K36: 178.4386617
C37: =IFERROR(INDEX(ПЛАН!$D$6:$D$504,MATCH(SMALL((ПЛАН!$H$6:$H$504="FC-TF(шток)")*COUNTIF(ПЛАН!$D$6:$D$504,"<="&ПЛАН!$D$6:$D$504),COUNTIF(ПЛАН!$H$6:$H$504,"<>FC-TF(шток)")+ROW(D30)),COUNTIF(ПЛАН!$D$6:$D$504,"<="&ПЛАН!$D$6:$D$504),0)),"0") -> Шток | D37: =IFERROR(INDEX(ПЛАН!$E$6:$E$504,MATCH(SMALL((ПЛАН!$H$6:$H$504="FC-TF(шток)")*COUNTIF(ПЛАН!$D$6:$D$504,"<="&ПЛАН!$D$6:$D$504)+ROW(ПЛАН!$E$6:$E$504)%,COUNTIF(ПЛАН!$H$6:$H$504,"<>FC-TF(шток)")+ROW(E30)),COUNTIF(ПЛАН!$D$6:$D$504,"<="&ПЛАН!$D$6:$D$504)+ROW(ПЛАН!$E$6:$E$504)%,0)),"0") -> А1-200/375.356 | E37: 4.483333333 | F37: =IF(ISNA(VLOOKUP(D37,ПЛАН!$E$6:$G$504,2,0)),0,VLOOKUP(D37,ПЛАН!$E$6:$G$504,2,0)) -> 0 | G37: 0 | J37: =IF(ISNA(VLOOKUP(D37,ПЛАН!$E$6:$G$504,3,0)),0,VLOOKUP(D37,ПЛАН!$E$6:$G$504,3,0)) -> 2.69 | K37: 178.4386617
C38: =IFERROR(INDEX(ПЛАН!$D$6:$D$504,MATCH(SMALL((ПЛАН!$H$6:$H$504="FC-TF(шток)")*COUNTIF(ПЛАН!$D$6:$D$504,"<="&ПЛАН!$D$6:$D$504),COUNTIF(ПЛАН!$H$6:$H$504,"<>FC-TF(шток)")+ROW(D31)),COUNTIF(ПЛАН!$D$6:$D$504,"<="&ПЛАН!$D$6:$D$504),0)),"0") -> Шток | D38: =IFERROR(INDEX(ПЛАН!$E$6:$E$504,MATCH(SMALL((ПЛАН!$H$6:$H$504="FC-TF(шток)")*COUNTIF(ПЛАН!$D$6:$D$504,"<="&ПЛАН!$D$6:$D$504)+ROW(ПЛАН!$E$6:$E$504)%,COUNTIF(ПЛАН!$H$6:$H$504,"<>FC-TF(шток)")+ROW(E31)),COUNTIF(ПЛАН!$D$6:$D$504,"<="&ПЛАН!$D$6:$D$504)+ROW(ПЛАН!$E$6:$E$504)%,0)),"0") -> 103Т-2905482-10 | E38: 7.956666667 | F38: =IF(ISNA(VLOOKUP(D38,ПЛАН!$E$6:$G$504,2,0)),0,VLOOKUP(D38,ПЛАН!$E$6:$G$504,2,0)) -> 0 | G38: 0 | J38: =IF(ISNA(VLOOKUP(D38,ПЛАН!$E$6:$G$504,3,0)),0,VLOOKUP(D38,ПЛАН!$E$6:$G$504,3,0)) -> 4.774 | K38: 100.5446167
C39: =IFERROR(INDEX(ПЛАН!$D$6:$D$504,MATCH(SMALL((ПЛАН!$H$6:$H$504="FC-TF(шток)")*COUNTIF(ПЛАН!$D$6:$D$504,"<="&ПЛАН!$D$6:$D$504),COUNTIF(ПЛАН!$H$6:$H$504,"<>FC-TF(шток)")+ROW(D32)),COUNTIF(ПЛАН!$D$6:$D$504,"<="&ПЛАН!$D$6:$D$504),0)),"0") -> Шток | D39: =IFERROR(INDEX(ПЛАН!$E$6:$E$504,MATCH(SMALL((ПЛАН!$H$6:$H$504="FC-TF(шток)")*COUNTIF(ПЛАН!$D$6:$D$504,"<="&ПЛАН!$D$6:$D$504)+ROW(ПЛАН!$E$6:$E$504)%,COUNTIF(ПЛАН!$H$6:$H$504,"<>FC-TF(шток)")+ROW(E32)),COUNTIF(ПЛАН!$D$6:$D$504,"<="&ПЛАН!$D$6:$D$504)+ROW(ПЛАН!$E$6:$E$504)%,0)),"0") -> 54327-2915356-61 | E39: 4.533333333 | F39: =IF(ISNA(VLOOKUP(D39,ПЛАН!$E$6:$G$504,2,0)),0,VLOOKUP(D39,ПЛАН!$E$6:$G$504,2,0)) -> 0 | G39: 0 | J39: =IF(ISNA(VLOOKUP(D39,ПЛАН!$E$6:$G$504,3,0)),0,VLOOKUP(D39,ПЛАН!$E$6:$G$504,3,0)) -> 2.72 | K39: 176.4705882
C40: =IFERROR(INDEX(ПЛАН!$D$6:$D$504,MATCH(SMALL((ПЛАН!$H$6:$H$504="FC-TF(шток)")*COUNTIF(ПЛАН!$D$6:$D$504,"<="&ПЛАН!$D$6:$D$504),COUNTIF(ПЛАН!$H$6:$H$504,"<>FC-TF(шток)")+ROW(D33)),COUNTIF(ПЛАН!$D$6:$D$504,"<="&ПЛАН!$D$6:$D$504),0)),"0") -> Шток | D40: =IFERROR(INDEX(ПЛАН!$E$6:$E$504,MATCH(SMALL((ПЛАН!$H$6:$H$504="FC-TF(шток)")*COUNTIF(ПЛАН!$D$6:$D$504,"<="&ПЛАН!$D$6:$D$504)+ROW(ПЛАН!$E$6:$E$504)%,COUNTIF(ПЛАН!$H$6:$H$504,"<>FC-TF(шток)")+ROW(E33)),COUNTIF(ПЛАН!$D$6:$D$504,"<="&ПЛАН!$D$6:$D$504)+ROW(ПЛАН!$E$6:$E$504)%,0)),"0") -> А1-200/385.356 | E40: 4.483333333 | F40: =IF(ISNA(VLOOKUP(D40,ПЛАН!$E$6:$G$504,2,0)),0,VLOOKUP(D40,ПЛАН!$E$6:$G$504,2,0)) -> 0 | G40: 0 | J40: =IF(ISNA(VLOOKUP(D40,ПЛАН!$E$6:$G$504,3,0)),0,VLOOKUP(D40,ПЛАН!$E$6:$G$504,3,0)) -> 2.69 | K40: 178.4386617
C41: =IFERROR(INDEX(ПЛАН!$D$6:$D$504,MATCH(SMALL((ПЛАН!$H$6:$H$504="FC-TF(шток)")*COUNTIF(ПЛАН!$D$6:$D$504,"<="&ПЛАН!$D$6:$D$504),COUNTIF(ПЛАН!$H$6:$H$504,"<>FC-TF(шток)")+ROW(D34)),COUNTIF(ПЛАН!$D$6:$D$504,"<="&ПЛАН!$D$6:$D$504),0)),"0") -> Шток | D41: =IFERROR(INDEX(ПЛАН!$E$6:$E$504,MATCH(SMALL((ПЛАН!$H$6:$H$504="FC-TF(шток)")*COUNTIF(ПЛАН!$D$6:$D$504,"<="&ПЛАН!$D$6:$D$504)+ROW(ПЛАН!$E$6:$E$504)%,COUNTIF(ПЛАН!$H$6:$H$504,"<>FC-TF(шток)")+ROW(E34)),COUNTIF(ПЛАН!$D$6:$D$504,"<="&ПЛАН!$D$6:$D$504)+ROW(ПЛАН!$E$6:$E$504)%,0)),"0") -> А3.40-245/379.482 | E41: 5.533333333 | F41: =IF(ISNA(VLOOKUP(D41,ПЛАН!$E$6:$G$504,2,0)),0,VLOOKUP(D41,ПЛАН!$E$6:$G$504,2,0)) -> 0 | G41: 0 | J41: =IF(ISNA(VLOOKUP(D41,ПЛАН!$E$6:$G$504,3,0)),0,VLOOKUP(D41,ПЛАН!$E$6:$G$504,3,0)) -> 3.32 | K41: 144.5783133
C42: =IFERROR(INDEX(ПЛАН!$D$6:$D$504,MATCH(SMALL((ПЛАН!$H$6:$H$504="FC-TF(шток)")*COUNTIF(ПЛАН!$D$6:$D$504,"<="&ПЛАН!$D$6:$D$504),COUNTIF(ПЛАН!$H$6:$H$504,"<>FC-TF(шток)")+ROW(D35)),COUNTIF(ПЛАН!$D$6:$D$504,"<="&ПЛАН!$D$6:$D$504),0)),"0") -> Шток | D42: =IFERROR(INDEX(ПЛАН!$E$6:$E$504,MATCH(SMALL((ПЛАН!$H$6:$H$504="FC-TF(шток)")*COUNTIF(ПЛАН!$D$6:$D$504,"<="&ПЛАН!$D$6:$D$504)+ROW(ПЛАН!$E$6:$E$504)%,COUNTIF(ПЛАН!$H$6:$H$504,"<>FC-TF(шток)")+ROW(E35)),COUNTIF(ПЛАН!$D$6:$D$504,"<="&ПЛАН!$D$6:$D$504)+ROW(ПЛАН!$E$6:$E$504)%,0)),"0") -> УЛИГ.40.А2.452915.482-107 | E42: 7.25 | F42: =IF(ISNA(VLOOKUP(D42,ПЛАН!$E$6:$G$504,2,0)),0,VLOOKUP(D42,ПЛАН!$E$6:$G$504,2,0)) -> 200 | G42: 14.5 | J42: =IF(ISNA(VLOOKUP(D42,ПЛАН!$E$6:$G$504,3,0)),0,VLOOKUP(D42,ПЛАН!$E$6:$G$504,3,0)) -> 4.35 | K42: 110.3448276
C43: =IFERROR(INDEX(ПЛАН!$D$6:$D$504,MATCH(SMALL((ПЛАН!$H$6:$H$504="FC-TF(шток)")*COUNTIF(ПЛАН!$D$6:$D$504,"<="&ПЛАН!$D$6:$D$504),COUNTIF(ПЛАН!$H$6:$H$504,"<>FC-TF(шток)")+ROW(D36)),COUNTIF(ПЛАН!$D$6:$D$504,"<="&ПЛАН!$D$6:$D$504),0)),"0") -> Шток | D43: =IFERROR(INDEX(ПЛАН!$E$6:$E$504,MATCH(SMALL((ПЛАН!$H$6:$H$504="FC-TF(шток)")*COUNTIF(ПЛАН!$D$6:$D$504,"<="&ПЛАН!$D$6:$D$504)+ROW(ПЛАН!$E$6:$E$504)%,COUNTIF(ПЛАН!$H$6:$H$504,"<>FC-TF(шток)")+ROW(E36)),COUNTIF(ПЛАН!$D$6:$D$504,"<="&ПЛАН!$D$6:$D$504)+ROW(ПЛАН!$E$6:$E$504)%,0)),"0") -> А1-150/325.356 | E43: 4.483333333 | F43: =IF(ISNA(VLOOKUP(D43,ПЛАН!$E$6:$G$504,2,0)),0,VLOOKUP(D43,ПЛАН!$E$6:$G$504,2,0)) -> 0 | G43: 0 | J43: =IF(ISNA(VLOOKUP(D43,ПЛАН!$E$6:$G$504,3,0)),0,VLOOKUP(D43,ПЛАН!$E$6:$G$504,3,0)) -> 2.69 | K43: 178.4386617
C44: =IFERROR(INDEX(ПЛАН!$D$6:$D$504,MATCH(SMALL((ПЛАН!$H$6:$H$504="FC-TF(шток)")*COUNTIF(ПЛАН!$D$6:$D$504,"<="&ПЛАН!$D$6:$D$504),COUNTIF(ПЛАН!$H$6:$H$504,"<>FC-TF(шток)")+ROW(D37)),COUNTIF(ПЛАН!$D$6:$D$504,"<="&ПЛАН!$D$6:$D$504),0)),"0") -> Шток | D44: =IFERROR(INDEX(ПЛАН!$E$6:$E$504,MATCH(SMALL((ПЛАН!$H$6:$H$504="FC-TF(шток)")*COUNTIF(ПЛАН!$D$6:$D$504,"<="&ПЛАН!$D$6:$D$504)+ROW(ПЛАН!$E$6:$E$504)%,COUNTIF(ПЛАН!$H$6:$H$504,"<>FC-TF(шток)")+ROW(E37)),COUNTIF(ПЛАН!$D$6:$D$504,"<="&ПЛАН!$D$6:$D$504)+ROW(ПЛАН!$E$6:$E$504)%,0)),"0") -> УЛИГ.667183.356-075-10 | E44: 5.993333333 | F44: =IF(ISNA(VLOOKUP(D44,ПЛАН!$E$6:$G$504,2,0)),0,VLOOKUP(D44,ПЛАН!$E$6:$G$504,2,0)) -> 0 | G44: 0 | J44: =IF(ISNA(VLOOKUP(D44,ПЛАН!$E$6:$G$504,3,0)),0,VLOOKUP(D44,ПЛАН!$E$6:$G$504,3,0)) -> 3.596 | K44: 133.4816463
C45: =IFERROR(INDEX(ПЛАН!$D$6:$D$504,MATCH(SMALL((ПЛАН!$H$6:$H$504="FC-TF(шток)")*COUNTIF(ПЛАН!$D$6:$D$504,"<="&ПЛАН!$D$6:$D$504),COUNTIF(ПЛАН!$H$6:$H$504,"<>FC-TF(шток)")+ROW(D38)),COUNTIF(ПЛАН!$D$6:$D$504,"<="&ПЛАН!$D$6:$D$504),0)),"0") -> Шток | D45: =IFERROR(INDEX(ПЛАН!$E$6:$E$504,MATCH(SMALL((ПЛАН!$H$6:$H$504="FC-TF(шток)")*COUNTIF(ПЛАН!$D$6:$D$504,"<="&ПЛАН!$D$6:$D$504)+ROW(ПЛАН!$E$6:$E$504)%,COUNTIF(ПЛАН!$H$6:$H$504,"<>FC-TF(шток)")+ROW(E38)),COUNTIF(ПЛАН!$D$6:$D$504,"<="&ПЛАН!$D$6:$D$504)+ROW(ПЛАН!$E$6:$E$504)%,0)),"0") -> УЛИГ.331.373 | E45: 4.936666667 | F45: =IF(ISNA(VLOOKUP(D45,ПЛАН!$E$6:$G$504,2,0)),0,VLOOKUP(D45,ПЛАН!$E$6:$G$504,2,0)) -> 25 | G45: 1.234166667 | J45: =IF(ISNA(VLOOKUP(D45,ПЛАН!$E$6:$G$504,3,0)),0,VLOOKUP(D45,ПЛАН!$E$6:$G$504,3,0)) -> 2.962 | K45: 162.0526671
C46: =IFERROR(INDEX(ПЛАН!$D$6:$D$504,MATCH(SMALL((ПЛАН!$H$6:$H$504="FC-TF(шток)")*COUNTIF(ПЛАН!$D$6:$D$504,"<="&ПЛАН!$D$6:$D$504),COUNTIF(ПЛАН!$H$6:$H$504,"<>FC-TF(шток)")+ROW(D39)),COUNTIF(ПЛАН!$D$6:$D$504,"<="&ПЛАН!$D$6:$D$504),0)),"0") -> Шток | D46: =IFERROR(INDEX(ПЛАН!$E$6:$E$504,MATCH(SMALL((ПЛАН!$H$6:$H$504="FC-TF(шток)")*COUNTIF(ПЛАН!$D$6:$D$504,"<="&ПЛАН!$D$6:$D$504)+ROW(ПЛАН!$E$6:$E$504)%,COUNTIF(ПЛАН!$H$6:$H$504,"<>FC-TF(шток)")+ROW(E39)),COUNTIF(ПЛАН!$D$6:$D$504,"<="&ПЛАН!$D$6:$D$504)+ROW(ПЛАН!$E$6:$E$504)%,0)),"0") -> УЛИГ.335.373 | E46: 4.233333333 | F46: =IF(ISNA(VLOOKUP(D46,ПЛАН!$E$6:$G$504,2,0)),0,VLOOKUP(D46,ПЛАН!$E$6:$G$504,2,0)) -> 0 | G46: 0 | J46: =IF(ISNA(VLOOKUP(D46,ПЛАН!$E$6:$G$504,3,0)),0,VLOOKUP(D46,ПЛАН!$E$6:$G$504,3,0)) -> 2.54 | K46: 188.976378
C47: =IFERROR(INDEX(ПЛАН!$D$6:$D$504,MATCH(SMALL((ПЛАН!$H$6:$H$504="FC-TF(шток)")*COUNTIF(ПЛАН!$D$6:$D$504,"<="&ПЛАН!$D$6:$D$504),COUNTIF(ПЛАН!$H$6:$H$504,"<>FC-TF(шток)")+ROW(D40)),COUNTIF(ПЛАН!$D$6:$D$504,"<="&ПЛАН!$D$6:$D$504),0)),"0") -> Шток | D47: =IFERROR(INDEX(ПЛАН!$E$6:$E$504,MATCH(SMALL((ПЛАН!$H$6:$H$504="FC-TF(шток)")*COUNTIF(ПЛАН!$D$6:$D$504,"<="&ПЛАН!$D$6:$D$504)+ROW(ПЛАН!$E$6:$E$504)%,COUNTIF(ПЛАН!$H$6:$H$504,"<>FC-TF(шток)")+ROW(E40)),COUNTIF(ПЛАН!$D$6:$D$504,"<="&ПЛАН!$D$6:$D$504)+ROW(ПЛАН!$E$6:$E$504)%,0)),"0") -> УЛИГ.336.373 | E47: 8.053333333 | F47: =IF(ISNA(VLOOKUP(D47,ПЛАН!$E$6:$G$504,2,0)),0,VLOOKUP(D47,ПЛАН!$E$6:$G$504,2,0)) -> 0 | G47: 0 | J47: =IF(ISNA(VLOOKUP(D47,ПЛАН!$E$6:$G$504,3,0)),0,VLOOKUP(D47,ПЛАН!$E$6:$G$504,3,0)) -> 4.832 | K47: 99.33774834
C48: =IFERROR(INDEX(ПЛАН!$D$6:$D$504,MATCH(SMALL((ПЛАН!$H$6:$H$504="FC-TF(шток)")*COUNTIF(ПЛАН!$D$6:$D$504,"<="&ПЛАН!$D$6:$D$504),COUNTIF(ПЛАН!$H$6:$H$504,"<>FC-TF(шток)")+ROW(D41)),COUNTIF(ПЛАН!$D$6:$D$504,"<="&ПЛАН!$D$6:$D$504),0)),"0") -> Шток | D48: =IFERROR(INDEX(ПЛАН!$E$6:$E$504,MATCH(SMALL((ПЛАН!$H$6:$H$504="FC-TF(шток)")*COUNTIF(ПЛАН!$D$6:$D$504,"<="&ПЛАН!$D$6:$D$504)+ROW(ПЛАН!$E$6:$E$504)%,COUNTIF(ПЛАН!$H$6:$H$504,"<>FC-TF(шток)")+ROW(E41)),COUNTIF(ПЛАН!$D$6:$D$504,"<="&ПЛАН!$D$6:$D$504)+ROW(ПЛАН!$E$6:$E$504)%,0)),"0") -> 348.00.482 | E48: 8.05 | F48: =IF(ISNA(VLOOKUP(D48,ПЛАН!$E$6:$G$504,2,0)),0,VLOOKUP(D48,ПЛАН!$E$6:$G$504,2,0)) -> 0 | G48: 0 | J48: =IF(ISNA(VLOOKUP(D48,ПЛАН!$E$6:$G$504,3,0)),0,VLOOKUP(D48,ПЛАН!$E$6:$G$504,3,0)) -> 4.83 | K48: 99.37888199
C49: =IFERROR(INDEX(ПЛАН!$D$6:$D$504,MATCH(SMALL((ПЛАН!$H$6:$H$504="FC-TF(шток)")*COUNTIF(ПЛАН!$D$6:$D$504,"<="&ПЛАН!$D$6:$D$504),COUNTIF(ПЛАН!$H$6:$H$504,"<>FC-TF(шток)")+ROW(D42)),COUNTIF(ПЛАН!$D$6:$D$504,"<="&ПЛАН!$D$6:$D$504),0)),"0") -> Шток | D49: =IFERROR(INDEX(ПЛАН!$E$6:$E$504,MATCH(SMALL((ПЛАН!$H$6:$H$504="FC-TF(шток)")*COUNTIF(ПЛАН!$D$6:$D$504,"<="&ПЛАН!$D$6:$D$504)+ROW(ПЛАН!$E$6:$E$504)%,COUNTIF(ПЛАН!$H$6:$H$504,"<>FC-TF(шток)")+ROW(E42)),COUNTIF(ПЛАН!$D$6:$D$504,"<="&ПЛАН!$D$6:$D$504)+ROW(ПЛАН!$E$6:$E$504)%,0)),"0") -> 347.00.356 | E49: 8.05 | F49: =IF(ISNA(VLOOKUP(D49,ПЛАН!$E$6:$G$504,2,0)),0,VLOOKUP(D49,ПЛАН!$E$6:$G$504,2,0)) -> 0 | G49: 0 | J49: =IF(ISNA(VLOOKUP(D49,ПЛАН!$E$6:$G$504,3,0)),0,VLOOKUP(D49,ПЛАН!$E$6:$G$504,3,0)) -> 4.83 | K49: 99.37888199
C50: =IFERROR(INDEX(ПЛАН!$D$6:$D$504,MATCH(SMALL((ПЛАН!$H$6:$H$504="FC-TF(шток)")*COUNTIF(ПЛАН!$D$6:$D$504,"<="&ПЛАН!$D$6:$D$504),COUNTIF(ПЛАН!$H$6:$H$504,"<>FC-TF(шток)")+ROW(D43)),COUNTIF(ПЛАН!$D$6:$D$504,"<="&ПЛАН!$D$6:$D$504),0)),"0") -> Шток | D50: =IFERROR(INDEX(ПЛАН!$E$6:$E$504,MATCH(SMALL((ПЛАН!$H$6:$H$504="FC-TF(шток)")*COUNTIF(ПЛАН!$D$6:$D$504,"<="&ПЛАН!$D$6:$D$504)+ROW(ПЛАН!$E$6:$E$504)%,COUNTIF(ПЛАН!$H$6:$H$504,"<>FC-TF(шток)")+ROW(E43)),COUNTIF(ПЛАН!$D$6:$D$504,"<="&ПЛАН!$D$6:$D$504)+ROW(ПЛАН!$E$6:$E$504)%,0)),"0") -> А1.50-245/432.356 | E50: 4.766666667 | F50: =IF(ISNA(VLOOKUP(D50,ПЛАН!$E$6:$G$504,2,0)),0,VLOOKUP(D50,ПЛАН!$E$6:$G$504,2,0)) -> 6 | G50: 0.286 | J50: =IF(ISNA(VLOOKUP(D50,ПЛАН!$E$6:$G$504,3,0)),0,VLOOKUP(D50,ПЛАН!$E$6:$G$504,3,0)) -> 2.86 | K50: 167.8321678
C51: =IFERROR(INDEX(ПЛАН!$D$6:$D$504,MATCH(SMALL((ПЛАН!$H$6:$H$504="FC-TF(шток)")*COUNTIF(ПЛАН!$D$6:$D$504,"<="&ПЛАН!$D$6:$D$504),COUNTIF(ПЛАН!$H$6:$H$504,"<>FC-TF(шток)")+ROW(D44)),COUNTIF(ПЛАН!$D$6:$D$504,"<="&ПЛАН!$D$6:$D$504),0)),"0") -> Шток | D51: =IFERROR(INDEX(ПЛАН!$E$6:$E$504,MATCH(SMALL((ПЛАН!$H$6:$H$504="FC-TF(шток)")*COUNTIF(ПЛАН!$D$6:$D$504,"<="&ПЛАН!$D$6:$D$504)+ROW(ПЛАН!$E$6:$E$504)%,COUNTIF(ПЛАН!$H$6:$H$504,"<>FC-TF(шток)")+ROW(E44)),COUNTIF(ПЛАН!$D$6:$D$504,"<="&ПЛАН!$D$6:$D$504)+ROW(ПЛАН!$E$6:$E$504)%,0)),"0") -> УЛИГ.667183.356-014 | E51: 0 | F51: =IF(ISNA(VLOOKUP(D51,ПЛАН!$E$6:$G$504,2,0)),0,VLOOKUP(D51,ПЛАН!$E$6:$G$504,2,0)) -> 0 | G51: 0 | J51: =IF(ISNA(VLOOKUP(D51,ПЛАН!$E$6:$G$504,3,0)),0,VLOOKUP(D51,ПЛАН!$E$6:$G$504,3,0)) -> 0
C52: =IFERROR(INDEX(ПЛАН!$D$6:$D$504,MATCH(SMALL((ПЛАН!$H$6:$H$504="FC-TF(шток)")*COUNTIF(ПЛАН!$D$6:$D$504,"<="&ПЛАН!$D$6:$D$504),COUNTIF(ПЛАН!$H$6:$H$504,"<>FC-TF(шток)")+ROW(D45)),COUNTIF(ПЛАН!$D$6:$D$504,"<="&ПЛАН!$D$6:$D$504),0)),"0") -> Шток | D52: =IFERROR(INDEX(ПЛАН!$E$6:$E$504,MATCH(SMALL((ПЛАН!$H$6:$H$504="FC-TF(шток)")*COUNTIF(ПЛАН!$D$6:$D$504,"<="&ПЛАН!$D$6:$D$504)+ROW(ПЛАН!$E$6:$E$504)%,COUNTIF(ПЛАН!$H$6:$H$504,"<>FC-TF(шток)")+ROW(E45)),COUNTIF(ПЛАН!$D$6:$D$504,"<="&ПЛАН!$D$6:$D$504)+ROW(ПЛАН!$E$6:$E$504)%,0)),"0") -> А1-130/300.356 | E52: 11.10666667 | F52: =IF(ISNA(VLOOKUP(D52,ПЛАН!$E$6:$G$504,2,0)),0,VLOOKUP(D52,ПЛАН!$E$6:$G$504,2,0)) -> 0 | G52: 0 | J52: =IF(ISNA(VLOOKUP(D52,ПЛАН!$E$6:$G$504,3,0)),0,VLOOKUP(D52,ПЛАН!$E$6:$G$504,3,0)) -> 6.664 | K52: 72.02881152
C53: =IFERROR(INDEX(ПЛАН!$D$6:$D$504,MATCH(SMALL((ПЛАН!$H$6:$H$504="FC-TF(шток)")*COUNTIF(ПЛАН!$D$6:$D$504,"<="&ПЛАН!$D$6:$D$504),COUNTIF(ПЛАН!$H$6:$H$504,"<>FC-TF(шток)")+ROW(D46)),COUNTIF(ПЛАН!$D$6:$D$504,"<="&ПЛАН!$D$6:$D$504),0)),"0") -> Шток | D53: =IFERROR(INDEX(ПЛАН!$E$6:$E$504,MATCH(SMALL((ПЛАН!$H$6:$H$504="FC-TF(шток)")*COUNTIF(ПЛАН!$D$6:$D$504,"<="&ПЛАН!$D$6:$D$504)+ROW(ПЛАН!$E$6:$E$504)%,COUNTIF(ПЛАН!$H$6:$H$504,"<>FC-TF(шток)")+ROW(E46)),COUNTIF(ПЛАН!$D$6:$D$504,"<="&ПЛАН!$D$6:$D$504)+ROW(ПЛАН!$E$6:$E$504)%,0)),"0") -> А1-160/330.356 | E53: 11.10666667 | F53: =IF(ISNA(VLOOKUP(D53,ПЛАН!$E$6:$G$504,2,0)),0,VLOOKUP(D53,ПЛАН!$E$6:$G$504,2,0)) -> 0 | G53: 0 | J53: =IF(ISNA(VLOOKUP(D53,ПЛАН!$E$6:$G$504,3,0)),0,VLOOKUP(D53,ПЛАН!$E$6:$G$504,3,0)) -> 6.664 | K53: 72.02881152
C54: =IFERROR(INDEX(ПЛАН!$D$6:$D$504,MATCH(SMALL((ПЛАН!$H$6:$H$504="FC-TF(шток)")*COUNTIF(ПЛАН!$D$6:$D$504,"<="&ПЛАН!$D$6:$D$504),COUNTIF(ПЛАН!$H$6:$H$504,"<>FC-TF(шток)")+ROW(D47)),COUNTIF(ПЛАН!$D$6:$D$504,"<="&ПЛАН!$D$6:$D$504),0)),"0") -> Шток | D54: =IFERROR(INDEX(ПЛАН!$E$6:$E$504,MATCH(SMALL((ПЛАН!$H$6:$H$504="FC-TF(шток)")*COUNTIF(ПЛАН!$D$6:$D$504,"<="&ПЛАН!$D$6:$D$504)+ROW(ПЛАН!$E$6:$E$504)%,COUNTIF(ПЛАН!$H$6:$H$504,"<>FC-TF(шток)")+ROW(E47)),COUNTIF(ПЛАН!$D$6:$D$504,"<="&ПЛАН!$D$6:$D$504)+ROW(ПЛАН!$E$6:$E$504)%,0)),"0") -> А3.40-295/434.482 | E54: 0 | F54: =IF(ISNA(VLOOKUP(D54,ПЛАН!$E$6:$G$504,2,0)),0,VLOOKUP(D54,ПЛАН!$E$6:$G$504,2,0)) -> 0 | G54: 0 | J54: =IF(ISNA(VLOOKUP(D54,ПЛАН!$E$6:$G$504,3,0)),0,VLOOKUP(D54,ПЛАН!$E$6:$G$504,3,0)) -> 0
C55: =IFERROR(INDEX(ПЛАН!$D$6:$D$504,MATCH(SMALL((ПЛАН!$H$6:$H$504="FC-TF(шток)")*COUNTIF(ПЛАН!$D$6:$D$504,"<="&ПЛАН!$D$6:$D$504),COUNTIF(ПЛАН!$H$6:$H$504,"<>FC-TF(шток)")+ROW(D48)),COUNTIF(ПЛАН!$D$6:$D$504,"<="&ПЛАН!$D$6:$D$504),0)),"0") -> Шток | D55: =IFERROR(INDEX(ПЛАН!$E$6:$E$504,MATCH(SMALL((ПЛАН!$H$6:$H$504="FC-TF(шток)")*COUNTIF(ПЛАН!$D$6:$D$504,"<="&ПЛАН!$D$6:$D$504)+ROW(ПЛАН!$E$6:$E$504)%,COUNTIF(ПЛАН!$H$6:$H$504,"<>FC-TF(шток)")+ROW(E48)),COUNTIF(ПЛАН!$D$6:$D$504,"<="&ПЛАН!$D$6:$D$504)+ROW(ПЛАН!$E$6:$E$504)%,0)),"0") -> УЛИГ.40.А1.452995.356-083 | E55: 4.516666667 | F55: =IF(ISNA(VLOOKUP(D55,ПЛАН!$E$6:$G$504,2,0)),0,VLOOKUP(D55,ПЛАН!$E$6:$G$504,2,0)) -> 4 | G55: 0.1806666667 | J55: =IF(ISNA(VLOOKUP(D55,ПЛАН!$E$6:$G$504,3,0)),0,VLOOKUP(D55,ПЛАН!$E$6:$G$504,3,0)) -> 2.71 | K55: 177.1217712
C56: =IFERROR(INDEX(ПЛАН!$D$6:$D$504,MATCH(SMALL((ПЛАН!$H$6:$H$504="FC-TF(шток)")*COUNTIF(ПЛАН!$D$6:$D$504,"<="&ПЛАН!$D$6:$D$504),COUNTIF(ПЛАН!$H$6:$H$504,"<>FC-TF(шток)")+ROW(D49)),COUNTIF(ПЛАН!$D$6:$D$504,"<="&ПЛАН!$D$6:$D$504),0)),"0") -> Шток | D56: =IFERROR(INDEX(ПЛАН!$E$6:$E$504,MATCH(SMALL((ПЛАН!$H$6:$H$504="FC-TF(шток)")*COUNTIF(ПЛАН!$D$6:$D$504,"<="&ПЛАН!$D$6:$D$504)+ROW(ПЛАН!$E$6:$E$504)%,COUNTIF(ПЛАН!$H$6:$H$504,"<>FC-TF(шток)")+ROW(E49)),COUNTIF(ПЛАН!$D$6:$D$504,"<="&ПЛАН!$D$6:$D$504)+ROW(ПЛАН!$E$6:$E$504)%,0)),"0") -> УЛИГ.50.А1.452995.356-034 | E56: 4.583333333 | F56: =IF(ISNA(VLOOKUP(D56,ПЛАН!$E$6:$G$504,2,0)),0,VLOOKUP(D56,ПЛАН!$E$6:$G$504,2,0)) -> 6 | G56: 0.275 | J56: =IF(ISNA(VLOOKUP(D56,ПЛАН!$E$6:$G$504,3,0)),0,VLOOKUP(D56,ПЛАН!$E$6:$G$504,3,0)) -> 2.75 | K56: 174.5454545
C57: =IFERROR(INDEX(ПЛАН!$D$6:$D$504,MATCH(SMALL((ПЛАН!$H$6:$H$504="FC-TF(шток)")*COUNTIF(ПЛАН!$D$6:$D$504,"<="&ПЛАН!$D$6:$D$504),COUNTIF(ПЛАН!$H$6:$H$504,"<>FC-TF(шток)")+ROW(D50)),COUNTIF(ПЛАН!$D$6:$D$504,"<="&ПЛАН!$D$6:$D$504),0)),"0") -> Шток | D57: =IFERROR(INDEX(ПЛАН!$E$6:$E$504,MATCH(SMALL((ПЛАН!$H$6:$H$504="FC-TF(шток)")*COUNTIF(ПЛАН!$D$6:$D$504,"<="&ПЛАН!$D$6:$D$504)+ROW(ПЛАН!$E$6:$E$504)%,COUNTIF(ПЛАН!$H$6:$H$504,"<>FC-TF(шток)")+ROW(E50)),COUNTIF(ПЛАН!$D$6:$D$504,"<="&ПЛАН!$D$6:$D$504)+ROW(ПЛАН!$E$6:$E$504)%,0)),"0") -> 333.00.204-10 | E57: 0 | F57: =IF(ISNA(VLOOKUP(D57,ПЛАН!$E$6:$G$504,2,0)),0,VLOOKUP(D57,ПЛАН!$E$6:$G$504,2,0)) -> 0 | G57: 0 | J57: =IF(ISNA(VLOOKUP(D57,ПЛАН!$E$6:$G$504,3,0)),0,VLOOKUP(D57,ПЛАН!$E$6:$G$504,3,0)) -> 0
C58: =IFERROR(INDEX(ПЛАН!$D$6:$D$504,MATCH(SMALL((ПЛАН!$H$6:$H$504="FC-TF(шток)")*COUNTIF(ПЛАН!$D$6:$D$504,"<="&ПЛАН!$D$6:$D$504),COUNTIF(ПЛАН!$H$6:$H$504,"<>FC-TF(шток)")+ROW(D51)),COUNTIF(ПЛАН!$D$6:$D$504,"<="&ПЛАН!$D$6:$D$504),0)),"0") -> 0 | D58: =IFERROR(INDEX(ПЛАН!$E$6:$E$504,MATCH(SMALL((ПЛАН!$H$6:$H$504="FC-TF(шток)")*COUNTIF(ПЛАН!$D$6:$D$504,"<="&ПЛАН!$D$6:$D$504)+ROW(ПЛАН!$E$6:$E$504)%,COUNTIF(ПЛАН!$H$6:$H$504,"<>FC-TF(шток)")+ROW(E51)),COUNTIF(ПЛАН!$D$6:$D$504,"<="&ПЛАН!$D$6:$D$504)+ROW(ПЛАН!$E$6:$E$504)%,0)),"0") -> 0 | E58: 0 | F58: =IF(ISNA(VLOOKUP(D58,ПЛАН!$E$6:$G$504,2,0)),0,VLOOKUP(D58,ПЛАН!$E$6:$G$504,2,0)) -> 0 | G58: 0 | J58: =IF(ISNA(VLOOKUP(D58,ПЛАН!$E$6:$G$504,3,0)),0,VLOOKUP(D58,ПЛАН!$E$6:$G$504,3,0)) -> 0
C59: =IFERROR(INDEX(ПЛАН!$D$6:$D$504,MATCH(SMALL((ПЛАН!$H$6:$H$504="FC-TF(шток)")*COUNTIF(ПЛАН!$D$6:$D$504,"<="&ПЛАН!$D$6:$D$504),COUNTIF(ПЛАН!$H$6:$H$504,"<>FC-TF(шток)")+ROW(D52)),COUNTIF(ПЛАН!$D$6:$D$504,"<="&ПЛАН!$D$6:$D$504),0)),"0") -> 0 | D59: =IFERROR(INDEX(ПЛАН!$E$6:$E$504,MATCH(SMALL((ПЛАН!$H$6:$H$504="FC-TF(шток)")*COUNTIF(ПЛАН!$D$6:$D$504,"<="&ПЛАН!$D$6:$D$504)+ROW(ПЛАН!$E$6:$E$504)%,COUNTIF(ПЛАН!$H$6:$H$504,"<>FC-TF(шток)")+ROW(E52)),COUNTIF(ПЛАН!$D$6:$D$504,"<="&ПЛАН!$D$6:$D$504)+ROW(ПЛАН!$E$6:$E$504)%,0)),"0") -> 0 | E59: 0 | F59: =IF(ISNA(VLOOKUP(D59,ПЛАН!$E$6:$G$504,2,0)),0,VLOOKUP(D59,ПЛАН!$E$6:$G$504,2,0)) -> 0 | G59: 0 | J59: =IF(ISNA(VLOOKUP(D59,ПЛАН!$E$6:$G$504,3,0)),0,VLOOKUP(D59,ПЛАН!$E$6:$G$504,3,0)) -> 0
C60: =IFERROR(INDEX(ПЛАН!$D$6:$D$504,MATCH(SMALL((ПЛАН!$H$6:$H$504="FC-TF(шток)")*COUNTIF(ПЛАН!$D$6:$D$504,"<="&ПЛАН!$D$6:$D$504),COUNTIF(ПЛАН!$H$6:$H$504,"<>FC-TF(шток)")+ROW(D53)),COUNTIF(ПЛАН!$D$6:$D$504,"<="&ПЛАН!$D$6:$D$504),0)),"0") -> 0 | D60: =IFERROR(INDEX(ПЛАН!$E$6:$E$504,MATCH(SMALL((ПЛАН!$H$6:$H$504="FC-TF(шток)")*COUNTIF(ПЛАН!$D$6:$D$504,"<="&ПЛАН!$D$6:$D$504)+ROW(ПЛАН!$E$6:$E$504)%,COUNTIF(ПЛАН!$H$6:$H$504,"<>FC-TF(шток)")+ROW(E53)),COUNTIF(ПЛАН!$D$6:$D$504,"<="&ПЛАН!$D$6:$D$504)+ROW(ПЛАН!$E$6:$E$504)%,0)),"0") -> 0 | E60: 0 | F60: =IF(ISNA(VLOOKUP(D60,ПЛАН!$E$6:$G$504,2,0)),0,VLOOKUP(D60,ПЛАН!$E$6:$G$504,2,0)) -> 0 | G60: 0 | J60: =IF(ISNA(VLOOKUP(D60,ПЛАН!$E$6:$G$504,3,0)),0,VLOOKUP(D60,ПЛАН!$E$6:$G$504,3,0)) -> 0
C61: =IFERROR(INDEX(ПЛАН!$D$6:$D$504,MATCH(SMALL((ПЛАН!$H$6:$H$504="FC-TF(шток)")*COUNTIF(ПЛАН!$D$6:$D$504,"<="&ПЛАН!$D$6:$D$504),COUNTIF(ПЛАН!$H$6:$H$504,"<>FC-TF(шток)")+ROW(D54)),COUNTIF(ПЛАН!$D$6:$D$504,"<="&ПЛАН!$D$6:$D$504),0)),"0") -> 0 | D61: =IFERROR(INDEX(ПЛАН!$E$6:$E$504,MATCH(SMALL((ПЛАН!$H$6:$H$504="FC-TF(шток)")*COUNTIF(ПЛАН!$D$6:$D$504,"<="&ПЛАН!$D$6:$D$504)+ROW(ПЛАН!$E$6:$E$504)%,COUNTIF(ПЛАН!$H$6:$H$504,"<>FC-TF(шток)")+ROW(E54)),COUNTIF(ПЛАН!$D$6:$D$504,"<="&ПЛАН!$D$6:$D$504)+ROW(ПЛАН!$E$6:$E$504)%,0)),"0") -> 0 | E61: 0 | F61: =IF(ISNA(VLOOKUP(D61,ПЛАН!$E$6:$G$504,2,0)),0,VLOOKUP(D61,ПЛАН!$E$6:$G$504,2,0)) -> 0 | G61: 0 | J61: =IF(ISNA(VLOOKUP(D61,ПЛАН!$E$6:$G$504,3,0)),0,VLOOKUP(D61,ПЛАН!$E$6:$G$504,3,0)) -> 0
C62: =IFERROR(INDEX(ПЛАН!$D$6:$D$504,MATCH(SMALL((ПЛАН!$H$6:$H$504="FC-TF(шток)")*COUNTIF(ПЛАН!$D$6:$D$504,"<="&ПЛАН!$D$6:$D$504),COUNTIF(ПЛАН!$H$6:$H$504,"<>FC-TF(шток)")+ROW(D55)),COUNTIF(ПЛАН!$D$6:$D$504,"<="&ПЛАН!$D$6:$D$504),0)),"0") -> 0 | D62: =IFERROR(INDEX(ПЛАН!$E$6:$E$504,MATCH(SMALL((ПЛАН!$H$6:$H$504="FC-TF(шток)")*COUNTIF(ПЛАН!$D$6:$D$504,"<="&ПЛАН!$D$6:$D$504)+ROW(ПЛАН!$E$6:$E$504)%,COUNTIF(ПЛАН!$H$6:$H$504,"<>FC-TF(шток)")+ROW(E55)),COUNTIF(ПЛАН!$D$6:$D$504,"<="&ПЛАН!$D$6:$D$504)+ROW(ПЛАН!$E$6:$E$504)%,0)),"0") -> 0 | E62: 0 | F62: =IF(ISNA(VLOOKUP(D62,ПЛАН!$E$6:$G$504,2,0)),0,VLOOKUP(D62,ПЛАН!$E$6:$G$504,2,0)) -> 0 | G62: 0 | J62: =IF(ISNA(VLOOKUP(D62,ПЛАН!$E$6:$G$504,3,0)),0,VLOOKUP(D62,ПЛАН!$E$6:$G$504,3,0)) -> 0
C63: =IFERROR(INDEX(ПЛАН!$D$6:$D$504,MATCH(SMALL((ПЛАН!$H$6:$H$504="FC-TF(шток)")*COUNTIF(ПЛАН!$D$6:$D$504,"<="&ПЛАН!$D$6:$D$504),COUNTIF(ПЛАН!$H$6:$H$504,"<>FC-TF(шток)")+ROW(D56)),COUNTIF(ПЛАН!$D$6:$D$504,"<="&ПЛАН!$D$6:$D$504),0)),"0") -> 0 | D63: =IFERROR(INDEX(ПЛАН!$E$6:$E$504,MATCH(SMALL((ПЛАН!$H$6:$H$504="FC-TF(шток)")*COUNTIF(ПЛАН!$D$6:$D$504,"<="&ПЛАН!$D$6:$D$504)+ROW(ПЛАН!$E$6:$E$504)%,COUNTIF(ПЛАН!$H$6:$H$504,"<>FC-TF(шток)")+ROW(E56)),COUNTIF(ПЛАН!$D$6:$D$504,"<="&ПЛАН!$D$6:$D$504)+ROW(ПЛАН!$E$6:$E$504)%,0)),"0") -> 0 | E63: 0 | F63: =IF(ISNA(VLOOKUP(D63,ПЛАН!$E$6:$G$504,2,0)),0,VLOOKUP(D63,ПЛАН!$E$6:$G$504,2,0)) -> 0 | G63: 0 | J63: =IF(ISNA(VLOOKUP(D63,ПЛАН!$E$6:$G$504,3,0)),0,VLOOKUP(D63,ПЛАН!$E$6:$G$504,3,0)) -> 0
C64: =IFERROR(INDEX(ПЛАН!$D$6:$D$504,MATCH(SMALL((ПЛАН!$H$6:$H$504="FC-TF(шток)")*COUNTIF(ПЛАН!$D$6:$D$504,"<="&ПЛАН!$D$6:$D$504),COUNTIF(ПЛАН!$H$6:$H$504,"<>FC-TF(шток)")+ROW(D57)),COUNTIF(ПЛАН!$D$6:$D$504,"<="&ПЛАН!$D$6:$D$504),0)),"0") -> 0 | D64: =IFERROR(INDEX(ПЛАН!$E$6:$E$504,MATCH(SMALL((ПЛАН!$H$6:$H$504="FC-TF(шток)")*COUNTIF(ПЛАН!$D$6:$D$504,"<="&ПЛАН!$D$6:$D$504)+ROW(ПЛАН!$E$6:$E$504)%,COUNTIF(ПЛАН!$H$6:$H$504,"<>FC-TF(шток)")+ROW(E57)),COUNTIF(ПЛАН!$D$6:$D$504,"<="&ПЛАН!$D$6:$D$504)+ROW(ПЛАН!$E$6:$E$504)%,0)),"0") -> 0 | E64: 0 | F64: =IF(ISNA(VLOOKUP(D64,ПЛАН!$E$6:$G$504,2,0)),0,VLOOKUP(D64,ПЛАН!$E$6:$G$504,2,0)) -> 0 | G64: 0 | J64: =IF(ISNA(VLOOKUP(D64,ПЛАН!$E$6:$G$504,3,0)),0,VLOOKUP(D64,ПЛАН!$E$6:$G$504,3,0)) -> 0
C65: =IFERROR(INDEX(ПЛАН!$D$6:$D$504,MATCH(SMALL((ПЛАН!$H$6:$H$504="FC-TF(шток)")*COUNTIF(ПЛАН!$D$6:$D$504,"<="&ПЛАН!$D$6:$D$504),COUNTIF(ПЛАН!$H$6:$H$504,"<>FC-TF(шток)")+ROW(D58)),COUNTIF(ПЛАН!$D$6:$D$504,"<="&ПЛАН!$D$6:$D$504),0)),"0") -> 0 | D65: =IFERROR(INDEX(ПЛАН!$E$6:$E$504,MATCH(SMALL((ПЛАН!$H$6:$H$504="FC-TF(шток)")*COUNTIF(ПЛАН!$D$6:$D$504,"<="&ПЛАН!$D$6:$D$504)+ROW(ПЛАН!$E$6:$E$504)%,COUNTIF(ПЛАН!$H$6:$H$504,"<>FC-TF(шток)")+ROW(E58)),COUNTIF(ПЛАН!$D$6:$D$504,"<="&ПЛАН!$D$6:$D$504)+ROW(ПЛАН!$E$6:$E$504)%,0)),"0") -> 0 | E65: 0 | F65: =IF(ISNA(VLOOKUP(D65,ПЛАН!$E$6:$G$504,2,0)),0,VLOOKUP(D65,ПЛАН!$E$6:$G$504,2,0)) -> 0 | G65: 0 | J65: =IF(ISNA(VLOOKUP(D65,ПЛАН!$E$6:$G$504,3,0)),0,VLOOKUP(D65,ПЛАН!$E$6:$G$504,3,0)) -> 0
C66: =IFERROR(INDEX(ПЛАН!$D$6:$D$504,MATCH(SMALL((ПЛАН!$H$6:$H$504="FC-TF(шток)")*COUNTIF(ПЛАН!$D$6:$D$504,"<="&ПЛАН!$D$6:$D$504),COUNTIF(ПЛАН!$H$6:$H$504,"<>FC-TF(шток)")+ROW(D59)),COUNTIF(ПЛАН!$D$6:$D$504,"<="&ПЛАН!$D$6:$D$504),0)),"0") -> 0 | D66: =IFERROR(INDEX(ПЛАН!$E$6:$E$504,MATCH(SMALL((ПЛАН!$H$6:$H$504="FC-TF(шток)")*COUNTIF(ПЛАН!$D$6:$D$504,"<="&ПЛАН!$D$6:$D$504)+ROW(ПЛАН!$E$6:$E$504)%,COUNTIF(ПЛАН!$H$6:$H$504,"<>FC-TF(шток)")+ROW(E59)),COUNTIF(ПЛАН!$D$6:$D$504,"<="&ПЛАН!$D$6:$D$504)+ROW(ПЛАН!$E$6:$E$504)%,0)),"0") -> 0 | E66: 0 | F66: =IF(ISNA(VLOOKUP(D66,ПЛАН!$E$6:$G$504,2,0)),0,VLOOKUP(D66,ПЛАН!$E$6:$G$504,2,0)) -> 0 | G66: 0 | J66: =IF(ISNA(VLOOKUP(D66,ПЛАН!$E$6:$G$504,3,0)),0,VLOOKUP(D66,ПЛАН!$E$6:$G$504,3,0)) -> 0
C67: =IFERROR(INDEX(ПЛАН!$D$6:$D$504,MATCH(SMALL((ПЛАН!$H$6:$H$504="FC-TF(шток)")*COUNTIF(ПЛАН!$D$6:$D$504,"<="&ПЛАН!$D$6:$D$504),COUNTIF(ПЛАН!$H$6:$H$504,"<>FC-TF(шток)")+ROW(D60)),COUNTIF(ПЛАН!$D$6:$D$504,"<="&ПЛАН!$D$6:$D$504),0)),"0") -> 0 | D67: =IFERROR(INDEX(ПЛАН!$E$6:$E$504,MATCH(SMALL((ПЛАН!$H$6:$H$504="FC-TF(шток)")*COUNTIF(ПЛАН!$D$6:$D$504,"<="&ПЛАН!$D$6:$D$504)+ROW(ПЛАН!$E$6:$E$504)%,COUNTIF(ПЛАН!$H$6:$H$504,"<>FC-TF(шток)")+ROW(E60)),COUNTIF(ПЛАН!$D$6:$D$504,"<="&ПЛАН!$D$6:$D$504)+ROW(ПЛАН!$E$6:$E$504)%,0)),"0") -> 0 | E67: 0 | F67: =IF(ISNA(VLOOKUP(D67,ПЛАН!$E$6:$G$504,2,0)),0,VLOOKUP(D67,ПЛАН!$E$6:$G$504,2,0)) -> 0 | G67: 0 | J67: =IF(ISNA(VLOOKUP(D67,ПЛАН!$E$6:$G$504,3,0)),0,VLOOKUP(D67,ПЛАН!$E$6:$G$504,3,0)) -> 0
C68: =IFERROR(INDEX(ПЛАН!$D$6:$D$504,MATCH(SMALL((ПЛАН!$H$6:$H$504="FC-TF(шток)")*COUNTIF(ПЛАН!$D$6:$D$504,"<="&ПЛАН!$D$6:$D$504),COUNTIF(ПЛАН!$H$6:$H$504,"<>FC-TF(шток)")+ROW(D61)),COUNTIF(ПЛАН!$D$6:$D$504,"<="&ПЛАН!$D$6:$D$504),0)),"0") -> 0 | D68: =IFERROR(INDEX(ПЛАН!$E$6:$E$504,MATCH(SMALL((ПЛАН!$H$6:$H$504="FC-TF(шток)")*COUNTIF(ПЛАН!$D$6:$D$504,"<="&ПЛАН!$D$6:$D$504)+ROW(ПЛАН!$E$6:$E$504)%,COUNTIF(ПЛАН!$H$6:$H$504,"<>FC-TF(шток)")+ROW(E61)),COUNTIF(ПЛАН!$D$6:$D$504,"<="&ПЛАН!$D$6:$D$504)+ROW(ПЛАН!$E$6:$E$504)%,0)),"0") -> 0 | E68: 0 | F68: =IF(ISNA(VLOOKUP(D68,ПЛАН!$E$6:$G$504,2,0)),0,VLOOKUP(D68,ПЛАН!$E$6:$G$504,2,0)) -> 0 | G68: 0 | J68: =IF(ISNA(VLOOKUP(D68,ПЛАН!$E$6:$G$504,3,0)),0,VLOOKUP(D68,ПЛАН!$E$6:$G$504,3,0)) -> 0
C69: =IFERROR(INDEX(ПЛАН!$D$6:$D$504,MATCH(SMALL((ПЛАН!$H$6:$H$504="FC-TF(шток)")*COUNTIF(ПЛАН!$D$6:$D$504,"<="&ПЛАН!$D$6:$D$504),COUNTIF(ПЛАН!$H$6:$H$504,"<>FC-TF(шток)")+ROW(D62)),COUNTIF(ПЛАН!$D$6:$D$504,"<="&ПЛАН!$D$6:$D$504),0)),"0") -> 0 | D69: =IFERROR(INDEX(ПЛАН!$E$6:$E$504,MATCH(SMALL((ПЛАН!$H$6:$H$504="FC-TF(шток)")*COUNTIF(ПЛАН!$D$6:$D$504,"<="&ПЛАН!$D$6:$D$504)+ROW(ПЛАН!$E$6:$E$504)%,COUNTIF(ПЛАН!$H$6:$H$504,"<>FC-TF(шток)")+ROW(E62)),COUNTIF(ПЛАН!$D$6:$D$504,"<="&ПЛАН!$D$6:$D$504)+ROW(ПЛАН!$E$6:$E$504)%,0)),"0") -> 0 | E69: 0 | F69: =IF(ISNA(VLOOKUP(D69,ПЛАН!$E$6:$G$504,2,0)),0,VLOOKUP(D69,ПЛАН!$E$6:$G$504,2,0)) -> 0 | G69: 0 | J69: =IF(ISNA(VLOOKUP(D69,ПЛАН!$E$6:$G$504,3,0)),0,VLOOKUP(D69,ПЛАН!$E$6:$G$504,3,0)) -> 0
C70: =IFERROR(INDEX(ПЛАН!$D$6:$D$504,MATCH(SMALL((ПЛАН!$H$6:$H$504="FC-TF(шток)")*COUNTIF(ПЛАН!$D$6:$D$504,"<="&ПЛАН!$D$6:$D$504),COUNTIF(ПЛАН!$H$6:$H$504,"<>FC-TF(шток)")+ROW(D63)),COUNTIF(ПЛАН!$D$6:$D$504,"<="&ПЛАН!$D$6:$D$504),0)),"0") -> 0 | D70: =IFERROR(INDEX(ПЛАН!$E$6:$E$504,MATCH(SMALL((ПЛАН!$H$6:$H$504="FC-TF(шток)")*COUNTIF(ПЛАН!$D$6:$D$504,"<="&ПЛАН!$D$6:$D$504)+ROW(ПЛАН!$E$6:$E$504)%,COUNTIF(ПЛАН!$H$6:$H$504,"<>FC-TF(шток)")+ROW(E63)),COUNTIF(ПЛАН!$D$6:$D$504,"<="&ПЛАН!$D$6:$D$504)+ROW(ПЛАН!$E$6:$E$504)%,0)),"0") -> 0 | E70: 0 | F70: =IF(ISNA(VLOOKUP(D70,ПЛАН!$E$6:$G$504,2,0)),0,VLOOKUP(D70,ПЛАН!$E$6:$G$504,2,0)) -> 0 | G70: 0 | J70: =IF(ISNA(VLOOKUP(D70,ПЛАН!$E$6:$G$504,3,0)),0,VLOOKUP(D70,ПЛАН!$E$6:$G$504,3,0)) -> 0
C71: =IFERROR(INDEX(ПЛАН!$D$6:$D$504,MATCH(SMALL((ПЛАН!$H$6:$H$504="FC-TF(шток)")*COUNTIF(ПЛАН!$D$6:$D$504,"<="&ПЛАН!$D$6:$D$504),COUNTIF(ПЛАН!$H$6:$H$504,"<>FC-TF(шток)")+ROW(D64)),COUNTIF(ПЛАН!$D$6:$D$504,"<="&ПЛАН!$D$6:$D$504),0)),"0") -> 0 | D71: =IFERROR(INDEX(ПЛАН!$E$6:$E$504,MATCH(SMALL((ПЛАН!$H$6:$H$504="FC-TF(шток)")*COUNTIF(ПЛАН!$D$6:$D$504,"<="&ПЛАН!$D$6:$D$504)+ROW(ПЛАН!$E$6:$E$504)%,COUNTIF(ПЛАН!$H$6:$H$504,"<>FC-TF(шток)")+ROW(E64)),COUNTIF(ПЛАН!$D$6:$D$504,"<="&ПЛАН!$D$6:$D$504)+ROW(ПЛАН!$E$6:$E$504)%,0)),"0") -> 0 | E71: 0 | F71: =IF(ISNA(VLOOKUP(D71,ПЛАН!$E$6:$G$504,2,0)),0,VLOOKUP(D71,ПЛАН!$E$6:$G$504,2,0)) -> 0 | G71: 0 | J71: =IF(ISNA(VLOOKUP(D71,ПЛАН!$E$6:$G$504,3,0)),0,VLOOKUP(D71,ПЛАН!$E$6:$G$504,3,0)) -> 0
C72: =IFERROR(INDEX(ПЛАН!$D$6:$D$504,MATCH(SMALL((ПЛАН!$H$6:$H$504="FC-TF(шток)")*COUNTIF(ПЛАН!$D$6:$D$504,"<="&ПЛАН!$D$6:$D$504),COUNTIF(ПЛАН!$H$6:$H$504,"<>FC-TF(шток)")+ROW(D65)),COUNTIF(ПЛАН!$D$6:$D$504,"<="&ПЛАН!$D$6:$D$504),0)),"0") -> 0 | D72: =IFERROR(INDEX(ПЛАН!$E$6:$E$504,MATCH(SMALL((ПЛАН!$H$6:$H$504="FC-TF(шток)")*COUNTIF(ПЛАН!$D$6:$D$504,"<="&ПЛАН!$D$6:$D$504)+ROW(ПЛАН!$E$6:$E$504)%,COUNTIF(ПЛАН!$H$6:$H$504,"<>FC-TF(шток)")+ROW(E65)),COUNTIF(ПЛАН!$D$6:$D$504,"<="&ПЛАН!$D$6:$D$504)+ROW(ПЛАН!$E$6:$E$504)%,0)),"0") -> 0 | E72: 0 | F72: =IF(ISNA(VLOOKUP(D72,ПЛАН!$E$6:$G$504,2,0)),0,VLOOKUP(D72,ПЛАН!$E$6:$G$504,2,0)) -> 0 | G72: 0 | J72: =IF(ISNA(VLOOKUP(D72,ПЛАН!$E$6:$G$504,3,0)),0,VLOOKUP(D72,ПЛАН!$E$6:$G$504,3,0)) -> 0
C73: =IFERROR(INDEX(ПЛАН!$D$6:$D$504,MATCH(SMALL((ПЛАН!$H$6:$H$504="FC-TF(шток)")*COUNTIF(ПЛАН!$D$6:$D$504,"<="&ПЛАН!$D$6:$D$504),COUNTIF(ПЛАН!$H$6:$H$504,"<>FC-TF(шток)")+ROW(D66)),COUNTIF(ПЛАН!$D$6:$D$504,"<="&ПЛАН!$D$6:$D$504),0)),"0") -> 0 | D73: =IFERROR(INDEX(ПЛАН!$E$6:$E$504,MATCH(SMALL((ПЛАН!$H$6:$H$504="FC-TF(шток)")*COUNTIF(ПЛАН!$D$6:$D$504,"<="&ПЛАН!$D$6:$D$504)+ROW(ПЛАН!$E$6:$E$504)%,COUNTIF(ПЛАН!$H$6:$H$504,"<>FC-TF(шток)")+ROW(E66)),COUNTIF(ПЛАН!$D$6:$D$504,"<="&ПЛАН!$D$6:$D$504)+ROW(ПЛАН!$E$6:$E$504)%,0)),"0") -> 0 | E73: =J73/60*100 -> 0 | F73: =IF(ISNA(VLOOKUP(D73,ПЛАН!$E$6:$G$504,2,0)),0,VLOOKUP(D73,ПЛАН!$E$6:$G$504,2,0)) -> 0 | G73: =E73*F73/100 -> 0 | J73: =IF(ISNA(VLOOKUP(D73,ПЛАН!$E$6:$G$504,3,0)),0,VLOOKUP(D73,ПЛАН!$E$6:$G$504,3,0)) -> 0 | K73: =8*60/J73 -> 
C74: =IFERROR(INDEX(ПЛАН!$D$6:$D$504,MATCH(SMALL((ПЛАН!$H$6:$H$504="FC-TF(шток)")*COUNTIF(ПЛАН!$D$6:$D$504,"<="&ПЛАН!$D$6:$D$504),COUNTIF(ПЛАН!$H$6:$H$504,"<>FC-TF(шток)")+ROW(D67)),COUNTIF(ПЛАН!$D$6:$D$504,"<="&ПЛАН!$D$6:$D$504),0)),"0") -> 0 | D74: =IFERROR(INDEX(ПЛАН!$E$6:$E$504,MATCH(SMALL((ПЛАН!$H$6:$H$504="FC-TF(шток)")*COUNTIF(ПЛАН!$D$6:$D$504,"<="&ПЛАН!$D$6:$D$504)+ROW(ПЛАН!$E$6:$E$504)%,COUNTIF(ПЛАН!$H$6:$H$504,"<>FC-TF(шток)")+ROW(E67)),COUNTIF(ПЛАН!$D$6:$D$504,"<="&ПЛАН!$D$6:$D$504)+ROW(ПЛАН!$E$6:$E$504)%,0)),"0") -> 0 | E74: 0 | F74: =IF(ISNA(VLOOKUP(D74,ПЛАН!$E$6:$G$504,2,0)),0,VLOOKUP(D74,ПЛАН!$E$6:$G$504,2,0)) -> 0 | G74: 0 | J74: =IF(ISNA(VLOOKUP(D74,ПЛАН!$E$6:$G$504,3,0)),0,VLOOKUP(D74,ПЛАН!$E$6:$G$504,3,0)) -> 0
C75: =IFERROR(INDEX(ПЛАН!$D$6:$D$504,MATCH(SMALL((ПЛАН!$H$6:$H$504="FC-TF(шток)")*COUNTIF(ПЛАН!$D$6:$D$504,"<="&ПЛАН!$D$6:$D$504),COUNTIF(ПЛАН!$H$6:$H$504,"<>FC-TF(шток)")+ROW(D68)),COUNTIF(ПЛАН!$D$6:$D$504,"<="&ПЛАН!$D$6:$D$504),0)),"0") -> 0 | D75: =IFERROR(INDEX(ПЛАН!$E$6:$E$504,MATCH(SMALL((ПЛАН!$H$6:$H$504="FC-TF(шток)")*COUNTIF(ПЛАН!$D$6:$D$504,"<="&ПЛАН!$D$6:$D$504)+ROW(ПЛАН!$E$6:$E$504)%,COUNTIF(ПЛАН!$H$6:$H$504,"<>FC-TF(шток)")+ROW(E68)),COUNTIF(ПЛАН!$D$6:$D$504,"<="&ПЛАН!$D$6:$D$504)+ROW(ПЛАН!$E$6:$E$504)%,0)),"0") -> 0 | E75: 0 | F75: =IF(ISNA(VLOOKUP(D75,ПЛАН!$E$6:$G$504,2,0)),0,VLOOKUP(D75,ПЛАН!$E$6:$G$504,2,0)) -> 0 | G75: 0 | J75: =IF(ISNA(VLOOKUP(D75,ПЛАН!$E$6:$G$504,3,0)),0,VLOOKUP(D75,ПЛАН!$E$6:$G$504,3,0)) -> 0
C76: =IFERROR(INDEX(ПЛАН!$D$6:$D$504,MATCH(SMALL((ПЛАН!$H$6:$H$504="FC-TF(шток)")*COUNTIF(ПЛАН!$D$6:$D$504,"<="&ПЛАН!$D$6:$D$504),COUNTIF(ПЛАН!$H$6:$H$504,"<>FC-TF(шток)")+ROW(D69)),COUNTIF(ПЛАН!$D$6:$D$504,"<="&ПЛАН!$D$6:$D$504),0)),"0") -> 0 | D76: =IFERROR(INDEX(ПЛАН!$E$6:$E$504,MATCH(SMALL((ПЛАН!$H$6:$H$504="FC-TF(шток)")*COUNTIF(ПЛАН!$D$6:$D$504,"<="&ПЛАН!$D$6:$D$504)+ROW(ПЛАН!$E$6:$E$504)%,COUNTIF(ПЛАН!$H$6:$H$504,"<>FC-TF(шток)")+ROW(E69)),COUNTIF(ПЛАН!$D$6:$D$504,"<="&ПЛАН!$D$6:$D$504)+ROW(ПЛАН!$E$6:$E$504)%,0)),"0") -> 0 | E76: 0 | F76: =IF(ISNA(VLOOKUP(D76,ПЛАН!$E$6:$G$504,2,0)),0,VLOOKUP(D76,ПЛАН!$E$6:$G$504,2,0)) -> 0 | G76: 0 | J76: =IF(ISNA(VLOOKUP(D76,ПЛАН!$E$6:$G$504,3,0)),0,VLOOKUP(D76,ПЛАН!$E$6:$G$504,3,0)) -> 0
C77: =IFERROR(INDEX(ПЛАН!$D$6:$D$504,MATCH(SMALL((ПЛАН!$H$6:$H$504="FC-TF(шток)")*COUNTIF(ПЛАН!$D$6:$D$504,"<="&ПЛАН!$D$6:$D$504),COUNTIF(ПЛАН!$H$6:$H$504,"<>FC-TF(шток)")+ROW(D70)),COUNTIF(ПЛАН!$D$6:$D$504,"<="&ПЛАН!$D$6:$D$504),0)),"0") -> 0 | D77: =IFERROR(INDEX(ПЛАН!$E$6:$E$504,MATCH(SMALL((ПЛАН!$H$6:$H$504="FC-TF(шток)")*COUNTIF(ПЛАН!$D$6:$D$504,"<="&ПЛАН!$D$6:$D$504)+ROW(ПЛАН!$E$6:$E$504)%,COUNTIF(ПЛАН!$H$6:$H$504,"<>FC-TF(шток)")+ROW(E70)),COUNTIF(ПЛАН!$D$6:$D$504,"<="&ПЛАН!$D$6:$D$504)+ROW(ПЛАН!$E$6:$E$504)%,0)),"0") -> 0 | E77: 0 | F77: =IF(ISNA(VLOOKUP(D77,ПЛАН!$E$6:$G$504,2,0)),0,VLOOKUP(D77,ПЛАН!$E$6:$G$504,2,0)) -> 0 | G77: 0 | J77: =IF(ISNA(VLOOKUP(D77,ПЛАН!$E$6:$G$504,3,0)),0,VLOOKUP(D77,ПЛАН!$E$6:$G$504,3,0)) -> 0
C78: =IFERROR(INDEX(ПЛАН!$D$6:$D$504,MATCH(SMALL((ПЛАН!$H$6:$H$504="FC-TF(шток)")*COUNTIF(ПЛАН!$D$6:$D$504,"<="&ПЛАН!$D$6:$D$504),COUNTIF(ПЛАН!$H$6:$H$504,"<>FC-TF(шток)")+ROW(D71)),COUNTIF(ПЛАН!$D$6:$D$504,"<="&ПЛАН!$D$6:$D$504),0)),"0") -> 0 | D78: =IFERROR(INDEX(ПЛАН!$E$6:$E$504,MATCH(SMALL((ПЛАН!$H$6:$H$504="FC-TF(шток)")*COUNTIF(ПЛАН!$D$6:$D$504,"<="&ПЛАН!$D$6:$D$504)+ROW(ПЛАН!$E$6:$E$504)%,COUNTIF(ПЛАН!$H$6:$H$504,"<>FC-TF(шток)")+ROW(E71)),COUNTIF(ПЛАН!$D$6:$D$504,"<="&ПЛАН!$D$6:$D$504)+ROW(ПЛАН!$E$6:$E$504)%,0)),"0") -> 0 | E78: 0 | F78: =IF(ISNA(VLOOKUP(D78,ПЛАН!$E$6:$G$504,2,0)),0,VLOOKUP(D78,ПЛАН!$E$6:$G$504,2,0)) -> 0 | G78: 0 | J78: =IF(ISNA(VLOOKUP(D78,ПЛАН!$E$6:$G$504,3,0)),0,VLOOKUP(D78,ПЛАН!$E$6:$G$504,3,0)) -> 0
C79: =IFERROR(INDEX(ПЛАН!$D$6:$D$504,MATCH(SMALL((ПЛАН!$H$6:$H$504="FC-TF(шток)")*COUNTIF(ПЛАН!$D$6:$D$504,"<="&ПЛАН!$D$6:$D$504),COUNTIF(ПЛАН!$H$6:$H$504,"<>FC-TF(шток)")+ROW(D72)),COUNTIF(ПЛАН!$D$6:$D$504,"<="&ПЛАН!$D$6:$D$504),0)),"0") -> 0 | D79: =IFERROR(INDEX(ПЛАН!$E$6:$E$504,MATCH(SMALL((ПЛАН!$H$6:$H$504="FC-TF(шток)")*COUNTIF(ПЛАН!$D$6:$D$504,"<="&ПЛАН!$D$6:$D$504)+ROW(ПЛАН!$E$6:$E$504)%,COUNTIF(ПЛАН!$H$6:$H$504,"<>FC-TF(шток)")+ROW(E72)),COUNTIF(ПЛАН!$D$6:$D$504,"<="&ПЛАН!$D$6:$D$504)+ROW(ПЛАН!$E$6:$E$504)%,0)),"0") -> 0 | E79: 0 | F79: =IF(ISNA(VLOOKUP(D79,ПЛАН!$E$6:$G$504,2,0)),0,VLOOKUP(D79,ПЛАН!$E$6:$G$504,2,0)) -> 0 | G79: 0 | J79: =IF(ISNA(VLOOKUP(D79,ПЛАН!$E$6:$G$504,3,0)),0,VLOOKUP(D79,ПЛАН!$E$6:$G$504,3,0)) -> 0
C80: =IFERROR(INDEX(ПЛАН!$D$6:$D$504,MATCH(SMALL((ПЛАН!$H$6:$H$504="FC-TF(шток)")*COUNTIF(ПЛАН!$D$6:$D$504,"<="&ПЛАН!$D$6:$D$504),COUNTIF(ПЛАН!$H$6:$H$504,"<>FC-TF(шток)")+ROW(D73)),COUNTIF(ПЛАН!$D$6:$D$504,"<="&ПЛАН!$D$6:$D$504),0)),"0") -> 0 | D80: =IFERROR(INDEX(ПЛАН!$E$6:$E$504,MATCH(SMALL((ПЛАН!$H$6:$H$504="FC-TF(шток)")*COUNTIF(ПЛАН!$D$6:$D$504,"<="&ПЛАН!$D$6:$D$504)+ROW(ПЛАН!$E$6:$E$504)%,COUNTIF(ПЛАН!$H$6:$H$504,"<>FC-TF(шток)")+ROW(E73)),COUNTIF(ПЛАН!$D$6:$D$504,"<="&ПЛАН!$D$6:$D$504)+ROW(ПЛАН!$E$6:$E$504)%,0)),"0") -> 0 | E80: 0 | F80: =IF(ISNA(VLOOKUP(D80,ПЛАН!$E$6:$G$504,2,0)),0,VLOOKUP(D80,ПЛАН!$E$6:$G$504,2,0)) -> 0 | G80: 0 | J80: =IF(ISNA(VLOOKUP(D80,ПЛАН!$E$6:$G$504,3,0)),0,VLOOKUP(D80,ПЛАН!$E$6:$G$504,3,0)) -> 0
C81: =IFERROR(INDEX(ПЛАН!$D$6:$D$504,MATCH(SMALL((ПЛАН!$H$6:$H$504="FC-TF(шток)")*COUNTIF(ПЛАН!$D$6:$D$504,"<="&ПЛАН!$D$6:$D$504),COUNTIF(ПЛАН!$H$6:$H$504,"<>FC-TF(шток)")+ROW(D74)),COUNTIF(ПЛАН!$D$6:$D$504,"<="&ПЛАН!$D$6:$D$504),0)),"0") -> 0 | D81: =IFERROR(INDEX(ПЛАН!$E$6:$E$504,MATCH(SMALL((ПЛАН!$H$6:$H$504="FC-TF(шток)")*COUNTIF(ПЛАН!$D$6:$D$504,"<="&ПЛАН!$D$6:$D$504)+ROW(ПЛАН!$E$6:$E$504)%,COUNTIF(ПЛАН!$H$6:$H$504,"<>FC-TF(шток)")+ROW(E74)),COUNTIF(ПЛАН!$D$6:$D$504,"<="&ПЛАН!$D$6:$D$504)+ROW(ПЛАН!$E$6:$E$504)%,0)),"0") -> 0 | E81: 0 | F81: =IF(ISNA(VLOOKUP(D81,ПЛАН!$E$6:$G$504,2,0)),0,VLOOKUP(D81,ПЛАН!$E$6:$G$504,2,0)) -> 0 | G81: 0 | J81: =IF(ISNA(VLOOKUP(D81,ПЛАН!$E$6:$G$504,3,0)),0,VLOOKUP(D81,ПЛАН!$E$6:$G$504,3,0)) -> 0
C82: =IFERROR(INDEX(ПЛАН!$D$6:$D$504,MATCH(SMALL((ПЛАН!$H$6:$H$504="FC-TF(шток)")*COUNTIF(ПЛАН!$D$6:$D$504,"<="&ПЛАН!$D$6:$D$504),COUNTIF(ПЛАН!$H$6:$H$504,"<>FC-TF(шток)")+ROW(D75)),COUNTIF(ПЛАН!$D$6:$D$504,"<="&ПЛАН!$D$6:$D$504),0)),"0") -> 0 | D82: =IFERROR(INDEX(ПЛАН!$E$6:$E$504,MATCH(SMALL((ПЛАН!$H$6:$H$504="FC-TF(шток)")*COUNTIF(ПЛАН!$D$6:$D$504,"<="&ПЛАН!$D$6:$D$504)+ROW(ПЛАН!$E$6:$E$504)%,COUNTIF(ПЛАН!$H$6:$H$504,"<>FC-TF(шток)")+ROW(E75)),COUNTIF(ПЛАН!$D$6:$D$504,"<="&ПЛАН!$D$6:$D$504)+ROW(ПЛАН!$E$6:$E$504)%,0)),"0") -> 0 | E82: 0 | F82: =IF(ISNA(VLOOKUP(D82,ПЛАН!$E$6:$G$504,2,0)),0,VLOOKUP(D82,ПЛАН!$E$6:$G$504,2,0)) -> 0 | G82: 0 | J82: =IF(ISNA(VLOOKUP(D82,ПЛАН!$E$6:$G$504,3,0)),0,VLOOKUP(D82,ПЛАН!$E$6:$G$504,3,0)) -> 0
C83: =IFERROR(INDEX(ПЛАН!$D$6:$D$504,MATCH(SMALL((ПЛАН!$H$6:$H$504="FC-TF(шток)")*COUNTIF(ПЛАН!$D$6:$D$504,"<="&ПЛАН!$D$6:$D$504),COUNTIF(ПЛАН!$H$6:$H$504,"<>FC-TF(шток)")+ROW(D76)),COUNTIF(ПЛАН!$D$6:$D$504,"<="&ПЛАН!$D$6:$D$504),0)),"0") -> 0 | D83: =IFERROR(INDEX(ПЛАН!$E$6:$E$504,MATCH(SMALL((ПЛАН!$H$6:$H$504="FC-TF(шток)")*COUNTIF(ПЛАН!$D$6:$D$504,"<="&ПЛАН!$D$6:$D$504)+ROW(ПЛАН!$E$6:$E$504)%,COUNTIF(ПЛАН!$H$6:$H$504,"<>FC-TF(шток)")+ROW(E76)),COUNTIF(ПЛАН!$D$6:$D$504,"<="&ПЛАН!$D$6:$D$504)+ROW(ПЛАН!$E$6:$E$504)%,0)),"0") -> 0 | E83: 0 | F83: =IF(ISNA(VLOOKUP(D83,ПЛАН!$E$6:$G$504,2,0)),0,VLOOKUP(D83,ПЛАН!$E$6:$G$504,2,0)) -> 0 | G83: 0 | J83: =IF(ISNA(VLOOKUP(D83,ПЛАН!$E$6:$G$504,3,0)),0,VLOOKUP(D83,ПЛАН!$E$6:$G$504,3,0)) -> 0
C84: =IFERROR(INDEX(ПЛАН!$D$6:$D$504,MATCH(SMALL((ПЛАН!$H$6:$H$504="FC-TF(шток)")*COUNTIF(ПЛАН!$D$6:$D$504,"<="&ПЛАН!$D$6:$D$504),COUNTIF(ПЛАН!$H$6:$H$504,"<>FC-TF(шток)")+ROW(D77)),COUNTIF(ПЛАН!$D$6:$D$504,"<="&ПЛАН!$D$6:$D$504),0)),"0") -> 0 | D84: =IFERROR(INDEX(ПЛАН!$E$6:$E$504,MATCH(SMALL((ПЛАН!$H$6:$H$504="FC-TF(шток)")*COUNTIF(ПЛАН!$D$6:$D$504,"<="&ПЛАН!$D$6:$D$504)+ROW(ПЛАН!$E$6:$E$504)%,COUNTIF(ПЛАН!$H$6:$H$504,"<>FC-TF(шток)")+ROW(E77)),COUNTIF(ПЛАН!$D$6:$D$504,"<="&ПЛАН!$D$6:$D$504)+ROW(ПЛАН!$E$6:$E$504)%,0)),"0") -> 0 | E84: 0 | F84: =IF(ISNA(VLOOKUP(D84,ПЛАН!$E$6:$G$504,2,0)),0,VLOOKUP(D84,ПЛАН!$E$6:$G$504,2,0)) -> 0 | G84: 0 | J84: =IF(ISNA(VLOOKUP(D84,ПЛАН!$E$6:$G$504,3,0)),0,VLOOKUP(D84,ПЛАН!$E$6:$G$504,3,0)) -> 0
C85: =IFERROR(INDEX(ПЛАН!$D$6:$D$504,MATCH(SMALL((ПЛАН!$H$6:$H$504="FC-TF(шток)")*COUNTIF(ПЛАН!$D$6:$D$504,"<="&ПЛАН!$D$6:$D$504),COUNTIF(ПЛАН!$H$6:$H$504,"<>FC-TF(шток)")+ROW(D78)),COUNTIF(ПЛАН!$D$6:$D$504,"<="&ПЛАН!$D$6:$D$504),0)),"0") -> 0 | D85: =IFERROR(INDEX(ПЛАН!$E$6:$E$504,MATCH(SMALL((ПЛАН!$H$6:$H$504="FC-TF(шток)")*COUNTIF(ПЛАН!$D$6:$D$504,"<="&ПЛАН!$D$6:$D$504)+ROW(ПЛАН!$E$6:$E$504)%,COUNTIF(ПЛАН!$H$6:$H$504,"<>FC-TF(шток)")+ROW(E78)),COUNTIF(ПЛАН!$D$6:$D$504,"<="&ПЛАН!$D$6:$D$504)+ROW(ПЛАН!$E$6:$E$504)%,0)),"0") -> 0 | E85: 0 | F85: =IF(ISNA(VLOOKUP(D85,ПЛАН!$E$6:$G$504,2,0)),0,VLOOKUP(D85,ПЛАН!$E$6:$G$504,2,0)) -> 0 | G85: 0 | J85: =IF(ISNA(VLOOKUP(D85,ПЛАН!$E$6:$G$504,3,0)),0,VLOOKUP(D85,ПЛАН!$E$6:$G$504,3,0)) -> 0
C86: =IFERROR(INDEX(ПЛАН!$D$6:$D$504,MATCH(SMALL((ПЛАН!$H$6:$H$504="FC-TF(шток)")*COUNTIF(ПЛАН!$D$6:$D$504,"<="&ПЛАН!$D$6:$D$504),COUNTIF(ПЛАН!$H$6:$H$504,"<>FC-TF(шток)")+ROW(D79)),COUNTIF(ПЛАН!$D$6:$D$504,"<="&ПЛАН!$D$6:$D$504),0)),"0") -> 0 | D86: =IFERROR(INDEX(ПЛАН!$E$6:$E$504,MATCH(SMALL((ПЛАН!$H$6:$H$504="FC-TF(шток)")*COUNTIF(ПЛАН!$D$6:$D$504,"<="&ПЛАН!$D$6:$D$504)+ROW(ПЛАН!$E$6:$E$504)%,COUNTIF(ПЛАН!$H$6:$H$504,"<>FC-TF(шток)")+ROW(E79)),COUNTIF(ПЛАН!$D$6:$D$504,"<="&ПЛАН!$D$6:$D$504)+ROW(ПЛАН!$E$6:$E$504)%,0)),"0") -> 0 | E86: 0 | F86: =IF(ISNA(VLOOKUP(D86,ПЛАН!$E$6:$G$504,2,0)),0,VLOOKUP(D86,ПЛАН!$E$6:$G$504,2,0)) -> 0 | G86: 0 | J86: =IF(ISNA(VLOOKUP(D86,ПЛАН!$E$6:$G$504,3,0)),0,VLOOKUP(D86,ПЛАН!$E$6:$G$504,3,0)) -> 0
C87: =IFERROR(INDEX(ПЛАН!$D$6:$D$504,MATCH(SMALL((ПЛАН!$H$6:$H$504="FC-TF(шток)")*COUNTIF(ПЛАН!$D$6:$D$504,"<="&ПЛАН!$D$6:$D$504),COUNTIF(ПЛАН!$H$6:$H$504,"<>FC-TF(шток)")+ROW(D80)),COUNTIF(ПЛАН!$D$6:$D$504,"<="&ПЛАН!$D$6:$D$504),0)),"0") -> 0 | D87: =IFERROR(INDEX(ПЛАН!$E$6:$E$504,MATCH(SMALL((ПЛАН!$H$6:$H$504="FC-TF(шток)")*COUNTIF(ПЛАН!$D$6:$D$504,"<="&ПЛАН!$D$6:$D$504)+ROW(ПЛАН!$E$6:$E$504)%,COUNTIF(ПЛАН!$H$6:$H$504,"<>FC-TF(шток)")+ROW(E80)),COUNTIF(ПЛАН!$D$6:$D$504,"<="&ПЛАН!$D$6:$D$504)+ROW(ПЛАН!$E$6:$E$504)%,0)),"0") -> 0 | E87: 0 | F87: =IF(ISNA(VLOOKUP(D87,ПЛАН!$E$6:$G$504,2,0)),0,VLOOKUP(D87,ПЛАН!$E$6:$G$504,2,0)) -> 0 | G87: 0 | J87: =IF(ISNA(VLOOKUP(D87,ПЛАН!$E$6:$G$504,3,0)),0,VLOOKUP(D87,ПЛАН!$E$6:$G$504,3,0)) -> 0
C88: =IFERROR(INDEX(ПЛАН!$D$6:$D$504,MATCH(SMALL((ПЛАН!$H$6:$H$504="FC-TF(шток)")*COUNTIF(ПЛАН!$D$6:$D$504,"<="&ПЛАН!$D$6:$D$504),COUNTIF(ПЛАН!$H$6:$H$504,"<>FC-TF(шток)")+ROW(D81)),COUNTIF(ПЛАН!$D$6:$D$504,"<="&ПЛАН!$D$6:$D$504),0)),"0") -> 0 | D88: =IFERROR(INDEX(ПЛАН!$E$6:$E$504,MATCH(SMALL((ПЛАН!$H$6:$H$504="FC-TF(шток)")*COUNTIF(ПЛАН!$D$6:$D$504,"<="&ПЛАН!$D$6:$D$504)+ROW(ПЛАН!$E$6:$E$504)%,COUNTIF(ПЛАН!$H$6:$H$504,"<>FC-TF(шток)")+ROW(E81)),COUNTIF(ПЛАН!$D$6:$D$504,"<="&ПЛАН!$D$6:$D$504)+ROW(ПЛАН!$E$6:$E$504)%,0)),"0") -> 0 | E88: 0 | F88: =IF(ISNA(VLOOKUP(D88,ПЛАН!$E$6:$G$504,2,0)),0,VLOOKUP(D88,ПЛАН!$E$6:$G$504,2,0)) -> 0 | G88: 0 | J88: =IF(ISNA(VLOOKUP(D88,ПЛАН!$E$6:$G$504,3,0)),0,VLOOKUP(D88,ПЛАН!$E$6:$G$504,3,0)) -> 0
C89: =IFERROR(INDEX(ПЛАН!$D$6:$D$504,MATCH(SMALL((ПЛАН!$H$6:$H$504="FC-TF(шток)")*COUNTIF(ПЛАН!$D$6:$D$504,"<="&ПЛАН!$D$6:$D$504),COUNTIF(ПЛАН!$H$6:$H$504,"<>FC-TF(шток)")+ROW(D82)),COUNTIF(ПЛАН!$D$6:$D$504,"<="&ПЛАН!$D$6:$D$504),0)),"0") -> 0 | D89: =IFERROR(INDEX(ПЛАН!$E$6:$E$504,MATCH(SMALL((ПЛАН!$H$6:$H$504="FC-TF(шток)")*COUNTIF(ПЛАН!$D$6:$D$504,"<="&ПЛАН!$D$6:$D$504)+ROW(ПЛАН!$E$6:$E$504)%,COUNTIF(ПЛАН!$H$6:$H$504,"<>FC-TF(шток)")+ROW(E82)),COUNTIF(ПЛАН!$D$6:$D$504,"<="&ПЛАН!$D$6:$D$504)+ROW(ПЛАН!$E$6:$E$504)%,0)),"0") -> 0 | E89: 0 | F89: =IF(ISNA(VLOOKUP(D89,ПЛАН!$E$6:$G$504,2,0)),0,VLOOKUP(D89,ПЛАН!$E$6:$G$504,2,0)) -> 0 | G89: 0 | J89: =IF(ISNA(VLOOKUP(D89,ПЛАН!$E$6:$G$504,3,0)),0,VLOOKUP(D89,ПЛАН!$E$6:$G$504,3,0)) -> 0
C90: =IFERROR(INDEX(ПЛАН!$D$6:$D$504,MATCH(SMALL((ПЛАН!$H$6:$H$504="FC-TF(шток)")*COUNTIF(ПЛАН!$D$6:$D$504,"<="&ПЛАН!$D$6:$D$504),COUNTIF(ПЛАН!$H$6:$H$504,"<>FC-TF(шток)")+ROW(D83)),COUNTIF(ПЛАН!$D$6:$D$504,"<="&ПЛАН!$D$6:$D$504),0)),"0") -> 0 | D90: =IFERROR(INDEX(ПЛАН!$E$6:$E$504,MATCH(SMALL((ПЛАН!$H$6:$H$504="FC-TF(шток)")*COUNTIF(ПЛАН!$D$6:$D$504,"<="&ПЛАН!$D$6:$D$504)+ROW(ПЛАН!$E$6:$E$504)%,COUNTIF(ПЛАН!$H$6:$H$504,"<>FC-TF(шток)")+ROW(E83)),COUNTIF(ПЛАН!$D$6:$D$504,"<="&ПЛАН!$D$6:$D$504)+ROW(ПЛАН!$E$6:$E$504)%,0)),"0") -> 0 | E90: 0 | F90: =IF(ISNA(VLOOKUP(D90,ПЛАН!$E$6:$G$504,2,0)),0,VLOOKUP(D90,ПЛАН!$E$6:$G$504,2,0)) -> 0 | G90: 0 | J90: =IF(ISNA(VLOOKUP(D90,ПЛАН!$E$6:$G$504,3,0)),0,VLOOKUP(D90,ПЛАН!$E$6:$G$504,3,0)) -> 0
C91: =IFERROR(INDEX(ПЛАН!$D$6:$D$504,MATCH(SMALL((ПЛАН!$H$6:$H$504="FC-TF(шток)")*COUNTIF(ПЛАН!$D$6:$D$504,"<="&ПЛАН!$D$6:$D$504),COUNTIF(ПЛАН!$H$6:$H$504,"<>FC-TF(шток)")+ROW(D84)),COUNTIF(ПЛАН!$D$6:$D$504,"<="&ПЛАН!$D$6:$D$504),0)),"0") -> 0 | D91: =IFERROR(INDEX(ПЛАН!$E$6:$E$504,MATCH(SMALL((ПЛАН!$H$6:$H$504="FC-TF(шток)")*COUNTIF(ПЛАН!$D$6:$D$504,"<="&ПЛАН!$D$6:$D$504)+ROW(ПЛАН!$E$6:$E$504)%,COUNTIF(ПЛАН!$H$6:$H$504,"<>FC-TF(шток)")+ROW(E84)),COUNTIF(ПЛАН!$D$6:$D$504,"<="&ПЛАН!$D$6:$D$504)+ROW(ПЛАН!$E$6:$E$504)%,0)),"0") -> 0 | E91: 0 | F91: =IF(ISNA(VLOOKUP(D91,ПЛАН!$E$6:$G$504,2,0)),0,VLOOKUP(D91,ПЛАН!$E$6:$G$504,2,0)) -> 0 | G91: 0 | J91: =IF(ISNA(VLOOKUP(D91,ПЛАН!$E$6:$G$504,3,0)),0,VLOOKUP(D91,ПЛАН!$E$6:$G$504,3,0)) -> 0
C92: =IFERROR(INDEX(ПЛАН!$D$6:$D$504,MATCH(SMALL((ПЛАН!$H$6:$H$504="FC-TF(шток)")*COUNTIF(ПЛАН!$D$6:$D$504,"<="&ПЛАН!$D$6:$D$504),COUNTIF(ПЛАН!$H$6:$H$504,"<>FC-TF(шток)")+ROW(D85)),COUNTIF(ПЛАН!$D$6:$D$504,"<="&ПЛАН!$D$6:$D$504),0)),"0") -> 0 | D92: =IFERROR(INDEX(ПЛАН!$E$6:$E$504,MATCH(SMALL((ПЛАН!$H$6:$H$504="FC-TF(шток)")*COUNTIF(ПЛАН!$D$6:$D$504,"<="&ПЛАН!$D$6:$D$504)+ROW(ПЛАН!$E$6:$E$504)%,COUNTIF(ПЛАН!$H$6:$H$504,"<>FC-TF(шток)")+ROW(E85)),COUNTIF(ПЛАН!$D$6:$D$504,"<="&ПЛАН!$D$6:$D$504)+ROW(ПЛАН!$E$6:$E$504)%,0)),"0") -> 0 | E92: 0 | F92: =IF(ISNA(VLOOKUP(D92,ПЛАН!$E$6:$G$504,2,0)),0,VLOOKUP(D92,ПЛАН!$E$6:$G$504,2,0)) -> 0 | G92: 0 | J92: =IF(ISNA(VLOOKUP(D92,ПЛАН!$E$6:$G$504,3,0)),0,VLOOKUP(D92,ПЛАН!$E$6:$G$504,3,0)) -> 0
C93: =IFERROR(INDEX(ПЛАН!$D$6:$D$504,MATCH(SMALL((ПЛАН!$H$6:$H$504="FC-TF(шток)")*COUNTIF(ПЛАН!$D$6:$D$504,"<="&ПЛАН!$D$6:$D$504),COUNTIF(ПЛАН!$H$6:$H$504,"<>FC-TF(шток)")+ROW(D86)),COUNTIF(ПЛАН!$D$6:$D$504,"<="&ПЛАН!$D$6:$D$504),0)),"0") -> 0 | D93: =IFERROR(INDEX(ПЛАН!$E$6:$E$504,MATCH(SMALL((ПЛАН!$H$6:$H$504="FC-TF(шток)")*COUNTIF(ПЛАН!$D$6:$D$504,"<="&ПЛАН!$D$6:$D$504)+ROW(ПЛАН!$E$6:$E$504)%,COUNTIF(ПЛАН!$H$6:$H$504,"<>FC-TF(шток)")+ROW(E86)),COUNTIF(ПЛАН!$D$6:$D$504,"<="&ПЛАН!$D$6:$D$504)+ROW(ПЛАН!$E$6:$E$504)%,0)),"0") -> 0 | E93: 0 | F93: =IF(ISNA(VLOOKUP(D93,ПЛАН!$E$6:$G$504,2,0)),0,VLOOKUP(D93,ПЛАН!$E$6:$G$504,2,0)) -> 0 | G93: 0 | J93: =IF(ISNA(VLOOKUP(D93,ПЛАН!$E$6:$G$504,3,0)),0,VLOOKUP(D93,ПЛАН!$E$6:$G$504,3,0)) -> 0
C94: =IFERROR(INDEX(ПЛАН!$D$6:$D$504,MATCH(SMALL((ПЛАН!$H$6:$H$504="FC-TF(шток)")*COUNTIF(ПЛАН!$D$6:$D$504,"<="&ПЛАН!$D$6:$D$504),COUNTIF(ПЛАН!$H$6:$H$504,"<>FC-TF(шток)")+ROW(D87)),COUNTIF(ПЛАН!$D$6:$D$504,"<="&ПЛАН!$D$6:$D$504),0)),"0") -> 0 | D94: =IFERROR(INDEX(ПЛАН!$E$6:$E$504,MATCH(SMALL((ПЛАН!$H$6:$H$504="FC-TF(шток)")*COUNTIF(ПЛАН!$D$6:$D$504,"<="&ПЛАН!$D$6:$D$504)+ROW(ПЛАН!$E$6:$E$504)%,COUNTIF(ПЛАН!$H$6:$H$504,"<>FC-TF(шток)")+ROW(E87)),COUNTIF(ПЛАН!$D$6:$D$504,"<="&ПЛАН!$D$6:$D$504)+ROW(ПЛАН!$E$6:$E$504)%,0)),"0") -> 0 | E94: 0 | F94: =IF(ISNA(VLOOKUP(D94,ПЛАН!$E$6:$G$504,2,0)),0,VLOOKUP(D94,ПЛАН!$E$6:$G$504,2,0)) -> 0 | G94: 0 | J94: =IF(ISNA(VLOOKUP(D94,ПЛАН!$E$6:$G$504,3,0)),0,VLOOKUP(D94,ПЛАН!$E$6:$G$504,3,0)) -> 0
G96: =SUM(G8:G94) -> 819.7223667 | H96: =G96/(I6*1) -> 1.552504482

Sheet FC-TF(один)
C2: Трудоемкость изготовления деталей по действующим нормам цех №3 станки FC-TF 10 | J2: На октябрь 2021 г.
A3: Оборудование (группа) | C3: Деталь | E3: Трудоемк. на 100 дет. в нормо-час. | F3: Количество деталей на программу (в шт.) | G3: Трудоемк. на программу в нормо-час. | H3: Загрузка оборудован. по действую-щим нормам в нормо-час. | I3: Фонд времени работы одного станка | J3: Тшт, мин. | K3: Количество деталей в смену (в шт.)
A4: Инв. номер | B4: Наименование | C4: Наименование | D4: Обозначение
A5: 1 | B5: 2 | C5: 3 | D5: 4 | E5: 5 | F5: 6 | G5: 7 | H5: 8 | I5: 9 | J5: 10 | K5: 11
A6: 40201 | B6: FC-TF 10 | H6: В 3 смены | I6: =176*3 -> 528
C8: =IFERROR(INDEX(ПЛАН!$D$6:$D$504,MATCH(SMALL((ПЛАН!$H$6:$H$504="FC-TF(один)")*COUNTIF(ПЛАН!$D$6:$D$504,"<="&ПЛАН!$D$6:$D$504),COUNTIF(ПЛАН!$H$6:$H$504,"<>FC-TF(один)")+ROW(D1)),COUNTIF(ПЛАН!$D$6:$D$504,"<="&ПЛАН!$D$6:$D$504),0)),"0") -> Втулка | D8: =IFERROR(INDEX(ПЛАН!$E$6:$E$504,MATCH(SMALL((ПЛАН!$H$6:$H$504="FC-TF(один)")*COUNTIF(ПЛАН!$D$6:$D$504,"<="&ПЛАН!$D$6:$D$504)+ROW(ПЛАН!$E$6:$E$504)%,COUNTIF(ПЛАН!$H$6:$H$504,"<>FC-TF(один)")+ROW(E1)),COUNTIF(ПЛАН!$D$6:$D$504,"<="&ПЛАН!$D$6:$D$504)+ROW(ПЛАН!$E$6:$E$504)%,0)),"0") -> 0 | E8: =J8/60*100 -> 0 | F8: =IF(ISNA(VLOOKUP(D8,ПЛАН!$E$6:$G$504,2,0)),0,VLOOKUP(D8,ПЛАН!$E$6:$G$504,2,0)) -> 0 | G8: =E8*F8/100 -> 0 | J8: =IF(ISNA(VLOOKUP(D8,ПЛАН!$E$6:$G$504,3,0)),0,VLOOKUP(D8,ПЛАН!$E$6:$G$504,3,0)) -> 0 | K8: =8*60/J8 -> 
C9: =IFERROR(INDEX(ПЛАН!$D$6:$D$504,MATCH(SMALL((ПЛАН!$H$6:$H$504="FC-TF(один)")*COUNTIF(ПЛАН!$D$6:$D$504,"<="&ПЛАН!$D$6:$D$504),COUNTIF(ПЛАН!$H$6:$H$504,"<>FC-TF(один)")+ROW(D2)),COUNTIF(ПЛАН!$D$6:$D$504,"<="&ПЛАН!$D$6:$D$504),0)),"0") -> Гайка | D9: =IFERROR(INDEX(ПЛАН!$E$6:$E$504,MATCH(SMALL((ПЛАН!$H$6:$H$504="FC-TF(один)")*COUNTIF(ПЛАН!$D$6:$D$504,"<="&ПЛАН!$D$6:$D$504)+ROW(ПЛАН!$E$6:$E$504)%,COUNTIF(ПЛАН!$H$6:$H$504,"<>FC-TF(один)")+ROW(E2)),COUNTIF(ПЛАН!$D$6:$D$504,"<="&ПЛАН!$D$6:$D$504)+ROW(ПЛАН!$E$6:$E$504)%,0)),"0") -> 0 | E9: =J9/60*100 -> 0 | F9: =IF(ISNA(VLOOKUP(D9,ПЛАН!$E$6:$G$504,2,0)),0,VLOOKUP(D9,ПЛАН!$E$6:$G$504,2,0)) -> 0 | G9: =E9*F9/100 -> 0 | J9: =IF(ISNA(VLOOKUP(D9,ПЛАН!$E$6:$G$504,3,0)),0,VLOOKUP(D9,ПЛАН!$E$6:$G$504,3,0)) -> 0 | K9: =8*60/J9 -> 
C10: =IFERROR(INDEX(ПЛАН!$D$6:$D$504,MATCH(SMALL((ПЛАН!$H$6:$H$504="FC-TF(один)")*COUNTIF(ПЛАН!$D$6:$D$504,"<="&ПЛАН!$D$6:$D$504),COUNTIF(ПЛАН!$H$6:$H$504,"<>FC-TF(один)")+ROW(D3)),COUNTIF(ПЛАН!$D$6:$D$504,"<="&ПЛАН!$D$6:$D$504),0)),"0") -> Головка | D10: =IFERROR(INDEX(ПЛАН!$E$6:$E$504,MATCH(SMALL((ПЛАН!$H$6:$H$504="FC-TF(один)")*COUNTIF(ПЛАН!$D$6:$D$504,"<="&ПЛАН!$D$6:$D$504)+ROW(ПЛАН!$E$6:$E$504)%,COUNTIF(ПЛАН!$H$6:$H$504,"<>FC-TF(один)")+ROW(E3)),COUNTIF(ПЛАН!$D$6:$D$504,"<="&ПЛАН!$D$6:$D$504)+ROW(ПЛАН!$E$6:$E$504)%,0)),"0") -> А1-300/480.443 | E10: 0 | F10: =IF(ISNA(VLOOKUP(D10,ПЛАН!$E$6:$G$504,2,0)),0,VLOOKUP(D10,ПЛАН!$E$6:$G$504,2,0)) -> 0 | G10: 0 | J10: =IF(ISNA(VLOOKUP(D10,ПЛАН!$E$6:$G$504,3,0)),0,VLOOKUP(D10,ПЛАН!$E$6:$G$504,3,0)) -> 0
C11: =IFERROR(INDEX(ПЛАН!$D$6:$D$504,MATCH(SMALL((ПЛАН!$H$6:$H$504="FC-TF(один)")*COUNTIF(ПЛАН!$D$6:$D$504,"<="&ПЛАН!$D$6:$D$504),COUNTIF(ПЛАН!$H$6:$H$504,"<>FC-TF(один)")+ROW(D4)),COUNTIF(ПЛАН!$D$6:$D$504,"<="&ПЛАН!$D$6:$D$504),0)),"0") -> Тяга | D11: =IFERROR(INDEX(ПЛАН!$E$6:$E$504,MATCH(SMALL((ПЛАН!$H$6:$H$504="FC-TF(один)")*COUNTIF(ПЛАН!$D$6:$D$504,"<="&ПЛАН!$D$6:$D$504)+ROW(ПЛАН!$E$6:$E$504)%,COUNTIF(ПЛАН!$H$6:$H$504,"<>FC-TF(один)")+ROW(E4)),COUNTIF(ПЛАН!$D$6:$D$504,"<="&ПЛАН!$D$6:$D$504)+ROW(ПЛАН!$E$6:$E$504)%,0)),"0") -> 551639-1703354 | E11: 3.883333333 | F11: =IF(ISNA(VLOOKUP(D11,ПЛАН!$E$6:$G$504,2,0)),0,VLOOKUP(D11,ПЛАН!$E$6:$G$504,2,0)) -> 0 | G11: 0 | J11: =IF(ISNA(VLOOKUP(D11,ПЛАН!$E$6:$G$504,3,0)),0,VLOOKUP(D11,ПЛАН!$E$6:$G$504,3,0)) -> 2.33 | K11: 206.0085837
C12: =IFERROR(INDEX(ПЛАН!$D$6:$D$504,MATCH(SMALL((ПЛАН!$H$6:$H$504="FC-TF(один)")*COUNTIF(ПЛАН!$D$6:$D$504,"<="&ПЛАН!$D$6:$D$504),COUNTIF(ПЛАН!$H$6:$H$504,"<>FC-TF(один)")+ROW(D5)),COUNTIF(ПЛАН!$D$6:$D$504,"<="&ПЛАН!$D$6:$D$504),0)),"0") -> Удлинитель | D12: =IFERROR(INDEX(ПЛАН!$E$6:$E$504,MATCH(SMALL((ПЛАН!$H$6:$H$504="FC-TF(один)")*COUNTIF(ПЛАН!$D$6:$D$504,"<="&ПЛАН!$D$6:$D$504)+ROW(ПЛАН!$E$6:$E$504)%,COUNTIF(ПЛАН!$H$6:$H$504,"<>FC-TF(один)")+ROW(E5)),COUNTIF(ПЛАН!$D$6:$D$504,"<="&ПЛАН!$D$6:$D$504)+ROW(ПЛАН!$E$6:$E$504)%,0)),"0") -> 5551-1703356 | E12: 3.316666667 | F12: =IF(ISNA(VLOOKUP(D12,ПЛАН!$E$6:$G$504,2,0)),0,VLOOKUP(D12,ПЛАН!$E$6:$G$504,2,0)) -> 0 | G12: 0 | J12: =IF(ISNA(VLOOKUP(D12,ПЛАН!$E$6:$G$504,3,0)),0,VLOOKUP(D12,ПЛАН!$E$6:$G$504,3,0)) -> 1.99 | K12: 241.2060302
C13: =IFERROR(INDEX(ПЛАН!$D$6:$D$504,MATCH(SMALL((ПЛАН!$H$6:$H$504="FC-TF(один)")*COUNTIF(ПЛАН!$D$6:$D$504,"<="&ПЛАН!$D$6:$D$504),COUNTIF(ПЛАН!$H$6:$H$504,"<>FC-TF(один)")+ROW(D6)),COUNTIF(ПЛАН!$D$6:$D$504,"<="&ПЛАН!$D$6:$D$504),0)),"0") -> Удлинитель | D13: =IFERROR(INDEX(ПЛАН!$E$6:$E$504,MATCH(SMALL((ПЛАН!$H$6:$H$504="FC-TF(один)")*COUNTIF(ПЛАН!$D$6:$D$504,"<="&ПЛАН!$D$6:$D$504)+ROW(ПЛАН!$E$6:$E$504)%,COUNTIF(ПЛАН!$H$6:$H$504,"<>FC-TF(один)")+ROW(E6)),COUNTIF(ПЛАН!$D$6:$D$504,"<="&ПЛАН!$D$6:$D$504)+ROW(ПЛАН!$E$6:$E$504)%,0)),"0") -> 544008-1703356 | E13: 3.316666667 | F13: =IF(ISNA(VLOOKUP(D13,ПЛАН!$E$6:$G$504,2,0)),0,VLOOKUP(D13,ПЛАН!$E$6:$G$504,2,0)) -> 405 | G13: 13.4325 | J13: =IF(ISNA(VLOOKUP(D13,ПЛАН!$E$6:$G$504,3,0)),0,VLOOKUP(D13,ПЛАН!$E$6:$G$504,3,0)) -> 1.99 | K13: 241.2060302
C14: =IFERROR(INDEX(ПЛАН!$D$6:$D$504,MATCH(SMALL((ПЛАН!$H$6:$H$504="FC-TF(один)")*COUNTIF(ПЛАН!$D$6:$D$504,"<="&ПЛАН!$D$6:$D$504),COUNTIF(ПЛАН!$H$6:$H$504,"<>FC-TF(один)")+ROW(D7)),COUNTIF(ПЛАН!$D$6:$D$504,"<="&ПЛАН!$D$6:$D$504),0)),"0") -> 0 | D14: =IFERROR(INDEX(ПЛАН!$E$6:$E$504,MATCH(SMALL((ПЛАН!$H$6:$H$504="FC-TF(один)")*COUNTIF(ПЛАН!$D$6:$D$504,"<="&ПЛАН!$D$6:$D$504)+ROW(ПЛАН!$E$6:$E$504)%,COUNTIF(ПЛАН!$H$6:$H$504,"<>FC-TF(один)")+ROW(E7)),COUNTIF(ПЛАН!$D$6:$D$504,"<="&ПЛАН!$D$6:$D$504)+ROW(ПЛАН!$E$6:$E$504)%,0)),"0") -> 0 | E14: 0 | F14: =IF(ISNA(VLOOKUP(D14,ПЛАН!$E$6:$G$504,2,0)),0,VLOOKUP(D14,ПЛАН!$E$6:$G$504,2,0)) -> 0 | G14: 0 | J14: =IF(ISNA(VLOOKUP(D14,ПЛАН!$E$6:$G$504,3,0)),0,VLOOKUP(D14,ПЛАН!$E$6:$G$504,3,0)) -> 0
C15: =IFERROR(INDEX(ПЛАН!$D$6:$D$504,MATCH(SMALL((ПЛАН!$H$6:$H$504="FC-TF(один)")*COUNTIF(ПЛАН!$D$6:$D$504,"<="&ПЛАН!$D$6:$D$504),COUNTIF(ПЛАН!$H$6:$H$504,"<>FC-TF(один)")+ROW(D8)),COUNTIF(ПЛАН!$D$6:$D$504,"<="&ПЛАН!$D$6:$D$504),0)),"0") -> 0 | D15: =IFERROR(INDEX(ПЛАН!$E$6:$E$504,MATCH(SMALL((ПЛАН!$H$6:$H$504="FC-TF(один)")*COUNTIF(ПЛАН!$D$6:$D$504,"<="&ПЛАН!$D$6:$D$504)+ROW(ПЛАН!$E$6:$E$504)%,COUNTIF(ПЛАН!$H$6:$H$504,"<>FC-TF(один)")+ROW(E8)),COUNTIF(ПЛАН!$D$6:$D$504,"<="&ПЛАН!$D$6:$D$504)+ROW(ПЛАН!$E$6:$E$504)%,0)),"0") -> 0 | E15: 0 | F15: =IF(ISNA(VLOOKUP(D15,ПЛАН!$E$6:$G$504,2,0)),0,VLOOKUP(D15,ПЛАН!$E$6:$G$504,2,0)) -> 0 | G15: 0 | J15: =IF(ISNA(VLOOKUP(D15,ПЛАН!$E$6:$G$504,3,0)),0,VLOOKUP(D15,ПЛАН!$E$6:$G$504,3,0)) -> 0
C16: =IFERROR(INDEX(ПЛАН!$D$6:$D$504,MATCH(SMALL((ПЛАН!$H$6:$H$504="FC-TF(один)")*COUNTIF(ПЛАН!$D$6:$D$504,"<="&ПЛАН!$D$6:$D$504),COUNTIF(ПЛАН!$H$6:$H$504,"<>FC-TF(один)")+ROW(D9)),COUNTIF(ПЛАН!$D$6:$D$504,"<="&ПЛАН!$D$6:$D$504),0)),"0") -> 0 | D16: =IFERROR(INDEX(ПЛАН!$E$6:$E$504,MATCH(SMALL((ПЛАН!$H$6:$H$504="FC-TF(один)")*COUNTIF(ПЛАН!$D$6:$D$504,"<="&ПЛАН!$D$6:$D$504)+ROW(ПЛАН!$E$6:$E$504)%,COUNTIF(ПЛАН!$H$6:$H$504,"<>FC-TF(один)")+ROW(E9)),COUNTIF(ПЛАН!$D$6:$D$504,"<="&ПЛАН!$D$6:$D$504)+ROW(ПЛАН!$E$6:$E$504)%,0)),"0") -> 0 | E16: 0 | F16: =IF(ISNA(VLOOKUP(D16,ПЛАН!$E$6:$G$504,2,0)),0,VLOOKUP(D16,ПЛАН!$E$6:$G$504,2,0)) -> 0 | G16: 0 | J16: =IF(ISNA(VLOOKUP(D16,ПЛАН!$E$6:$G$504,3,0)),0,VLOOKUP(D16,ПЛАН!$E$6:$G$504,3,0)) -> 0
C17: =IFERROR(INDEX(ПЛАН!$D$6:$D$504,MATCH(SMALL((ПЛАН!$H$6:$H$504="FC-TF(один)")*COUNTIF(ПЛАН!$D$6:$D$504,"<="&ПЛАН!$D$6:$D$504),COUNTIF(ПЛАН!$H$6:$H$504,"<>FC-TF(один)")+ROW(D10)),COUNTIF(ПЛАН!$D$6:$D$504,"<="&ПЛАН!$D$6:$D$504),0)),"0") -> 0 | D17: =IFERROR(INDEX(ПЛАН!$E$6:$E$504,MATCH(SMALL((ПЛАН!$H$6:$H$504="FC-TF(один)")*COUNTIF(ПЛАН!$D$6:$D$504,"<="&ПЛАН!$D$6:$D$504)+ROW(ПЛАН!$E$6:$E$504)%,COUNTIF(ПЛАН!$H$6:$H$504,"<>FC-TF(один)")+ROW(E10)),COUNTIF(ПЛАН!$D$6:$D$504,"<="&ПЛАН!$D$6:$D$504)+ROW(ПЛАН!$E$6:$E$504)%,0)),"0") -> 0 | E17: 0 | F17: =IF(ISNA(VLOOKUP(D17,ПЛАН!$E$6:$G$504,2,0)),0,VLOOKUP(D17,ПЛАН!$E$6:$G$504,2,0)) -> 0 | G17: 0 | J17: =IF(ISNA(VLOOKUP(D17,ПЛАН!$E$6:$G$504,3,0)),0,VLOOKUP(D17,ПЛАН!$E$6:$G$504,3,0)) -> 0
C18: =IFERROR(INDEX(ПЛАН!$D$6:$D$504,MATCH(SMALL((ПЛАН!$H$6:$H$504="FC-TF(один)")*COUNTIF(ПЛАН!$D$6:$D$504,"<="&ПЛАН!$D$6:$D$504),COUNTIF(ПЛАН!$H$6:$H$504,"<>FC-TF(один)")+ROW(D11)),COUNTIF(ПЛАН!$D$6:$D$504,"<="&ПЛАН!$D$6:$D$504),0)),"0") -> 0 | D18: =IFERROR(INDEX(ПЛАН!$E$6:$E$504,MATCH(SMALL((ПЛАН!$H$6:$H$504="FC-TF(один)")*COUNTIF(ПЛАН!$D$6:$D$504,"<="&ПЛАН!$D$6:$D$504)+ROW(ПЛАН!$E$6:$E$504)%,COUNTIF(ПЛАН!$H$6:$H$504,"<>FC-TF(один)")+ROW(E11)),COUNTIF(ПЛАН!$D$6:$D$504,"<="&ПЛАН!$D$6:$D$504)+ROW(ПЛАН!$E$6:$E$504)%,0)),"0") -> 0 | E18: 0 | F18: =IF(ISNA(VLOOKUP(D18,ПЛАН!$E$6:$G$504,2,0)),0,VLOOKUP(D18,ПЛАН!$E$6:$G$504,2,0)) -> 0 | G18: 0 | J18: =IF(ISNA(VLOOKUP(D18,ПЛАН!$E$6:$G$504,3,0)),0,VLOOKUP(D18,ПЛАН!$E$6:$G$504,3,0)) -> 0
C19: =IFERROR(INDEX(ПЛАН!$D$6:$D$504,MATCH(SMALL((ПЛАН!$H$6:$H$504="FC-TF(один)")*COUNTIF(ПЛАН!$D$6:$D$504,"<="&ПЛАН!$D$6:$D$504),COUNTIF(ПЛАН!$H$6:$H$504,"<>FC-TF(один)")+ROW(D12)),COUNTIF(ПЛАН!$D$6:$D$504,"<="&ПЛАН!$D$6:$D$504),0)),"0") -> 0 | D19: =IFERROR(INDEX(ПЛАН!$E$6:$E$504,MATCH(SMALL((ПЛАН!$H$6:$H$504="FC-TF(один)")*COUNTIF(ПЛАН!$D$6:$D$504,"<="&ПЛАН!$D$6:$D$504)+ROW(ПЛАН!$E$6:$E$504)%,COUNTIF(ПЛАН!$H$6:$H$504,"<>FC-TF(один)")+ROW(E12)),COUNTIF(ПЛАН!$D$6:$D$504,"<="&ПЛАН!$D$6:$D$504)+ROW(ПЛАН!$E$6:$E$504)%,0)),"0") -> 0 | E19: 0 | F19: =IF(ISNA(VLOOKUP(D19,ПЛАН!$E$6:$G$504,2,0)),0,VLOOKUP(D19,ПЛАН!$E$6:$G$504,2,0)) -> 0 | G19: 0 | J19: =IF(ISNA(VLOOKUP(D19,ПЛАН!$E$6:$G$504,3,0)),0,VLOOKUP(D19,ПЛАН!$E$6:$G$504,3,0)) -> 0
C20: =IFERROR(INDEX(ПЛАН!$D$6:$D$504,MATCH(SMALL((ПЛАН!$H$6:$H$504="FC-TF(один)")*COUNTIF(ПЛАН!$D$6:$D$504,"<="&ПЛАН!$D$6:$D$504),COUNTIF(ПЛАН!$H$6:$H$504,"<>FC-TF(один)")+ROW(D13)),COUNTIF(ПЛАН!$D$6:$D$504,"<="&ПЛАН!$D$6:$D$504),0)),"0") -> 0 | D20: =IFERROR(INDEX(ПЛАН!$E$6:$E$504,MATCH(SMALL((ПЛАН!$H$6:$H$504="FC-TF(один)")*COUNTIF(ПЛАН!$D$6:$D$504,"<="&ПЛАН!$D$6:$D$504)+ROW(ПЛАН!$E$6:$E$504)%,COUNTIF(ПЛАН!$H$6:$H$504,"<>FC-TF(один)")+ROW(E13)),COUNTIF(ПЛАН!$D$6:$D$504,"<="&ПЛАН!$D$6:$D$504)+ROW(ПЛАН!$E$6:$E$504)%,0)),"0") -> 0 | E20: 0 | F20: =IF(ISNA(VLOOKUP(D20,ПЛАН!$E$6:$G$504,2,0)),0,VLOOKUP(D20,ПЛАН!$E$6:$G$504,2,0)) -> 0 | G20: 0 | J20: =IF(ISNA(VLOOKUP(D20,ПЛАН!$E$6:$G$504,3,0)),0,VLOOKUP(D20,ПЛАН!$E$6:$G$504,3,0)) -> 0
C21: =IFERROR(INDEX(ПЛАН!$D$6:$D$504,MATCH(SMALL((ПЛАН!$H$6:$H$504="FC-TF(один)")*COUNTIF(ПЛАН!$D$6:$D$504,"<="&ПЛАН!$D$6:$D$504),COUNTIF(ПЛАН!$H$6:$H$504,"<>FC-TF(один)")+ROW(D14)),COUNTIF(ПЛАН!$D$6:$D$504,"<="&ПЛАН!$D$6:$D$504),0)),"0") -> 0 | D21: =IFERROR(INDEX(ПЛАН!$E$6:$E$504,MATCH(SMALL((ПЛАН!$H$6:$H$504="FC-TF(один)")*COUNTIF(ПЛАН!$D$6:$D$504,"<="&ПЛАН!$D$6:$D$504)+ROW(ПЛАН!$E$6:$E$504)%,COUNTIF(ПЛАН!$H$6:$H$504,"<>FC-TF(один)")+ROW(E14)),COUNTIF(ПЛАН!$D$6:$D$504,"<="&ПЛАН!$D$6:$D$504)+ROW(ПЛАН!$E$6:$E$504)%,0)),"0") -> 0 | E21: 0 | F21: =IF(ISNA(VLOOKUP(D21,ПЛАН!$E$6:$G$504,2,0)),0,VLOOKUP(D21,ПЛАН!$E$6:$G$504,2,0)) -> 0 | G21: 0 | J21: =IF(ISNA(VLOOKUP(D21,ПЛАН!$E$6:$G$504,3,0)),0,VLOOKUP(D21,ПЛАН!$E$6:$G$504,3,0)) -> 0
C22: =IFERROR(INDEX(ПЛАН!$D$6:$D$504,MATCH(SMALL((ПЛАН!$H$6:$H$504="FC-TF(один)")*COUNTIF(ПЛАН!$D$6:$D$504,"<="&ПЛАН!$D$6:$D$504),COUNTIF(ПЛАН!$H$6:$H$504,"<>FC-TF(один)")+ROW(D15)),COUNTIF(ПЛАН!$D$6:$D$504,"<="&ПЛАН!$D$6:$D$504),0)),"0") -> 0 | D22: =IFERROR(INDEX(ПЛАН!$E$6:$E$504,MATCH(SMALL((ПЛАН!$H$6:$H$504="FC-TF(один)")*COUNTIF(ПЛАН!$D$6:$D$504,"<="&ПЛАН!$D$6:$D$504)+ROW(ПЛАН!$E$6:$E$504)%,COUNTIF(ПЛАН!$H$6:$H$504,"<>FC-TF(один)")+ROW(E15)),COUNTIF(ПЛАН!$D$6:$D$504,"<="&ПЛАН!$D$6:$D$504)+ROW(ПЛАН!$E$6:$E$504)%,0)),"0") -> 0 | E22: 0 | F22: =IF(ISNA(VLOOKUP(D22,ПЛАН!$E$6:$G$504,2,0)),0,VLOOKUP(D22,ПЛАН!$E$6:$G$504,2,0)) -> 0 | G22: 0 | J22: =IF(ISNA(VLOOKUP(D22,ПЛАН!$E$6:$G$504,3,0)),0,VLOOKUP(D22,ПЛАН!$E$6:$G$504,3,0)) -> 0
C23: =IFERROR(INDEX(ПЛАН!$D$6:$D$504,MATCH(SMALL((ПЛАН!$H$6:$H$504="FC-TF(один)")*COUNTIF(ПЛАН!$D$6:$D$504,"<="&ПЛАН!$D$6:$D$504),COUNTIF(ПЛАН!$H$6:$H$504,"<>FC-TF(один)")+ROW(D16)),COUNTIF(ПЛАН!$D$6:$D$504,"<="&ПЛАН!$D$6:$D$504),0)),"0") -> 0 | D23: =IFERROR(INDEX(ПЛАН!$E$6:$E$504,MATCH(SMALL((ПЛАН!$H$6:$H$504="FC-TF(один)")*COUNTIF(ПЛАН!$D$6:$D$504,"<="&ПЛАН!$D$6:$D$504)+ROW(ПЛАН!$E$6:$E$504)%,COUNTIF(ПЛАН!$H$6:$H$504,"<>FC-TF(один)")+ROW(E16)),COUNTIF(ПЛАН!$D$6:$D$504,"<="&ПЛАН!$D$6:$D$504)+ROW(ПЛАН!$E$6:$E$504)%,0)),"0") -> 0 | E23: 0 | F23: =IF(ISNA(VLOOKUP(D23,ПЛАН!$E$6:$G$504,2,0)),0,VLOOKUP(D23,ПЛАН!$E$6:$G$504,2,0)) -> 0 | G23: 0 | J23: =IF(ISNA(VLOOKUP(D23,ПЛАН!$E$6:$G$504,3,0)),0,VLOOKUP(D23,ПЛАН!$E$6:$G$504,3,0)) -> 0
C24: =IFERROR(INDEX(ПЛАН!$D$6:$D$504,MATCH(SMALL((ПЛАН!$H$6:$H$504="FC-TF(один)")*COUNTIF(ПЛАН!$D$6:$D$504,"<="&ПЛАН!$D$6:$D$504),COUNTIF(ПЛАН!$H$6:$H$504,"<>FC-TF(один)")+ROW(D17)),COUNTIF(ПЛАН!$D$6:$D$504,"<="&ПЛАН!$D$6:$D$504),0)),"0") -> 0 | D24: =IFERROR(INDEX(ПЛАН!$E$6:$E$504,MATCH(SMALL((ПЛАН!$H$6:$H$504="FC-TF(один)")*COUNTIF(ПЛАН!$D$6:$D$504,"<="&ПЛАН!$D$6:$D$504)+ROW(ПЛАН!$E$6:$E$504)%,COUNTIF(ПЛАН!$H$6:$H$504,"<>FC-TF(один)")+ROW(E17)),COUNTIF(ПЛАН!$D$6:$D$504,"<="&ПЛАН!$D$6:$D$504)+ROW(ПЛАН!$E$6:$E$504)%,0)),"0") -> 0 | E24: 0 | F24: =IF(ISNA(VLOOKUP(D24,ПЛАН!$E$6:$G$504,2,0)),0,VLOOKUP(D24,ПЛАН!$E$6:$G$504,2,0)) -> 0 | G24: 0 | J24: =IF(ISNA(VLOOKUP(D24,ПЛАН!$E$6:$G$504,3,0)),0,VLOOKUP(D24,ПЛАН!$E$6:$G$504,3,0)) -> 0
C25: =IFERROR(INDEX(ПЛАН!$D$6:$D$504,MATCH(SMALL((ПЛАН!$H$6:$H$504="FC-TF(один)")*COUNTIF(ПЛАН!$D$6:$D$504,"<="&ПЛАН!$D$6:$D$504),COUNTIF(ПЛАН!$H$6:$H$504,"<>FC-TF(один)")+ROW(D18)),COUNTIF(ПЛАН!$D$6:$D$504,"<="&ПЛАН!$D$6:$D$504),0)),"0") -> 0 | D25: =IFERROR(INDEX(ПЛАН!$E$6:$E$504,MATCH(SMALL((ПЛАН!$H$6:$H$504="FC-TF(один)")*COUNTIF(ПЛАН!$D$6:$D$504,"<="&ПЛАН!$D$6:$D$504)+ROW(ПЛАН!$E$6:$E$504)%,COUNTIF(ПЛАН!$H$6:$H$504,"<>FC-TF(один)")+ROW(E18)),COUNTIF(ПЛАН!$D$6:$D$504,"<="&ПЛАН!$D$6:$D$504)+ROW(ПЛАН!$E$6:$E$504)%,0)),"0") -> 0 | E25: 0 | F25: =IF(ISNA(VLOOKUP(D25,ПЛАН!$E$6:$G$504,2,0)),0,VLOOKUP(D25,ПЛАН!$E$6:$G$504,2,0)) -> 0 | G25: 0 | J25: =IF(ISNA(VLOOKUP(D25,ПЛАН!$E$6:$G$504,3,0)),0,VLOOKUP(D25,ПЛАН!$E$6:$G$504,3,0)) -> 0
C26: =IFERROR(INDEX(ПЛАН!$D$6:$D$504,MATCH(SMALL((ПЛАН!$H$6:$H$504="FC-TF(один)")*COUNTIF(ПЛАН!$D$6:$D$504,"<="&ПЛАН!$D$6:$D$504),COUNTIF(ПЛАН!$H$6:$H$504,"<>FC-TF(один)")+ROW(D19)),COUNTIF(ПЛАН!$D$6:$D$504,"<="&ПЛАН!$D$6:$D$504),0)),"0") -> 0 | D26: =IFERROR(INDEX(ПЛАН!$E$6:$E$504,MATCH(SMALL((ПЛАН!$H$6:$H$504="FC-TF(один)")*COUNTIF(ПЛАН!$D$6:$D$504,"<="&ПЛАН!$D$6:$D$504)+ROW(ПЛАН!$E$6:$E$504)%,COUNTIF(ПЛАН!$H$6:$H$504,"<>FC-TF(один)")+ROW(E19)),COUNTIF(ПЛАН!$D$6:$D$504,"<="&ПЛАН!$D$6:$D$504)+ROW(ПЛАН!$E$6:$E$504)%,0)),"0") -> 0 | E26: 0 | F26: =IF(ISNA(VLOOKUP(D26,ПЛАН!$E$6:$G$504,2,0)),0,VLOOKUP(D26,ПЛАН!$E$6:$G$504,2,0)) -> 0 | G26: 0 | J26: =IF(ISNA(VLOOKUP(D26,ПЛАН!$E$6:$G$504,3,0)),0,VLOOKUP(D26,ПЛАН!$E$6:$G$504,3,0)) -> 0
C27: =IFERROR(INDEX(ПЛАН!$D$6:$D$504,MATCH(SMALL((ПЛАН!$H$6:$H$504="FC-TF(один)")*COUNTIF(ПЛАН!$D$6:$D$504,"<="&ПЛАН!$D$6:$D$504),COUNTIF(ПЛАН!$H$6:$H$504,"<>FC-TF(один)")+ROW(D20)),COUNTIF(ПЛАН!$D$6:$D$504,"<="&ПЛАН!$D$6:$D$504),0)),"0") -> 0 | D27: =IFERROR(INDEX(ПЛАН!$E$6:$E$504,MATCH(SMALL((ПЛАН!$H$6:$H$504="FC-TF(один)")*COUNTIF(ПЛАН!$D$6:$D$504,"<="&ПЛАН!$D$6:$D$504)+ROW(ПЛАН!$E$6:$E$504)%,COUNTIF(ПЛАН!$H$6:$H$504,"<>FC-TF(один)")+ROW(E20)),COUNTIF(ПЛАН!$D$6:$D$504,"<="&ПЛАН!$D$6:$D$504)+ROW(ПЛАН!$E$6:$E$504)%,0)),"0") -> 0 | E27: 0 | F27: =IF(ISNA(VLOOKUP(D27,ПЛАН!$E$6:$G$504,2,0)),0,VLOOKUP(D27,ПЛАН!$E$6:$G$504,2,0)) -> 0 | G27: 0 | J27: =IF(ISNA(VLOOKUP(D27,ПЛАН!$E$6:$G$504,3,0)),0,VLOOKUP(D27,ПЛАН!$E$6:$G$504,3,0)) -> 0
C28: =IFERROR(INDEX(ПЛАН!$D$6:$D$504,MATCH(SMALL((ПЛАН!$H$6:$H$504="FC-TF(один)")*COUNTIF(ПЛАН!$D$6:$D$504,"<="&ПЛАН!$D$6:$D$504),COUNTIF(ПЛАН!$H$6:$H$504,"<>FC-TF(один)")+ROW(D21)),COUNTIF(ПЛАН!$D$6:$D$504,"<="&ПЛАН!$D$6:$D$504),0)),"0") -> 0 | D28: =IFERROR(INDEX(ПЛАН!$E$6:$E$504,MATCH(SMALL((ПЛАН!$H$6:$H$504="FC-TF(один)")*COUNTIF(ПЛАН!$D$6:$D$504,"<="&ПЛАН!$D$6:$D$504)+ROW(ПЛАН!$E$6:$E$504)%,COUNTIF(ПЛАН!$H$6:$H$504,"<>FC-TF(один)")+ROW(E21)),COUNTIF(ПЛАН!$D$6:$D$504,"<="&ПЛАН!$D$6:$D$504)+ROW(ПЛАН!$E$6:$E$504)%,0)),"0") -> 0 | E28: 0 | F28: =IF(ISNA(VLOOKUP(D28,ПЛАН!$E$6:$G$504,2,0)),0,VLOOKUP(D28,ПЛАН!$E$6:$G$504,2,0)) -> 0 | G28: 0 | J28: =IF(ISNA(VLOOKUP(D28,ПЛАН!$E$6:$G$504,3,0)),0,VLOOKUP(D28,ПЛАН!$E$6:$G$504,3,0)) -> 0
C29: =IFERROR(INDEX(ПЛАН!$D$6:$D$504,MATCH(SMALL((ПЛАН!$H$6:$H$504="FC-TF(один)")*COUNTIF(ПЛАН!$D$6:$D$504,"<="&ПЛАН!$D$6:$D$504),COUNTIF(ПЛАН!$H$6:$H$504,"<>FC-TF(один)")+ROW(D22)),COUNTIF(ПЛАН!$D$6:$D$504,"<="&ПЛАН!$D$6:$D$504),0)),"0") -> 0 | D29: =IFERROR(INDEX(ПЛАН!$E$6:$E$504,MATCH(SMALL((ПЛАН!$H$6:$H$504="FC-TF(один)")*COUNTIF(ПЛАН!$D$6:$D$504,"<="&ПЛАН!$D$6:$D$504)+ROW(ПЛАН!$E$6:$E$504)%,COUNTIF(ПЛАН!$H$6:$H$504,"<>FC-TF(один)")+ROW(E22)),COUNTIF(ПЛАН!$D$6:$D$504,"<="&ПЛАН!$D$6:$D$504)+ROW(ПЛАН!$E$6:$E$504)%,0)),"0") -> 0 | E29: 0 | F29: =IF(ISNA(VLOOKUP(D29,ПЛАН!$E$6:$G$504,2,0)),0,VLOOKUP(D29,ПЛАН!$E$6:$G$504,2,0)) -> 0 | G29: 0 | J29: =IF(ISNA(VLOOKUP(D29,ПЛАН!$E$6:$G$504,3,0)),0,VLOOKUP(D29,ПЛАН!$E$6:$G$504,3,0)) -> 0
C30: =IFERROR(INDEX(ПЛАН!$D$6:$D$504,MATCH(SMALL((ПЛАН!$H$6:$H$504="FC-TF(один)")*COUNTIF(ПЛАН!$D$6:$D$504,"<="&ПЛАН!$D$6:$D$504),COUNTIF(ПЛАН!$H$6:$H$504,"<>FC-TF(один)")+ROW(D23)),COUNTIF(ПЛАН!$D$6:$D$504,"<="&ПЛАН!$D$6:$D$504),0)),"0") -> 0 | D30: =IFERROR(INDEX(ПЛАН!$E$6:$E$504,MATCH(SMALL((ПЛАН!$H$6:$H$504="FC-TF(один)")*COUNTIF(ПЛАН!$D$6:$D$504,"<="&ПЛАН!$D$6:$D$504)+ROW(ПЛАН!$E$6:$E$504)%,COUNTIF(ПЛАН!$H$6:$H$504,"<>FC-TF(один)")+ROW(E23)),COUNTIF(ПЛАН!$D$6:$D$504,"<="&ПЛАН!$D$6:$D$504)+ROW(ПЛАН!$E$6:$E$504)%,0)),"0") -> 0 | E30: 0 | F30: =IF(ISNA(VLOOKUP(D30,ПЛАН!$E$6:$G$504,2,0)),0,VLOOKUP(D30,ПЛАН!$E$6:$G$504,2,0)) -> 0 | G30: 0 | J30: =IF(ISNA(VLOOKUP(D30,ПЛАН!$E$6:$G$504,3,0)),0,VLOOKUP(D30,ПЛАН!$E$6:$G$504,3,0)) -> 0
C31: =IFERROR(INDEX(ПЛАН!$D$6:$D$504,MATCH(SMALL((ПЛАН!$H$6:$H$504="FC-TF(один)")*COUNTIF(ПЛАН!$D$6:$D$504,"<="&ПЛАН!$D$6:$D$504),COUNTIF(ПЛАН!$H$6:$H$504,"<>FC-TF(один)")+ROW(D24)),COUNTIF(ПЛАН!$D$6:$D$504,"<="&ПЛАН!$D$6:$D$504),0)),"0") -> 0 | D31: =IFERROR(INDEX(ПЛАН!$E$6:$E$504,MATCH(SMALL((ПЛАН!$H$6:$H$504="FC-TF(один)")*COUNTIF(ПЛАН!$D$6:$D$504,"<="&ПЛАН!$D$6:$D$504)+ROW(ПЛАН!$E$6:$E$504)%,COUNTIF(ПЛАН!$H$6:$H$504,"<>FC-TF(один)")+ROW(E24)),COUNTIF(ПЛАН!$D$6:$D$504,"<="&ПЛАН!$D$6:$D$504)+ROW(ПЛАН!$E$6:$E$504)%,0)),"0") -> 0 | E31: 0 | F31: =IF(ISNA(VLOOKUP(D31,ПЛАН!$E$6:$G$504,2,0)),0,VLOOKUP(D31,ПЛАН!$E$6:$G$504,2,0)) -> 0 | G31: 0 | J31: =IF(ISNA(VLOOKUP(D31,ПЛАН!$E$6:$G$504,3,0)),0,VLOOKUP(D31,ПЛАН!$E$6:$G$504,3,0)) -> 0
C32: =IFERROR(INDEX(ПЛАН!$D$6:$D$504,MATCH(SMALL((ПЛАН!$H$6:$H$504="FC-TF(один)")*COUNTIF(ПЛАН!$D$6:$D$504,"<="&ПЛАН!$D$6:$D$504),COUNTIF(ПЛАН!$H$6:$H$504,"<>FC-TF(один)")+ROW(D25)),COUNTIF(ПЛАН!$D$6:$D$504,"<="&ПЛАН!$D$6:$D$504),0)),"0") -> 0 | D32: =IFERROR(INDEX(ПЛАН!$E$6:$E$504,MATCH(SMALL((ПЛАН!$H$6:$H$504="FC-TF(один)")*COUNTIF(ПЛАН!$D$6:$D$504,"<="&ПЛАН!$D$6:$D$504)+ROW(ПЛАН!$E$6:$E$504)%,COUNTIF(ПЛАН!$H$6:$H$504,"<>FC-TF(один)")+ROW(E25)),COUNTIF(ПЛАН!$D$6:$D$504,"<="&ПЛАН!$D$6:$D$504)+ROW(ПЛАН!$E$6:$E$504)%,0)),"0") -> 0 | E32: 0 | F32: =IF(ISNA(VLOOKUP(D32,ПЛАН!$E$6:$G$504,2,0)),0,VLOOKUP(D32,ПЛАН!$E$6:$G$504,2,0)) -> 0 | G32: 0 | J32: =IF(ISNA(VLOOKUP(D32,ПЛАН!$E$6:$G$504,3,0)),0,VLOOKUP(D32,ПЛАН!$E$6:$G$504,3,0)) -> 0
C33: =IFERROR(INDEX(ПЛАН!$D$6:$D$504,MATCH(SMALL((ПЛАН!$H$6:$H$504="FC-TF(один)")*COUNTIF(ПЛАН!$D$6:$D$504,"<="&ПЛАН!$D$6:$D$504),COUNTIF(ПЛАН!$H$6:$H$504,"<>FC-TF(один)")+ROW(D26)),COUNTIF(ПЛАН!$D$6:$D$504,"<="&ПЛАН!$D$6:$D$504),0)),"0") -> 0 | D33: =IFERROR(INDEX(ПЛАН!$E$6:$E$504,MATCH(SMALL((ПЛАН!$H$6:$H$504="FC-TF(один)")*COUNTIF(ПЛАН!$D$6:$D$504,"<="&ПЛАН!$D$6:$D$504)+ROW(ПЛАН!$E$6:$E$504)%,COUNTIF(ПЛАН!$H$6:$H$504,"<>FC-TF(один)")+ROW(E26)),COUNTIF(ПЛАН!$D$6:$D$504,"<="&ПЛАН!$D$6:$D$504)+ROW(ПЛАН!$E$6:$E$504)%,0)),"0") -> 0 | E33: 0 | F33: =IF(ISNA(VLOOKUP(D33,ПЛАН!$E$6:$G$504,2,0)),0,VLOOKUP(D33,ПЛАН!$E$6:$G$504,2,0)) -> 0 | G33: 0 | J33: =IF(ISNA(VLOOKUP(D33,ПЛАН!$E$6:$G$504,3,0)),0,VLOOKUP(D33,ПЛАН!$E$6:$G$504,3,0)) -> 0
C34: =IFERROR(INDEX(ПЛАН!$D$6:$D$504,MATCH(SMALL((ПЛАН!$H$6:$H$504="FC-TF(один)")*COUNTIF(ПЛАН!$D$6:$D$504,"<="&ПЛАН!$D$6:$D$504),COUNTIF(ПЛАН!$H$6:$H$504,"<>FC-TF(один)")+ROW(D27)),COUNTIF(ПЛАН!$D$6:$D$504,"<="&ПЛАН!$D$6:$D$504),0)),"0") -> 0 | D34: =IFERROR(INDEX(ПЛАН!$E$6:$E$504,MATCH(SMALL((ПЛАН!$H$6:$H$504="FC-TF(один)")*COUNTIF(ПЛАН!$D$6:$D$504,"<="&ПЛАН!$D$6:$D$504)+ROW(ПЛАН!$E$6:$E$504)%,COUNTIF(ПЛАН!$H$6:$H$504,"<>FC-TF(один)")+ROW(E27)),COUNTIF(ПЛАН!$D$6:$D$504,"<="&ПЛАН!$D$6:$D$504)+ROW(ПЛАН!$E$6:$E$504)%,0)),"0") -> 0 | E34: 0 | F34: =IF(ISNA(VLOOKUP(D34,ПЛАН!$E$6:$G$504,2,0)),0,VLOOKUP(D34,ПЛАН!$E$6:$G$504,2,0)) -> 0 | G34: 0 | J34: =IF(ISNA(VLOOKUP(D34,ПЛАН!$E$6:$G$504,3,0)),0,VLOOKUP(D34,ПЛАН!$E$6:$G$504,3,0)) -> 0
C35: =IFERROR(INDEX(ПЛАН!$D$6:$D$504,MATCH(SMALL((ПЛАН!$H$6:$H$504="FC-TF(один)")*COUNTIF(ПЛАН!$D$6:$D$504,"<="&ПЛАН!$D$6:$D$504),COUNTIF(ПЛАН!$H$6:$H$504,"<>FC-TF(один)")+ROW(D28)),COUNTIF(ПЛАН!$D$6:$D$504,"<="&ПЛАН!$D$6:$D$504),0)),"0") -> 0 | D35: =IFERROR(INDEX(ПЛАН!$E$6:$E$504,MATCH(SMALL((ПЛАН!$H$6:$H$504="FC-TF(один)")*COUNTIF(ПЛАН!$D$6:$D$504,"<="&ПЛАН!$D$6:$D$504)+ROW(ПЛАН!$E$6:$E$504)%,COUNTIF(ПЛАН!$H$6:$H$504,"<>FC-TF(один)")+ROW(E28)),COUNTIF(ПЛАН!$D$6:$D$504,"<="&ПЛАН!$D$6:$D$504)+ROW(ПЛАН!$E$6:$E$504)%,0)),"0") -> 0 | E35: 0 | F35: =IF(ISNA(VLOOKUP(D35,ПЛАН!$E$6:$G$504,2,0)),0,VLOOKUP(D35,ПЛАН!$E$6:$G$504,2,0)) -> 0 | G35: 0 | J35: =IF(ISNA(VLOOKUP(D35,ПЛАН!$E$6:$G$504,3,0)),0,VLOOKUP(D35,ПЛАН!$E$6:$G$504,3,0)) -> 0
C36: =IFERROR(INDEX(ПЛАН!$D$6:$D$504,MATCH(SMALL((ПЛАН!$H$6:$H$504="FC-TF(один)")*COUNTIF(ПЛАН!$D$6:$D$504,"<="&ПЛАН!$D$6:$D$504),COUNTIF(ПЛАН!$H$6:$H$504,"<>FC-TF(один)")+ROW(D29)),COUNTIF(ПЛАН!$D$6:$D$504,"<="&ПЛАН!$D$6:$D$504),0)),"0") -> 0 | D36: =IFERROR(INDEX(ПЛАН!$E$6:$E$504,MATCH(SMALL((ПЛАН!$H$6:$H$504="FC-TF(один)")*COUNTIF(ПЛАН!$D$6:$D$504,"<="&ПЛАН!$D$6:$D$504)+ROW(ПЛАН!$E$6:$E$504)%,COUNTIF(ПЛАН!$H$6:$H$504,"<>FC-TF(один)")+ROW(E29)),COUNTIF(ПЛАН!$D$6:$D$504,"<="&ПЛАН!$D$6:$D$504)+ROW(ПЛАН!$E$6:$E$504)%,0)),"0") -> 0 | E36: 0 | F36: =IF(ISNA(VLOOKUP(D36,ПЛАН!$E$6:$G$504,2,0)),0,VLOOKUP(D36,ПЛАН!$E$6:$G$504,2,0)) -> 0 | G36: 0 | J36: =IF(ISNA(VLOOKUP(D36,ПЛАН!$E$6:$G$504,3,0)),0,VLOOKUP(D36,ПЛАН!$E$6:$G$504,3,0)) -> 0
C37: =IFERROR(INDEX(ПЛАН!$D$6:$D$504,MATCH(SMALL((ПЛАН!$H$6:$H$504="FC-TF(один)")*COUNTIF(ПЛАН!$D$6:$D$504,"<="&ПЛАН!$D$6:$D$504),COUNTIF(ПЛАН!$H$6:$H$504,"<>FC-TF(один)")+ROW(D30)),COUNTIF(ПЛАН!$D$6:$D$504,"<="&ПЛАН!$D$6:$D$504),0)),"0") -> 0 | D37: =IFERROR(INDEX(ПЛАН!$E$6:$E$504,MATCH(SMALL((ПЛАН!$H$6:$H$504="FC-TF(один)")*COUNTIF(ПЛАН!$D$6:$D$504,"<="&ПЛАН!$D$6:$D$504)+ROW(ПЛАН!$E$6:$E$504)%,COUNTIF(ПЛАН!$H$6:$H$504,"<>FC-TF(один)")+ROW(E30)),COUNTIF(ПЛАН!$D$6:$D$504,"<="&ПЛАН!$D$6:$D$504)+ROW(ПЛАН!$E$6:$E$504)%,0)),"0") -> 0 | E37: 0 | F37: =IF(ISNA(VLOOKUP(D37,ПЛАН!$E$6:$G$504,2,0)),0,VLOOKUP(D37,ПЛАН!$E$6:$G$504,2,0)) -> 0 | G37: 0 | J37: =IF(ISNA(VLOOKUP(D37,ПЛАН!$E$6:$G$504,3,0)),0,VLOOKUP(D37,ПЛАН!$E$6:$G$504,3,0)) -> 0
C38: =IFERROR(INDEX(ПЛАН!$D$6:$D$504,MATCH(SMALL((ПЛАН!$H$6:$H$504="FC-TF(один)")*COUNTIF(ПЛАН!$D$6:$D$504,"<="&ПЛАН!$D$6:$D$504),COUNTIF(ПЛАН!$H$6:$H$504,"<>FC-TF(один)")+ROW(D31)),COUNTIF(ПЛАН!$D$6:$D$504,"<="&ПЛАН!$D$6:$D$504),0)),"0") -> 0 | D38: =IFERROR(INDEX(ПЛАН!$E$6:$E$504,MATCH(SMALL((ПЛАН!$H$6:$H$504="FC-TF(один)")*COUNTIF(ПЛАН!$D$6:$D$504,"<="&ПЛАН!$D$6:$D$504)+ROW(ПЛАН!$E$6:$E$504)%,COUNTIF(ПЛАН!$H$6:$H$504,"<>FC-TF(один)")+ROW(E31)),COUNTIF(ПЛАН!$D$6:$D$504,"<="&ПЛАН!$D$6:$D$504)+ROW(ПЛАН!$E$6:$E$504)%,0)),"0") -> 0 | E38: 0 | F38: =IF(ISNA(VLOOKUP(D38,ПЛАН!$E$6:$G$504,2,0)),0,VLOOKUP(D38,ПЛАН!$E$6:$G$504,2,0)) -> 0 | G38: 0 | J38: =IF(ISNA(VLOOKUP(D38,ПЛАН!$E$6:$G$504,3,0)),0,VLOOKUP(D38,ПЛАН!$E$6:$G$504,3,0)) -> 0
C39: =IFERROR(INDEX(ПЛАН!$D$6:$D$504,MATCH(SMALL((ПЛАН!$H$6:$H$504="FC-TF(один)")*COUNTIF(ПЛАН!$D$6:$D$504,"<="&ПЛАН!$D$6:$D$504),COUNTIF(ПЛАН!$H$6:$H$504,"<>FC-TF(один)")+ROW(D32)),COUNTIF(ПЛАН!$D$6:$D$504,"<="&ПЛАН!$D$6:$D$504),0)),"0") -> 0 | D39: =IFERROR(INDEX(ПЛАН!$E$6:$E$504,MATCH(SMALL((ПЛАН!$H$6:$H$504="FC-TF(один)")*COUNTIF(ПЛАН!$D$6:$D$504,"<="&ПЛАН!$D$6:$D$504)+ROW(ПЛАН!$E$6:$E$504)%,COUNTIF(ПЛАН!$H$6:$H$504,"<>FC-TF(один)")+ROW(E32)),COUNTIF(ПЛАН!$D$6:$D$504,"<="&ПЛАН!$D$6:$D$504)+ROW(ПЛАН!$E$6:$E$504)%,0)),"0") -> 0 | E39: 0 | F39: =IF(ISNA(VLOOKUP(D39,ПЛАН!$E$6:$G$504,2,0)),0,VLOOKUP(D39,ПЛАН!$E$6:$G$504,2,0)) -> 0 | G39: 0 | J39: =IF(ISNA(VLOOKUP(D39,ПЛАН!$E$6:$G$504,3,0)),0,VLOOKUP(D39,ПЛАН!$E$6:$G$504,3,0)) -> 0
C40: =IFERROR(INDEX(ПЛАН!$D$6:$D$504,MATCH(SMALL((ПЛАН!$H$6:$H$504="FC-TF(один)")*COUNTIF(ПЛАН!$D$6:$D$504,"<="&ПЛАН!$D$6:$D$504),COUNTIF(ПЛАН!$H$6:$H$504,"<>FC-TF(один)")+ROW(D33)),COUNTIF(ПЛАН!$D$6:$D$504,"<="&ПЛАН!$D$6:$D$504),0)),"0") -> 0 | D40: =IFERROR(INDEX(ПЛАН!$E$6:$E$504,MATCH(SMALL((ПЛАН!$H$6:$H$504="FC-TF(один)")*COUNTIF(ПЛАН!$D$6:$D$504,"<="&ПЛАН!$D$6:$D$504)+ROW(ПЛАН!$E$6:$E$504)%,COUNTIF(ПЛАН!$H$6:$H$504,"<>FC-TF(один)")+ROW(E33)),COUNTIF(ПЛАН!$D$6:$D$504,"<="&ПЛАН!$D$6:$D$504)+ROW(ПЛАН!$E$6:$E$504)%,0)),"0") -> 0 | E40: 0 | F40: =IF(ISNA(VLOOKUP(D40,ПЛАН!$E$6:$G$504,2,0)),0,VLOOKUP(D40,ПЛАН!$E$6:$G$504,2,0)) -> 0 | G40: 0 | J40: =IF(ISNA(VLOOKUP(D40,ПЛАН!$E$6:$G$504,3,0)),0,VLOOKUP(D40,ПЛАН!$E$6:$G$504,3,0)) -> 0
C41: =IFERROR(INDEX(ПЛАН!$D$6:$D$504,MATCH(SMALL((ПЛАН!$H$6:$H$504="FC-TF(один)")*COUNTIF(ПЛАН!$D$6:$D$504,"<="&ПЛАН!$D$6:$D$504),COUNTIF(ПЛАН!$H$6:$H$504,"<>FC-TF(один)")+ROW(D34)),COUNTIF(ПЛАН!$D$6:$D$504,"<="&ПЛАН!$D$6:$D$504),0)),"0") -> 0 | D41: =IFERROR(INDEX(ПЛАН!$E$6:$E$504,MATCH(SMALL((ПЛАН!$H$6:$H$504="FC-TF(один)")*COUNTIF(ПЛАН!$D$6:$D$504,"<="&ПЛАН!$D$6:$D$504)+ROW(ПЛАН!$E$6:$E$504)%,COUNTIF(ПЛАН!$H$6:$H$504,"<>FC-TF(один)")+ROW(E34)),COUNTIF(ПЛАН!$D$6:$D$504,"<="&ПЛАН!$D$6:$D$504)+ROW(ПЛАН!$E$6:$E$504)%,0)),"0") -> 0 | E41: 0 | F41: =IF(ISNA(VLOOKUP(D41,ПЛАН!$E$6:$G$504,2,0)),0,VLOOKUP(D41,ПЛАН!$E$6:$G$504,2,0)) -> 0 | G41: 0 | J41: =IF(ISNA(VLOOKUP(D41,ПЛАН!$E$6:$G$504,3,0)),0,VLOOKUP(D41,ПЛАН!$E$6:$G$504,3,0)) -> 0
C42: =IFERROR(INDEX(ПЛАН!$D$6:$D$504,MATCH(SMALL((ПЛАН!$H$6:$H$504="FC-TF(один)")*COUNTIF(ПЛАН!$D$6:$D$504,"<="&ПЛАН!$D$6:$D$504),COUNTIF(ПЛАН!$H$6:$H$504,"<>FC-TF(один)")+ROW(D35)),COUNTIF(ПЛАН!$D$6:$D$504,"<="&ПЛАН!$D$6:$D$504),0)),"0") -> 0 | D42: =IFERROR(INDEX(ПЛАН!$E$6:$E$504,MATCH(SMALL((ПЛАН!$H$6:$H$504="FC-TF(один)")*COUNTIF(ПЛАН!$D$6:$D$504,"<="&ПЛАН!$D$6:$D$504)+ROW(ПЛАН!$E$6:$E$504)%,COUNTIF(ПЛАН!$H$6:$H$504,"<>FC-TF(один)")+ROW(E35)),COUNTIF(ПЛАН!$D$6:$D$504,"<="&ПЛАН!$D$6:$D$504)+ROW(ПЛАН!$E$6:$E$504)%,0)),"0") -> 0 | E42: 0 | F42: =IF(ISNA(VLOOKUP(D42,ПЛАН!$E$6:$G$504,2,0)),0,VLOOKUP(D42,ПЛАН!$E$6:$G$504,2,0)) -> 0 | G42: 0 | J42: =IF(ISNA(VLOOKUP(D42,ПЛАН!$E$6:$G$504,3,0)),0,VLOOKUP(D42,ПЛАН!$E$6:$G$504,3,0)) -> 0
C43: =IFERROR(INDEX(ПЛАН!$D$6:$D$504,MATCH(SMALL((ПЛАН!$H$6:$H$504="FC-TF(один)")*COUNTIF(ПЛАН!$D$6:$D$504,"<="&ПЛАН!$D$6:$D$504),COUNTIF(ПЛАН!$H$6:$H$504,"<>FC-TF(один)")+ROW(D36)),COUNTIF(ПЛАН!$D$6:$D$504,"<="&ПЛАН!$D$6:$D$504),0)),"0") -> 0 | D43: =IFERROR(INDEX(ПЛАН!$E$6:$E$504,MATCH(SMALL((ПЛАН!$H$6:$H$504="FC-TF(один)")*COUNTIF(ПЛАН!$D$6:$D$504,"<="&ПЛАН!$D$6:$D$504)+ROW(ПЛАН!$E$6:$E$504)%,COUNTIF(ПЛАН!$H$6:$H$504,"<>FC-TF(один)")+ROW(E36)),COUNTIF(ПЛАН!$D$6:$D$504,"<="&ПЛАН!$D$6:$D$504)+ROW(ПЛАН!$E$6:$E$504)%,0)),"0") -> 0 | E43: 0 | F43: =IF(ISNA(VLOOKUP(D43,ПЛАН!$E$6:$G$504,2,0)),0,VLOOKUP(D43,ПЛАН!$E$6:$G$504,2,0)) -> 0 | G43: 0 | J43: =IF(ISNA(VLOOKUP(D43,ПЛАН!$E$6:$G$504,3,0)),0,VLOOKUP(D43,ПЛАН!$E$6:$G$504,3,0)) -> 0
C44: =IFERROR(INDEX(ПЛАН!$D$6:$D$504,MATCH(SMALL((ПЛАН!$H$6:$H$504="FC-TF(один)")*COUNTIF(ПЛАН!$D$6:$D$504,"<="&ПЛАН!$D$6:$D$504),COUNTIF(ПЛАН!$H$6:$H$504,"<>FC-TF(один)")+ROW(D37)),COUNTIF(ПЛАН!$D$6:$D$504,"<="&ПЛАН!$D$6:$D$504),0)),"0") -> 0 | D44: =IFERROR(INDEX(ПЛАН!$E$6:$E$504,MATCH(SMALL((ПЛАН!$H$6:$H$504="FC-TF(один)")*COUNTIF(ПЛАН!$D$6:$D$504,"<="&ПЛАН!$D$6:$D$504)+ROW(ПЛАН!$E$6:$E$504)%,COUNTIF(ПЛАН!$H$6:$H$504,"<>FC-TF(один)")+ROW(E37)),COUNTIF(ПЛАН!$D$6:$D$504,"<="&ПЛАН!$D$6:$D$504)+ROW(ПЛАН!$E$6:$E$504)%,0)),"0") -> 0 | E44: 0 | F44: =IF(ISNA(VLOOKUP(D44,ПЛАН!$E$6:$G$504,2,0)),0,VLOOKUP(D44,ПЛАН!$E$6:$G$504,2,0)) -> 0 | G44: 0 | J44: =IF(ISNA(VLOOKUP(D44,ПЛАН!$E$6:$G$504,3,0)),0,VLOOKUP(D44,ПЛАН!$E$6:$G$504,3,0)) -> 0
C45: =IFERROR(INDEX(ПЛАН!$D$6:$D$504,MATCH(SMALL((ПЛАН!$H$6:$H$504="FC-TF(один)")*COUNTIF(ПЛАН!$D$6:$D$504,"<="&ПЛАН!$D$6:$D$504),COUNTIF(ПЛАН!$H$6:$H$504,"<>FC-TF(один)")+ROW(D38)),COUNTIF(ПЛАН!$D$6:$D$504,"<="&ПЛАН!$D$6:$D$504),0)),"0") -> 0 | D45: =IFERROR(INDEX(ПЛАН!$E$6:$E$504,MATCH(SMALL((ПЛАН!$H$6:$H$504="FC-TF(один)")*COUNTIF(ПЛАН!$D$6:$D$504,"<="&ПЛАН!$D$6:$D$504)+ROW(ПЛАН!$E$6:$E$504)%,COUNTIF(ПЛАН!$H$6:$H$504,"<>FC-TF(один)")+ROW(E38)),COUNTIF(ПЛАН!$D$6:$D$504,"<="&ПЛАН!$D$6:$D$504)+ROW(ПЛАН!$E$6:$E$504)%,0)),"0") -> 0 | E45: 0 | F45: =IF(ISNA(VLOOKUP(D45,ПЛАН!$E$6:$G$504,2,0)),0,VLOOKUP(D45,ПЛАН!$E$6:$G$504,2,0)) -> 0 | G45: 0 | J45: =IF(ISNA(VLOOKUP(D45,ПЛАН!$E$6:$G$504,3,0)),0,VLOOKUP(D45,ПЛАН!$E$6:$G$504,3,0)) -> 0
C46: =IFERROR(INDEX(ПЛАН!$D$6:$D$504,MATCH(SMALL((ПЛАН!$H$6:$H$504="FC-TF(один)")*COUNTIF(ПЛАН!$D$6:$D$504,"<="&ПЛАН!$D$6:$D$504),COUNTIF(ПЛАН!$H$6:$H$504,"<>FC-TF(один)")+ROW(D39)),COUNTIF(ПЛАН!$D$6:$D$504,"<="&ПЛАН!$D$6:$D$504),0)),"0") -> 0 | D46: =IFERROR(INDEX(ПЛАН!$E$6:$E$504,MATCH(SMALL((ПЛАН!$H$6:$H$504="FC-TF(один)")*COUNTIF(ПЛАН!$D$6:$D$504,"<="&ПЛАН!$D$6:$D$504)+ROW(ПЛАН!$E$6:$E$504)%,COUNTIF(ПЛАН!$H$6:$H$504,"<>FC-TF(один)")+ROW(E39)),COUNTIF(ПЛАН!$D$6:$D$504,"<="&ПЛАН!$D$6:$D$504)+ROW(ПЛАН!$E$6:$E$504)%,0)),"0") -> 0 | E46: 0 | F46: =IF(ISNA(VLOOKUP(D46,ПЛАН!$E$6:$G$504,2,0)),0,VLOOKUP(D46,ПЛАН!$E$6:$G$504,2,0)) -> 0 | G46: 0 | J46: =IF(ISNA(VLOOKUP(D46,ПЛАН!$E$6:$G$504,3,0)),0,VLOOKUP(D46,ПЛАН!$E$6:$G$504,3,0)) -> 0
C47: =IFERROR(INDEX(ПЛАН!$D$6:$D$504,MATCH(SMALL((ПЛАН!$H$6:$H$504="FC-TF(один)")*COUNTIF(ПЛАН!$D$6:$D$504,"<="&ПЛАН!$D$6:$D$504),COUNTIF(ПЛАН!$H$6:$H$504,"<>FC-TF(один)")+ROW(D40)),COUNTIF(ПЛАН!$D$6:$D$504,"<="&ПЛАН!$D$6:$D$504),0)),"0") -> 0 | D47: =IFERROR(INDEX(ПЛАН!$E$6:$E$504,MATCH(SMALL((ПЛАН!$H$6:$H$504="FC-TF(один)")*COUNTIF(ПЛАН!$D$6:$D$504,"<="&ПЛАН!$D$6:$D$504)+ROW(ПЛАН!$E$6:$E$504)%,COUNTIF(ПЛАН!$H$6:$H$504,"<>FC-TF(один)")+ROW(E40)),COUNTIF(ПЛАН!$D$6:$D$504,"<="&ПЛАН!$D$6:$D$504)+ROW(ПЛАН!$E$6:$E$504)%,0)),"0") -> 0 | E47: 0 | F47: =IF(ISNA(VLOOKUP(D47,ПЛАН!$E$6:$G$504,2,0)),0,VLOOKUP(D47,ПЛАН!$E$6:$G$504,2,0)) -> 0 | G47: 0 | J47: =IF(ISNA(VLOOKUP(D47,ПЛАН!$E$6:$G$504,3,0)),0,VLOOKUP(D47,ПЛАН!$E$6:$G$504,3,0)) -> 0
C48: =IFERROR(INDEX(ПЛАН!$D$6:$D$504,MATCH(SMALL((ПЛАН!$H$6:$H$504="FC-TF(один)")*COUNTIF(ПЛАН!$D$6:$D$504,"<="&ПЛАН!$D$6:$D$504),COUNTIF(ПЛАН!$H$6:$H$504,"<>FC-TF(один)")+ROW(D41)),COUNTIF(ПЛАН!$D$6:$D$504,"<="&ПЛАН!$D$6:$D$504),0)),"0") -> 0 | D48: =IFERROR(INDEX(ПЛАН!$E$6:$E$504,MATCH(SMALL((ПЛАН!$H$6:$H$504="FC-TF(один)")*COUNTIF(ПЛАН!$D$6:$D$504,"<="&ПЛАН!$D$6:$D$504)+ROW(ПЛАН!$E$6:$E$504)%,COUNTIF(ПЛАН!$H$6:$H$504,"<>FC-TF(один)")+ROW(E41)),COUNTIF(ПЛАН!$D$6:$D$504,"<="&ПЛАН!$D$6:$D$504)+ROW(ПЛАН!$E$6:$E$504)%,0)),"0") -> 0 | E48: 0 | F48: =IF(ISNA(VLOOKUP(D48,ПЛАН!$E$6:$G$504,2,0)),0,VLOOKUP(D48,ПЛАН!$E$6:$G$504,2,0)) -> 0 | G48: 0 | J48: =IF(ISNA(VLOOKUP(D48,ПЛАН!$E$6:$G$504,3,0)),0,VLOOKUP(D48,ПЛАН!$E$6:$G$504,3,0)) -> 0
C49: =IFERROR(INDEX(ПЛАН!$D$6:$D$504,MATCH(SMALL((ПЛАН!$H$6:$H$504="FC-TF(один)")*COUNTIF(ПЛАН!$D$6:$D$504,"<="&ПЛАН!$D$6:$D$504),COUNTIF(ПЛАН!$H$6:$H$504,"<>FC-TF(один)")+ROW(D42)),COUNTIF(ПЛАН!$D$6:$D$504,"<="&ПЛАН!$D$6:$D$504),0)),"0") -> 0 | D49: =IFERROR(INDEX(ПЛАН!$E$6:$E$504,MATCH(SMALL((ПЛАН!$H$6:$H$504="FC-TF(один)")*COUNTIF(ПЛАН!$D$6:$D$504,"<="&ПЛАН!$D$6:$D$504)+ROW(ПЛАН!$E$6:$E$504)%,COUNTIF(ПЛАН!$H$6:$H$504,"<>FC-TF(один)")+ROW(E42)),COUNTIF(ПЛАН!$D$6:$D$504,"<="&ПЛАН!$D$6:$D$504)+ROW(ПЛАН!$E$6:$E$504)%,0)),"0") -> 0 | E49: 0 | F49: =IF(ISNA(VLOOKUP(D49,ПЛАН!$E$6:$G$504,2,0)),0,VLOOKUP(D49,ПЛАН!$E$6:$G$504,2,0)) -> 0 | G49: 0 | J49: =IF(ISNA(VLOOKUP(D49,ПЛАН!$E$6:$G$504,3,0)),0,VLOOKUP(D49,ПЛАН!$E$6:$G$504,3,0)) -> 0
C50: =IFERROR(INDEX(ПЛАН!$D$6:$D$504,MATCH(SMALL((ПЛАН!$H$6:$H$504="FC-TF(один)")*COUNTIF(ПЛАН!$D$6:$D$504,"<="&ПЛАН!$D$6:$D$504),COUNTIF(ПЛАН!$H$6:$H$504,"<>FC-TF(один)")+ROW(D43)),COUNTIF(ПЛАН!$D$6:$D$504,"<="&ПЛАН!$D$6:$D$504),0)),"0") -> 0 | D50: =IFERROR(INDEX(ПЛАН!$E$6:$E$504,MATCH(SMALL((ПЛАН!$H$6:$H$504="FC-TF(один)")*COUNTIF(ПЛАН!$D$6:$D$504,"<="&ПЛАН!$D$6:$D$504)+ROW(ПЛАН!$E$6:$E$504)%,COUNTIF(ПЛАН!$H$6:$H$504,"<>FC-TF(один)")+ROW(E43)),COUNTIF(ПЛАН!$D$6:$D$504,"<="&ПЛАН!$D$6:$D$504)+ROW(ПЛАН!$E$6:$E$504)%,0)),"0") -> 0 | E50: 0 | F50: =IF(ISNA(VLOOKUP(D50,ПЛАН!$E$6:$G$504,2,0)),0,VLOOKUP(D50,ПЛАН!$E$6:$G$504,2,0)) -> 0 | G50: 0 | J50: =IF(ISNA(VLOOKUP(D50,ПЛАН!$E$6:$G$504,3,0)),0,VLOOKUP(D50,ПЛАН!$E$6:$G$504,3,0)) -> 0
C51: =IFERROR(INDEX(ПЛАН!$D$6:$D$504,MATCH(SMALL((ПЛАН!$H$6:$H$504="FC-TF(один)")*COUNTIF(ПЛАН!$D$6:$D$504,"<="&ПЛАН!$D$6:$D$504),COUNTIF(ПЛАН!$H$6:$H$504,"<>FC-TF(один)")+ROW(D44)),COUNTIF(ПЛАН!$D$6:$D$504,"<="&ПЛАН!$D$6:$D$504),0)),"0") -> 0 | D51: =IFERROR(INDEX(ПЛАН!$E$6:$E$504,MATCH(SMALL((ПЛАН!$H$6:$H$504="FC-TF(один)")*COUNTIF(ПЛАН!$D$6:$D$504,"<="&ПЛАН!$D$6:$D$504)+ROW(ПЛАН!$E$6:$E$504)%,COUNTIF(ПЛАН!$H$6:$H$504,"<>FC-TF(один)")+ROW(E44)),COUNTIF(ПЛАН!$D$6:$D$504,"<="&ПЛАН!$D$6:$D$504)+ROW(ПЛАН!$E$6:$E$504)%,0)),"0") -> 0 | E51: 0 | F51: =IF(ISNA(VLOOKUP(D51,ПЛАН!$E$6:$G$504,2,0)),0,VLOOKUP(D51,ПЛАН!$E$6:$G$504,2,0)) -> 0 | G51: 0 | J51: =IF(ISNA(VLOOKUP(D51,ПЛАН!$E$6:$G$504,3,0)),0,VLOOKUP(D51,ПЛАН!$E$6:$G$504,3,0)) -> 0
C52: =IFERROR(INDEX(ПЛАН!$D$6:$D$504,MATCH(SMALL((ПЛАН!$H$6:$H$504="FC-TF(один)")*COUNTIF(ПЛАН!$D$6:$D$504,"<="&ПЛАН!$D$6:$D$504),COUNTIF(ПЛАН!$H$6:$H$504,"<>FC-TF(один)")+ROW(D45)),COUNTIF(ПЛАН!$D$6:$D$504,"<="&ПЛАН!$D$6:$D$504),0)),"0") -> 0 | D52: =IFERROR(INDEX(ПЛАН!$E$6:$E$504,MATCH(SMALL((ПЛАН!$H$6:$H$504="FC-TF(один)")*COUNTIF(ПЛАН!$D$6:$D$504,"<="&ПЛАН!$D$6:$D$504)+ROW(ПЛАН!$E$6:$E$504)%,COUNTIF(ПЛАН!$H$6:$H$504,"<>FC-TF(один)")+ROW(E45)),COUNTIF(ПЛАН!$D$6:$D$504,"<="&ПЛАН!$D$6:$D$504)+ROW(ПЛАН!$E$6:$E$504)%,0)),"0") -> 0 | E52: 0 | F52: =IF(ISNA(VLOOKUP(D52,ПЛАН!$E$6:$G$504,2,0)),0,VLOOKUP(D52,ПЛАН!$E$6:$G$504,2,0)) -> 0 | G52: 0 | J52: =IF(ISNA(VLOOKUP(D52,ПЛАН!$E$6:$G$504,3,0)),0,VLOOKUP(D52,ПЛАН!$E$6:$G$504,3,0)) -> 0
C53: =IFERROR(INDEX(ПЛАН!$D$6:$D$504,MATCH(SMALL((ПЛАН!$H$6:$H$504="FC-TF(один)")*COUNTIF(ПЛАН!$D$6:$D$504,"<="&ПЛАН!$D$6:$D$504),COUNTIF(ПЛАН!$H$6:$H$504,"<>FC-TF(один)")+ROW(D46)),COUNTIF(ПЛАН!$D$6:$D$504,"<="&ПЛАН!$D$6:$D$504),0)),"0") -> 0 | D53: =IFERROR(INDEX(ПЛАН!$E$6:$E$504,MATCH(SMALL((ПЛАН!$H$6:$H$504="FC-TF(один)")*COUNTIF(ПЛАН!$D$6:$D$504,"<="&ПЛАН!$D$6:$D$504)+ROW(ПЛАН!$E$6:$E$504)%,COUNTIF(ПЛАН!$H$6:$H$504,"<>FC-TF(один)")+ROW(E46)),COUNTIF(ПЛАН!$D$6:$D$504,"<="&ПЛАН!$D$6:$D$504)+ROW(ПЛАН!$E$6:$E$504)%,0)),"0") -> 0 | E53: 0 | F53: =IF(ISNA(VLOOKUP(D53,ПЛАН!$E$6:$G$504,2,0)),0,VLOOKUP(D53,ПЛАН!$E$6:$G$504,2,0)) -> 0 | G53: 0 | J53: =IF(ISNA(VLOOKUP(D53,ПЛАН!$E$6:$G$504,3,0)),0,VLOOKUP(D53,ПЛАН!$E$6:$G$504,3,0)) -> 0
C54: =IFERROR(INDEX(ПЛАН!$D$6:$D$504,MATCH(SMALL((ПЛАН!$H$6:$H$504="FC-TF(один)")*COUNTIF(ПЛАН!$D$6:$D$504,"<="&ПЛАН!$D$6:$D$504),COUNTIF(ПЛАН!$H$6:$H$504,"<>FC-TF(один)")+ROW(D47)),COUNTIF(ПЛАН!$D$6:$D$504,"<="&ПЛАН!$D$6:$D$504),0)),"0") -> 0 | D54: =IFERROR(INDEX(ПЛАН!$E$6:$E$504,MATCH(SMALL((ПЛАН!$H$6:$H$504="FC-TF(один)")*COUNTIF(ПЛАН!$D$6:$D$504,"<="&ПЛАН!$D$6:$D$504)+ROW(ПЛАН!$E$6:$E$504)%,COUNTIF(ПЛАН!$H$6:$H$504,"<>FC-TF(один)")+ROW(E47)),COUNTIF(ПЛАН!$D$6:$D$504,"<="&ПЛАН!$D$6:$D$504)+ROW(ПЛАН!$E$6:$E$504)%,0)),"0") -> 0 | E54: 0 | F54: =IF(ISNA(VLOOKUP(D54,ПЛАН!$E$6:$G$504,2,0)),0,VLOOKUP(D54,ПЛАН!$E$6:$G$504,2,0)) -> 0 | G54: 0 | J54: =IF(ISNA(VLOOKUP(D54,ПЛАН!$E$6:$G$504,3,0)),0,VLOOKUP(D54,ПЛАН!$E$6:$G$504,3,0)) -> 0
C55: =IFERROR(INDEX(ПЛАН!$D$6:$D$504,MATCH(SMALL((ПЛАН!$H$6:$H$504="FC-TF(один)")*COUNTIF(ПЛАН!$D$6:$D$504,"<="&ПЛАН!$D$6:$D$504),COUNTIF(ПЛАН!$H$6:$H$504,"<>FC-TF(один)")+ROW(D48)),COUNTIF(ПЛАН!$D$6:$D$504,"<="&ПЛАН!$D$6:$D$504),0)),"0") -> 0 | D55: =IFERROR(INDEX(ПЛАН!$E$6:$E$504,MATCH(SMALL((ПЛАН!$H$6:$H$504="FC-TF(один)")*COUNTIF(ПЛАН!$D$6:$D$504,"<="&ПЛАН!$D$6:$D$504)+ROW(ПЛАН!$E$6:$E$504)%,COUNTIF(ПЛАН!$H$6:$H$504,"<>FC-TF(один)")+ROW(E48)),COUNTIF(ПЛАН!$D$6:$D$504,"<="&ПЛАН!$D$6:$D$504)+ROW(ПЛАН!$E$6:$E$504)%,0)),"0") -> 0 | E55: 0 | F55: =IF(ISNA(VLOOKUP(D55,ПЛАН!$E$6:$G$504,2,0)),0,VLOOKUP(D55,ПЛАН!$E$6:$G$504,2,0)) -> 0 | G55: 0 | J55: =IF(ISNA(VLOOKUP(D55,ПЛАН!$E$6:$G$504,3,0)),0,VLOOKUP(D55,ПЛАН!$E$6:$G$504,3,0)) -> 0
C56: =IFERROR(INDEX(ПЛАН!$D$6:$D$504,MATCH(SMALL((ПЛАН!$H$6:$H$504="FC-TF(один)")*COUNTIF(ПЛАН!$D$6:$D$504,"<="&ПЛАН!$D$6:$D$504),COUNTIF(ПЛАН!$H$6:$H$504,"<>FC-TF(один)")+ROW(D49)),COUNTIF(ПЛАН!$D$6:$D$504,"<="&ПЛАН!$D$6:$D$504),0)),"0") -> 0 | D56: =IFERROR(INDEX(ПЛАН!$E$6:$E$504,MATCH(SMALL((ПЛАН!$H$6:$H$504="FC-TF(один)")*COUNTIF(ПЛАН!$D$6:$D$504,"<="&ПЛАН!$D$6:$D$504)+ROW(ПЛАН!$E$6:$E$504)%,COUNTIF(ПЛАН!$H$6:$H$504,"<>FC-TF(один)")+ROW(E49)),COUNTIF(ПЛАН!$D$6:$D$504,"<="&ПЛАН!$D$6:$D$504)+ROW(ПЛАН!$E$6:$E$504)%,0)),"0") -> 0 | E56: 0 | F56: =IF(ISNA(VLOOKUP(D56,ПЛАН!$E$6:$G$504,2,0)),0,VLOOKUP(D56,ПЛАН!$E$6:$G$504,2,0)) -> 0 | G56: 0 | J56: =IF(ISNA(VLOOKUP(D56,ПЛАН!$E$6:$G$504,3,0)),0,VLOOKUP(D56,ПЛАН!$E$6:$G$504,3,0)) -> 0
C57: =IFERROR(INDEX(ПЛАН!$D$6:$D$504,MATCH(SMALL((ПЛАН!$H$6:$H$504="FC-TF(один)")*COUNTIF(ПЛАН!$D$6:$D$504,"<="&ПЛАН!$D$6:$D$504),COUNTIF(ПЛАН!$H$6:$H$504,"<>FC-TF(один)")+ROW(D50)),COUNTIF(ПЛАН!$D$6:$D$504,"<="&ПЛАН!$D$6:$D$504),0)),"0") -> 0 | D57: =IFERROR(INDEX(ПЛАН!$E$6:$E$504,MATCH(SMALL((ПЛАН!$H$6:$H$504="FC-TF(один)")*COUNTIF(ПЛАН!$D$6:$D$504,"<="&ПЛАН!$D$6:$D$504)+ROW(ПЛАН!$E$6:$E$504)%,COUNTIF(ПЛАН!$H$6:$H$504,"<>FC-TF(один)")+ROW(E50)),COUNTIF(ПЛАН!$D$6:$D$504,"<="&ПЛАН!$D$6:$D$504)+ROW(ПЛАН!$E$6:$E$504)%,0)),"0") -> 0 | E57: 0 | F57: =IF(ISNA(VLOOKUP(D57,ПЛАН!$E$6:$G$504,2,0)),0,VLOOKUP(D57,ПЛАН!$E$6:$G$504,2,0)) -> 0 | G57: 0 | J57: =IF(ISNA(VLOOKUP(D57,ПЛАН!$E$6:$G$504,3,0)),0,VLOOKUP(D57,ПЛАН!$E$6:$G$504,3,0)) -> 0
C58: =IFERROR(INDEX(ПЛАН!$D$6:$D$504,MATCH(SMALL((ПЛАН!$H$6:$H$504="FC-TF(один)")*COUNTIF(ПЛАН!$D$6:$D$504,"<="&ПЛАН!$D$6:$D$504),COUNTIF(ПЛАН!$H$6:$H$504,"<>FC-TF(один)")+ROW(D51)),COUNTIF(ПЛАН!$D$6:$D$504,"<="&ПЛАН!$D$6:$D$504),0)),"0") -> 0 | D58: =IFERROR(INDEX(ПЛАН!$E$6:$E$504,MATCH(SMALL((ПЛАН!$H$6:$H$504="FC-TF(один)")*COUNTIF(ПЛАН!$D$6:$D$504,"<="&ПЛАН!$D$6:$D$504)+ROW(ПЛАН!$E$6:$E$504)%,COUNTIF(ПЛАН!$H$6:$H$504,"<>FC-TF(один)")+ROW(E51)),COUNTIF(ПЛАН!$D$6:$D$504,"<="&ПЛАН!$D$6:$D$504)+ROW(ПЛАН!$E$6:$E$504)%,0)),"0") -> 0 | E58: 0 | F58: =IF(ISNA(VLOOKUP(D58,ПЛАН!$E$6:$G$504,2,0)),0,VLOOKUP(D58,ПЛАН!$E$6:$G$504,2,0)) -> 0 | G58: 0 | J58: =IF(ISNA(VLOOKUP(D58,ПЛАН!$E$6:$G$504,3,0)),0,VLOOKUP(D58,ПЛАН!$E$6:$G$504,3,0)) -> 0
C59: =IFERROR(INDEX(ПЛАН!$D$6:$D$504,MATCH(SMALL((ПЛАН!$H$6:$H$504="FC-TF(один)")*COUNTIF(ПЛАН!$D$6:$D$504,"<="&ПЛАН!$D$6:$D$504),COUNTIF(ПЛАН!$H$6:$H$504,"<>FC-TF(один)")+ROW(D52)),COUNTIF(ПЛАН!$D$6:$D$504,"<="&ПЛАН!$D$6:$D$504),0)),"0") -> 0 | D59: =IFERROR(INDEX(ПЛАН!$E$6:$E$504,MATCH(SMALL((ПЛАН!$H$6:$H$504="FC-TF(один)")*COUNTIF(ПЛАН!$D$6:$D$504,"<="&ПЛАН!$D$6:$D$504)+ROW(ПЛАН!$E$6:$E$504)%,COUNTIF(ПЛАН!$H$6:$H$504,"<>FC-TF(один)")+ROW(E52)),COUNTIF(ПЛАН!$D$6:$D$504,"<="&ПЛАН!$D$6:$D$504)+ROW(ПЛАН!$E$6:$E$504)%,0)),"0") -> 0 | E59: 0 | F59: =IF(ISNA(VLOOKUP(D59,ПЛАН!$E$6:$G$504,2,0)),0,VLOOKUP(D59,ПЛАН!$E$6:$G$504,2,0)) -> 0 | G59: 0 | J59: =IF(ISNA(VLOOKUP(D59,ПЛАН!$E$6:$G$504,3,0)),0,VLOOKUP(D59,ПЛАН!$E$6:$G$504,3,0)) -> 0
C60: =IFERROR(INDEX(ПЛАН!$D$6:$D$504,MATCH(SMALL((ПЛАН!$H$6:$H$504="FC-TF(один)")*COUNTIF(ПЛАН!$D$6:$D$504,"<="&ПЛАН!$D$6:$D$504),COUNTIF(ПЛАН!$H$6:$H$504,"<>FC-TF(один)")+ROW(D53)),COUNTIF(ПЛАН!$D$6:$D$504,"<="&ПЛАН!$D$6:$D$504),0)),"0") -> 0 | D60: =IFERROR(INDEX(ПЛАН!$E$6:$E$504,MATCH(SMALL((ПЛАН!$H$6:$H$504="FC-TF(один)")*COUNTIF(ПЛАН!$D$6:$D$504,"<="&ПЛАН!$D$6:$D$504)+ROW(ПЛАН!$E$6:$E$504)%,COUNTIF(ПЛАН!$H$6:$H$504,"<>FC-TF(один)")+ROW(E53)),COUNTIF(ПЛАН!$D$6:$D$504,"<="&ПЛАН!$D$6:$D$504)+ROW(ПЛАН!$E$6:$E$504)%,0)),"0") -> 0 | E60: 0 | F60: =IF(ISNA(VLOOKUP(D60,ПЛАН!$E$6:$G$504,2,0)),0,VLOOKUP(D60,ПЛАН!$E$6:$G$504,2,0)) -> 0 | G60: 0 | J60: =IF(ISNA(VLOOKUP(D60,ПЛАН!$E$6:$G$504,3,0)),0,VLOOKUP(D60,ПЛАН!$E$6:$G$504,3,0)) -> 0
C61: =IFERROR(INDEX(ПЛАН!$D$6:$D$504,MATCH(SMALL((ПЛАН!$H$6:$H$504="FC-TF(один)")*COUNTIF(ПЛАН!$D$6:$D$504,"<="&ПЛАН!$D$6:$D$504),COUNTIF(ПЛАН!$H$6:$H$504,"<>FC-TF(один)")+ROW(D54)),COUNTIF(ПЛАН!$D$6:$D$504,"<="&ПЛАН!$D$6:$D$504),0)),"0") -> 0 | D61: =IFERROR(INDEX(ПЛАН!$E$6:$E$504,MATCH(SMALL((ПЛАН!$H$6:$H$504="FC-TF(один)")*COUNTIF(ПЛАН!$D$6:$D$504,"<="&ПЛАН!$D$6:$D$504)+ROW(ПЛАН!$E$6:$E$504)%,COUNTIF(ПЛАН!$H$6:$H$504,"<>FC-TF(один)")+ROW(E54)),COUNTIF(ПЛАН!$D$6:$D$504,"<="&ПЛАН!$D$6:$D$504)+ROW(ПЛАН!$E$6:$E$504)%,0)),"0") -> 0 | E61: 0 | F61: =IF(ISNA(VLOOKUP(D61,ПЛАН!$E$6:$G$504,2,0)),0,VLOOKUP(D61,ПЛАН!$E$6:$G$504,2,0)) -> 0 | G61: 0 | J61: =IF(ISNA(VLOOKUP(D61,ПЛАН!$E$6:$G$504,3,0)),0,VLOOKUP(D61,ПЛАН!$E$6:$G$504,3,0)) -> 0
C62: =IFERROR(INDEX(ПЛАН!$D$6:$D$504,MATCH(SMALL((ПЛАН!$H$6:$H$504="FC-TF(один)")*COUNTIF(ПЛАН!$D$6:$D$504,"<="&ПЛАН!$D$6:$D$504),COUNTIF(ПЛАН!$H$6:$H$504,"<>FC-TF(один)")+ROW(D55)),COUNTIF(ПЛАН!$D$6:$D$504,"<="&ПЛАН!$D$6:$D$504),0)),"0") -> 0 | D62: =IFERROR(INDEX(ПЛАН!$E$6:$E$504,MATCH(SMALL((ПЛАН!$H$6:$H$504="FC-TF(один)")*COUNTIF(ПЛАН!$D$6:$D$504,"<="&ПЛАН!$D$6:$D$504)+ROW(ПЛАН!$E$6:$E$504)%,COUNTIF(ПЛАН!$H$6:$H$504,"<>FC-TF(один)")+ROW(E55)),COUNTIF(ПЛАН!$D$6:$D$504,"<="&ПЛАН!$D$6:$D$504)+ROW(ПЛАН!$E$6:$E$504)%,0)),"0") -> 0 | E62: 0 | F62: =IF(ISNA(VLOOKUP(D62,ПЛАН!$E$6:$G$504,2,0)),0,VLOOKUP(D62,ПЛАН!$E$6:$G$504,2,0)) -> 0 | G62: 0 | J62: =IF(ISNA(VLOOKUP(D62,ПЛАН!$E$6:$G$504,3,0)),0,VLOOKUP(D62,ПЛАН!$E$6:$G$504,3,0)) -> 0
C63: =IFERROR(INDEX(ПЛАН!$D$6:$D$504,MATCH(SMALL((ПЛАН!$H$6:$H$504="FC-TF(один)")*COUNTIF(ПЛАН!$D$6:$D$504,"<="&ПЛАН!$D$6:$D$504),COUNTIF(ПЛАН!$H$6:$H$504,"<>FC-TF(один)")+ROW(D56)),COUNTIF(ПЛАН!$D$6:$D$504,"<="&ПЛАН!$D$6:$D$504),0)),"0") -> 0 | D63: =IFERROR(INDEX(ПЛАН!$E$6:$E$504,MATCH(SMALL((ПЛАН!$H$6:$H$504="FC-TF(один)")*COUNTIF(ПЛАН!$D$6:$D$504,"<="&ПЛАН!$D$6:$D$504)+ROW(ПЛАН!$E$6:$E$504)%,COUNTIF(ПЛАН!$H$6:$H$504,"<>FC-TF(один)")+ROW(E56)),COUNTIF(ПЛАН!$D$6:$D$504,"<="&ПЛАН!$D$6:$D$504)+ROW(ПЛАН!$E$6:$E$504)%,0)),"0") -> 0 | E63: 0 | F63: =IF(ISNA(VLOOKUP(D63,ПЛАН!$E$6:$G$504,2,0)),0,VLOOKUP(D63,ПЛАН!$E$6:$G$504,2,0)) -> 0 | G63: 0 | J63: =IF(ISNA(VLOOKUP(D63,ПЛАН!$E$6:$G$504,3,0)),0,VLOOKUP(D63,ПЛАН!$E$6:$G$504,3,0)) -> 0
C64: =IFERROR(INDEX(ПЛАН!$D$6:$D$504,MATCH(SMALL((ПЛАН!$H$6:$H$504="FC-TF(один)")*COUNTIF(ПЛАН!$D$6:$D$504,"<="&ПЛАН!$D$6:$D$504),COUNTIF(ПЛАН!$H$6:$H$504,"<>FC-TF(один)")+ROW(D57)),COUNTIF(ПЛАН!$D$6:$D$504,"<="&ПЛАН!$D$6:$D$504),0)),"0") -> 0 | D64: =IFERROR(INDEX(ПЛАН!$E$6:$E$504,MATCH(SMALL((ПЛАН!$H$6:$H$504="FC-TF(один)")*COUNTIF(ПЛАН!$D$6:$D$504,"<="&ПЛАН!$D$6:$D$504)+ROW(ПЛАН!$E$6:$E$504)%,COUNTIF(ПЛАН!$H$6:$H$504,"<>FC-TF(один)")+ROW(E57)),COUNTIF(ПЛАН!$D$6:$D$504,"<="&ПЛАН!$D$6:$D$504)+ROW(ПЛАН!$E$6:$E$504)%,0)),"0") -> 0 | E64: 0 | F64: =IF(ISNA(VLOOKUP(D64,ПЛАН!$E$6:$G$504,2,0)),0,VLOOKUP(D64,ПЛАН!$E$6:$G$504,2,0)) -> 0 | G64: 0 | J64: =IF(ISNA(VLOOKUP(D64,ПЛАН!$E$6:$G$504,3,0)),0,VLOOKUP(D64,ПЛАН!$E$6:$G$504,3,0)) -> 0
C65: =IFERROR(INDEX(ПЛАН!$D$6:$D$504,MATCH(SMALL((ПЛАН!$H$6:$H$504="FC-TF(один)")*COUNTIF(ПЛАН!$D$6:$D$504,"<="&ПЛАН!$D$6:$D$504),COUNTIF(ПЛАН!$H$6:$H$504,"<>FC-TF(один)")+ROW(D58)),COUNTIF(ПЛАН!$D$6:$D$504,"<="&ПЛАН!$D$6:$D$504),0)),"0") -> 0 | D65: =IFERROR(INDEX(ПЛАН!$E$6:$E$504,MATCH(SMALL((ПЛАН!$H$6:$H$504="FC-TF(один)")*COUNTIF(ПЛАН!$D$6:$D$504,"<="&ПЛАН!$D$6:$D$504)+ROW(ПЛАН!$E$6:$E$504)%,COUNTIF(ПЛАН!$H$6:$H$504,"<>FC-TF(один)")+ROW(E58)),COUNTIF(ПЛАН!$D$6:$D$504,"<="&ПЛАН!$D$6:$D$504)+ROW(ПЛАН!$E$6:$E$504)%,0)),"0") -> 0 | E65: 0 | F65: =IF(ISNA(VLOOKUP(D65,ПЛАН!$E$6:$G$504,2,0)),0,VLOOKUP(D65,ПЛАН!$E$6:$G$504,2,0)) -> 0 | G65: 0 | J65: =IF(ISNA(VLOOKUP(D65,ПЛАН!$E$6:$G$504,3,0)),0,VLOOKUP(D65,ПЛАН!$E$6:$G$504,3,0)) -> 0
C66: =IFERROR(INDEX(ПЛАН!$D$6:$D$504,MATCH(SMALL((ПЛАН!$H$6:$H$504="FC-TF(один)")*COUNTIF(ПЛАН!$D$6:$D$504,"<="&ПЛАН!$D$6:$D$504),COUNTIF(ПЛАН!$H$6:$H$504,"<>FC-TF(один)")+ROW(D59)),COUNTIF(ПЛАН!$D$6:$D$504,"<="&ПЛАН!$D$6:$D$504),0)),"0") -> 0 | D66: =IFERROR(INDEX(ПЛАН!$E$6:$E$504,MATCH(SMALL((ПЛАН!$H$6:$H$504="FC-TF(один)")*COUNTIF(ПЛАН!$D$6:$D$504,"<="&ПЛАН!$D$6:$D$504)+ROW(ПЛАН!$E$6:$E$504)%,COUNTIF(ПЛАН!$H$6:$H$504,"<>FC-TF(один)")+ROW(E59)),COUNTIF(ПЛАН!$D$6:$D$504,"<="&ПЛАН!$D$6:$D$504)+ROW(ПЛАН!$E$6:$E$504)%,0)),"0") -> 0 | E66: 0 | F66: =IF(ISNA(VLOOKUP(D66,ПЛАН!$E$6:$G$504,2,0)),0,VLOOKUP(D66,ПЛАН!$E$6:$G$504,2,0)) -> 0 | G66: 0 | J66: =IF(ISNA(VLOOKUP(D66,ПЛАН!$E$6:$G$504,3,0)),0,VLOOKUP(D66,ПЛАН!$E$6:$G$504,3,0)) -> 0
C67: =IFERROR(INDEX(ПЛАН!$D$6:$D$504,MATCH(SMALL((ПЛАН!$H$6:$H$504="FC-TF(один)")*COUNTIF(ПЛАН!$D$6:$D$504,"<="&ПЛАН!$D$6:$D$504),COUNTIF(ПЛАН!$H$6:$H$504,"<>FC-TF(один)")+ROW(D60)),COUNTIF(ПЛАН!$D$6:$D$504,"<="&ПЛАН!$D$6:$D$504),0)),"0") -> 0 | D67: =IFERROR(INDEX(ПЛАН!$E$6:$E$504,MATCH(SMALL((ПЛАН!$H$6:$H$504="FC-TF(один)")*COUNTIF(ПЛАН!$D$6:$D$504,"<="&ПЛАН!$D$6:$D$504)+ROW(ПЛАН!$E$6:$E$504)%,COUNTIF(ПЛАН!$H$6:$H$504,"<>FC-TF(один)")+ROW(E60)),COUNTIF(ПЛАН!$D$6:$D$504,"<="&ПЛАН!$D$6:$D$504)+ROW(ПЛАН!$E$6:$E$504)%,0)),"0") -> 0 | E67: 0 | F67: =IF(ISNA(VLOOKUP(D67,ПЛАН!$E$6:$G$504,2,0)),0,VLOOKUP(D67,ПЛАН!$E$6:$G$504,2,0)) -> 0 | G67: 0 | J67: =IF(ISNA(VLOOKUP(D67,ПЛАН!$E$6:$G$504,3,0)),0,VLOOKUP(D67,ПЛАН!$E$6:$G$504,3,0)) -> 0
C68: =IFERROR(INDEX(ПЛАН!$D$6:$D$504,MATCH(SMALL((ПЛАН!$H$6:$H$504="FC-TF(один)")*COUNTIF(ПЛАН!$D$6:$D$504,"<="&ПЛАН!$D$6:$D$504),COUNTIF(ПЛАН!$H$6:$H$504,"<>FC-TF(один)")+ROW(D61)),COUNTIF(ПЛАН!$D$6:$D$504,"<="&ПЛАН!$D$6:$D$504),0)),"0") -> 0 | D68: =IFERROR(INDEX(ПЛАН!$E$6:$E$504,MATCH(SMALL((ПЛАН!$H$6:$H$504="FC-TF(один)")*COUNTIF(ПЛАН!$D$6:$D$504,"<="&ПЛАН!$D$6:$D$504)+ROW(ПЛАН!$E$6:$E$504)%,COUNTIF(ПЛАН!$H$6:$H$504,"<>FC-TF(один)")+ROW(E61)),COUNTIF(ПЛАН!$D$6:$D$504,"<="&ПЛАН!$D$6:$D$504)+ROW(ПЛАН!$E$6:$E$504)%,0)),"0") -> 0 | E68: 0 | F68: =IF(ISNA(VLOOKUP(D68,ПЛАН!$E$6:$G$504,2,0)),0,VLOOKUP(D68,ПЛАН!$E$6:$G$504,2,0)) -> 0 | G68: 0 | J68: =IF(ISNA(VLOOKUP(D68,ПЛАН!$E$6:$G$504,3,0)),0,VLOOKUP(D68,ПЛАН!$E$6:$G$504,3,0)) -> 0
C69: =IFERROR(INDEX(ПЛАН!$D$6:$D$504,MATCH(SMALL((ПЛАН!$H$6:$H$504="FC-TF(один)")*COUNTIF(ПЛАН!$D$6:$D$504,"<="&ПЛАН!$D$6:$D$504),COUNTIF(ПЛАН!$H$6:$H$504,"<>FC-TF(один)")+ROW(D62)),COUNTIF(ПЛАН!$D$6:$D$504,"<="&ПЛАН!$D$6:$D$504),0)),"0") -> 0 | D69: =IFERROR(INDEX(ПЛАН!$E$6:$E$504,MATCH(SMALL((ПЛАН!$H$6:$H$504="FC-TF(один)")*COUNTIF(ПЛАН!$D$6:$D$504,"<="&ПЛАН!$D$6:$D$504)+ROW(ПЛАН!$E$6:$E$504)%,COUNTIF(ПЛАН!$H$6:$H$504,"<>FC-TF(один)")+ROW(E62)),COUNTIF(ПЛАН!$D$6:$D$504,"<="&ПЛАН!$D$6:$D$504)+ROW(ПЛАН!$E$6:$E$504)%,0)),"0") -> 0 | E69: 0 | F69: =IF(ISNA(VLOOKUP(D69,ПЛАН!$E$6:$G$504,2,0)),0,VLOOKUP(D69,ПЛАН!$E$6:$G$504,2,0)) -> 0 | G69: 0 | J69: =IF(ISNA(VLOOKUP(D69,ПЛАН!$E$6:$G$504,3,0)),0,VLOOKUP(D69,ПЛАН!$E$6:$G$504,3,0)) -> 0
C70: =IFERROR(INDEX(ПЛАН!$D$6:$D$504,MATCH(SMALL((ПЛАН!$H$6:$H$504="FC-TF(один)")*COUNTIF(ПЛАН!$D$6:$D$504,"<="&ПЛАН!$D$6:$D$504),COUNTIF(ПЛАН!$H$6:$H$504,"<>FC-TF(один)")+ROW(D63)),COUNTIF(ПЛАН!$D$6:$D$504,"<="&ПЛАН!$D$6:$D$504),0)),"0") -> 0 | D70: =IFERROR(INDEX(ПЛАН!$E$6:$E$504,MATCH(SMALL((ПЛАН!$H$6:$H$504="FC-TF(один)")*COUNTIF(ПЛАН!$D$6:$D$504,"<="&ПЛАН!$D$6:$D$504)+ROW(ПЛАН!$E$6:$E$504)%,COUNTIF(ПЛАН!$H$6:$H$504,"<>FC-TF(один)")+ROW(E63)),COUNTIF(ПЛАН!$D$6:$D$504,"<="&ПЛАН!$D$6:$D$504)+ROW(ПЛАН!$E$6:$E$504)%,0)),"0") -> 0 | E70: 0 | F70: =IF(ISNA(VLOOKUP(D70,ПЛАН!$E$6:$G$504,2,0)),0,VLOOKUP(D70,ПЛАН!$E$6:$G$504,2,0)) -> 0 | G70: 0 | J70: =IF(ISNA(VLOOKUP(D70,ПЛАН!$E$6:$G$504,3,0)),0,VLOOKUP(D70,ПЛАН!$E$6:$G$504,3,0)) -> 0
C71: =IFERROR(INDEX(ПЛАН!$D$6:$D$504,MATCH(SMALL((ПЛАН!$H$6:$H$504="FC-TF(один)")*COUNTIF(ПЛАН!$D$6:$D$504,"<="&ПЛАН!$D$6:$D$504),COUNTIF(ПЛАН!$H$6:$H$504,"<>FC-TF(один)")+ROW(D64)),COUNTIF(ПЛАН!$D$6:$D$504,"<="&ПЛАН!$D$6:$D$504),0)),"0") -> 0 | D71: =IFERROR(INDEX(ПЛАН!$E$6:$E$504,MATCH(SMALL((ПЛАН!$H$6:$H$504="FC-TF(один)")*COUNTIF(ПЛАН!$D$6:$D$504,"<="&ПЛАН!$D$6:$D$504)+ROW(ПЛАН!$E$6:$E$504)%,COUNTIF(ПЛАН!$H$6:$H$504,"<>FC-TF(один)")+ROW(E64)),COUNTIF(ПЛАН!$D$6:$D$504,"<="&ПЛАН!$D$6:$D$504)+ROW(ПЛАН!$E$6:$E$504)%,0)),"0") -> 0 | E71: 0 | F71: =IF(ISNA(VLOOKUP(D71,ПЛАН!$E$6:$G$504,2,0)),0,VLOOKUP(D71,ПЛАН!$E$6:$G$504,2,0)) -> 0 | G71: 0 | J71: =IF(ISNA(VLOOKUP(D71,ПЛАН!$E$6:$G$504,3,0)),0,VLOOKUP(D71,ПЛАН!$E$6:$G$504,3,0)) -> 0
C72: =IFERROR(INDEX(ПЛАН!$D$6:$D$504,MATCH(SMALL((ПЛАН!$H$6:$H$504="FC-TF(один)")*COUNTIF(ПЛАН!$D$6:$D$504,"<="&ПЛАН!$D$6:$D$504),COUNTIF(ПЛАН!$H$6:$H$504,"<>FC-TF(один)")+ROW(D65)),COUNTIF(ПЛАН!$D$6:$D$504,"<="&ПЛАН!$D$6:$D$504),0)),"0") -> 0 | D72: =IFERROR(INDEX(ПЛАН!$E$6:$E$504,MATCH(SMALL((ПЛАН!$H$6:$H$504="FC-TF(один)")*COUNTIF(ПЛАН!$D$6:$D$504,"<="&ПЛАН!$D$6:$D$504)+ROW(ПЛАН!$E$6:$E$504)%,COUNTIF(ПЛАН!$H$6:$H$504,"<>FC-TF(один)")+ROW(E65)),COUNTIF(ПЛАН!$D$6:$D$504,"<="&ПЛАН!$D$6:$D$504)+ROW(ПЛАН!$E$6:$E$504)%,0)),"0") -> 0 | E72: 0 | F72: =IF(ISNA(VLOOKUP(D72,ПЛАН!$E$6:$G$504,2,0)),0,VLOOKUP(D72,ПЛАН!$E$6:$G$504,2,0)) -> 0 | G72: 0 | J72: =IF(ISNA(VLOOKUP(D72,ПЛАН!$E$6:$G$504,3,0)),0,VLOOKUP(D72,ПЛАН!$E$6:$G$504,3,0)) -> 0
C73: =IFERROR(INDEX(ПЛАН!$D$6:$D$504,MATCH(SMALL((ПЛАН!$H$6:$H$504="FC-TF(один)")*COUNTIF(ПЛАН!$D$6:$D$504,"<="&ПЛАН!$D$6:$D$504),COUNTIF(ПЛАН!$H$6:$H$504,"<>FC-TF(один)")+ROW(D66)),COUNTIF(ПЛАН!$D$6:$D$504,"<="&ПЛАН!$D$6:$D$504),0)),"0") -> 0 | D73: =IFERROR(INDEX(ПЛАН!$E$6:$E$504,MATCH(SMALL((ПЛАН!$H$6:$H$504="FC-TF(один)")*COUNTIF(ПЛАН!$D$6:$D$504,"<="&ПЛАН!$D$6:$D$504)+ROW(ПЛАН!$E$6:$E$504)%,COUNTIF(ПЛАН!$H$6:$H$504,"<>FC-TF(один)")+ROW(E66)),COUNTIF(ПЛАН!$D$6:$D$504,"<="&ПЛАН!$D$6:$D$504)+ROW(ПЛАН!$E$6:$E$504)%,0)),"0") -> 0 | E73: =J73/60*100 -> 0 | F73: =IF(ISNA(VLOOKUP(D73,ПЛАН!$E$6:$G$504,2,0)),0,VLOOKUP(D73,ПЛАН!$E$6:$G$504,2,0)) -> 0 | G73: =E73*F73/100 -> 0 | J73: =IF(ISNA(VLOOKUP(D73,ПЛАН!$E$6:$G$504,3,0)),0,VLOOKUP(D73,ПЛАН!$E$6:$G$504,3,0)) -> 0 | K73: =8*60/J73 -> 
C74: =IFERROR(INDEX(ПЛАН!$D$6:$D$504,MATCH(SMALL((ПЛАН!$H$6:$H$504="FC-TF(один)")*COUNTIF(ПЛАН!$D$6:$D$504,"<="&ПЛАН!$D$6:$D$504),COUNTIF(ПЛАН!$H$6:$H$504,"<>FC-TF(один)")+ROW(D67)),COUNTIF(ПЛАН!$D$6:$D$504,"<="&ПЛАН!$D$6:$D$504),0)),"0") -> 0 | D74: =IFERROR(INDEX(ПЛАН!$E$6:$E$504,MATCH(SMALL((ПЛАН!$H$6:$H$504="FC-TF(один)")*COUNTIF(ПЛАН!$D$6:$D$504,"<="&ПЛАН!$D$6:$D$504)+ROW(ПЛАН!$E$6:$E$504)%,COUNTIF(ПЛАН!$H$6:$H$504,"<>FC-TF(один)")+ROW(E67)),COUNTIF(ПЛАН!$D$6:$D$504,"<="&ПЛАН!$D$6:$D$504)+ROW(ПЛАН!$E$6:$E$504)%,0)),"0") -> 0 | E74: 0 | F74: =IF(ISNA(VLOOKUP(D74,ПЛАН!$E$6:$G$504,2,0)),0,VLOOKUP(D74,ПЛАН!$E$6:$G$504,2,0)) -> 0 | G74: 0 | J74: =IF(ISNA(VLOOKUP(D74,ПЛАН!$E$6:$G$504,3,0)),0,VLOOKUP(D74,ПЛАН!$E$6:$G$504,3,0)) -> 0
C75: =IFERROR(INDEX(ПЛАН!$D$6:$D$504,MATCH(SMALL((ПЛАН!$H$6:$H$504="FC-TF(один)")*COUNTIF(ПЛАН!$D$6:$D$504,"<="&ПЛАН!$D$6:$D$504),COUNTIF(ПЛАН!$H$6:$H$504,"<>FC-TF(один)")+ROW(D68)),COUNTIF(ПЛАН!$D$6:$D$504,"<="&ПЛАН!$D$6:$D$504),0)),"0") -> 0 | D75: =IFERROR(INDEX(ПЛАН!$E$6:$E$504,MATCH(SMALL((ПЛАН!$H$6:$H$504="FC-TF(один)")*COUNTIF(ПЛАН!$D$6:$D$504,"<="&ПЛАН!$D$6:$D$504)+ROW(ПЛАН!$E$6:$E$504)%,COUNTIF(ПЛАН!$H$6:$H$504,"<>FC-TF(один)")+ROW(E68)),COUNTIF(ПЛАН!$D$6:$D$504,"<="&ПЛАН!$D$6:$D$504)+ROW(ПЛАН!$E$6:$E$504)%,0)),"0") -> 0 | E75: 0 | F75: =IF(ISNA(VLOOKUP(D75,ПЛАН!$E$6:$G$504,2,0)),0,VLOOKUP(D75,ПЛАН!$E$6:$G$504,2,0)) -> 0 | G75: 0 | J75: =IF(ISNA(VLOOKUP(D75,ПЛАН!$E$6:$G$504,3,0)),0,VLOOKUP(D75,ПЛАН!$E$6:$G$504,3,0)) -> 0
C76: =IFERROR(INDEX(ПЛАН!$D$6:$D$504,MATCH(SMALL((ПЛАН!$H$6:$H$504="FC-TF(один)")*COUNTIF(ПЛАН!$D$6:$D$504,"<="&ПЛАН!$D$6:$D$504),COUNTIF(ПЛАН!$H$6:$H$504,"<>FC-TF(один)")+ROW(D69)),COUNTIF(ПЛАН!$D$6:$D$504,"<="&ПЛАН!$D$6:$D$504),0)),"0") -> 0 | D76: =IFERROR(INDEX(ПЛАН!$E$6:$E$504,MATCH(SMALL((ПЛАН!$H$6:$H$504="FC-TF(один)")*COUNTIF(ПЛАН!$D$6:$D$504,"<="&ПЛАН!$D$6:$D$504)+ROW(ПЛАН!$E$6:$E$504)%,COUNTIF(ПЛАН!$H$6:$H$504,"<>FC-TF(один)")+ROW(E69)),COUNTIF(ПЛАН!$D$6:$D$504,"<="&ПЛАН!$D$6:$D$504)+ROW(ПЛАН!$E$6:$E$504)%,0)),"0") -> 0 | E76: 0 | F76: =IF(ISNA(VLOOKUP(D76,ПЛАН!$E$6:$G$504,2,0)),0,VLOOKUP(D76,ПЛАН!$E$6:$G$504,2,0)) -> 0 | G76: 0 | J76: =IF(ISNA(VLOOKUP(D76,ПЛАН!$E$6:$G$504,3,0)),0,VLOOKUP(D76,ПЛАН!$E$6:$G$504,3,0)) -> 0
C77: =IFERROR(INDEX(ПЛАН!$D$6:$D$504,MATCH(SMALL((ПЛАН!$H$6:$H$504="FC-TF(один)")*COUNTIF(ПЛАН!$D$6:$D$504,"<="&ПЛАН!$D$6:$D$504),COUNTIF(ПЛАН!$H$6:$H$504,"<>FC-TF(один)")+ROW(D70)),COUNTIF(ПЛАН!$D$6:$D$504,"<="&ПЛАН!$D$6:$D$504),0)),"0") -> 0 | D77: =IFERROR(INDEX(ПЛАН!$E$6:$E$504,MATCH(SMALL((ПЛАН!$H$6:$H$504="FC-TF(один)")*COUNTIF(ПЛАН!$D$6:$D$504,"<="&ПЛАН!$D$6:$D$504)+ROW(ПЛАН!$E$6:$E$504)%,COUNTIF(ПЛАН!$H$6:$H$504,"<>FC-TF(один)")+ROW(E70)),COUNTIF(ПЛАН!$D$6:$D$504,"<="&ПЛАН!$D$6:$D$504)+ROW(ПЛАН!$E$6:$E$504)%,0)),"0") -> 0 | E77: 0 | F77: =IF(ISNA(VLOOKUP(D77,ПЛАН!$E$6:$G$504,2,0)),0,VLOOKUP(D77,ПЛАН!$E$6:$G$504,2,0)) -> 0 | G77: 0 | J77: =IF(ISNA(VLOOKUP(D77,ПЛАН!$E$6:$G$504,3,0)),0,VLOOKUP(D77,ПЛАН!$E$6:$G$504,3,0)) -> 0
C78: =IFERROR(INDEX(ПЛАН!$D$6:$D$504,MATCH(SMALL((ПЛАН!$H$6:$H$504="FC-TF(один)")*COUNTIF(ПЛАН!$D$6:$D$504,"<="&ПЛАН!$D$6:$D$504),COUNTIF(ПЛАН!$H$6:$H$504,"<>FC-TF(один)")+ROW(D71)),COUNTIF(ПЛАН!$D$6:$D$504,"<="&ПЛАН!$D$6:$D$504),0)),"0") -> 0 | D78: =IFERROR(INDEX(ПЛАН!$E$6:$E$504,MATCH(SMALL((ПЛАН!$H$6:$H$504="FC-TF(один)")*COUNTIF(ПЛАН!$D$6:$D$504,"<="&ПЛАН!$D$6:$D$504)+ROW(ПЛАН!$E$6:$E$504)%,COUNTIF(ПЛАН!$H$6:$H$504,"<>FC-TF(один)")+ROW(E71)),COUNTIF(ПЛАН!$D$6:$D$504,"<="&ПЛАН!$D$6:$D$504)+ROW(ПЛАН!$E$6:$E$504)%,0)),"0") -> 0 | E78: 0 | F78: =IF(ISNA(VLOOKUP(D78,ПЛАН!$E$6:$G$504,2,0)),0,VLOOKUP(D78,ПЛАН!$E$6:$G$504,2,0)) -> 0 | G78: 0 | J78: =IF(ISNA(VLOOKUP(D78,ПЛАН!$E$6:$G$504,3,0)),0,VLOOKUP(D78,ПЛАН!$E$6:$G$504,3,0)) -> 0
C79: =IFERROR(INDEX(ПЛАН!$D$6:$D$504,MATCH(SMALL((ПЛАН!$H$6:$H$504="FC-TF(один)")*COUNTIF(ПЛАН!$D$6:$D$504,"<="&ПЛАН!$D$6:$D$504),COUNTIF(ПЛАН!$H$6:$H$504,"<>FC-TF(один)")+ROW(D72)),COUNTIF(ПЛАН!$D$6:$D$504,"<="&ПЛАН!$D$6:$D$504),0)),"0") -> 0 | D79: =IFERROR(INDEX(ПЛАН!$E$6:$E$504,MATCH(SMALL((ПЛАН!$H$6:$H$504="FC-TF(один)")*COUNTIF(ПЛАН!$D$6:$D$504,"<="&ПЛАН!$D$6:$D$504)+ROW(ПЛАН!$E$6:$E$504)%,COUNTIF(ПЛАН!$H$6:$H$504,"<>FC-TF(один)")+ROW(E72)),COUNTIF(ПЛАН!$D$6:$D$504,"<="&ПЛАН!$D$6:$D$504)+ROW(ПЛАН!$E$6:$E$504)%,0)),"0") -> 0 | E79: 0 | F79: =IF(ISNA(VLOOKUP(D79,ПЛАН!$E$6:$G$504,2,0)),0,VLOOKUP(D79,ПЛАН!$E$6:$G$504,2,0)) -> 0 | G79: 0 | J79: =IF(ISNA(VLOOKUP(D79,ПЛАН!$E$6:$G$504,3,0)),0,VLOOKUP(D79,ПЛАН!$E$6:$G$504,3,0)) -> 0
C80: =IFERROR(INDEX(ПЛАН!$D$6:$D$504,MATCH(SMALL((ПЛАН!$H$6:$H$504="FC-TF(один)")*COUNTIF(ПЛАН!$D$6:$D$504,"<="&ПЛАН!$D$6:$D$504),COUNTIF(ПЛАН!$H$6:$H$504,"<>FC-TF(один)")+ROW(D73)),COUNTIF(ПЛАН!$D$6:$D$504,"<="&ПЛАН!$D$6:$D$504),0)),"0") -> 0 | D80: =IFERROR(INDEX(ПЛАН!$E$6:$E$504,MATCH(SMALL((ПЛАН!$H$6:$H$504="FC-TF(один)")*COUNTIF(ПЛАН!$D$6:$D$504,"<="&ПЛАН!$D$6:$D$504)+ROW(ПЛАН!$E$6:$E$504)%,COUNTIF(ПЛАН!$H$6:$H$504,"<>FC-TF(один)")+ROW(E73)),COUNTIF(ПЛАН!$D$6:$D$504,"<="&ПЛАН!$D$6:$D$504)+ROW(ПЛАН!$E$6:$E$504)%,0)),"0") -> 0 | E80: 0 | F80: =IF(ISNA(VLOOKUP(D80,ПЛАН!$E$6:$G$504,2,0)),0,VLOOKUP(D80,ПЛАН!$E$6:$G$504,2,0)) -> 0 | G80: 0 | J80: =IF(ISNA(VLOOKUP(D80,ПЛАН!$E$6:$G$504,3,0)),0,VLOOKUP(D80,ПЛАН!$E$6:$G$504,3,0)) -> 0
C81: =IFERROR(INDEX(ПЛАН!$D$6:$D$504,MATCH(SMALL((ПЛАН!$H$6:$H$504="FC-TF(один)")*COUNTIF(ПЛАН!$D$6:$D$504,"<="&ПЛАН!$D$6:$D$504),COUNTIF(ПЛАН!$H$6:$H$504,"<>FC-TF(один)")+ROW(D74)),COUNTIF(ПЛАН!$D$6:$D$504,"<="&ПЛАН!$D$6:$D$504),0)),"0") -> 0 | D81: =IFERROR(INDEX(ПЛАН!$E$6:$E$504,MATCH(SMALL((ПЛАН!$H$6:$H$504="FC-TF(один)")*COUNTIF(ПЛАН!$D$6:$D$504,"<="&ПЛАН!$D$6:$D$504)+ROW(ПЛАН!$E$6:$E$504)%,COUNTIF(ПЛАН!$H$6:$H$504,"<>FC-TF(один)")+ROW(E74)),COUNTIF(ПЛАН!$D$6:$D$504,"<="&ПЛАН!$D$6:$D$504)+ROW(ПЛАН!$E$6:$E$504)%,0)),"0") -> 0 | E81: 0 | F81: =IF(ISNA(VLOOKUP(D81,ПЛАН!$E$6:$G$504,2,0)),0,VLOOKUP(D81,ПЛАН!$E$6:$G$504,2,0)) -> 0 | G81: 0 | J81: =IF(ISNA(VLOOKUP(D81,ПЛАН!$E$6:$G$504,3,0)),0,VLOOKUP(D81,ПЛАН!$E$6:$G$504,3,0)) -> 0
C82: =IFERROR(INDEX(ПЛАН!$D$6:$D$504,MATCH(SMALL((ПЛАН!$H$6:$H$504="FC-TF(один)")*COUNTIF(ПЛАН!$D$6:$D$504,"<="&ПЛАН!$D$6:$D$504),COUNTIF(ПЛАН!$H$6:$H$504,"<>FC-TF(один)")+ROW(D75)),COUNTIF(ПЛАН!$D$6:$D$504,"<="&ПЛАН!$D$6:$D$504),0)),"0") -> 0 | D82: =IFERROR(INDEX(ПЛАН!$E$6:$E$504,MATCH(SMALL((ПЛАН!$H$6:$H$504="FC-TF(один)")*COUNTIF(ПЛАН!$D$6:$D$504,"<="&ПЛАН!$D$6:$D$504)+ROW(ПЛАН!$E$6:$E$504)%,COUNTIF(ПЛАН!$H$6:$H$504,"<>FC-TF(один)")+ROW(E75)),COUNTIF(ПЛАН!$D$6:$D$504,"<="&ПЛАН!$D$6:$D$504)+ROW(ПЛАН!$E$6:$E$504)%,0)),"0") -> 0 | E82: 0 | F82: =IF(ISNA(VLOOKUP(D82,ПЛАН!$E$6:$G$504,2,0)),0,VLOOKUP(D82,ПЛАН!$E$6:$G$504,2,0)) -> 0 | G82: 0 | J82: =IF(ISNA(VLOOKUP(D82,ПЛАН!$E$6:$G$504,3,0)),0,VLOOKUP(D82,ПЛАН!$E$6:$G$504,3,0)) -> 0
C83: =IFERROR(INDEX(ПЛАН!$D$6:$D$504,MATCH(SMALL((ПЛАН!$H$6:$H$504="FC-TF(один)")*COUNTIF(ПЛАН!$D$6:$D$504,"<="&ПЛАН!$D$6:$D$504),COUNTIF(ПЛАН!$H$6:$H$504,"<>FC-TF(один)")+ROW(D76)),COUNTIF(ПЛАН!$D$6:$D$504,"<="&ПЛАН!$D$6:$D$504),0)),"0") -> 0 | D83: =IFERROR(INDEX(ПЛАН!$E$6:$E$504,MATCH(SMALL((ПЛАН!$H$6:$H$504="FC-TF(один)")*COUNTIF(ПЛАН!$D$6:$D$504,"<="&ПЛАН!$D$6:$D$504)+ROW(ПЛАН!$E$6:$E$504)%,COUNTIF(ПЛАН!$H$6:$H$504,"<>FC-TF(один)")+ROW(E76)),COUNTIF(ПЛАН!$D$6:$D$504,"<="&ПЛАН!$D$6:$D$504)+ROW(ПЛАН!$E$6:$E$504)%,0)),"0") -> 0 | E83: 0 | F83: =IF(ISNA(VLOOKUP(D83,ПЛАН!$E$6:$G$504,2,0)),0,VLOOKUP(D83,ПЛАН!$E$6:$G$504,2,0)) -> 0 | G83: 0 | J83: =IF(ISNA(VLOOKUP(D83,ПЛАН!$E$6:$G$504,3,0)),0,VLOOKUP(D83,ПЛАН!$E$6:$G$504,3,0)) -> 0
C84: =IFERROR(INDEX(ПЛАН!$D$6:$D$504,MATCH(SMALL((ПЛАН!$H$6:$H$504="FC-TF(один)")*COUNTIF(ПЛАН!$D$6:$D$504,"<="&ПЛАН!$D$6:$D$504),COUNTIF(ПЛАН!$H$6:$H$504,"<>FC-TF(один)")+ROW(D77)),COUNTIF(ПЛАН!$D$6:$D$504,"<="&ПЛАН!$D$6:$D$504),0)),"0") -> 0 | D84: =IFERROR(INDEX(ПЛАН!$E$6:$E$504,MATCH(SMALL((ПЛАН!$H$6:$H$504="FC-TF(один)")*COUNTIF(ПЛАН!$D$6:$D$504,"<="&ПЛАН!$D$6:$D$504)+ROW(ПЛАН!$E$6:$E$504)%,COUNTIF(ПЛАН!$H$6:$H$504,"<>FC-TF(один)")+ROW(E77)),COUNTIF(ПЛАН!$D$6:$D$504,"<="&ПЛАН!$D$6:$D$504)+ROW(ПЛАН!$E$6:$E$504)%,0)),"0") -> 0 | E84: 0 | F84: =IF(ISNA(VLOOKUP(D84,ПЛАН!$E$6:$G$504,2,0)),0,VLOOKUP(D84,ПЛАН!$E$6:$G$504,2,0)) -> 0 | G84: 0 | J84: =IF(ISNA(VLOOKUP(D84,ПЛАН!$E$6:$G$504,3,0)),0,VLOOKUP(D84,ПЛАН!$E$6:$G$504,3,0)) -> 0
C85: =IFERROR(INDEX(ПЛАН!$D$6:$D$504,MATCH(SMALL((ПЛАН!$H$6:$H$504="FC-TF(один)")*COUNTIF(ПЛАН!$D$6:$D$504,"<="&ПЛАН!$D$6:$D$504),COUNTIF(ПЛАН!$H$6:$H$504,"<>FC-TF(один)")+ROW(D78)),COUNTIF(ПЛАН!$D$6:$D$504,"<="&ПЛАН!$D$6:$D$504),0)),"0") -> 0 | D85: =IFERROR(INDEX(ПЛАН!$E$6:$E$504,MATCH(SMALL((ПЛАН!$H$6:$H$504="FC-TF(один)")*COUNTIF(ПЛАН!$D$6:$D$504,"<="&ПЛАН!$D$6:$D$504)+ROW(ПЛАН!$E$6:$E$504)%,COUNTIF(ПЛАН!$H$6:$H$504,"<>FC-TF(один)")+ROW(E78)),COUNTIF(ПЛАН!$D$6:$D$504,"<="&ПЛАН!$D$6:$D$504)+ROW(ПЛАН!$E$6:$E$504)%,0)),"0") -> 0 | E85: 0 | F85: =IF(ISNA(VLOOKUP(D85,ПЛАН!$E$6:$G$504,2,0)),0,VLOOKUP(D85,ПЛАН!$E$6:$G$504,2,0)) -> 0 | G85: 0 | J85: =IF(ISNA(VLOOKUP(D85,ПЛАН!$E$6:$G$504,3,0)),0,VLOOKUP(D85,ПЛАН!$E$6:$G$504,3,0)) -> 0
C86: =IFERROR(INDEX(ПЛАН!$D$6:$D$504,MATCH(SMALL((ПЛАН!$H$6:$H$504="FC-TF(один)")*COUNTIF(ПЛАН!$D$6:$D$504,"<="&ПЛАН!$D$6:$D$504),COUNTIF(ПЛАН!$H$6:$H$504,"<>FC-TF(один)")+ROW(D79)),COUNTIF(ПЛАН!$D$6:$D$504,"<="&ПЛАН!$D$6:$D$504),0)),"0") -> 0 | D86: =IFERROR(INDEX(ПЛАН!$E$6:$E$504,MATCH(SMALL((ПЛАН!$H$6:$H$504="FC-TF(один)")*COUNTIF(ПЛАН!$D$6:$D$504,"<="&ПЛАН!$D$6:$D$504)+ROW(ПЛАН!$E$6:$E$504)%,COUNTIF(ПЛАН!$H$6:$H$504,"<>FC-TF(один)")+ROW(E79)),COUNTIF(ПЛАН!$D$6:$D$504,"<="&ПЛАН!$D$6:$D$504)+ROW(ПЛАН!$E$6:$E$504)%,0)),"0") -> 0 | E86: 0 | F86: =IF(ISNA(VLOOKUP(D86,ПЛАН!$E$6:$G$504,2,0)),0,VLOOKUP(D86,ПЛАН!$E$6:$G$504,2,0)) -> 0 | G86: 0 | J86: =IF(ISNA(VLOOKUP(D86,ПЛАН!$E$6:$G$504,3,0)),0,VLOOKUP(D86,ПЛАН!$E$6:$G$504,3,0)) -> 0
C87: =IFERROR(INDEX(ПЛАН!$D$6:$D$504,MATCH(SMALL((ПЛАН!$H$6:$H$504="FC-TF(один)")*COUNTIF(ПЛАН!$D$6:$D$504,"<="&ПЛАН!$D$6:$D$504),COUNTIF(ПЛАН!$H$6:$H$504,"<>FC-TF(один)")+ROW(D80)),COUNTIF(ПЛАН!$D$6:$D$504,"<="&ПЛАН!$D$6:$D$504),0)),"0") -> 0 | D87: =IFERROR(INDEX(ПЛАН!$E$6:$E$504,MATCH(SMALL((ПЛАН!$H$6:$H$504="FC-TF(один)")*COUNTIF(ПЛАН!$D$6:$D$504,"<="&ПЛАН!$D$6:$D$504)+ROW(ПЛАН!$E$6:$E$504)%,COUNTIF(ПЛАН!$H$6:$H$504,"<>FC-TF(один)")+ROW(E80)),COUNTIF(ПЛАН!$D$6:$D$504,"<="&ПЛАН!$D$6:$D$504)+ROW(ПЛАН!$E$6:$E$504)%,0)),"0") -> 0 | E87: 0 | F87: =IF(ISNA(VLOOKUP(D87,ПЛАН!$E$6:$G$504,2,0)),0,VLOOKUP(D87,ПЛАН!$E$6:$G$504,2,0)) -> 0 | G87: 0 | J87: =IF(ISNA(VLOOKUP(D87,ПЛАН!$E$6:$G$504,3,0)),0,VLOOKUP(D87,ПЛАН!$E$6:$G$504,3,0)) -> 0
C88: =IFERROR(INDEX(ПЛАН!$D$6:$D$504,MATCH(SMALL((ПЛАН!$H$6:$H$504="FC-TF(один)")*COUNTIF(ПЛАН!$D$6:$D$504,"<="&ПЛАН!$D$6:$D$504),COUNTIF(ПЛАН!$H$6:$H$504,"<>FC-TF(один)")+ROW(D81)),COUNTIF(ПЛАН!$D$6:$D$504,"<="&ПЛАН!$D$6:$D$504),0)),"0") -> 0 | D88: =IFERROR(INDEX(ПЛАН!$E$6:$E$504,MATCH(SMALL((ПЛАН!$H$6:$H$504="FC-TF(один)")*COUNTIF(ПЛАН!$D$6:$D$504,"<="&ПЛАН!$D$6:$D$504)+ROW(ПЛАН!$E$6:$E$504)%,COUNTIF(ПЛАН!$H$6:$H$504,"<>FC-TF(один)")+ROW(E81)),COUNTIF(ПЛАН!$D$6:$D$504,"<="&ПЛАН!$D$6:$D$504)+ROW(ПЛАН!$E$6:$E$504)%,0)),"0") -> 0 | E88: 0 | F88: =IF(ISNA(VLOOKUP(D88,ПЛАН!$E$6:$G$504,2,0)),0,VLOOKUP(D88,ПЛАН!$E$6:$G$504,2,0)) -> 0 | G88: 0 | J88: =IF(ISNA(VLOOKUP(D88,ПЛАН!$E$6:$G$504,3,0)),0,VLOOKUP(D88,ПЛАН!$E$6:$G$504,3,0)) -> 0
C89: =IFERROR(INDEX(ПЛАН!$D$6:$D$504,MATCH(SMALL((ПЛАН!$H$6:$H$504="FC-TF(один)")*COUNTIF(ПЛАН!$D$6:$D$504,"<="&ПЛАН!$D$6:$D$504),COUNTIF(ПЛАН!$H$6:$H$504,"<>FC-TF(один)")+ROW(D82)),COUNTIF(ПЛАН!$D$6:$D$504,"<="&ПЛАН!$D$6:$D$504),0)),"0") -> 0 | D89: =IFERROR(INDEX(ПЛАН!$E$6:$E$504,MATCH(SMALL((ПЛАН!$H$6:$H$504="FC-TF(один)")*COUNTIF(ПЛАН!$D$6:$D$504,"<="&ПЛАН!$D$6:$D$504)+ROW(ПЛАН!$E$6:$E$504)%,COUNTIF(ПЛАН!$H$6:$H$504,"<>FC-TF(один)")+ROW(E82)),COUNTIF(ПЛАН!$D$6:$D$504,"<="&ПЛАН!$D$6:$D$504)+ROW(ПЛАН!$E$6:$E$504)%,0)),"0") -> 0 | E89: 0 | F89: =IF(ISNA(VLOOKUP(D89,ПЛАН!$E$6:$G$504,2,0)),0,VLOOKUP(D89,ПЛАН!$E$6:$G$504,2,0)) -> 0 | G89: 0 | J89: =IF(ISNA(VLOOKUP(D89,ПЛАН!$E$6:$G$504,3,0)),0,VLOOKUP(D89,ПЛАН!$E$6:$G$504,3,0)) -> 0
C90: =IFERROR(INDEX(ПЛАН!$D$6:$D$504,MATCH(SMALL((ПЛАН!$H$6:$H$504="FC-TF(один)")*COUNTIF(ПЛАН!$D$6:$D$504,"<="&ПЛАН!$D$6:$D$504),COUNTIF(ПЛАН!$H$6:$H$504,"<>FC-TF(один)")+ROW(D83)),COUNTIF(ПЛАН!$D$6:$D$504,"<="&ПЛАН!$D$6:$D$504),0)),"0") -> 0 | D90: =IFERROR(INDEX(ПЛАН!$E$6:$E$504,MATCH(SMALL((ПЛАН!$H$6:$H$504="FC-TF(один)")*COUNTIF(ПЛАН!$D$6:$D$504,"<="&ПЛАН!$D$6:$D$504)+ROW(ПЛАН!$E$6:$E$504)%,COUNTIF(ПЛАН!$H$6:$H$504,"<>FC-TF(один)")+ROW(E83)),COUNTIF(ПЛАН!$D$6:$D$504,"<="&ПЛАН!$D$6:$D$504)+ROW(ПЛАН!$E$6:$E$504)%,0)),"0") -> 0 | E90: 0 | F90: =IF(ISNA(VLOOKUP(D90,ПЛАН!$E$6:$G$504,2,0)),0,VLOOKUP(D90,ПЛАН!$E$6:$G$504,2,0)) -> 0 | G90: 0 | J90: =IF(ISNA(VLOOKUP(D90,ПЛАН!$E$6:$G$504,3,0)),0,VLOOKUP(D90,ПЛАН!$E$6:$G$504,3,0)) -> 0
C91: =IFERROR(INDEX(ПЛАН!$D$6:$D$504,MATCH(SMALL((ПЛАН!$H$6:$H$504="FC-TF(один)")*COUNTIF(ПЛАН!$D$6:$D$504,"<="&ПЛАН!$D$6:$D$504),COUNTIF(ПЛАН!$H$6:$H$504,"<>FC-TF(один)")+ROW(D84)),COUNTIF(ПЛАН!$D$6:$D$504,"<="&ПЛАН!$D$6:$D$504),0)),"0") -> 0 | D91: =IFERROR(INDEX(ПЛАН!$E$6:$E$504,MATCH(SMALL((ПЛАН!$H$6:$H$504="FC-TF(один)")*COUNTIF(ПЛАН!$D$6:$D$504,"<="&ПЛАН!$D$6:$D$504)+ROW(ПЛАН!$E$6:$E$504)%,COUNTIF(ПЛАН!$H$6:$H$504,"<>FC-TF(один)")+ROW(E84)),COUNTIF(ПЛАН!$D$6:$D$504,"<="&ПЛАН!$D$6:$D$504)+ROW(ПЛАН!$E$6:$E$504)%,0)),"0") -> 0 | E91: 0 | F91: =IF(ISNA(VLOOKUP(D91,ПЛАН!$E$6:$G$504,2,0)),0,VLOOKUP(D91,ПЛАН!$E$6:$G$504,2,0)) -> 0 | G91: 0 | J91: =IF(ISNA(VLOOKUP(D91,ПЛАН!$E$6:$G$504,3,0)),0,VLOOKUP(D91,ПЛАН!$E$6:$G$504,3,0)) -> 0
C92: =IFERROR(INDEX(ПЛАН!$D$6:$D$504,MATCH(SMALL((ПЛАН!$H$6:$H$504="FC-TF(один)")*COUNTIF(ПЛАН!$D$6:$D$504,"<="&ПЛАН!$D$6:$D$504),COUNTIF(ПЛАН!$H$6:$H$504,"<>FC-TF(один)")+ROW(D85)),COUNTIF(ПЛАН!$D$6:$D$504,"<="&ПЛАН!$D$6:$D$504),0)),"0") -> 0 | D92: =IFERROR(INDEX(ПЛАН!$E$6:$E$504,MATCH(SMALL((ПЛАН!$H$6:$H$504="FC-TF(один)")*COUNTIF(ПЛАН!$D$6:$D$504,"<="&ПЛАН!$D$6:$D$504)+ROW(ПЛАН!$E$6:$E$504)%,COUNTIF(ПЛАН!$H$6:$H$504,"<>FC-TF(один)")+ROW(E85)),COUNTIF(ПЛАН!$D$6:$D$504,"<="&ПЛАН!$D$6:$D$504)+ROW(ПЛАН!$E$6:$E$504)%,0)),"0") -> 0 | E92: 0 | F92: =IF(ISNA(VLOOKUP(D92,ПЛАН!$E$6:$G$504,2,0)),0,VLOOKUP(D92,ПЛАН!$E$6:$G$504,2,0)) -> 0 | G92: 0 | J92: =IF(ISNA(VLOOKUP(D92,ПЛАН!$E$6:$G$504,3,0)),0,VLOOKUP(D92,ПЛАН!$E$6:$G$504,3,0)) -> 0
C93: =IFERROR(INDEX(ПЛАН!$D$6:$D$504,MATCH(SMALL((ПЛАН!$H$6:$H$504="FC-TF(один)")*COUNTIF(ПЛАН!$D$6:$D$504,"<="&ПЛАН!$D$6:$D$504),COUNTIF(ПЛАН!$H$6:$H$504,"<>FC-TF(один)")+ROW(D86)),COUNTIF(ПЛАН!$D$6:$D$504,"<="&ПЛАН!$D$6:$D$504),0)),"0") -> 0 | D93: =IFERROR(INDEX(ПЛАН!$E$6:$E$504,MATCH(SMALL((ПЛАН!$H$6:$H$504="FC-TF(один)")*COUNTIF(ПЛАН!$D$6:$D$504,"<="&ПЛАН!$D$6:$D$504)+ROW(ПЛАН!$E$6:$E$504)%,COUNTIF(ПЛАН!$H$6:$H$504,"<>FC-TF(один)")+ROW(E86)),COUNTIF(ПЛАН!$D$6:$D$504,"<="&ПЛАН!$D$6:$D$504)+ROW(ПЛАН!$E$6:$E$504)%,0)),"0") -> 0 | E93: 0 | F93: =IF(ISNA(VLOOKUP(D93,ПЛАН!$E$6:$G$504,2,0)),0,VLOOKUP(D93,ПЛАН!$E$6:$G$504,2,0)) -> 0 | G93: 0 | J93: =IF(ISNA(VLOOKUP(D93,ПЛАН!$E$6:$G$504,3,0)),0,VLOOKUP(D93,ПЛАН!$E$6:$G$504,3,0)) -> 0
C94: =IFERROR(INDEX(ПЛАН!$D$6:$D$504,MATCH(SMALL((ПЛАН!$H$6:$H$504="FC-TF(один)")*COUNTIF(ПЛАН!$D$6:$D$504,"<="&ПЛАН!$D$6:$D$504),COUNTIF(ПЛАН!$H$6:$H$504,"<>FC-TF(один)")+ROW(D87)),COUNTIF(ПЛАН!$D$6:$D$504,"<="&ПЛАН!$D$6:$D$504),0)),"0") -> 0 | D94: =IFERROR(INDEX(ПЛАН!$E$6:$E$504,MATCH(SMALL((ПЛАН!$H$6:$H$504="FC-TF(один)")*COUNTIF(ПЛАН!$D$6:$D$504,"<="&ПЛАН!$D$6:$D$504)+ROW(ПЛАН!$E$6:$E$504)%,COUNTIF(ПЛАН!$H$6:$H$504,"<>FC-TF(один)")+ROW(E87)),COUNTIF(ПЛАН!$D$6:$D$504,"<="&ПЛАН!$D$6:$D$504)+ROW(ПЛАН!$E$6:$E$504)%,0)),"0") -> 0 | E94: 0 | F94: =IF(ISNA(VLOOKUP(D94,ПЛАН!$E$6:$G$504,2,0)),0,VLOOKUP(D94,ПЛАН!$E$6:$G$504,2,0)) -> 0 | G94: 0 | J94: =IF(ISNA(VLOOKUP(D94,ПЛАН!$E$6:$G$504,3,0)),0,VLOOKUP(D94,ПЛАН!$E$6:$G$504,3,0)) -> 0
G96: =SUM(G8:G94) -> 13.4325 | H96: =G96/(I6*1) -> 0.02544034091

Sheet Для справок
C2: Трудоемкость изготовления деталей по действующим нормам цех №3 станки FC-TF 10 | J2: Лист 1 Листов 5 на октябрь 2021 г.
A3: Оборудование (группа) | C3: Деталь | E3: Трудоемк. на 100 дет. в нормо-час. | F3: Количество деталей на программу (в шт.) | G3: Трудоемк. на программу в нормо-час. | H3: Загрузка оборудован. по действую-щим нормам в нормо-час. | I3: Фонд времени работы одного станка | J3: Тшт, мин. | K3: Количество деталей в смену (в шт.) | L3: Примечание
A4: Инв. номер | B4: Наименование | C4: Наименование | D4: Обозначение
A5: 1 | B5: 2 | C5: 3 | D5: 4 | E5: 5 | F5: 6 | G5: 7 | H5: 8 | I5: 9 | J5: 10 | K5: 11
A6: 40201 | B6: FC-TF 10 | H6: В 3 смены | I6: =176*3 -> 528
C8: Гайка | D8: 93865-3104040 | E8: =J8/60*100 -> 3.2 | F8: =ПЛАН!F179 -> 14250 | G8: =E8*F8/100 -> 456 | J8: 1.92 | K8: =8*60/J8 -> 250
C9: Удлинитель | D9: 5551-1703356 | E9: 3.316666667 | F9: =ПЛАН!F181 -> 0 | G9: 0 | J9: 1.99 | K9: 241.2060302
C10: Удлинитель | D10: 544008-1703356 | E10: 3.316666667 | F10: =ПЛАН!F185 -> 405 | G10: 13.4325 | J10: 1.99 | K10: 241.2060302
C11: Тяга | D11: 551639-1703354 | E11: 3.883333333 | F11: =ПЛАН!F182 -> 0 | G11: 0 | J11: 2.33 | K11: 206.0085837
C12: Головка | D12: А1-300/480.443 | E12: 5 | F12: =ПЛАН!F28 -> 900 | G12: 45 | J12: 3 | K12: 160
C13: Втулка | D13: 5336-1703366 | E13: 9.116666667 | F13: =ПЛАН!F183 -> 400 | G13: 36.46666667 | J13: 5.47 | K13: 87.75137112
G15: =SUM(G8:G13) -> 550.8991667 | H15: =G15/(I6*1) -> 1.043369634
A17: 40259 | B17: FC-TF 10 | H17: В 3 смены | I17: =176*3 -> 528
A18: 40260
C19: Шток | D19: 103Т-2905482 | E19: =J19/60*100 -> 7.956666667 | F19: =ПЛАН!F8 -> 800 | G19: =E19*F19/100 -> 63.65333333 | J19: =0.212+4.35+0.212 -> 4.774 | K19: =8*60/J19 -> 100.5446167 | L19: Время сверено с ТП
C20: Шток | D20: 26Т.081.02.482 | E20: 11.10666667 | F20: =ПЛАН!F14 -> 0 | G20: 0 | J20: =0.212+2.92+3.32+0.212 -> 6.664 | K20: =8*60/J20 -> 72.02881152 | L20: Приравнял к 26Т.081.02.482-01
C21: Шток | D21: 40.УЛИГ.452995.356-021 | E21: 4.87 | F21: =ПЛАН!F26 -> 350 | G21: 17.045 | J21: =2.71+0.212 -> 2.922 | K21: 164.2710472 | L21: Время сверено с ТП
C22: Шток | D22: УЛИГ.40.А1.452995.356-027 | E22: 4.87 | F22: =ПЛАН!F17 -> 1076 | G22: 52.4012 | J22: =2.71+0.212 -> 2.922 | K22: 164.2710472 | L22: Время сверено с ТП
C23: Шток | D23: А1-275/450.356-10 | E23: 4.705 | F23: =ПЛАН!F77 -> 30 | G23: 1.4115 | J23: =0.053+2.63+0.14 -> 2.823 | K23: 170.031881 | L23: Время сверено с ТП
C24: Шток | D24: УЛИГ.40.А2.452915.482-053 | E24: 5.533333333 | F24: =ПЛАН!F112 -> 378 | G24: 20.916 | J24: 3.32 | K24: 144.5783133 | L24: Время сверено с ТП
C25: Шток | D25: УЛИГ.452995.482-004-03 | E25: 5.716666667 | F25: =ПЛАН!F95 -> 384 | G25: 21.952 | J25: 3.43 | K25: 139.941691
C26: Шток | D26: УЛИГ.452995.482-020 | E26: 7.25 | F26: =ПЛАН!F98 -> 480 | G26: 34.8 | J26: 4.35 | K26: 110.3448276 | L26: Время сверено с ТП
C27: Шток | D27: А1-180/350.356 | E27: 4.483333333 | F27: =ПЛАН!F131 -> 30 | G27: 1.345 | J27: =0.22+2.25+0.22 -> 2.69 | K27: 178.4386617 | L27: Приравнял к А1-180/350.356-01
C28: Шток | D28: А1-300/475.356-10 | E28: 4.483333333 | F28: =ПЛАН!F73 -> 3722 | G28: 166.8696667 | J28: =0.22+2.25+0.22 -> 2.69 | K28: 178.4386617 | L28: Приравнял к А1-300/475.356-11
C29: Шток | D29: 101-2905482-20 | E29: 8.14 | F29: =ПЛАН!F31 -> 150 | G29: 12.21 | J29: =0.212+4.46+0.212 -> 4.884 | K29: 98.28009828 | L29: Время сверено с ТП. ТП актуальный 26.07.21
C30: Шток | D30: 54327-2915356-71 | E30: 4.533333333 | F30: =ПЛАН!F44 -> 738 | G30: 33.456 | J30: 2.72 | K30: 176.4705882
C31: Шток | D31: 54327-2915356-81 | E31: 4.533333333 | F31: =ПЛАН!F48 -> 50 | G31: 2.266666667 | J31: 2.72 | K31: 176.4705882
C32: Шток | D32: 54327-2915356-91 | E32: 4.533333333 | F32: =ПЛАН!F52 -> 460 | G32: 20.85333333 | J32: 2.72 | K32: 176.4705882
C33: Шток | D33: А1-175/375.356 | E33: 4.483333333 | F33: =ПЛАН!F141 -> 50 | G33: 2.241666667 | J33: =0.22+2.25+0.22 -> 2.69 | K33: 178.4386617 | L33: Приравнял к А1-175/375.356-01
C34: Шток | D34: 54327-2915356-60 | E34: 4.533333333 | F34: =ПЛАН!F55 -> 488 | G34: 22.12266667 | J34: 2.72 | K34: 176.4705882
K36: Лист 1
A38: 1 | B38: 2 | C38: 3 | D38: 4 | E38: 5 | F38: 6 | G38: 7 | H38: 8 | I38: 9 | J38: 10 | K38: 11
C39: Шток | D39: А1-237/412.356-10 | E39: =J39/60*100 -> 4.705 | F39: 0 | G39: =E39*F39/100 -> 0 | J39: =0.053+2.63+0.14 -> 2.823 | K39: =8*60/J39 -> 170.031881 | L39: Время сверено с ТП
C40: Шток | D40: А1-255/475.356 | E40: 3.75 | F40: =ПЛАН!F61 -> 768 | G40: 28.8 | J40: 2.25 | K40: =8*60/J40 -> 213.3333333
C41: Шток | D41: А1-325/500.356-10 | E41: 4.705 | F41: =ПЛАН!F69 -> 2808 | G41: 132.1164 | J41: =0.053+2.63+0.14 -> 2.823 | K41: 170.031881 | L41: Время сверено с ТП
C42: Шток | D42: А1-350/525.356-10 | E42: 4.705 | F42: =ПЛАН!F65 -> 242 | G42: 11.3861 | J42: =0.053+2.63+0.14 -> 2.823 | K42: 170.031881 | L42: Время сверено с ТП
C43: Шток | D43: А2-230/450.482-21 | E43: 8.14 | F43: =ПЛАН!F92 -> 0 | G43: 0 | J43: =0.212+4.46+0.212 -> 4.884 | K43: 98.28009828 | L43: Время сверено с ТП. ТП актуальный 26.07.21
C44: Шток | D44: А2-245/450.482-21 | E44: 8.14 | F44: =ПЛАН!F89 -> 0 | G44: 0 | J44: =0.212+4.46+0.212 -> 4.884 | K44: 98.28009828 | L44: Время сверено с ТП. ТП актуальный 26.07.21
C45: Шток | D45: УЛИГ.760.356-100 | E45: 4.383333333 | F45: 0 | G45: 0 | J45: 2.63 | K45: 182.5095057
C46: Шток | D46: УЛИГ.760.356-300 | E46: 4.383333333 | F46: 0 | G46: 0 | J46: 2.63 | K46: 182.5095057
C47: Шток | D47: ТЕ1-10А-2905356-10 | E47: 5.63 | F47: =ПЛАН!F37 -> 300 | G47: 16.89 | J47: =0.106+1.13+1.93+0.212 -> 3.378 | K47: 142.0959147 | L47: Время сверено с ТП
C48: Шток | D48: 205-2905482 | E48: 7.956666667 | F48: =ПЛАН!F11 -> 0 | G48: 0 | J48: =0.212+4.35+0.212 -> 4.774 | K48: 100.5446167 | L48: Время сверено с ТП
C49: Шток | D49: А1.50-120/285.356 | E49: 3.75 | F49: 0 | G49: 0 | J49: 2.25 | K49: 213.3333333
C50: Шток | D50: А1.50-245/432.356 | E50: 4.766666667 | F50: =ПЛАН!F210 -> 6 | G50: 0.286 | J50: 2.86 | K50: 167.8321678
C51: Шток | D51: УЛИГ.40.А1.452995.356-074 | E51: 4.516666667 | F51: 0 | G51: 0 | J51: 2.71 | K51: 177.1217712
C52: Шток | D52: УЛИГ.40.А1.452995.356-083 | E52: 4.516666667 | F52: =ПЛАН!F236 -> 4 | G52: 0.1806666667 | J52: 2.71 | K52: 177.1217712
C53: Шток | D53: УЛИГ.452995.482-009-01 | E53: 5.533333333 | F53: 0 | G53: 0 | J53: 3.32 | K53: 144.5783133
C54: Шток | D54: А1-150/325.356 | E54: 4.483333333 | F54: =ПЛАН!F174 -> 0 | G54: 0 | J54: =0.22+2.25+0.22 -> 2.69 | K54: 178.4386617 | L54: Приравнял к А1-150/325.356-01
C55: Шток | D55: УЛИГ.50.А1.452995.356-034 | E55: 4.583333333 | F55: =ПЛАН!F239 -> 6 | G55: 0.275 | J55: 2.75 | K55: 174.5454545
C56: Шток | D56: УЛИГ.50.А1.452995.356-069 | E56: 5.533333333 | F56: 0 | G56: 0 | J56: 3.32 | K56: 144.5783133
C57: Шток | D57: 54327-2915356-51 | E57: 3.75 | F57: =ПЛАН!F85 -> 0 | G57: 0 | J57: 2.25 | K57: 213.3333333
C58: Шток | D58: УЛИГ.50.А2.452995.482-044 | E58: 7.25 | F58: =ПЛАН!F101 -> 0 | G58: 0 | J58: 4.35 | K58: 110.3448276
C59: Шток | D59: УЛИГ.50.А3.452995.482-080-01 | E59: 7.25 | F59: =ПЛАН!F104 -> 0 | G59: 0 | J59: 4.35 | K59: 110.3448276
C60: Шток | D60: А2-245/450.482 | E60: 7.25 | F60: =ПЛАН!F109 -> 0 | G60: 0 | J60: 4.35 | K60: 110.3448276
C61: Шток | D61: УЛИГ.40.А1.452995.356-100 | E61: 5.533333333 | F61: =ПЛАН!F115 -> 0 | G61: 0 | J61: 3.32 | K61: 144.5783133
C62: Шток | D62: УЛИГ.50.А1.452995.356-070 | E62: 5.855 | F62: =ПЛАН!F134 -> 2400 | G62: 140.52 | J62: =0.053+3.32+0.14 -> 3.513 | K62: 136.6353544 | L62: Время сверено с ТП
C63: Шток | D63: А1-200/375.356 | E63: 4.483333333 | F63: =ПЛАН!F144 -> 0 | G63: 0 | J63: =0.22+2.25+0.22 -> 2.69 | K63: 178.4386617
C64: Шток | D64: 103Т-2905482-10 | E64: 7.956666667 | F64: =ПЛАН!F154 -> 0 | G64: 0 | J64: =0.212+4.35+0.212 -> 4.774 | K64: 100.5446167 | L64: Время сверено с ТП
C65: Шток | D65: 54327-2915356-61 | E65: 4.533333333 | F65: =ПЛАН!F157 -> 0 | G65: 0 | J65: 2.72 | K65: 176.4705882
C66: Шток | D66: А1-200/385.356 | E66: 4.483333333 | F66: =ПЛАН!F161 -> 0 | G66: 0 | J66: =0.22+2.25+0.22 -> 2.69 | K66: 178.4386617 | L66: Приравнял к А1-200/385.356-01
C67: Шток | D67: А3.40-245/379.482 | E67: 5.533333333 | F67: =ПЛАН!F168 -> 0 | G67: 0 | J67: 3.32 | K67: 144.5783133
C68: Шток | D68: УЛИГ.40.А2.452915.482-107 | E68: 7.25 | F68: =ПЛАН!F171 -> 200 | G68: 14.5 | J68: 4.35 | K68: 110.3448276 | L68: Время сверено с ТП
C69: Шток | D69: УЛИГ.667183.356-075-10 | E69: 5.993333333 | F69: =ПЛАН!F177 -> 0 | G69: 0 | J69: =0.218+1.13+1.93+0.318 -> 3.596 | K69: 133.4816463 | L69: Приравнял к УЛИГ.667183.356-075-11
C70: Шток | D70: УЛИГ.331.373 | E70: 4.936666667 | F70: =ПЛАН!F191 -> 25 | G70: 1.234166667 | J70: =0.212+2.75 -> 2.962 | K70: 162.0526671 | L70: Время сверено с ТП
C71: Шток | D71: УЛИГ.335.373 | E71: 4.233333333 | F71: =ПЛАН!F193 -> 0 | G71: 0 | J71: =0.21+2.17+0.16 -> 2.54 | K71: 188.976378 | L71: Время сверено с ТП
C72: Шток | D72: УЛИГ.336.373 | E72: 8.053333333 | F72: =ПЛАН!F195 -> 0 | G72: 0 | J72: =0.212+4.46+0.16 -> 4.832 | K72: 99.33774834 | L72: Время сверено с ТП
C73: Шток | D73: 348.00.482 | E73: 8.05 | F73: =ПЛАН!F199 -> 0 | G73: 0 | J73: =0.22+4.61 -> 4.83 | K73: 99.37888199 | L73: Время сверено с ТП
C74: Шток | D74: 347.00.356 | E74: 8.05 | F74: =ПЛАН!F201 -> 0 | G74: 0 | J74: =0.22+4.61 -> 4.83 | K74: 99.37888199 | L74: Время сверено с ТП
C75: Шток | D75: А1-130/300.356 | E75: 11.10666667 | F75: =ПЛАН!F218 -> 0 | G75: 0 | J75: =J20 -> 6.664 | K75: 72.02881152 | L75: Приравнял к 26Т.081.02.482
C76: Шток | D76: А1-160/330.356 | E76: 11.10666667 | F76: =ПЛАН!F221 -> 0 | G76: 0 | J76: =J20 -> 6.664 | K76: 72.02881152 | L76: Приравнял к 26Т.081.02.482
C77: Шток | D77: А3.40-295/434.482 | F77: =ПЛАН!F233 -> 0
C78: Шток | D78: 333.00.204-10 | F78: =ПЛАН!F242 -> 0
C79: Шток | D79: УЛИГ.667183.356-014 | F79: =ПЛАН!F215 -> 0
G80: =SUM(G19:G34,G39:G74) -> 819.7323667 | H80: =G80/(I17*2) -> 0.7762617109
K81: Лист 2
A83: 1 | B83: 2 | C83: 3 | D83: 4 | E83: 5 | F83: 6 | G83: 7 | H83: 8 | I83: 9 | J83: 10 | K83: 11
A84: 40252 | B84: FC-TF 10 | H84: В 3 смены | I84: =8*12*3 -> 288
A85: 40253
C86: Корпус | D86: 103Т-2905312-10 | E86: =J86/60*100 -> 3.516666667 | F86: =ПЛАН!F7 -> 800 | G86: =E86*F86/100 -> 28.13333333 | J86: =0.94+1.17 -> 2.11 | K86: =8*60/J86 -> 227.4881517
C87: Корпус | D87: 103Т-2905312-12 | E87: =J87/60*100 -> 3.516666667 | F87: =ПЛАН!F153 -> 0 | G87: =E87*F87/100 -> 0 | J87: =0.94+1.17 -> 2.11 | K87: =8*60/J87 -> 227.4881517
C88: Корпус амортизатора | D88: 26Т.081.02.312-10 | E88: =J88/60*100 -> 4.533333333 | F88: =ПЛАН!F13 -> 0 | G88: =E88*F88/100 -> 0 | J88: =0.87+1.85 -> 2.72 | K88: =8*60/J88 -> 176.4705882
C89: Корпус | D89: 40.А1-275/460.312 | E89: =J89/60*100 -> 2.683333333 | F89: =ПЛАН!F25 -> 350 | G89: =E89*F89/100 -> 9.391666667 | J89: 1.61 | K89: =8*60/J89 -> 298.136646
C90: Корпус | D90: УЛИГ.40.А1.452995.312-027 | E90: =J90/60*100 -> 2.683333333 | F90: =ПЛАН!F16 -> 1076 | G90: =E90*F90/100 -> 28.87266667 | J90: 1.61 | K90: =8*60/J90 -> 298.136646
C91: Корпус | D91: 54327-2915312-25 | E91: 2.883333333 | F91: =ПЛАН!F43 -> 5228 | G91: 150.7406667 | J91: 1.73 | K91: 277.4566474
C92: Корпус | D92: 54327-2915312-55 | E92: 2.883333333 | F92: =ПЛАН!F51 -> 954 | G92: 27.507 | J92: 1.73 | K92: 277.4566474
C93: Корпус | D93: А1-175/375.312-20 | E93: 3.366666667 | F93: =ПЛАН!F140 -> 50 | G93: 1.683333333 | J93: =0.85+1.17 -> 2.02 | K93: 237.6237624
C94: Корпус | D94: 54327-2915312-35 | E94: 2.883333333 | F94: =ПЛАН!F47 -> 80 | G94: 2.306666667 | J94: 1.73 | K94: 277.4566474
C95: Корпус | D95: УЛИГ.50.А1.452995.312-048 | E95: 3.366666667 | F95: 0 | G95: 0 | J95: =0.85+1.17 -> 2.02 | K95: 237.6237624
C96: Корпус | D96: УЛИГ.50.А1.452995.312-051 | E96: 3.366666667 | F96: 0 | G96: 0 | J96: 2.02 | K96: 237.6237624
C97: Корпус | D97: УЛИГ.50.А1.452915.312-065 | E97: 3.366666667 | F97: 0 | G97: 0 | J97: 2.02 | K97: 237.6237624
C98: Корпус | D98: УЛИГ.667183.312-014-02 | E98: 3.366666667 | F98: =ПЛАН!F216 -> 0 | G98: 0 | J98: 2.02 | K98: 237.6237624
C99: Корпус | D99: УЛИГ.50.А2.452995.312-106 | E99: 3.366666667 | F99: 0 | G99: 0 | J99: 2.02 | K99: 237.6237624
C100: Корпус | D100: УЛИГ.50.А2.452995.312-044 | E100: 3.366666667 | F100: =ПЛАН!F100 -> 0 | G100: 0 | J100: 2.02 | K100: 237.6237624
C101: Корпус | D101: УЛИГ.50.А3.452995.312-060 | E101: 3.366666667 | F101: 0 | G101: 0 | J101: 2.02 | K101: 237.6237624
C102: Корпус | D102: УЛИГ.452915.312-007 | E102: 3.283333333 | F102: 0 | G102: 0 | J102: =0.84+1.13 -> 1.97 | K102: 243.6548223
C103: Корпус | D103: УЛИГ.40.А2.452915.312-050 | E103: 3.236666667 | F103: 0 | G103: 0 | J103: =0.82+1.122 -> 1.942 | K103: 247.1678682
C104: Корпус | D104: УЛИГ.40.А2.452915.312-053 | E104: 3.236666667 | F104: =ПЛАН!F111 -> 378 | G104: 12.2346 | J104: =0.82+1.122 -> 1.942 | K104: 247.1678682
C105: Корпус амортизатора | D105: УЛИГ.50.А1.452995.312-070 | E105: 2.883333333 | F105: =ПЛАН!F30 -> 2934 | G105: 84.597 | J105: 1.73 | K105: 277.4566474
C106: Корпус амортизатора | D106: УЛИГ.452995.312-020 | E106: 3.366666667 | F106: =ПЛАН!F97 -> 480 | G106: 16.16 | J106: =0.85+1.17 -> 2.02 | K106: 237.6237624
C107: Корпус | D107: А1-180/350.312-20 | E107: 3.366666667 | F107: =ПЛАН!F130 -> 30 | G107: 1.01 | J107: =0.85+1.17 -> 2.02 | K107: 237.6237624
C108: Корпус | D108: 54327-2915312-05 | E108: 2.883333333 | F108: =ПЛАН!F64 -> 242 | G108: 6.977666667 | J108: 1.73 | K108: 277.4566474
C109: Корпус | D109: 54327-2915312-15 | E109: 2.883333333 | F109: =ПЛАН!F68 -> 2814 | G109: 81.137 | J109: 1.73 | K109: 277.4566474
C110: Корпус | D110: 15.2905312-45 | E110: 3.366666667 | F110: =ПЛАН!F108 -> 0 | G110: 0 | J110: =0.85+1.17 -> 2.02 | K110: 237.6237624
C111: Корпус | D111: 205-2905312-10 | E111: 3.516666667 | F111: =ПЛАН!F10 -> 0 | G111: 0 | J111: =0.94+1.17 -> 2.11 | K111: 227.4881517
C112: Корпус амортизатора | D112: ТЕ1-10А-2905312-12 | E112: 4.533333333 | F112: =ПЛАН!F36 -> 300 | G112: 13.6 | J112: =0.87+1.85 -> 2.72 | K112: 176.4705882
C113: Корпус | D113: 22.2905312-05 | E113: 2.883333333 | F113: =ПЛАН!F76 -> 0 | G113: 0 | J113: 1.73 | K113: 277.4566474
C114: Корпус амортизатора | D114: А1-130/300.312-10 | E114: 3.383333333 | F114: 0 | G114: 0 | J114: =0.85+1.18 -> 2.03 | K114: 236.453202
C115: Корпус амортизатора | D115: А1-160/330.312-10 | E115: 3.383333333 | F115: 0 | G115: 0 | J115: 2.03 | K115: 236.453202
C116: Корпус амортизатора | D116: А1-175/375.312-10 | E116: 3.383333333 | F116: 0 | G116: 0 | J116: 2.03 | K116: 236.453202
C117: Корпус амортизатора | D117: А1-180/350.312-10 | E117: 3.383333333 | F117: 0 | G117: 0 | J117: 2.03 | K117: 236.453202
C118: Корпус амортизатора | D118: А1-200/385.312-10 | E118: 3.383333333 | F118: =ПЛАН!F160 -> 0 | G118: 0 | J118: 2.03 | K118: 236.453202
C119: Корпус амортизатора | D119: А1-240/405.312-10 | E119: 3.383333333 | F119: 0 | G119: 0 | J119: 2.03 | K119: 236.453202
C120: Корпус амортизатора | D120: А2-230/410.312 | E120: 3.383333333 | F120: 0 | G120: 0 | J120: 2.03 | K120: 236.453202
C121: Корпус | D121: А2-230/410.312-01 | E121: 3.366666667 | F121: 0 | G121: 0 | J121: =0.85+1.17 -> 2.02 | K121: 237.6237624
C122: Корпус амортизатора | D122: А2-245/425.312 | E122: 3.366666667 | F122: 0 | G122: 0 | J122: 2.02 | K122: 237.6237624
C123: Корпус | D123: А1-130/300.312-20 | E123: 3.366666667 | F123: =ПЛАН!F219 -> 0 | G123: 0 | J123: 2.02 | K123: 237.6237624
C124: Корпус | D124: А1-150/325.312-20 | E124: 3.366666667 | F124: 0 | G124: 0 | J124: 2.02 | K124: 237.6237624
C125: Корпус | D125: А1-160/330.312-20 | E125: 3.366666667 | F125: =ПЛАН!F222 -> 0 | G125: 0 | J125: 2.02 | K125: 237.6237624
K127: Лист 3
A129: 1 | B129: 2 | C129: 3 | D129: 4 | E129: 5 | F129: 6 | G129: 7 | H129: 8 | I129: 9 | J129: 10 | K129: 11
C130: Корпус | D130: А1-200/385.312-20 | E130: =J130/60*100 -> 3.366666667 | F130: 0 | G130: =E130*F130/100 -> 0 | J130: 2.02 | K130: =8*60/J130 -> 237.6237624
C131: Корпус | D131: А1-240/405.312-20 | E131: 3.366666667 | F131: 0 | G131: 0 | J131: 2.02 | K131: =8*60/J131 -> 237.6237624
C132: Корпус | D132: А1.50-120/285.312 | E132: 3.366666667 | F132: 0 | G132: 0 | J132: 2.02 | K132: =8*60/J132 -> 237.6237624
C133: Корпус | D133: А1.40-225/405.312 | E133: 2.683333333 | F133: 0 | G133: 0 | J133: 1.61 | K133: =8*60/J133 -> 298.136646
C134: Корпус | D134: УЛИГ.40.А1.452995.312-064 | E134: 2.683333333 | F134: =ПЛАН!F235 -> 4 | G134: 0.1073333333 | J134: 1.61 | K134: =8*60/J134 -> 298.136646
C135: Корпус | D135: УЛИГ.50.А1.452995.312-034 | E135: 3.366666667 | F135: =ПЛАН!F238 -> 6 | G135: 0.202 | J135: =0.85+1.17 -> 2.02 | K135: 237.6237624 | L135: Нет в ТП; приравнял к Корпусу УЛИГ.50.А2.452995.312-106
C136: Корпус | D136: УЛИГ.452995.312-009-01 | E136: 3.366666667 | F136: 0 | G136: 0 | J136: =0.85+1.17 -> 2.02 | K136: 237.6237624
C137: Корпус | D137: УЛИГ.452915.312-010-01 | E137: 3.366666667 | F137: 0 | G137: 0 | J137: =0.85+1.17 -> 2.02 | K137: 237.6237624
C138: Корпус | D138: УЛИГ.452995.312-011 | E138: 3.516666667 | F138: 0 | G138: 0 | J138: =0.94+1.17 -> 2.11 | K138: 227.4881517
C139: Корпус | D139: УЛИГ.452995.312-012 | E139: 3.516666667 | F139: 0 | G139: 0 | J139: =0.94+1.17 -> 2.11 | K139: 227.4881517
C140: Корпус | D140: А1-100/400.312-20 | E140: 3.366666667 | F140: 0 | G140: 0 | J140: =0.85+1.17 -> 2.02 | K140: 237.6237624
C141: Корпус | D141: УЛИГ.50.А1.452995.312-031 | E141: 3.366666667 | F141: =ПЛАН!F173 -> 0 | G141: 0 | J141: =0.85+1.17 -> 2.02 | K141: 237.6237624
C142: Корпус | D142: А1-120/285.312-20 | E142: 3.366666667 | F142: 0 | G142: 0 | J142: =0.85+1.17 -> 2.02 | K142: 237.6237624 | L142: Нет в ТП; приравнял к Корпусу А1-160/330.312-20
C143: Корпус амортизатора | D143: А1-275/455.312-11 | E143: 2.85 | F143: 0 | G143: 0 | J143: 1.71 | K143: 280.7017544
C144: Корпус амортизатора | D144: А1-300/480.312-11 | E144: 2.85 | F144: 0 | G144: 0 | J144: 1.71 | K144: 280.7017544
C145: Корпус | D145: 15.2905312-55 | E145: 2.883333333 | F145: =ПЛАН!F146 -> 0 | G145: 0 | J145: 1.73 | K145: 277.4566474
C146: Корпус | D146: УЛИГ.50.А3.452915.312-071 | E146: 2.883333333 | F146: 0 | G146: 0 | J146: 1.73 | K146: 277.4566474
C147: Корпус | D147: УЛИГ.50.А3.452995.312-067 | E147: 2.883333333 | F147: 0 | G147: 0 | J147: 1.73 | K147: 277.4566474
C148: Корпус амортизатора | D148: А1-275/455.312-10 | E148: 2.85 | F148: 0 | G148: 0 | J148: 1.71 | K148: 280.7017544
C149: Корпус амортизатора | D149: А1-300/480.312-10 | E149: 2.85 | F149: 0 | G149: 0 | J149: 1.71 | K149: 280.7017544
C150: Корпус | D150: А2-245/425.312-01 | E150: 2.883333333 | F150: 0 | G150: 0 | J150: 1.73 | K150: 277.4566474
C151: Корпус | D151: А3-255/415.312-10 | E151: 2.85 | F151: 0 | G151: 0 | J151: 1.71 | K151: 280.7017544
C152: Корпус | D152: А3-290/450.312-10 | E152: 2.85 | F152: 0 | G152: 0 | J152: 1.71 | K152: 280.7017544
C153: Корпус | D153: А3.40-245/379.312 | E153: 3.233333333 | F153: =ПЛАН!F167 -> 0 | G153: 0 | J153: =0.82+1.12 -> 1.94 | K153: 247.4226804
C154: Корпус | D154: УЛИГ.50.А1.452995.312-069 | E154: 2.883333333 | F154: 0 | G154: 0 | J154: 1.73 | K154: =8*60/J154 -> 277.4566474
C155: Корпус амортизатора | D155: 5323-2905312 | E155: 2.85 | F155: 0 | G155: 0 | J155: 1.71 | K155: 280.7017544
C156: Корпус | D156: А3.40-258/389.312 | E156: 2.683333333 | F156: 0 | G156: 0 | J156: 1.61 | K156: 298.136646
C157: Корпус | D157: А3.40-295/434.312 | E157: 2.683333333 | F157: =ПЛАН!F232 -> 0 | G157: 0 | J157: 1.61 | K157: 298.136646
C158: Корпус | D158: А2.40-245/370.312 | E158: 2.683333333 | F158: 0 | G158: 0 | J158: 1.61 | K158: 298.136646
C159: Корпус | D159: 40.УЛИГ.452995.312-019 | E159: 3.233333333 | F159: 0 | G159: 0 | J159: =0.82+1.12 -> 1.94 | K159: 247.4226804
C160: Корпус | D160: УЛИГ.40.А3.452995.312-077 | E160: 2.683333333 | F160: 0 | G160: 0 | J160: 1.61 | K160: 298.136646
C161: Корпус | D161: УЛИГ.40.А1.452915.312-063 | E161: 2.683333333 | F161: =ПЛАН!F114 -> 0 | G161: 0 | J161: 1.61 | K161: 298.136646
C162: Корпус | D162: УЛИГ.40.А1.452995.312-052 | E162: 2.683333333 | F162: 0 | G162: 0 | J162: 1.61 | K162: 298.136646
C163: Корпус | D163: УЛИГ.40.А2.452915.312-079 | E163: 3.233333333 | F163: 0 | G163: 0 | J163: =0.82+1.12 -> 1.94 | K163: 247.4226804
C164: Корпус | D164: УЛИГ.40.А2.452915.312-082 | E164: 3.233333333 | F164: 0 | G164: 0 | J164: =0.82+1.12 -> 1.94 | K164: 247.4226804
C165: Корпус | D165: УЛИГ.40.А3.452995.312-088 | E165: 2.683333333 | F165: 0 | G165: 0 | J165: 1.61 | K165: 298.136646
C166: Корпус | D166: УЛИГ.40.А3.452995.312-094 | E166: 2.683333333 | F166: 0 | G166: 0 | J166: 1.61 | K166: 298.136646
C167: Корпус | D167: УЛИГ.40.А3.452995.312-095 | E167: 2.683333333 | F167: 0 | G167: 0 | J167: 1.61 | K167: 298.136646
C168: Корпус | D168: А1.40-330/540.312 | E168: 2.683333333 | F168: 0 | G168: 0 | J168: 1.61 | K168: 298.136646
C169: Корпус | D169: УЛИГ.40.А2.452915.312-107 | E169: 2.683333333 | F169: =ПЛАН!F170 -> 200 | G169: 5.366666667 | J169: 1.61 | K169: 298.136646
C170: Корпус | D170: УЛИГ.667183.312-075 | E170: 3.516666667 | F170: =ПЛАН!F176 -> 0 | G170: 0 | J170: =0.94+1.17 -> 2.11 | K170: 227.4881517 | L170: Приравнял к 103Т-2905312-10
G171: =SUM(G86:G125,G130:G170,) -> 470.0276 | H171: =G171/(I84*1) -> 1.632040278
K173: Лист 4
A175: 1 | B175: 2 | C175: 3 | D175: 4 | E175: 5 | F175: 6 | G175: 7 | H175: 8 | I175: 9 | J175: 10 | K175: 11
B176: 3ХА5216 | C176: Цилиндр | D176: 40.А1-275/460.318 | E176: =J176/60*100 -> 0.79 | F176: =ПЛАН!F27 -> 350 | G176: =E176*F176/100 -> 2.765 | J176: 0.474 | K176: =8*60/J176 -> 1012.658228
C177: Цилиндр | D177: УЛИГ.40.А1.452995.318-027 | E177: =J177/60*100 -> 0.79 | F177: =ПЛАН!F18 -> 1076 | G177: =E177*F177/100 -> 8.5004 | J177: 0.474 | K177: =8*60/J177 -> 1012.658228
C178: Цилиндр | D178: 15.2905318-21 | E178: =J178/60*100 -> 0.79 | F178: =ПЛАН!F45 -> 5228 | G178: =E178*F178/100 -> 41.3012 | J178: 0.474 | K178: =8*60/J178 -> 1012.658228
C179: Цилиндр | D179: 15.2905318-31 | E179: =J179/60*100 -> 0.79 | F179: =ПЛАН!F49 -> 80 | G179: =E179*F179/100 -> 0.632 | J179: 0.474 | K179: =8*60/J179 -> 1012.658228
C180: Цилиндр | D180: 15.2905318-01 | E180: =J180/60*100 -> 0.79 | F180: =ПЛАН!F66 -> 242 | G180: =E180*F180/100 -> 1.9118 | J180: 0.474 | K180: =8*60/J180 -> 1012.658228
C181: Цилиндр | D181: 15.2905318-11 | E181: 0.79 | F181: =ПЛАН!F70 -> 2808 | G181: 22.1832 | J181: 0.474 | K181: =8*60/J181 -> 1012.658228
C182: Цилиндр | D182: УЛИГ.40.А3.452995.318-094 | E182: 0.79 | F182: 0 | G182: 0 | J182: 0.474 | K182: 1012.658228
C183: Цилиндр | D183: УЛИГ.40.А3.452995.318-095 | E183: 0.79 | F183: 0 | G183: 0 | J183: 0.474 | K183: 1012.658228
C184: Цилиндр | D184: УЛИГ.40.А3.452995.318-077 | E184: 0.79 | F184: 0 | G184: 0 | J184: 0.474 | K184: 1012.658228
C185: Цилиндр | D185: УЛИГ.3308.318 | E185: 0.79 | F185: 0 | G185: 0 | J185: 0.474 | K185: 1012.658228
C186: Цилиндр | D186: А3.40-295/434.318 | E186: 0.79 | F186: 0 | G186: 0 | J186: 0.474 | K186: 1012.658228
C187: Цилиндр | D187: А1.40-330/540.318 | E187: 0.79 | F187: 0 | G187: 0 | J187: 0.474 | K187: 1012.658228
C188: Цилиндр | D188: УЛИГ.40.А1.452915.318-063 | E188: 0.79 | F188: =ПЛАН!F116 -> 0 | G188: 0 | J188: 0.474 | K188: 1012.658228
C189: Цилиндр | D189: 22.2905318 | E189: 0.79 | F189: =ПЛАН!F78 -> 0 | G189: 0 | J189: 0.474 | K189: 1012.658228
C190: Цилиндр | D190: А3-290/450.318-01 | E190: 0.79 | F190: 0 | G190: 0 | J190: 0.474 | K190: 1012.658228
C191: Цилиндр | D191: УЛИГ.50.А1.452995.318-069 | E191: 0.79 | F191: 0 | G191: 0 | J191: 0.474 | K191: 1012.658228
C192: Цилиндр | D192: УЛИГ.50.А3.452915.318-045 | E192: 0.79 | F192: 0 | G192: 0 | J192: 0.474 | K192: 1012.658228
C193: Цилиндр | D193: УЛИГ.50.А1.452915.318-046 | E193: 0.79 | F193: 0 | G193: 0 | J193: 0.474 | K193: 1012.658228
C194: Цилиндр | D194: А1-300/480.318 | E194: 0.79 | F194: 0 | G194: 0 | J194: 0.474 | K194: 1012.658228
G196: =SUM(G176:G194) -> 77.2936 | H196: =G196/(I84*1) -> 0.2683805556
A217: Составил инженер-технолог А. В. Быковский
A218: от 20.09.2021 | K218: Лист 5

Sheet FC-TF(один) (2)
C2: Трудоемкость изготовления деталей по действующим нормам цех №3 станки FC-TF 10 | J2: На октябрь 2021 г.
A3: Оборудование (группа) | C3: Деталь | E3: Трудоемк. на 100 дет. в нормо-час. | F3: Количество деталей на программу (в шт.) | G3: Трудоемк. на программу в нормо-час. | H3: Загрузка оборудован. по действую-щим нормам в нормо-час. | I3: Фонд времени работы одного станка | J3: Тшт, мин. | K3: Количество деталей в смену (в шт.)
A4: Инв. номер | B4: Наименование | C4: Наименование | D4: Обозначение
A5: 1 | B5: 2 | C5: 3 | D5: 4 | E5: 5 | F5: 6 | G5: 7 | H5: 8 | I5: 9 | J5: 10 | K5: 11
A6: 40201 | B6: FC-TF 10 | H6: В 3 смены | I6: =176*3 -> 528
C8: =IFERROR(INDEX(ПЛАН!D:D,SMALL(IF(ПЛАН!$H$6:$H$504="FC-TF(один)",ROW(ПЛАН!$H$6:$H$504)),ROW(D1))),"0") -> Головка | D8: =IFERROR(INDEX(ПЛАН!E:E,SMALL(IF(ПЛАН!$H$6:$H$504="FC-TF(один)",ROW(ПЛАН!$H$6:$H$504)),ROW(E1))),"0") -> А1-300/480.443 | E8: =J8/60*100 -> 5 | F8: =IFERROR(INDEX(ПЛАН!F:F,SMALL(IF(ПЛАН!$H$6:$H$504="FC-TF(один)",ROW(ПЛАН!$H$6:$H$504)),ROW(F1))),"0") -> 900 | G8: =E8*F8/100 -> 45 | J8: =IFERROR(INDEX(ПЛАН!G:G,SMALL(IF(ПЛАН!$H$6:$H$504="FC-TF(один)",ROW(ПЛАН!$H$6:$H$504)),ROW(G1))),"0") -> 3 | K8: =8*60/J8 -> 160
C9: =IFERROR(INDEX(ПЛАН!D:D,SMALL(IF(ПЛАН!$H$6:$H$504="FC-TF(один)",ROW(ПЛАН!$H$6:$H$504)),ROW(D2))),"0") -> Гайка | D9: =IFERROR(INDEX(ПЛАН!E:E,SMALL(IF(ПЛАН!$H$6:$H$504="FC-TF(один)",ROW(ПЛАН!$H$6:$H$504)),ROW(E2))),"0") -> 93865-3104040 | E9: 3.2 | F9: =IFERROR(INDEX(ПЛАН!F:F,SMALL(IF(ПЛАН!$H$6:$H$504="FC-TF(один)",ROW(ПЛАН!$H$6:$H$504)),ROW(F2))),"0") -> 14250 | G9: 456 | J9: =IFERROR(INDEX(ПЛАН!G:G,SMALL(IF(ПЛАН!$H$6:$H$504="FC-TF(один)",ROW(ПЛАН!$H$6:$H$504)),ROW(G2))),"0") -> 1.92 | K9: 250
C10: =IFERROR(INDEX(ПЛАН!D:D,SMALL(IF(ПЛАН!$H$6:$H$504="FC-TF(один)",ROW(ПЛАН!$H$6:$H$504)),ROW(D3))),"0") -> Удлинитель | D10: =IFERROR(INDEX(ПЛАН!E:E,SMALL(IF(ПЛАН!$H$6:$H$504="FC-TF(один)",ROW(ПЛАН!$H$6:$H$504)),ROW(E3))),"0") -> 5551-1703356 | E10: 3.316666667 | F10: =IFERROR(INDEX(ПЛАН!F:F,SMALL(IF(ПЛАН!$H$6:$H$504="FC-TF(один)",ROW(ПЛАН!$H$6:$H$504)),ROW(F3))),"0") -> 0 | G10: 0 | J10: =IFERROR(INDEX(ПЛАН!G:G,SMALL(IF(ПЛАН!$H$6:$H$504="FC-TF(один)",ROW(ПЛАН!$H$6:$H$504)),ROW(G3))),"0") -> 1.99 | K10: 241.2060302
C11: =IFERROR(INDEX(ПЛАН!D:D,SMALL(IF(ПЛАН!$H$6:$H$504="FC-TF(один)",ROW(ПЛАН!$H$6:$H$504)),ROW(D4))),"0") -> Тяга | D11: =IFERROR(INDEX(ПЛАН!E:E,SMALL(IF(ПЛАН!$H$6:$H$504="FC-TF(один)",ROW(ПЛАН!$H$6:$H$504)),ROW(E4))),"0") -> 551639-1703354 | E11: 3.883333333 | F11: =IFERROR(INDEX(ПЛАН!F:F,SMALL(IF(ПЛАН!$H$6:$H$504="FC-TF(один)",ROW(ПЛАН!$H$6:$H$504)),ROW(F4))),"0") -> 0 | G11: 0 | J11: =IFERROR(INDEX(ПЛАН!G:G,SMALL(IF(ПЛАН!$H$6:$H$504="FC-TF(один)",ROW(ПЛАН!$H$6:$H$504)),ROW(G4))),"0") -> 2.33 | K11: 206.0085837
C12: =IFERROR(INDEX(ПЛАН!D:D,SMALL(IF(ПЛАН!$H$6:$H$504="FC-TF(один)",ROW(ПЛАН!$H$6:$H$504)),ROW(D5))),"0") -> Втулка | D12: =IFERROR(INDEX(ПЛАН!E:E,SMALL(IF(ПЛАН!$H$6:$H$504="FC-TF(один)",ROW(ПЛАН!$H$6:$H$504)),ROW(E5))),"0") -> 5336-1703366 | E12: 9.116666667 | F12: =IFERROR(INDEX(ПЛАН!F:F,SMALL(IF(ПЛАН!$H$6:$H$504="FC-TF(один)",ROW(ПЛАН!$H$6:$H$504)),ROW(F5))),"0") -> 400 | G12: 36.46666667 | J12: =IFERROR(INDEX(ПЛАН!G:G,SMALL(IF(ПЛАН!$H$6:$H$504="FC-TF(один)",ROW(ПЛАН!$H$6:$H$504)),ROW(G5))),"0") -> 5.47 | K12: 87.75137112
C13: =IFERROR(INDEX(ПЛАН!D:D,SMALL(IF(ПЛАН!$H$6:$H$504="FC-TF(один)",ROW(ПЛАН!$H$6:$H$504)),ROW(D6))),"0") -> Удлинитель | D13: =IFERROR(INDEX(ПЛАН!E:E,SMALL(IF(ПЛАН!$H$6:$H$504="FC-TF(один)",ROW(ПЛАН!$H$6:$H$504)),ROW(E6))),"0") -> 544008-1703356 | E13: 3.316666667 | F13: =IFERROR(INDEX(ПЛАН!F:F,SMALL(IF(ПЛАН!$H$6:$H$504="FC-TF(один)",ROW(ПЛАН!$H$6:$H$504)),ROW(F6))),"0") -> 405 | G13: 13.4325 | J13: =IFERROR(INDEX(ПЛАН!G:G,SMALL(IF(ПЛАН!$H$6:$H$504="FC-TF(один)",ROW(ПЛАН!$H$6:$H$504)),ROW(G6))),"0") -> 1.99 | K13: 241.2060302
C14: =IFERROR(INDEX(ПЛАН!D:D,SMALL(IF(ПЛАН!$H$6:$H$504="FC-TF(один)",ROW(ПЛАН!$H$6:$H$504)),ROW(D7))),"0") -> 0 | D14: =IFERROR(INDEX(ПЛАН!E:E,SMALL(IF(ПЛАН!$H$6:$H$504="FC-TF(один)",ROW(ПЛАН!$H$6:$H$504)),ROW(E7))),"0") -> 0 | E14: 0 | F14: =IFERROR(INDEX(ПЛАН!F:F,SMALL(IF(ПЛАН!$H$6:$H$504="FC-TF(один)",ROW(ПЛАН!$H$6:$H$504)),ROW(F7))),"0") -> 0 | G14: 0 | J14: =IFERROR(INDEX(ПЛАН!G:G,SMALL(IF(ПЛАН!$H$6:$H$504="FC-TF(один)",ROW(ПЛАН!$H$6:$H$504)),ROW(G7))),"0") -> 0
C15: =IFERROR(INDEX(ПЛАН!D:D,SMALL(IF(ПЛАН!$H$6:$H$504="FC-TF(один)",ROW(ПЛАН!$H$6:$H$504)),ROW(D8))),"0") -> 0 | D15: =IFERROR(INDEX(ПЛАН!E:E,SMALL(IF(ПЛАН!$H$6:$H$504="FC-TF(один)",ROW(ПЛАН!$H$6:$H$504)),ROW(E8))),"0") -> 0 | E15: 0 | F15: =IFERROR(INDEX(ПЛАН!F:F,SMALL(IF(ПЛАН!$H$6:$H$504="FC-TF(один)",ROW(ПЛАН!$H$6:$H$504)),ROW(F8))),"0") -> 0 | G15: 0 | J15: =IFERROR(INDEX(ПЛАН!G:G,SMALL(IF(ПЛАН!$H$6:$H$504="FC-TF(один)",ROW(ПЛАН!$H$6:$H$504)),ROW(G8))),"0") -> 0
C16: =IFERROR(INDEX(ПЛАН!D:D,SMALL(IF(ПЛАН!$H$6:$H$504="FC-TF(один)",ROW(ПЛАН!$H$6:$H$504)),ROW(D9))),"0") -> 0 | D16: =IFERROR(INDEX(ПЛАН!E:E,SMALL(IF(ПЛАН!$H$6:$H$504="FC-TF(один)",ROW(ПЛАН!$H$6:$H$504)),ROW(E9))),"0") -> 0 | E16: 0 | F16: =IFERROR(INDEX(ПЛАН!F:F,SMALL(IF(ПЛАН!$H$6:$H$504="FC-TF(один)",ROW(ПЛАН!$H$6:$H$504)),ROW(F9))),"0") -> 0 | G16: 0 | J16: =IFERROR(INDEX(ПЛАН!G:G,SMALL(IF(ПЛАН!$H$6:$H$504="FC-TF(один)",ROW(ПЛАН!$H$6:$H$504)),ROW(G9))),"0") -> 0
C17: =IFERROR(INDEX(ПЛАН!D:D,SMALL(IF(ПЛАН!$H$6:$H$504="FC-TF(один)",ROW(ПЛАН!$H$6:$H$504)),ROW(D10))),"0") -> 0 | D17: =IFERROR(INDEX(ПЛАН!E:E,SMALL(IF(ПЛАН!$H$6:$H$504="FC-TF(один)",ROW(ПЛАН!$H$6:$H$504)),ROW(E10))),"0") -> 0 | E17: 0 | F17: =IFERROR(INDEX(ПЛАН!F:F,SMALL(IF(ПЛАН!$H$6:$H$504="FC-TF(один)",ROW(ПЛАН!$H$6:$H$504)),ROW(F10))),"0") -> 0 | G17: 0 | J17: =IFERROR(INDEX(ПЛАН!G:G,SMALL(IF(ПЛАН!$H$6:$H$504="FC-TF(один)",ROW(ПЛАН!$H$6:$H$504)),ROW(G10))),"0") -> 0
C18: =IFERROR(INDEX(ПЛАН!D:D,SMALL(IF(ПЛАН!$H$6:$H$504="FC-TF(один)",ROW(ПЛАН!$H$6:$H$504)),ROW(D11))),"0") -> 0 | D18: =IFERROR(INDEX(ПЛАН!E:E,SMALL(IF(ПЛАН!$H$6:$H$504="FC-TF(один)",ROW(ПЛАН!$H$6:$H$504)),ROW(E11))),"0") -> 0 | E18: 0 | F18: =IFERROR(INDEX(ПЛАН!F:F,SMALL(IF(ПЛАН!$H$6:$H$504="FC-TF(один)",ROW(ПЛАН!$H$6:$H$504)),ROW(F11))),"0") -> 0 | G18: 0 | J18: =IFERROR(INDEX(ПЛАН!G:G,SMALL(IF(ПЛАН!$H$6:$H$504="FC-TF(один)",ROW(ПЛАН!$H$6:$H$504)),ROW(G11))),"0") -> 0
C19: =IFERROR(INDEX(ПЛАН!D:D,SMALL(IF(ПЛАН!$H$6:$H$504="FC-TF(один)",ROW(ПЛАН!$H$6:$H$504)),ROW(D12))),"0") -> 0 | D19: =IFERROR(INDEX(ПЛАН!E:E,SMALL(IF(ПЛАН!$H$6:$H$504="FC-TF(один)",ROW(ПЛАН!$H$6:$H$504)),ROW(E12))),"0") -> 0 | E19: 0 | F19: =IFERROR(INDEX(ПЛАН!F:F,SMALL(IF(ПЛАН!$H$6:$H$504="FC-TF(один)",ROW(ПЛАН!$H$6:$H$504)),ROW(F12))),"0") -> 0 | G19: 0 | J19: =IFERROR(INDEX(ПЛАН!G:G,SMALL(IF(ПЛАН!$H$6:$H$504="FC-TF(один)",ROW(ПЛАН!$H$6:$H$504)),ROW(G12))),"0") -> 0
C20: =IFERROR(INDEX(ПЛАН!D:D,SMALL(IF(ПЛАН!$H$6:$H$504="FC-TF(один)",ROW(ПЛАН!$H$6:$H$504)),ROW(D13))),"0") -> 0 | D20: =IFERROR(INDEX(ПЛАН!E:E,SMALL(IF(ПЛАН!$H$6:$H$504="FC-TF(один)",ROW(ПЛАН!$H$6:$H$504)),ROW(E13))),"0") -> 0 | E20: 0 | F20: =IFERROR(INDEX(ПЛАН!F:F,SMALL(IF(ПЛАН!$H$6:$H$504="FC-TF(один)",ROW(ПЛАН!$H$6:$H$504)),ROW(F13))),"0") -> 0 | G20: 0 | J20: =IFERROR(INDEX(ПЛАН!G:G,SMALL(IF(ПЛАН!$H$6:$H$504="FC-TF(один)",ROW(ПЛАН!$H$6:$H$504)),ROW(G13))),"0") -> 0
C21: =IFERROR(INDEX(ПЛАН!D:D,SMALL(IF(ПЛАН!$H$6:$H$504="FC-TF(один)",ROW(ПЛАН!$H$6:$H$504)),ROW(D14))),"0") -> 0 | D21: =IFERROR(INDEX(ПЛАН!E:E,SMALL(IF(ПЛАН!$H$6:$H$504="FC-TF(один)",ROW(ПЛАН!$H$6:$H$504)),ROW(E14))),"0") -> 0 | E21: 0 | F21: =IFERROR(INDEX(ПЛАН!F:F,SMALL(IF(ПЛАН!$H$6:$H$504="FC-TF(один)",ROW(ПЛАН!$H$6:$H$504)),ROW(F14))),"0") -> 0 | G21: 0 | J21: =IFERROR(INDEX(ПЛАН!G:G,SMALL(IF(ПЛАН!$H$6:$H$504="FC-TF(один)",ROW(ПЛАН!$H$6:$H$504)),ROW(G14))),"0") -> 0
C22: =IFERROR(INDEX(ПЛАН!D:D,SMALL(IF(ПЛАН!$H$6:$H$504="FC-TF(один)",ROW(ПЛАН!$H$6:$H$504)),ROW(D15))),"0") -> 0 | D22: =IFERROR(INDEX(ПЛАН!E:E,SMALL(IF(ПЛАН!$H$6:$H$504="FC-TF(один)",ROW(ПЛАН!$H$6:$H$504)),ROW(E15))),"0") -> 0 | E22: 0 | F22: =IFERROR(INDEX(ПЛАН!F:F,SMALL(IF(ПЛАН!$H$6:$H$504="FC-TF(один)",ROW(ПЛАН!$H$6:$H$504)),ROW(F15))),"0") -> 0 | G22: 0 | J22: =IFERROR(INDEX(ПЛАН!G:G,SMALL(IF(ПЛАН!$H$6:$H$504="FC-TF(один)",ROW(ПЛАН!$H$6:$H$504)),ROW(G15))),"0") -> 0
C23: =IFERROR(INDEX(ПЛАН!D:D,SMALL(IF(ПЛАН!$H$6:$H$504="FC-TF(один)",ROW(ПЛАН!$H$6:$H$504)),ROW(D16))),"0") -> 0 | D23: =IFERROR(INDEX(ПЛАН!E:E,SMALL(IF(ПЛАН!$H$6:$H$504="FC-TF(один)",ROW(ПЛАН!$H$6:$H$504)),ROW(E16))),"0") -> 0 | E23: 0 | F23: =IFERROR(INDEX(ПЛАН!F:F,SMALL(IF(ПЛАН!$H$6:$H$504="FC-TF(один)",ROW(ПЛАН!$H$6:$H$504)),ROW(F16))),"0") -> 0 | G23: 0 | J23: =IFERROR(INDEX(ПЛАН!G:G,SMALL(IF(ПЛАН!$H$6:$H$504="FC-TF(один)",ROW(ПЛАН!$H$6:$H$504)),ROW(G16))),"0") -> 0
C24: =IFERROR(INDEX(ПЛАН!D:D,SMALL(IF(ПЛАН!$H$6:$H$504="FC-TF(один)",ROW(ПЛАН!$H$6:$H$504)),ROW(D17))),"0") -> 0 | D24: =IFERROR(INDEX(ПЛАН!E:E,SMALL(IF(ПЛАН!$H$6:$H$504="FC-TF(один)",ROW(ПЛАН!$H$6:$H$504)),ROW(E17))),"0") -> 0 | E24: 0 | F24: =IFERROR(INDEX(ПЛАН!F:F,SMALL(IF(ПЛАН!$H$6:$H$504="FC-TF(один)",ROW(ПЛАН!$H$6:$H$504)),ROW(F17))),"0") -> 0 | G24: 0 | J24: =IFERROR(INDEX(ПЛАН!G:G,SMALL(IF(ПЛАН!$H$6:$H$504="FC-TF(один)",ROW(ПЛАН!$H$6:$H$504)),ROW(G17))),"0") -> 0
C25: =IFERROR(INDEX(ПЛАН!D:D,SMALL(IF(ПЛАН!$H$6:$H$504="FC-TF(один)",ROW(ПЛАН!$H$6:$H$504)),ROW(D18))),"0") -> 0 | D25: =IFERROR(INDEX(ПЛАН!E:E,SMALL(IF(ПЛАН!$H$6:$H$504="FC-TF(один)",ROW(ПЛАН!$H$6:$H$504)),ROW(E18))),"0") -> 0 | E25: 0 | F25: =IFERROR(INDEX(ПЛАН!F:F,SMALL(IF(ПЛАН!$H$6:$H$504="FC-TF(один)",ROW(ПЛАН!$H$6:$H$504)),ROW(F18))),"0") -> 0 | G25: 0 | J25: =IFERROR(INDEX(ПЛАН!G:G,SMALL(IF(ПЛАН!$H$6:$H$504="FC-TF(один)",ROW(ПЛАН!$H$6:$H$504)),ROW(G18))),"0") -> 0
C26: =IFERROR(INDEX(ПЛАН!D:D,SMALL(IF(ПЛАН!$H$6:$H$504="FC-TF(один)",ROW(ПЛАН!$H$6:$H$504)),ROW(D19))),"0") -> 0 | D26: =IFERROR(INDEX(ПЛАН!E:E,SMALL(IF(ПЛАН!$H$6:$H$504="FC-TF(один)",ROW(ПЛАН!$H$6:$H$504)),ROW(E19))),"0") -> 0 | E26: 0 | F26: =IFERROR(INDEX(ПЛАН!F:F,SMALL(IF(ПЛАН!$H$6:$H$504="FC-TF(один)",ROW(ПЛАН!$H$6:$H$504)),ROW(F19))),"0") -> 0 | G26: 0 | J26: =IFERROR(INDEX(ПЛАН!G:G,SMALL(IF(ПЛАН!$H$6:$H$504="FC-TF(один)",ROW(ПЛАН!$H$6:$H$504)),ROW(G19))),"0") -> 0
C27: =IFERROR(INDEX(ПЛАН!D:D,SMALL(IF(ПЛАН!$H$6:$H$504="FC-TF(один)",ROW(ПЛАН!$H$6:$H$504)),ROW(D20))),"0") -> 0 | D27: =IFERROR(INDEX(ПЛАН!E:E,SMALL(IF(ПЛАН!$H$6:$H$504="FC-TF(один)",ROW(ПЛАН!$H$6:$H$504)),ROW(E20))),"0") -> 0 | E27: 0 | F27: =IFERROR(INDEX(ПЛАН!F:F,SMALL(IF(ПЛАН!$H$6:$H$504="FC-TF(один)",ROW(ПЛАН!$H$6:$H$504)),ROW(F20))),"0") -> 0 | G27: 0 | J27: =IFERROR(INDEX(ПЛАН!G:G,SMALL(IF(ПЛАН!$H$6:$H$504="FC-TF(один)",ROW(ПЛАН!$H$6:$H$504)),ROW(G20))),"0") -> 0
C28: =IFERROR(INDEX(ПЛАН!D:D,SMALL(IF(ПЛАН!$H$6:$H$504="FC-TF(один)",ROW(ПЛАН!$H$6:$H$504)),ROW(D21))),"0") -> 0 | D28: =IFERROR(INDEX(ПЛАН!E:E,SMALL(IF(ПЛАН!$H$6:$H$504="FC-TF(один)",ROW(ПЛАН!$H$6:$H$504)),ROW(E21))),"0") -> 0 | E28: 0 | F28: =IFERROR(INDEX(ПЛАН!F:F,SMALL(IF(ПЛАН!$H$6:$H$504="FC-TF(один)",ROW(ПЛАН!$H$6:$H$504)),ROW(F21))),"0") -> 0 | G28: 0 | J28: =IFERROR(INDEX(ПЛАН!G:G,SMALL(IF(ПЛАН!$H$6:$H$504="FC-TF(один)",ROW(ПЛАН!$H$6:$H$504)),ROW(G21))),"0") -> 0
C29: =IFERROR(INDEX(ПЛАН!D:D,SMALL(IF(ПЛАН!$H$6:$H$504="FC-TF(один)",ROW(ПЛАН!$H$6:$H$504)),ROW(D22))),"0") -> 0 | D29: =IFERROR(INDEX(ПЛАН!E:E,SMALL(IF(ПЛАН!$H$6:$H$504="FC-TF(один)",ROW(ПЛАН!$H$6:$H$504)),ROW(E22))),"0") -> 0 | E29: 0 | F29: =IFERROR(INDEX(ПЛАН!F:F,SMALL(IF(ПЛАН!$H$6:$H$504="FC-TF(один)",ROW(ПЛАН!$H$6:$H$504)),ROW(F22))),"0") -> 0 | G29: 0 | J29: =IFERROR(INDEX(ПЛАН!G:G,SMALL(IF(ПЛАН!$H$6:$H$504="FC-TF(один)",ROW(ПЛАН!$H$6:$H$504)),ROW(G22))),"0") -> 0
C30: =IFERROR(INDEX(ПЛАН!D:D,SMALL(IF(ПЛАН!$H$6:$H$504="FC-TF(один)",ROW(ПЛАН!$H$6:$H$504)),ROW(D23))),"0") -> 0 | D30: =IFERROR(INDEX(ПЛАН!E:E,SMALL(IF(ПЛАН!$H$6:$H$504="FC-TF(один)",ROW(ПЛАН!$H$6:$H$504)),ROW(E23))),"0") -> 0 | E30: 0 | F30: =IFERROR(INDEX(ПЛАН!F:F,SMALL(IF(ПЛАН!$H$6:$H$504="FC-TF(один)",ROW(ПЛАН!$H$6:$H$504)),ROW(F23))),"0") -> 0 | G30: 0 | J30: =IFERROR(INDEX(ПЛАН!G:G,SMALL(IF(ПЛАН!$H$6:$H$504="FC-TF(один)",ROW(ПЛАН!$H$6:$H$504)),ROW(G23))),"0") -> 0
C31: =IFERROR(INDEX(ПЛАН!D:D,SMALL(IF(ПЛАН!$H$6:$H$504="FC-TF(один)",ROW(ПЛАН!$H$6:$H$504)),ROW(D24))),"0") -> 0 | D31: =IFERROR(INDEX(ПЛАН!E:E,SMALL(IF(ПЛАН!$H$6:$H$504="FC-TF(один)",ROW(ПЛАН!$H$6:$H$504)),ROW(E24))),"0") -> 0 | E31: 0 | F31: =IFERROR(INDEX(ПЛАН!F:F,SMALL(IF(ПЛАН!$H$6:$H$504="FC-TF(один)",ROW(ПЛАН!$H$6:$H$504)),ROW(F24))),"0") -> 0 | G31: 0 | J31: =IFERROR(INDEX(ПЛАН!G:G,SMALL(IF(ПЛАН!$H$6:$H$504="FC-TF(один)",ROW(ПЛАН!$H$6:$H$504)),ROW(G24))),"0") -> 0
C32: =IFERROR(INDEX(ПЛАН!D:D,SMALL(IF(ПЛАН!$H$6:$H$504="FC-TF(один)",ROW(ПЛАН!$H$6:$H$504)),ROW(D25))),"0") -> 0 | D32: =IFERROR(INDEX(ПЛАН!E:E,SMALL(IF(ПЛАН!$H$6:$H$504="FC-TF(один)",ROW(ПЛАН!$H$6:$H$504)),ROW(E25))),"0") -> 0 | E32: 0 | F32: =IFERROR(INDEX(ПЛАН!F:F,SMALL(IF(ПЛАН!$H$6:$H$504="FC-TF(один)",ROW(ПЛАН!$H$6:$H$504)),ROW(F25))),"0") -> 0 | G32: 0 | J32: =IFERROR(INDEX(ПЛАН!G:G,SMALL(IF(ПЛАН!$H$6:$H$504="FC-TF(один)",ROW(ПЛАН!$H$6:$H$504)),ROW(G25))),"0") -> 0
C33: =IFERROR(INDEX(ПЛАН!D:D,SMALL(IF(ПЛАН!$H$6:$H$504="FC-TF(один)",ROW(ПЛАН!$H$6:$H$504)),ROW(D26))),"0") -> 0 | D33: =IFERROR(INDEX(ПЛАН!E:E,SMALL(IF(ПЛАН!$H$6:$H$504="FC-TF(один)",ROW(ПЛАН!$H$6:$H$504)),ROW(E26))),"0") -> 0 | E33: 0 | F33: =IFERROR(INDEX(ПЛАН!F:F,SMALL(IF(ПЛАН!$H$6:$H$504="FC-TF(один)",ROW(ПЛАН!$H$6:$H$504)),ROW(F26))),"0") -> 0 | G33: 0 | J33: =IFERROR(INDEX(ПЛАН!G:G,SMALL(IF(ПЛАН!$H$6:$H$504="FC-TF(один)",ROW(ПЛАН!$H$6:$H$504)),ROW(G26))),"0") -> 0
C34: =IFERROR(INDEX(ПЛАН!D:D,SMALL(IF(ПЛАН!$H$6:$H$504="FC-TF(один)",ROW(ПЛАН!$H$6:$H$504)),ROW(D27))),"0") -> 0 | D34: =IFERROR(INDEX(ПЛАН!E:E,SMALL(IF(ПЛАН!$H$6:$H$504="FC-TF(один)",ROW(ПЛАН!$H$6:$H$504)),ROW(E27))),"0") -> 0 | E34: 0 | F34: =IFERROR(INDEX(ПЛАН!F:F,SMALL(IF(ПЛАН!$H$6:$H$504="FC-TF(один)",ROW(ПЛАН!$H$6:$H$504)),ROW(F27))),"0") -> 0 | G34: 0 | J34: =IFERROR(INDEX(ПЛАН!G:G,SMALL(IF(ПЛАН!$H$6:$H$504="FC-TF(один)",ROW(ПЛАН!$H$6:$H$504)),ROW(G27))),"0") -> 0
C35: =IFERROR(INDEX(ПЛАН!D:D,SMALL(IF(ПЛАН!$H$6:$H$504="FC-TF(один)",ROW(ПЛАН!$H$6:$H$504)),ROW(D28))),"0") -> 0 | D35: =IFERROR(INDEX(ПЛАН!E:E,SMALL(IF(ПЛАН!$H$6:$H$504="FC-TF(один)",ROW(ПЛАН!$H$6:$H$504)),ROW(E28))),"0") -> 0 | E35: 0 | F35: =IFERROR(INDEX(ПЛАН!F:F,SMALL(IF(ПЛАН!$H$6:$H$504="FC-TF(один)",ROW(ПЛАН!$H$6:$H$504)),ROW(F28))),"0") -> 0 | G35: 0 | J35: =IFERROR(INDEX(ПЛАН!G:G,SMALL(IF(ПЛАН!$H$6:$H$504="FC-TF(один)",ROW(ПЛАН!$H$6:$H$504)),ROW(G28))),"0") -> 0
C36: =IFERROR(INDEX(ПЛАН!D:D,SMALL(IF(ПЛАН!$H$6:$H$504="FC-TF(один)",ROW(ПЛАН!$H$6:$H$504)),ROW(D29))),"0") -> 0 | D36: =IFERROR(INDEX(ПЛАН!E:E,SMALL(IF(ПЛАН!$H$6:$H$504="FC-TF(один)",ROW(ПЛАН!$H$6:$H$504)),ROW(E29))),"0") -> 0 | E36: 0 | F36: =IFERROR(INDEX(ПЛАН!F:F,SMALL(IF(ПЛАН!$H$6:$H$504="FC-TF(один)",ROW(ПЛАН!$H$6:$H$504)),ROW(F29))),"0") -> 0 | G36: 0 | J36: =IFERROR(INDEX(ПЛАН!G:G,SMALL(IF(ПЛАН!$H$6:$H$504="FC-TF(один)",ROW(ПЛАН!$H$6:$H$504)),ROW(G29))),"0") -> 0
C37: =IFERROR(INDEX(ПЛАН!D:D,SMALL(IF(ПЛАН!$H$6:$H$504="FC-TF(один)",ROW(ПЛАН!$H$6:$H$504)),ROW(D30))),"0") -> 0 | D37: =IFERROR(INDEX(ПЛАН!E:E,SMALL(IF(ПЛАН!$H$6:$H$504="FC-TF(один)",ROW(ПЛАН!$H$6:$H$504)),ROW(E30))),"0") -> 0 | E37: 0 | F37: =IFERROR(INDEX(ПЛАН!F:F,SMALL(IF(ПЛАН!$H$6:$H$504="FC-TF(один)",ROW(ПЛАН!$H$6:$H$504)),ROW(F30))),"0") -> 0 | G37: 0 | J37: =IFERROR(INDEX(ПЛАН!G:G,SMALL(IF(ПЛАН!$H$6:$H$504="FC-TF(один)",ROW(ПЛАН!$H$6:$H$504)),ROW(G30))),"0") -> 0
C38: =IFERROR(INDEX(ПЛАН!D:D,SMALL(IF(ПЛАН!$H$6:$H$504="FC-TF(один)",ROW(ПЛАН!$H$6:$H$504)),ROW(D31))),"0") -> 0 | D38: =IFERROR(INDEX(ПЛАН!E:E,SMALL(IF(ПЛАН!$H$6:$H$504="FC-TF(один)",ROW(ПЛАН!$H$6:$H$504)),ROW(E31))),"0") -> 0 | E38: 0 | F38: =IFERROR(INDEX(ПЛАН!F:F,SMALL(IF(ПЛАН!$H$6:$H$504="FC-TF(один)",ROW(ПЛАН!$H$6:$H$504)),ROW(F31))),"0") -> 0 | G38: 0 | J38: =IFERROR(INDEX(ПЛАН!G:G,SMALL(IF(ПЛАН!$H$6:$H$504="FC-TF(один)",ROW(ПЛАН!$H$6:$H$504)),ROW(G31))),"0") -> 0
C39: =IFERROR(INDEX(ПЛАН!D:D,SMALL(IF(ПЛАН!$H$6:$H$504="FC-TF(один)",ROW(ПЛАН!$H$6:$H$504)),ROW(D32))),"0") -> 0 | D39: =IFERROR(INDEX(ПЛАН!E:E,SMALL(IF(ПЛАН!$H$6:$H$504="FC-TF(один)",ROW(ПЛАН!$H$6:$H$504)),ROW(E32))),"0") -> 0 | E39: 0 | F39: =IFERROR(INDEX(ПЛАН!F:F,SMALL(IF(ПЛАН!$H$6:$H$504="FC-TF(один)",ROW(ПЛАН!$H$6:$H$504)),ROW(F32))),"0") -> 0 | G39: 0 | J39: =IFERROR(INDEX(ПЛАН!G:G,SMALL(IF(ПЛАН!$H$6:$H$504="FC-TF(один)",ROW(ПЛАН!$H$6:$H$504)),ROW(G32))),"0") -> 0
C40: =IFERROR(INDEX(ПЛАН!D:D,SMALL(IF(ПЛАН!$H$6:$H$504="FC-TF(один)",ROW(ПЛАН!$H$6:$H$504)),ROW(D33))),"0") -> 0 | D40: =IFERROR(INDEX(ПЛАН!E:E,SMALL(IF(ПЛАН!$H$6:$H$504="FC-TF(один)",ROW(ПЛАН!$H$6:$H$504)),ROW(E33))),"0") -> 0 | E40: 0 | F40: =IFERROR(INDEX(ПЛАН!F:F,SMALL(IF(ПЛАН!$H$6:$H$504="FC-TF(один)",ROW(ПЛАН!$H$6:$H$504)),ROW(F33))),"0") -> 0 | G40: 0 | J40: =IFERROR(INDEX(ПЛАН!G:G,SMALL(IF(ПЛАН!$H$6:$H$504="FC-TF(один)",ROW(ПЛАН!$H$6:$H$504)),ROW(G33))),"0") -> 0
C41: =IFERROR(INDEX(ПЛАН!D:D,SMALL(IF(ПЛАН!$H$6:$H$504="FC-TF(один)",ROW(ПЛАН!$H$6:$H$504)),ROW(D34))),"0") -> 0 | D41: =IFERROR(INDEX(ПЛАН!E:E,SMALL(IF(ПЛАН!$H$6:$H$504="FC-TF(один)",ROW(ПЛАН!$H$6:$H$504)),ROW(E34))),"0") -> 0 | E41: 0 | F41: =IFERROR(INDEX(ПЛАН!F:F,SMALL(IF(ПЛАН!$H$6:$H$504="FC-TF(один)",ROW(ПЛАН!$H$6:$H$504)),ROW(F34))),"0") -> 0 | G41: 0 | J41: =IFERROR(INDEX(ПЛАН!G:G,SMALL(IF(ПЛАН!$H$6:$H$504="FC-TF(один)",ROW(ПЛАН!$H$6:$H$504)),ROW(G34))),"0") -> 0
C42: =IFERROR(INDEX(ПЛАН!D:D,SMALL(IF(ПЛАН!$H$6:$H$504="FC-TF(один)",ROW(ПЛАН!$H$6:$H$504)),ROW(D35))),"0") -> 0 | D42: =IFERROR(INDEX(ПЛАН!E:E,SMALL(IF(ПЛАН!$H$6:$H$504="FC-TF(один)",ROW(ПЛАН!$H$6:$H$504)),ROW(E35))),"0") -> 0 | E42: 0 | F42: =IFERROR(INDEX(ПЛАН!F:F,SMALL(IF(ПЛАН!$H$6:$H$504="FC-TF(один)",ROW(ПЛАН!$H$6:$H$504)),ROW(F35))),"0") -> 0 | G42: 0 | J42: =IFERROR(INDEX(ПЛАН!G:G,SMALL(IF(ПЛАН!$H$6:$H$504="FC-TF(один)",ROW(ПЛАН!$H$6:$H$504)),ROW(G35))),"0") -> 0
C43: =IFERROR(INDEX(ПЛАН!D:D,SMALL(IF(ПЛАН!$H$6:$H$504="FC-TF(один)",ROW(ПЛАН!$H$6:$H$504)),ROW(D36))),"0") -> 0 | D43: =IFERROR(INDEX(ПЛАН!E:E,SMALL(IF(ПЛАН!$H$6:$H$504="FC-TF(один)",ROW(ПЛАН!$H$6:$H$504)),ROW(E36))),"0") -> 0 | E43: 0 | F43: =IFERROR(INDEX(ПЛАН!F:F,SMALL(IF(ПЛАН!$H$6:$H$504="FC-TF(один)",ROW(ПЛАН!$H$6:$H$504)),ROW(F36))),"0") -> 0 | G43: 0 | J43: =IFERROR(INDEX(ПЛАН!G:G,SMALL(IF(ПЛАН!$H$6:$H$504="FC-TF(один)",ROW(ПЛАН!$H$6:$H$504)),ROW(G36))),"0") -> 0
C44: =IFERROR(INDEX(ПЛАН!D:D,SMALL(IF(ПЛАН!$H$6:$H$504="FC-TF(один)",ROW(ПЛАН!$H$6:$H$504)),ROW(D37))),"0") -> 0 | D44: =IFERROR(INDEX(ПЛАН!E:E,SMALL(IF(ПЛАН!$H$6:$H$504="FC-TF(один)",ROW(ПЛАН!$H$6:$H$504)),ROW(E37))),"0") -> 0 | E44: 0 | F44: =IFERROR(INDEX(ПЛАН!F:F,SMALL(IF(ПЛАН!$H$6:$H$504="FC-TF(один)",ROW(ПЛАН!$H$6:$H$504)),ROW(F37))),"0") -> 0 | G44: 0 | J44: =IFERROR(INDEX(ПЛАН!G:G,SMALL(IF(ПЛАН!$H$6:$H$504="FC-TF(один)",ROW(ПЛАН!$H$6:$H$504)),ROW(G37))),"0") -> 0
C45: =IFERROR(INDEX(ПЛАН!D:D,SMALL(IF(ПЛАН!$H$6:$H$504="FC-TF(один)",ROW(ПЛАН!$H$6:$H$504)),ROW(D38))),"0") -> 0 | D45: =IFERROR(INDEX(ПЛАН!E:E,SMALL(IF(ПЛАН!$H$6:$H$504="FC-TF(один)",ROW(ПЛАН!$H$6:$H$504)),ROW(E38))),"0") -> 0 | E45: 0 | F45: =IFERROR(INDEX(ПЛАН!F:F,SMALL(IF(ПЛАН!$H$6:$H$504="FC-TF(один)",ROW(ПЛАН!$H$6:$H$504)),ROW(F38))),"0") -> 0 | G45: 0 | J45: =IFERROR(INDEX(ПЛАН!G:G,SMALL(IF(ПЛАН!$H$6:$H$504="FC-TF(один)",ROW(ПЛАН!$H$6:$H$504)),ROW(G38))),"0") -> 0
C46: =IFERROR(INDEX(ПЛАН!D:D,SMALL(IF(ПЛАН!$H$6:$H$504="FC-TF(один)",ROW(ПЛАН!$H$6:$H$504)),ROW(D39))),"0") -> 0 | D46: =IFERROR(INDEX(ПЛАН!E:E,SMALL(IF(ПЛАН!$H$6:$H$504="FC-TF(один)",ROW(ПЛАН!$H$6:$H$504)),ROW(E39))),"0") -> 0 | E46: 0 | F46: =IFERROR(INDEX(ПЛАН!F:F,SMALL(IF(ПЛАН!$H$6:$H$504="FC-TF(один)",ROW(ПЛАН!$H$6:$H$504)),ROW(F39))),"0") -> 0 | G46: 0 | J46: =IFERROR(INDEX(ПЛАН!G:G,SMALL(IF(ПЛАН!$H$6:$H$504="FC-TF(один)",ROW(ПЛАН!$H$6:$H$504)),ROW(G39))),"0") -> 0
C47: =IFERROR(INDEX(ПЛАН!D:D,SMALL(IF(ПЛАН!$H$6:$H$504="FC-TF(один)",ROW(ПЛАН!$H$6:$H$504)),ROW(D40))),"0") -> 0 | D47: =IFERROR(INDEX(ПЛАН!E:E,SMALL(IF(ПЛАН!$H$6:$H$504="FC-TF(один)",ROW(ПЛАН!$H$6:$H$504)),ROW(E40))),"0") -> 0 | E47: 0 | F47: =IFERROR(INDEX(ПЛАН!F:F,SMALL(IF(ПЛАН!$H$6:$H$504="FC-TF(один)",ROW(ПЛАН!$H$6:$H$504)),ROW(F40))),"0") -> 0 | G47: 0 | J47: =IFERROR(INDEX(ПЛАН!G:G,SMALL(IF(ПЛАН!$H$6:$H$504="FC-TF(один)",ROW(ПЛАН!$H$6:$H$504)),ROW(G40))),"0") -> 0
C48: =IFERROR(INDEX(ПЛАН!D:D,SMALL(IF(ПЛАН!$H$6:$H$504="FC-TF(один)",ROW(ПЛАН!$H$6:$H$504)),ROW(D41))),"0") -> 0 | D48: =IFERROR(INDEX(ПЛАН!E:E,SMALL(IF(ПЛАН!$H$6:$H$504="FC-TF(один)",ROW(ПЛАН!$H$6:$H$504)),ROW(E41))),"0") -> 0 | E48: 0 | F48: =IFERROR(INDEX(ПЛАН!F:F,SMALL(IF(ПЛАН!$H$6:$H$504="FC-TF(один)",ROW(ПЛАН!$H$6:$H$504)),ROW(F41))),"0") -> 0 | G48: 0 | J48: =IFERROR(INDEX(ПЛАН!G:G,SMALL(IF(ПЛАН!$H$6:$H$504="FC-TF(один)",ROW(ПЛАН!$H$6:$H$504)),ROW(G41))),"0") -> 0
C49: =IFERROR(INDEX(ПЛАН!D:D,SMALL(IF(ПЛАН!$H$6:$H$504="FC-TF(один)",ROW(ПЛАН!$H$6:$H$504)),ROW(D42))),"0") -> 0 | D49: =IFERROR(INDEX(ПЛАН!E:E,SMALL(IF(ПЛАН!$H$6:$H$504="FC-TF(один)",ROW(ПЛАН!$H$6:$H$504)),ROW(E42))),"0") -> 0 | E49: 0 | F49: =IFERROR(INDEX(ПЛАН!F:F,SMALL(IF(ПЛАН!$H$6:$H$504="FC-TF(один)",ROW(ПЛАН!$H$6:$H$504)),ROW(F42))),"0") -> 0 | G49: 0 | J49: =IFERROR(INDEX(ПЛАН!G:G,SMALL(IF(ПЛАН!$H$6:$H$504="FC-TF(один)",ROW(ПЛАН!$H$6:$H$504)),ROW(G42))),"0") -> 0
C50: =IFERROR(INDEX(ПЛАН!D:D,SMALL(IF(ПЛАН!$H$6:$H$504="FC-TF(один)",ROW(ПЛАН!$H$6:$H$504)),ROW(D43))),"0") -> 0 | D50: =IFERROR(INDEX(ПЛАН!E:E,SMALL(IF(ПЛАН!$H$6:$H$504="FC-TF(один)",ROW(ПЛАН!$H$6:$H$504)),ROW(E43))),"0") -> 0 | E50: 0 | F50: =IFERROR(INDEX(ПЛАН!F:F,SMALL(IF(ПЛАН!$H$6:$H$504="FC-TF(один)",ROW(ПЛАН!$H$6:$H$504)),ROW(F43))),"0") -> 0 | G50: 0 | J50: =IFERROR(INDEX(ПЛАН!G:G,SMALL(IF(ПЛАН!$H$6:$H$504="FC-TF(один)",ROW(ПЛАН!$H$6:$H$504)),ROW(G43))),"0") -> 0
C51: =IFERROR(INDEX(ПЛАН!D:D,SMALL(IF(ПЛАН!$H$6:$H$504="FC-TF(один)",ROW(ПЛАН!$H$6:$H$504)),ROW(D44))),"0") -> 0 | D51: =IFERROR(INDEX(ПЛАН!E:E,SMALL(IF(ПЛАН!$H$6:$H$504="FC-TF(один)",ROW(ПЛАН!$H$6:$H$504)),ROW(E44))),"0") -> 0 | E51: 0 | F51: =IFERROR(INDEX(ПЛАН!F:F,SMALL(IF(ПЛАН!$H$6:$H$504="FC-TF(один)",ROW(ПЛАН!$H$6:$H$504)),ROW(F44))),"0") -> 0 | G51: 0 | J51: =IFERROR(INDEX(ПЛАН!G:G,SMALL(IF(ПЛАН!$H$6:$H$504="FC-TF(один)",ROW(ПЛАН!$H$6:$H$504)),ROW(G44))),"0") -> 0
C52: =IFERROR(INDEX(ПЛАН!D:D,SMALL(IF(ПЛАН!$H$6:$H$504="FC-TF(один)",ROW(ПЛАН!$H$6:$H$504)),ROW(D45))),"0") -> 0 | D52: =IFERROR(INDEX(ПЛАН!E:E,SMALL(IF(ПЛАН!$H$6:$H$504="FC-TF(один)",ROW(ПЛАН!$H$6:$H$504)),ROW(E45))),"0") -> 0 | E52: 0 | F52: =IFERROR(INDEX(ПЛАН!F:F,SMALL(IF(ПЛАН!$H$6:$H$504="FC-TF(один)",ROW(ПЛАН!$H$6:$H$504)),ROW(F45))),"0") -> 0 | G52: 0 | J52: =IFERROR(INDEX(ПЛАН!G:G,SMALL(IF(ПЛАН!$H$6:$H$504="FC-TF(один)",ROW(ПЛАН!$H$6:$H$504)),ROW(G45))),"0") -> 0
C53: =IFERROR(INDEX(ПЛАН!D:D,SMALL(IF(ПЛАН!$H$6:$H$504="FC-TF(один)",ROW(ПЛАН!$H$6:$H$504)),ROW(D46))),"0") -> 0 | D53: =IFERROR(INDEX(ПЛАН!E:E,SMALL(IF(ПЛАН!$H$6:$H$504="FC-TF(один)",ROW(ПЛАН!$H$6:$H$504)),ROW(E46))),"0") -> 0 | E53: 0 | F53: =IFERROR(INDEX(ПЛАН!F:F,SMALL(IF(ПЛАН!$H$6:$H$504="FC-TF(один)",ROW(ПЛАН!$H$6:$H$504)),ROW(F46))),"0") -> 0 | G53: 0 | J53: =IFERROR(INDEX(ПЛАН!G:G,SMALL(IF(ПЛАН!$H$6:$H$504="FC-TF(один)",ROW(ПЛАН!$H$6:$H$504)),ROW(G46))),"0") -> 0
C54: =IFERROR(INDEX(ПЛАН!D:D,SMALL(IF(ПЛАН!$H$6:$H$504="FC-TF(один)",ROW(ПЛАН!$H$6:$H$504)),ROW(D47))),"0") -> 0 | D54: =IFERROR(INDEX(ПЛАН!E:E,SMALL(IF(ПЛАН!$H$6:$H$504="FC-TF(один)",ROW(ПЛАН!$H$6:$H$504)),ROW(E47))),"0") -> 0 | E54: 0 | F54: =IFERROR(INDEX(ПЛАН!F:F,SMALL(IF(ПЛАН!$H$6:$H$504="FC-TF(один)",ROW(ПЛАН!$H$6:$H$504)),ROW(F47))),"0") -> 0 | G54: 0 | J54: =IFERROR(INDEX(ПЛАН!G:G,SMALL(IF(ПЛАН!$H$6:$H$504="FC-TF(один)",ROW(ПЛАН!$H$6:$H$504)),ROW(G47))),"0") -> 0
C55: =IFERROR(INDEX(ПЛАН!D:D,SMALL(IF(ПЛАН!$H$6:$H$504="FC-TF(один)",ROW(ПЛАН!$H$6:$H$504)),ROW(D48))),"0") -> 0 | D55: =IFERROR(INDEX(ПЛАН!E:E,SMALL(IF(ПЛАН!$H$6:$H$504="FC-TF(один)",ROW(ПЛАН!$H$6:$H$504)),ROW(E48))),"0") -> 0 | E55: 0 | F55: =IFERROR(INDEX(ПЛАН!F:F,SMALL(IF(ПЛАН!$H$6:$H$504="FC-TF(один)",ROW(ПЛАН!$H$6:$H$504)),ROW(F48))),"0") -> 0 | G55: 0 | J55: =IFERROR(INDEX(ПЛАН!G:G,SMALL(IF(ПЛАН!$H$6:$H$504="FC-TF(один)",ROW(ПЛАН!$H$6:$H$504)),ROW(G48))),"0") -> 0
C56: =IFERROR(INDEX(ПЛАН!D:D,SMALL(IF(ПЛАН!$H$6:$H$504="FC-TF(один)",ROW(ПЛАН!$H$6:$H$504)),ROW(D49))),"0") -> 0 | D56: =IFERROR(INDEX(ПЛАН!E:E,SMALL(IF(ПЛАН!$H$6:$H$504="FC-TF(один)",ROW(ПЛАН!$H$6:$H$504)),ROW(E49))),"0") -> 0 | E56: 0 | F56: =IFERROR(INDEX(ПЛАН!F:F,SMALL(IF(ПЛАН!$H$6:$H$504="FC-TF(один)",ROW(ПЛАН!$H$6:$H$504)),ROW(F49))),"0") -> 0 | G56: 0 | J56: =IFERROR(INDEX(ПЛАН!G:G,SMALL(IF(ПЛАН!$H$6:$H$504="FC-TF(один)",ROW(ПЛАН!$H$6:$H$504)),ROW(G49))),"0") -> 0
C57: =IFERROR(INDEX(ПЛАН!D:D,SMALL(IF(ПЛАН!$H$6:$H$504="FC-TF(один)",ROW(ПЛАН!$H$6:$H$504)),ROW(D50))),"0") -> 0 | D57: =IFERROR(INDEX(ПЛАН!E:E,SMALL(IF(ПЛАН!$H$6:$H$504="FC-TF(один)",ROW(ПЛАН!$H$6:$H$504)),ROW(E50))),"0") -> 0 | E57: 0 | F57: =IFERROR(INDEX(ПЛАН!F:F,SMALL(IF(ПЛАН!$H$6:$H$504="FC-TF(один)",ROW(ПЛАН!$H$6:$H$504)),ROW(F50))),"0") -> 0 | G57: 0 | J57: =IFERROR(INDEX(ПЛАН!G:G,SMALL(IF(ПЛАН!$H$6:$H$504="FC-TF(один)",ROW(ПЛАН!$H$6:$H$504)),ROW(G50))),"0") -> 0
C58: =IFERROR(INDEX(ПЛАН!D:D,SMALL(IF(ПЛАН!$H$6:$H$504="FC-TF(один)",ROW(ПЛАН!$H$6:$H$504)),ROW(D51))),"0") -> 0 | D58: =IFERROR(INDEX(ПЛАН!E:E,SMALL(IF(ПЛАН!$H$6:$H$504="FC-TF(один)",ROW(ПЛАН!$H$6:$H$504)),ROW(E51))),"0") -> 0 | E58: 0 | F58: =IFERROR(INDEX(ПЛАН!F:F,SMALL(IF(ПЛАН!$H$6:$H$504="FC-TF(один)",ROW(ПЛАН!$H$6:$H$504)),ROW(F51))),"0") -> 0 | G58: 0 | J58: =IFERROR(INDEX(ПЛАН!G:G,SMALL(IF(ПЛАН!$H$6:$H$504="FC-TF(один)",ROW(ПЛАН!$H$6:$H$504)),ROW(G51))),"0") -> 0
C59: =IFERROR(INDEX(ПЛАН!D:D,SMALL(IF(ПЛАН!$H$6:$H$504="FC-TF(один)",ROW(ПЛАН!$H$6:$H$504)),ROW(D52))),"0") -> 0 | D59: =IFERROR(INDEX(ПЛАН!E:E,SMALL(IF(ПЛАН!$H$6:$H$504="FC-TF(один)",ROW(ПЛАН!$H$6:$H$504)),ROW(E52))),"0") -> 0 | E59: 0 | F59: =IFERROR(INDEX(ПЛАН!F:F,SMALL(IF(ПЛАН!$H$6:$H$504="FC-TF(один)",ROW(ПЛАН!$H$6:$H$504)),ROW(F52))),"0") -> 0 | G59: 0 | J59: =IFERROR(INDEX(ПЛАН!G:G,SMALL(IF(ПЛАН!$H$6:$H$504="FC-TF(один)",ROW(ПЛАН!$H$6:$H$504)),ROW(G52))),"0") -> 0
C60: =IFERROR(INDEX(ПЛАН!D:D,SMALL(IF(ПЛАН!$H$6:$H$504="FC-TF(один)",ROW(ПЛАН!$H$6:$H$504)),ROW(D53))),"0") -> 0 | D60: =IFERROR(INDEX(ПЛАН!E:E,SMALL(IF(ПЛАН!$H$6:$H$504="FC-TF(один)",ROW(ПЛАН!$H$6:$H$504)),ROW(E53))),"0") -> 0 | E60: 0 | F60: =IFERROR(INDEX(ПЛАН!F:F,SMALL(IF(ПЛАН!$H$6:$H$504="FC-TF(один)",ROW(ПЛАН!$H$6:$H$504)),ROW(F53))),"0") -> 0 | G60: 0 | J60: =IFERROR(INDEX(ПЛАН!G:G,SMALL(IF(ПЛАН!$H$6:$H$504="FC-TF(один)",ROW(ПЛАН!$H$6:$H$504)),ROW(G53))),"0") -> 0
C61: =IFERROR(INDEX(ПЛАН!D:D,SMALL(IF(ПЛАН!$H$6:$H$504="FC-TF(один)",ROW(ПЛАН!$H$6:$H$504)),ROW(D54))),"0") -> 0 | D61: =IFERROR(INDEX(ПЛАН!E:E,SMALL(IF(ПЛАН!$H$6:$H$504="FC-TF(один)",ROW(ПЛАН!$H$6:$H$504)),ROW(E54))),"0") -> 0 | E61: 0 | F61: =IFERROR(INDEX(ПЛАН!F:F,SMALL(IF(ПЛАН!$H$6:$H$504="FC-TF(один)",ROW(ПЛАН!$H$6:$H$504)),ROW(F54))),"0") -> 0 | G61: 0 | J61: =IFERROR(INDEX(ПЛАН!G:G,SMALL(IF(ПЛАН!$H$6:$H$504="FC-TF(один)",ROW(ПЛАН!$H$6:$H$504)),ROW(G54))),"0") -> 0
C62: =IFERROR(INDEX(ПЛАН!D:D,SMALL(IF(ПЛАН!$H$6:$H$504="FC-TF(один)",ROW(ПЛАН!$H$6:$H$504)),ROW(D55))),"0") -> 0 | D62: =IFERROR(INDEX(ПЛАН!E:E,SMALL(IF(ПЛАН!$H$6:$H$504="FC-TF(один)",ROW(ПЛАН!$H$6:$H$504)),ROW(E55))),"0") -> 0 | E62: 0 | F62: =IFERROR(INDEX(ПЛАН!F:F,SMALL(IF(ПЛАН!$H$6:$H$504="FC-TF(один)",ROW(ПЛАН!$H$6:$H$504)),ROW(F55))),"0") -> 0 | G62: 0 | J62: =IFERROR(INDEX(ПЛАН!G:G,SMALL(IF(ПЛАН!$H$6:$H$504="FC-TF(один)",ROW(ПЛАН!$H$6:$H$504)),ROW(G55))),"0") -> 0
C63: =IFERROR(INDEX(ПЛАН!D:D,SMALL(IF(ПЛАН!$H$6:$H$504="FC-TF(один)",ROW(ПЛАН!$H$6:$H$504)),ROW(D56))),"0") -> 0 | D63: =IFERROR(INDEX(ПЛАН!E:E,SMALL(IF(ПЛАН!$H$6:$H$504="FC-TF(один)",ROW(ПЛАН!$H$6:$H$504)),ROW(E56))),"0") -> 0 | E63: 0 | F63: =IFERROR(INDEX(ПЛАН!F:F,SMALL(IF(ПЛАН!$H$6:$H$504="FC-TF(один)",ROW(ПЛАН!$H$6:$H$504)),ROW(F56))),"0") -> 0 | G63: 0 | J63: =IFERROR(INDEX(ПЛАН!G:G,SMALL(IF(ПЛАН!$H$6:$H$504="FC-TF(один)",ROW(ПЛАН!$H$6:$H$504)),ROW(G56))),"0") -> 0
C64: =IFERROR(INDEX(ПЛАН!D:D,SMALL(IF(ПЛАН!$H$6:$H$504="FC-TF(один)",ROW(ПЛАН!$H$6:$H$504)),ROW(D57))),"0") -> 0 | D64: =IFERROR(INDEX(ПЛАН!E:E,SMALL(IF(ПЛАН!$H$6:$H$504="FC-TF(один)",ROW(ПЛАН!$H$6:$H$504)),ROW(E57))),"0") -> 0 | E64: 0 | F64: =IFERROR(INDEX(ПЛАН!F:F,SMALL(IF(ПЛАН!$H$6:$H$504="FC-TF(один)",ROW(ПЛАН!$H$6:$H$504)),ROW(F57))),"0") -> 0 | G64: 0 | J64: =IFERROR(INDEX(ПЛАН!G:G,SMALL(IF(ПЛАН!$H$6:$H$504="FC-TF(один)",ROW(ПЛАН!$H$6:$H$504)),ROW(G57))),"0") -> 0
C65: =IFERROR(INDEX(ПЛАН!D:D,SMALL(IF(ПЛАН!$H$6:$H$504="FC-TF(один)",ROW(ПЛАН!$H$6:$H$504)),ROW(D58))),"0") -> 0 | D65: =IFERROR(INDEX(ПЛАН!E:E,SMALL(IF(ПЛАН!$H$6:$H$504="FC-TF(один)",ROW(ПЛАН!$H$6:$H$504)),ROW(E58))),"0") -> 0 | E65: 0 | F65: =IFERROR(INDEX(ПЛАН!F:F,SMALL(IF(ПЛАН!$H$6:$H$504="FC-TF(один)",ROW(ПЛАН!$H$6:$H$504)),ROW(F58))),"0") -> 0 | G65: 0 | J65: =IFERROR(INDEX(ПЛАН!G:G,SMALL(IF(ПЛАН!$H$6:$H$504="FC-TF(один)",ROW(ПЛАН!$H$6:$H$504)),ROW(G58))),"0") -> 0
C66: =IFERROR(INDEX(ПЛАН!D:D,SMALL(IF(ПЛАН!$H$6:$H$504="FC-TF(один)",ROW(ПЛАН!$H$6:$H$504)),ROW(D59))),"0") -> 0 | D66: =IFERROR(INDEX(ПЛАН!E:E,SMALL(IF(ПЛАН!$H$6:$H$504="FC-TF(один)",ROW(ПЛАН!$H$6:$H$504)),ROW(E59))),"0") -> 0 | E66: 0 | F66: =IFERROR(INDEX(ПЛАН!F:F,SMALL(IF(ПЛАН!$H$6:$H$504="FC-TF(один)",ROW(ПЛАН!$H$6:$H$504)),ROW(F59))),"0") -> 0 | G66: 0 | J66: =IFERROR(INDEX(ПЛАН!G:G,SMALL(IF(ПЛАН!$H$6:$H$504="FC-TF(один)",ROW(ПЛАН!$H$6:$H$504)),ROW(G59))),"0") -> 0
C67: =IFERROR(INDEX(ПЛАН!D:D,SMALL(IF(ПЛАН!$H$6:$H$504="FC-TF(один)",ROW(ПЛАН!$H$6:$H$504)),ROW(D60))),"0") -> 0 | D67: =IFERROR(INDEX(ПЛАН!E:E,SMALL(IF(ПЛАН!$H$6:$H$504="FC-TF(один)",ROW(ПЛАН!$H$6:$H$504)),ROW(E60))),"0") -> 0 | E67: 0 | F67: =IFERROR(INDEX(ПЛАН!F:F,SMALL(IF(ПЛАН!$H$6:$H$504="FC-TF(один)",ROW(ПЛАН!$H$6:$H$504)),ROW(F60))),"0") -> 0 | G67: 0 | J67: =IFERROR(INDEX(ПЛАН!G:G,SMALL(IF(ПЛАН!$H$6:$H$504="FC-TF(один)",ROW(ПЛАН!$H$6:$H$504)),ROW(G60))),"0") -> 0
C68: =IFERROR(INDEX(ПЛАН!D:D,SMALL(IF(ПЛАН!$H$6:$H$504="FC-TF(один)",ROW(ПЛАН!$H$6:$H$504)),ROW(D61))),"0") -> 0 | D68: =IFERROR(INDEX(ПЛАН!E:E,SMALL(IF(ПЛАН!$H$6:$H$504="FC-TF(один)",ROW(ПЛАН!$H$6:$H$504)),ROW(E61))),"0") -> 0 | E68: 0 | F68: =IFERROR(INDEX(ПЛАН!F:F,SMALL(IF(ПЛАН!$H$6:$H$504="FC-TF(один)",ROW(ПЛАН!$H$6:$H$504)),ROW(F61))),"0") -> 0 | G68: 0 | J68: =IFERROR(INDEX(ПЛАН!G:G,SMALL(IF(ПЛАН!$H$6:$H$504="FC-TF(один)",ROW(ПЛАН!$H$6:$H$504)),ROW(G61))),"0") -> 0
C69: =IFERROR(INDEX(ПЛАН!D:D,SMALL(IF(ПЛАН!$H$6:$H$504="FC-TF(один)",ROW(ПЛАН!$H$6:$H$504)),ROW(D62))),"0") -> 0 | D69: =IFERROR(INDEX(ПЛАН!E:E,SMALL(IF(ПЛАН!$H$6:$H$504="FC-TF(один)",ROW(ПЛАН!$H$6:$H$504)),ROW(E62))),"0") -> 0 | E69: 0 | F69: =IFERROR(INDEX(ПЛАН!F:F,SMALL(IF(ПЛАН!$H$6:$H$504="FC-TF(один)",ROW(ПЛАН!$H$6:$H$504)),ROW(F62))),"0") -> 0 | G69: 0 | J69: =IFERROR(INDEX(ПЛАН!G:G,SMALL(IF(ПЛАН!$H$6:$H$504="FC-TF(один)",ROW(ПЛАН!$H$6:$H$504)),ROW(G62))),"0") -> 0
C70: =IFERROR(INDEX(ПЛАН!D:D,SMALL(IF(ПЛАН!$H$6:$H$504="FC-TF(один)",ROW(ПЛАН!$H$6:$H$504)),ROW(D63))),"0") -> 0 | D70: =IFERROR(INDEX(ПЛАН!E:E,SMALL(IF(ПЛАН!$H$6:$H$504="FC-TF(один)",ROW(ПЛАН!$H$6:$H$504)),ROW(E63))),"0") -> 0 | E70: 0 | F70: =IFERROR(INDEX(ПЛАН!F:F,SMALL(IF(ПЛАН!$H$6:$H$504="FC-TF(один)",ROW(ПЛАН!$H$6:$H$504)),ROW(F63))),"0") -> 0 | G70: 0 | J70: =IFERROR(INDEX(ПЛАН!G:G,SMALL(IF(ПЛАН!$H$6:$H$504="FC-TF(один)",ROW(ПЛАН!$H$6:$H$504)),ROW(G63))),"0") -> 0
C71: =IFERROR(INDEX(ПЛАН!D:D,SMALL(IF(ПЛАН!$H$6:$H$504="FC-TF(один)",ROW(ПЛАН!$H$6:$H$504)),ROW(D64))),"0") -> 0 | D71: =IFERROR(INDEX(ПЛАН!E:E,SMALL(IF(ПЛАН!$H$6:$H$504="FC-TF(один)",ROW(ПЛАН!$H$6:$H$504)),ROW(E64))),"0") -> 0 | E71: 0 | F71: =IFERROR(INDEX(ПЛАН!F:F,SMALL(IF(ПЛАН!$H$6:$H$504="FC-TF(один)",ROW(ПЛАН!$H$6:$H$504)),ROW(F64))),"0") -> 0 | G71: 0 | J71: =IFERROR(INDEX(ПЛАН!G:G,SMALL(IF(ПЛАН!$H$6:$H$504="FC-TF(один)",ROW(ПЛАН!$H$6:$H$504)),ROW(G64))),"0") -> 0
C72: =IFERROR(INDEX(ПЛАН!D:D,SMALL(IF(ПЛАН!$H$6:$H$504="FC-TF(один)",ROW(ПЛАН!$H$6:$H$504)),ROW(D65))),"0") -> 0 | D72: =IFERROR(INDEX(ПЛАН!E:E,SMALL(IF(ПЛАН!$H$6:$H$504="FC-TF(один)",ROW(ПЛАН!$H$6:$H$504)),ROW(E65))),"0") -> 0 | E72: 0 | F72: =IFERROR(INDEX(ПЛАН!F:F,SMALL(IF(ПЛАН!$H$6:$H$504="FC-TF(один)",ROW(ПЛАН!$H$6:$H$504)),ROW(F65))),"0") -> 0 | G72: 0 | J72: =IFERROR(INDEX(ПЛАН!G:G,SMALL(IF(ПЛАН!$H$6:$H$504="FC-TF(один)",ROW(ПЛАН!$H$6:$H$504)),ROW(G65))),"0") -> 0
C73: =IFERROR(INDEX(ПЛАН!D:D,SMALL(IF(ПЛАН!$H$6:$H$504="FC-TF(один)",ROW(ПЛАН!$H$6:$H$504)),ROW(D66))),"0") -> 0 | D73: =IFERROR(INDEX(ПЛАН!E:E,SMALL(IF(ПЛАН!$H$6:$H$504="FC-TF(один)",ROW(ПЛАН!$H$6:$H$504)),ROW(E66))),"0") -> 0 | E73: =J73/60*100 -> 0 | F73: =IFERROR(INDEX(ПЛАН!F:F,SMALL(IF(ПЛАН!$H$6:$H$504="FC-TF(один)",ROW(ПЛАН!$H$6:$H$504)),ROW(F66))),"0") -> 0 | G73: =E73*F73/100 -> 0 | J73: =IFERROR(INDEX(ПЛАН!G:G,SMALL(IF(ПЛАН!$H$6:$H$504="FC-TF(один)",ROW(ПЛАН!$H$6:$H$504)),ROW(G66))),"0") -> 0 | K73: =8*60/J73 -> 
C74: =IFERROR(INDEX(ПЛАН!D:D,SMALL(IF(ПЛАН!$H$6:$H$504="FC-TF(один)",ROW(ПЛАН!$H$6:$H$504)),ROW(D67))),"0") -> 0 | D74: =IFERROR(INDEX(ПЛАН!E:E,SMALL(IF(ПЛАН!$H$6:$H$504="FC-TF(один)",ROW(ПЛАН!$H$6:$H$504)),ROW(E67))),"0") -> 0 | E74: 0 | F74: =IFERROR(INDEX(ПЛАН!F:F,SMALL(IF(ПЛАН!$H$6:$H$504="FC-TF(один)",ROW(ПЛАН!$H$6:$H$504)),ROW(F67))),"0") -> 0 | G74: 0 | J74: =IFERROR(INDEX(ПЛАН!G:G,SMALL(IF(ПЛАН!$H$6:$H$504="FC-TF(один)",ROW(ПЛАН!$H$6:$H$504)),ROW(G67))),"0") -> 0
C75: =IFERROR(INDEX(ПЛАН!D:D,SMALL(IF(ПЛАН!$H$6:$H$504="FC-TF(один)",ROW(ПЛАН!$H$6:$H$504)),ROW(D68))),"0") -> 0 | D75: =IFERROR(INDEX(ПЛАН!E:E,SMALL(IF(ПЛАН!$H$6:$H$504="FC-TF(один)",ROW(ПЛАН!$H$6:$H$504)),ROW(E68))),"0") -> 0 | E75: 0 | F75: =IFERROR(INDEX(ПЛАН!F:F,SMALL(IF(ПЛАН!$H$6:$H$504="FC-TF(один)",ROW(ПЛАН!$H$6:$H$504)),ROW(F68))),"0") -> 0 | G75: 0 | J75: =IFERROR(INDEX(ПЛАН!G:G,SMALL(IF(ПЛАН!$H$6:$H$504="FC-TF(один)",ROW(ПЛАН!$H$6:$H$504)),ROW(G68))),"0") -> 0
C76: =IFERROR(INDEX(ПЛАН!D:D,SMALL(IF(ПЛАН!$H$6:$H$504="FC-TF(один)",ROW(ПЛАН!$H$6:$H$504)),ROW(D69))),"0") -> 0 | D76: =IFERROR(INDEX(ПЛАН!E:E,SMALL(IF(ПЛАН!$H$6:$H$504="FC-TF(один)",ROW(ПЛАН!$H$6:$H$504)),ROW(E69))),"0") -> 0 | E76: 0 | F76: =IFERROR(INDEX(ПЛАН!F:F,SMALL(IF(ПЛАН!$H$6:$H$504="FC-TF(один)",ROW(ПЛАН!$H$6:$H$504)),ROW(F69))),"0") -> 0 | G76: 0 | J76: =IFERROR(INDEX(ПЛАН!G:G,SMALL(IF(ПЛАН!$H$6:$H$504="FC-TF(один)",ROW(ПЛАН!$H$6:$H$504)),ROW(G69))),"0") -> 0
C77: =IFERROR(INDEX(ПЛАН!D:D,SMALL(IF(ПЛАН!$H$6:$H$504="FC-TF(один)",ROW(ПЛАН!$H$6:$H$504)),ROW(D70))),"0") -> 0 | D77: =IFERROR(INDEX(ПЛАН!E:E,SMALL(IF(ПЛАН!$H$6:$H$504="FC-TF(один)",ROW(ПЛАН!$H$6:$H$504)),ROW(E70))),"0") -> 0 | E77: 0 | F77: =IFERROR(INDEX(ПЛАН!F:F,SMALL(IF(ПЛАН!$H$6:$H$504="FC-TF(один)",ROW(ПЛАН!$H$6:$H$504)),ROW(F70))),"0") -> 0 | G77: 0 | J77: =IFERROR(INDEX(ПЛАН!G:G,SMALL(IF(ПЛАН!$H$6:$H$504="FC-TF(один)",ROW(ПЛАН!$H$6:$H$504)),ROW(G70))),"0") -> 0
C78: =IFERROR(INDEX(ПЛАН!D:D,SMALL(IF(ПЛАН!$H$6:$H$504="FC-TF(один)",ROW(ПЛАН!$H$6:$H$504)),ROW(D71))),"0") -> 0 | D78: =IFERROR(INDEX(ПЛАН!E:E,SMALL(IF(ПЛАН!$H$6:$H$504="FC-TF(один)",ROW(ПЛАН!$H$6:$H$504)),ROW(E71))),"0") -> 0 | E78: 0 | F78: =IFERROR(INDEX(ПЛАН!F:F,SMALL(IF(ПЛАН!$H$6:$H$504="FC-TF(один)",ROW(ПЛАН!$H$6:$H$504)),ROW(F71))),"0") -> 0 | G78: 0 | J78: =IFERROR(INDEX(ПЛАН!G:G,SMALL(IF(ПЛАН!$H$6:$H$504="FC-TF(один)",ROW(ПЛАН!$H$6:$H$504)),ROW(G71))),"0") -> 0
C79: =IFERROR(INDEX(ПЛАН!D:D,SMALL(IF(ПЛАН!$H$6:$H$504="FC-TF(один)",ROW(ПЛАН!$H$6:$H$504)),ROW(D72))),"0") -> 0 | D79: =IFERROR(INDEX(ПЛАН!E:E,SMALL(IF(ПЛАН!$H$6:$H$504="FC-TF(один)",ROW(ПЛАН!$H$6:$H$504)),ROW(E72))),"0") -> 0 | E79: 0 | F79: =IFERROR(INDEX(ПЛАН!F:F,SMALL(IF(ПЛАН!$H$6:$H$504="FC-TF(один)",ROW(ПЛАН!$H$6:$H$504)),ROW(F72))),"0") -> 0 | G79: 0 | J79: =IFERROR(INDEX(ПЛАН!G:G,SMALL(IF(ПЛАН!$H$6:$H$504="FC-TF(один)",ROW(ПЛАН!$H$6:$H$504)),ROW(G72))),"0") -> 0
C80: =IFERROR(INDEX(ПЛАН!D:D,SMALL(IF(ПЛАН!$H$6:$H$504="FC-TF(один)",ROW(ПЛАН!$H$6:$H$504)),ROW(D73))),"0") -> 0 | D80: =IFERROR(INDEX(ПЛАН!E:E,SMALL(IF(ПЛАН!$H$6:$H$504="FC-TF(один)",ROW(ПЛАН!$H$6:$H$504)),ROW(E73))),"0") -> 0 | E80: 0 | F80: =IFERROR(INDEX(ПЛАН!F:F,SMALL(IF(ПЛАН!$H$6:$H$504="FC-TF(один)",ROW(ПЛАН!$H$6:$H$504)),ROW(F73))),"0") -> 0 | G80: 0 | J80: =IFERROR(INDEX(ПЛАН!G:G,SMALL(IF(ПЛАН!$H$6:$H$504="FC-TF(один)",ROW(ПЛАН!$H$6:$H$504)),ROW(G73))),"0") -> 0
C81: =IFERROR(INDEX(ПЛАН!D:D,SMALL(IF(ПЛАН!$H$6:$H$504="FC-TF(один)",ROW(ПЛАН!$H$6:$H$504)),ROW(D74))),"0") -> 0 | D81: =IFERROR(INDEX(ПЛАН!E:E,SMALL(IF(ПЛАН!$H$6:$H$504="FC-TF(один)",ROW(ПЛАН!$H$6:$H$504)),ROW(E74))),"0") -> 0 | E81: 0 | F81: =IFERROR(INDEX(ПЛАН!F:F,SMALL(IF(ПЛАН!$H$6:$H$504="FC-TF(один)",ROW(ПЛАН!$H$6:$H$504)),ROW(F74))),"0") -> 0 | G81: 0 | J81: =IFERROR(INDEX(ПЛАН!G:G,SMALL(IF(ПЛАН!$H$6:$H$504="FC-TF(один)",ROW(ПЛАН!$H$6:$H$504)),ROW(G74))),"0") -> 0
C82: =IFERROR(INDEX(ПЛАН!D:D,SMALL(IF(ПЛАН!$H$6:$H$504="FC-TF(один)",ROW(ПЛАН!$H$6:$H$504)),ROW(D75))),"0") -> 0 | D82: =IFERROR(INDEX(ПЛАН!E:E,SMALL(IF(ПЛАН!$H$6:$H$504="FC-TF(один)",ROW(ПЛАН!$H$6:$H$504)),ROW(E75))),"0") -> 0 | E82: 0 | F82: =IFERROR(INDEX(ПЛАН!F:F,SMALL(IF(ПЛАН!$H$6:$H$504="FC-TF(один)",ROW(ПЛАН!$H$6:$H$504)),ROW(F75))),"0") -> 0 | G82: 0 | J82: =IFERROR(INDEX(ПЛАН!G:G,SMALL(IF(ПЛАН!$H$6:$H$504="FC-TF(один)",ROW(ПЛАН!$H$6:$H$504)),ROW(G75))),"0") -> 0
C83: =IFERROR(INDEX(ПЛАН!D:D,SMALL(IF(ПЛАН!$H$6:$H$504="FC-TF(один)",ROW(ПЛАН!$H$6:$H$504)),ROW(D76))),"0") -> 0 | D83: =IFERROR(INDEX(ПЛАН!E:E,SMALL(IF(ПЛАН!$H$6:$H$504="FC-TF(один)",ROW(ПЛАН!$H$6:$H$504)),ROW(E76))),"0") -> 0 | E83: 0 | F83: =IFERROR(INDEX(ПЛАН!F:F,SMALL(IF(ПЛАН!$H$6:$H$504="FC-TF(один)",ROW(ПЛАН!$H$6:$H$504)),ROW(F76))),"0") -> 0 | G83: 0 | J83: =IFERROR(INDEX(ПЛАН!G:G,SMALL(IF(ПЛАН!$H$6:$H$504="FC-TF(один)",ROW(ПЛАН!$H$6:$H$504)),ROW(G76))),"0") -> 0
C84: =IFERROR(INDEX(ПЛАН!D:D,SMALL(IF(ПЛАН!$H$6:$H$504="FC-TF(один)",ROW(ПЛАН!$H$6:$H$504)),ROW(D77))),"0") -> 0 | D84: =IFERROR(INDEX(ПЛАН!E:E,SMALL(IF(ПЛАН!$H$6:$H$504="FC-TF(один)",ROW(ПЛАН!$H$6:$H$504)),ROW(E77))),"0") -> 0 | E84: 0 | F84: =IFERROR(INDEX(ПЛАН!F:F,SMALL(IF(ПЛАН!$H$6:$H$504="FC-TF(один)",ROW(ПЛАН!$H$6:$H$504)),ROW(F77))),"0") -> 0 | G84: 0 | J84: =IFERROR(INDEX(ПЛАН!G:G,SMALL(IF(ПЛАН!$H$6:$H$504="FC-TF(один)",ROW(ПЛАН!$H$6:$H$504)),ROW(G77))),"0") -> 0
C85: =IFERROR(INDEX(ПЛАН!D:D,SMALL(IF(ПЛАН!$H$6:$H$504="FC-TF(один)",ROW(ПЛАН!$H$6:$H$504)),ROW(D78))),"0") -> 0 | D85: =IFERROR(INDEX(ПЛАН!E:E,SMALL(IF(ПЛАН!$H$6:$H$504="FC-TF(один)",ROW(ПЛАН!$H$6:$H$504)),ROW(E78))),"0") -> 0 | E85: 0 | F85: =IFERROR(INDEX(ПЛАН!F:F,SMALL(IF(ПЛАН!$H$6:$H$504="FC-TF(один)",ROW(ПЛАН!$H$6:$H$504)),ROW(F78))),"0") -> 0 | G85: 0 | J85: =IFERROR(INDEX(ПЛАН!G:G,SMALL(IF(ПЛАН!$H$6:$H$504="FC-TF(один)",ROW(ПЛАН!$H$6:$H$504)),ROW(G78))),"0") -> 0
C86: =IFERROR(INDEX(ПЛАН!D:D,SMALL(IF(ПЛАН!$H$6:$H$504="FC-TF(один)",ROW(ПЛАН!$H$6:$H$504)),ROW(D79))),"0") -> 0 | D86: =IFERROR(INDEX(ПЛАН!E:E,SMALL(IF(ПЛАН!$H$6:$H$504="FC-TF(один)",ROW(ПЛАН!$H$6:$H$504)),ROW(E79))),"0") -> 0 | E86: 0 | F86: =IFERROR(INDEX(ПЛАН!F:F,SMALL(IF(ПЛАН!$H$6:$H$504="FC-TF(один)",ROW(ПЛАН!$H$6:$H$504)),ROW(F79))),"0") -> 0 | G86: 0 | J86: =IFERROR(INDEX(ПЛАН!G:G,SMALL(IF(ПЛАН!$H$6:$H$504="FC-TF(один)",ROW(ПЛАН!$H$6:$H$504)),ROW(G79))),"0") -> 0
C87: =IFERROR(INDEX(ПЛАН!D:D,SMALL(IF(ПЛАН!$H$6:$H$504="FC-TF(один)",ROW(ПЛАН!$H$6:$H$504)),ROW(D80))),"0") -> 0 | D87: =IFERROR(INDEX(ПЛАН!E:E,SMALL(IF(ПЛАН!$H$6:$H$504="FC-TF(один)",ROW(ПЛАН!$H$6:$H$504)),ROW(E80))),"0") -> 0 | E87: 0 | F87: =IFERROR(INDEX(ПЛАН!F:F,SMALL(IF(ПЛАН!$H$6:$H$504="FC-TF(один)",ROW(ПЛАН!$H$6:$H$504)),ROW(F80))),"0") -> 0 | G87: 0 | J87: =IFERROR(INDEX(ПЛАН!G:G,SMALL(IF(ПЛАН!$H$6:$H$504="FC-TF(один)",ROW(ПЛАН!$H$6:$H$504)),ROW(G80))),"0") -> 0
C88: =IFERROR(INDEX(ПЛАН!D:D,SMALL(IF(ПЛАН!$H$6:$H$504="FC-TF(один)",ROW(ПЛАН!$H$6:$H$504)),ROW(D81))),"0") -> 0 | D88: =IFERROR(INDEX(ПЛАН!E:E,SMALL(IF(ПЛАН!$H$6:$H$504="FC-TF(один)",ROW(ПЛАН!$H$6:$H$504)),ROW(E81))),"0") -> 0 | E88: 0 | F88: =IFERROR(INDEX(ПЛАН!F:F,SMALL(IF(ПЛАН!$H$6:$H$504="FC-TF(один)",ROW(ПЛАН!$H$6:$H$504)),ROW(F81))),"0") -> 0 | G88: 0 | J88: =IFERROR(INDEX(ПЛАН!G:G,SMALL(IF(ПЛАН!$H$6:$H$504="FC-TF(один)",ROW(ПЛАН!$H$6:$H$504)),ROW(G81))),"0") -> 0
C89: =IFERROR(INDEX(ПЛАН!D:D,SMALL(IF(ПЛАН!$H$6:$H$504="FC-TF(один)",ROW(ПЛАН!$H$6:$H$504)),ROW(D82))),"0") -> 0 | D89: =IFERROR(INDEX(ПЛАН!E:E,SMALL(IF(ПЛАН!$H$6:$H$504="FC-TF(один)",ROW(ПЛАН!$H$6:$H$504)),ROW(E82))),"0") -> 0 | E89: 0 | F89: =IFERROR(INDEX(ПЛАН!F:F,SMALL(IF(ПЛАН!$H$6:$H$504="FC-TF(один)",ROW(ПЛАН!$H$6:$H$504)),ROW(F82))),"0") -> 0 | G89: 0 | J89: =IFERROR(INDEX(ПЛАН!G:G,SMALL(IF(ПЛАН!$H$6:$H$504="FC-TF(один)",ROW(ПЛАН!$H$6:$H$504)),ROW(G82))),"0") -> 0
C90: =IFERROR(INDEX(ПЛАН!D:D,SMALL(IF(ПЛАН!$H$6:$H$504="FC-TF(один)",ROW(ПЛАН!$H$6:$H$504)),ROW(D83))),"0") -> 0 | D90: =IFERROR(INDEX(ПЛАН!E:E,SMALL(IF(ПЛАН!$H$6:$H$504="FC-TF(один)",ROW(ПЛАН!$H$6:$H$504)),ROW(E83))),"0") -> 0 | E90: 0 | F90: =IFERROR(INDEX(ПЛАН!F:F,SMALL(IF(ПЛАН!$H$6:$H$504="FC-TF(один)",ROW(ПЛАН!$H$6:$H$504)),ROW(F83))),"0") -> 0 | G90: 0 | J90: =IFERROR(INDEX(ПЛАН!G:G,SMALL(IF(ПЛАН!$H$6:$H$504="FC-TF(один)",ROW(ПЛАН!$H$6:$H$504)),ROW(G83))),"0") -> 0
C91: =IFERROR(INDEX(ПЛАН!D:D,SMALL(IF(ПЛАН!$H$6:$H$504="FC-TF(один)",ROW(ПЛАН!$H$6:$H$504)),ROW(D84))),"0") -> 0 | D91: =IFERROR(INDEX(ПЛАН!E:E,SMALL(IF(ПЛАН!$H$6:$H$504="FC-TF(один)",ROW(ПЛАН!$H$6:$H$504)),ROW(E84))),"0") -> 0 | E91: 0 | F91: =IFERROR(INDEX(ПЛАН!F:F,SMALL(IF(ПЛАН!$H$6:$H$504="FC-TF(один)",ROW(ПЛАН!$H$6:$H$504)),ROW(F84))),"0") -> 0 | G91: 0 | J91: =IFERROR(INDEX(ПЛАН!G:G,SMALL(IF(ПЛАН!$H$6:$H$504="FC-TF(один)",ROW(ПЛАН!$H$6:$H$504)),ROW(G84))),"0") -> 0
C92: =IFERROR(INDEX(ПЛАН!D:D,SMALL(IF(ПЛАН!$H$6:$H$504="FC-TF(один)",ROW(ПЛАН!$H$6:$H$504)),ROW(D85))),"0") -> 0 | D92: =IFERROR(INDEX(ПЛАН!E:E,SMALL(IF(ПЛАН!$H$6:$H$504="FC-TF(один)",ROW(ПЛАН!$H$6:$H$504)),ROW(E85))),"0") -> 0 | E92: 0 | F92: =IFERROR(INDEX(ПЛАН!F:F,SMALL(IF(ПЛАН!$H$6:$H$504="FC-TF(один)",ROW(ПЛАН!$H$6:$H$504)),ROW(F85))),"0") -> 0 | G92: 0 | J92: =IFERROR(INDEX(ПЛАН!G:G,SMALL(IF(ПЛАН!$H$6:$H$504="FC-TF(один)",ROW(ПЛАН!$H$6:$H$504)),ROW(G85))),"0") -> 0
C93: =IFERROR(INDEX(ПЛАН!D:D,SMALL(IF(ПЛАН!$H$6:$H$504="FC-TF(один)",ROW(ПЛАН!$H$6:$H$504)),ROW(D86))),"0") -> 0 | D93: =IFERROR(INDEX(ПЛАН!E:E,SMALL(IF(ПЛАН!$H$6:$H$504="FC-TF(один)",ROW(ПЛАН!$H$6:$H$504)),ROW(E86))),"0") -> 0 | E93: 0 | F93: =IFERROR(INDEX(ПЛАН!F:F,SMALL(IF(ПЛАН!$H$6:$H$504="FC-TF(один)",ROW(ПЛАН!$H$6:$H$504)),ROW(F86))),"0") -> 0 | G93: 0 | J93: =IFERROR(INDEX(ПЛАН!G:G,SMALL(IF(ПЛАН!$H$6:$H$504="FC-TF(один)",ROW(ПЛАН!$H$6:$H$504)),ROW(G86))),"0") -> 0
C94: =IFERROR(INDEX(ПЛАН!D:D,SMALL(IF(ПЛАН!$H$6:$H$504="FC-TF(один)",ROW(ПЛАН!$H$6:$H$504)),ROW(D87))),"0") -> 0 | D94: =IFERROR(INDEX(ПЛАН!E:E,SMALL(IF(ПЛАН!$H$6:$H$504="FC-TF(один)",ROW(ПЛАН!$H$6:$H$504)),ROW(E87))),"0") -> 0 | E94: 0 | F94: =IFERROR(INDEX(ПЛАН!F:F,SMALL(IF(ПЛАН!$H$6:$H$504="FC-TF(один)",ROW(ПЛАН!$H$6:$H$504)),ROW(F87))),"0") -> 0 | G94: 0 | J94: =IFERROR(INDEX(ПЛАН!G:G,SMALL(IF(ПЛАН!$H$6:$H$504="FC-TF(один)",ROW(ПЛАН!$H$6:$H$504)),ROW(G87))),"0") -> 0
G96: =SUM(G8:G94) -> 550.8991667 | H96: =G96/(I6*1) -> 1.043369634
